Workbook

Sheet Formato2019
A2: VEEDURIA DISTRITAL - RENDICION DE CUENTAS DE LA GESTION CONTRACTUAL EN EL DISTRITO CAPITAL (Acuerdo 380 de 2009)
A3: INFORMACION GENERAL DE CONTRATACION ENTIDADES DISTRITALES - ENERO 1 A 31 DICIEMBRE DE 2019
A5: 1. Entidad: | D5: Fondo de Desarrollo Local de Usaquen | G5: 2. Sector | H5: Localidades
A6: 3. Presupuesto Disponible Inversión Directa PREDIS | D6: 44426845389 | G6: 5. Presupuesto Disponible Funcionamiento PREDIS | H6: 2775287000 | U6: 9. Nombre de quien diligencia el formato
A7: 4. Presupuesto Comprometido de Inversión Directa según PREDIS | D7: 44368271074 | G7: 6. Presupuesto Comprometido Funcionamiento según PREDIS | H7: 2657255539 | U7: Cargo
U8: Dependencia
A9: 7. Presupuesto Disponible Operación (Regimen Privado) | U9: Teléfono
A10: 8. Presupuesto Comprometido Operación mediante contratos | U10: Correo Electrónico
A11: 1- INFORMACION GENERAL | O11: 2- INFORMACION FINANCIERA | V11: 3 - PLAZOS | AA11: 4 - ESTADO | AF11: 5. % Avance y/o cumplimiento
A12: 1 | B12: 2 | C12: 3 | D12: 4 | E12: 5 | F12: 6 | G12: 7 | H12: 8 | L12: 9 | M12: 10 | O12: 11 | P12: 12 | Q12: 13 | R12: 14 | S12: 15 | T12: 16 | U12: 17 | V12: 18 | W12: 19 | X12: 20 | Y12: 21 | Z12: 22 | AA12: 23 | AF12: 24
A13: Número Contrato | B13: Año | C13: Número de proceso contractual | D13: Tipo de contrato | E13: Modalidad de Selección | F13: Procedimiento o causal | G13: Objeto | H13: Afectación | I13: Número Programa | J13: Equivalencia número de programa | K13: Eje / Pilar | L13: Número Proyecto | M13: Número de Identificación del contratista (NIT con digito de verificación) | N13: Nombre del contratista | O13: Valor Inicial del contrato | P13: Número de reducciones | Q13: Valor total reducciones (En valor negativo) | R13: Número de adiciones | S13: Valor total de adiciones | T13: Valor Final | U13: Giros (Valor en pesos) | V13: Fecha de suscripción (DD/MM/AAAA) | W13: Fecha de inicio (DD/MM/AAAA) | X13: Fecha de terminación (DD/MM/AAAA) | Y13: Plazo en días | Z13: Prorroga en días | AA13: Anulado | AB13: Celebrado o por iniciar | AC13: En Ejecución | AD13: Terminado | AE13: Liquidado | AF13: % Avance y/o Cumplimiento | AH13: Total Contratos | AI13: Validación Tipo | AJ13: Validación Modalidad | AK13: Validación procedimiento | AL13: Validación afectación | AM13: Validación programa
A14: 1 | B14: 2019 | C14: FDLUSA-CPS-001-2019 | D14: Contratos de prestación de servicios profesionales y de apoyo a la gestión | E14: Contratación directa | F14: Prestación de servicios profesionales y de apoyo a la gestión, o para la ejecución de trabajos artísticos que sólo puedan encomendarse a determinadas personas naturales; | G14: PRESTAR LOS SERVICIOS PROFESIONALES A LA ALCALDÍA LOCAL DE USAQUEN EN EL DESARROLLO DE ACTIVIDADES Y TRAMITES ADMINISTRATIVOS RELACIONADOS CON LA PLANEACIÓN Y ESTRUCTURACIÓN DEL PROYECTOS DE INVERSIÓN Y FUNCIONAMIENTO, NECESARIOS EN EL ÁREA DE GESTIÓN DE DESARROLLO LOCAL PARA DAR ALCANCE A LAS METAS ESTABLECIDAS EN EL PLAN DE DESARROLLOLOCAL DE USAQUEN, BOGOTÁ D.C. VIGENTE | H14: Inversión | I14: 45 | J14: =IF(ISERROR(VLOOKUP(I14,Eje_Pilar!$C$2:$E$47,2,FALSE))," ",VLOOKUP(I14,Eje_Pilar!$C$2:$E$47,2,FALSE)) -> Gobernanza e influencia local, regional e internacional | K14: =IF(ISERROR(VLOOKUP(I14,Eje_Pilar!$C$2:$E$47,3,FALSE))," ",VLOOKUP(I14,Eje_Pilar!$C$2:$E$47,3,FALSE)) -> Eje Transversal 4 Gobierno Legitimo, Fortalecimiento Local y Eficiencia | L14: 3-3-1-15-07-45-1574-000 | M14: 1032405577 | N14: LUIS CAMILO CASTIBLANCO SARMIENTO | O14: 46160000 | R14: 2 | S14: 23080000 | T14: =+O14+Q14+S14 -> 69240000 | U14: 59623000 | V14: 2019-01-16 | W14: 2019-01-21 | X14: 2019-09-20 | Y14: 240 | Z14: 101 | AC14: X | AF14: =IF(ISERROR(U14/T14),"-",(U14/T14)) -> 0.8611062969 | AH14: =IF(SUMPRODUCT((A$14:A14=A14)*(B$14:B14=B14)*(C$14:C14=C14))>1,0,1) -> 1 | AI14: =IFERROR(VLOOKUP(D14,tipo,1,FALSE),"NO") -> Contratos de prestación de servicios profesionales y de apoyo a la gestión | AJ14: =IFERROR(VLOOKUP(E14,modal,1,FALSE),"NO") -> Contratación directa | AK14: =IFERROR(VLOOKUP(F14,Tipo!$C$12:$C$27,1,FALSE),"NO") -> Prestación de servicios profesionales y de apoyo a la gestión, o para la ejecución de trabajos artísticos que sólo puedan encomendarse a determinadas personas naturales; | AL14: =IFERROR(VLOOKUP(H14,afectacion,1,FALSE),"NO") -> Inversión | AM14: =IFERROR(VLOOKUP(I14,programa,1,FALSE),"NO") -> 45
A15: 2 | B15: 2019 | C15: FDLUSA-CPS-002-2019 | D15: Contratos de prestación de servicios profesionales y de apoyo a la gestión | E15: Contratación directa | F15: Prestación de servicios profesionales y de apoyo a la gestión, o para la ejecución de trabajos artísticos que sólo puedan encomendarse a determinadas personas naturales; | G15: PRESTAR LOS SERVICIOS PROFESIONALES A LA ALCALDÍA LOCAL DE USAQUÉN COMO LÍDER DE PROYECTO EN LA ORIENTACIÓN Y SEGUIMIENTO DE PROCESOS TÉCNICOS Y ADMINISTRATIVOS NECESARIOS PARA LA EJECUCIÓN LOS PROYECTOS RELACIONADOS CON INFRAESTRUCTURA VIAL, ESPACIOS PÚBLICOS Y DEMÁS RELACIONADOS QUE SE ENCUENTREN CONTEMPLADOS EN EL PLAN DE DESARROLLO “USACA MEJOR PARA TODOS, USAQUÉN CUENTA CONTIGO 2017-2020” | H15: Inversión | I15: 18 | J15: =IF(ISERROR(VLOOKUP(I15,Eje_Pilar!$C$2:$E$47,2,FALSE))," ",VLOOKUP(I15,Eje_Pilar!$C$2:$E$47,2,FALSE)) -> Mejor movilidad para todos | K15: =IF(ISERROR(VLOOKUP(I15,Eje_Pilar!$C$2:$E$47,3,FALSE))," ",VLOOKUP(I15,Eje_Pilar!$C$2:$E$47,3,FALSE)) -> Pilar 2 Democracía Urbana | L15: 3-3-1-15-02-18-1572-000 | M15: 1015394640 | N15: FRANK JAMIR CUADROS GUATAQUIRÁ | O15: 84525000 | T15: 84525000 | U15: 80360000 | V15: 2019-01-16 | W15: 2019-01-18 | X15: 2019-12-31 | Y15: 343 | AC15: X | AF15: =IF(ISERROR(U15/T15),"-",(U15/T15)) -> 0.9507246377 | AH15: =IF(SUMPRODUCT((A$14:A15=A15)*(B$14:B15=B15)*(C$14:C15=C15))>1,0,1) -> 1 | AI15: Contratos de prestación de servicios profesionales y de apoyo a la gestión | AJ15: Contratación directa | AK15: =IFERROR(VLOOKUP(F15,Tipo!$C$12:$C$27,1,FALSE),"NO") -> Prestación de servicios profesionales y de apoyo a la gestión, o para la ejecución de trabajos artísticos que sólo puedan encomendarse a determinadas personas naturales; | AL15: Inversión | AM15: 18
A16: 3 | B16: 2019 | C16: FDLUSA-CPS-003-2019-V2 | D16: Contratos de prestación de servicios profesionales y de apoyo a la gestión | E16: Contratación directa | F16: Prestación de servicios profesionales y de apoyo a la gestión, o para la ejecución de trabajos artísticos que sólo puedan encomendarse a determinadas personas naturales; | G16: PRESTAR LOS SERVICIOS PROFESIONALES A LA ALCALDÍA LOCAL DE USAQUEN EN EL DESARROLLO DE ACTIVIDADES Y TRAMITES ADMINISTRATIVOS RELACIONADOS CON LA PLANEACIÓN Y ESTRUCTURACIÓN DEL PROYECTO DE INVERSIÓN “PARQUE PARA TI, PARA MÍ, PARA TODOS”, NECESARIOS EN EL ÁREA DE GESTIÓN DE DESARROLLO LOCAL PARA DAR ALCANCE A LAS METAS ESTABLECIDAS EN EL PLAN DE DESARROLLO LOCAL DE USAQUEN, BOGOTÁ D.C. VIGENTE | H16: Inversión | I16: 17 | J16: =IF(ISERROR(VLOOKUP(I16,Eje_Pilar!$C$2:$E$47,2,FALSE))," ",VLOOKUP(I16,Eje_Pilar!$C$2:$E$47,2,FALSE)) -> Espacio público, derecho de todos | K16: =IF(ISERROR(VLOOKUP(I16,Eje_Pilar!$C$2:$E$47,3,FALSE))," ",VLOOKUP(I16,Eje_Pilar!$C$2:$E$47,3,FALSE)) -> Pilar 2 Democracía Urbana | L16: 3-3-1-15-02-17-1567-000 | M16: 1013594413 | N16: JEISSON ANDRES ORTIZ HERNANDEZ | O16: 66355000 | R16: 1 | S16: 5770000 | T16: 72125000 | U16: 60200333 | V16: 2019-01-15 | W16: 2019-12-18 | X16: 2019-12-31 | Y16: 343 | Z16: 30 | AC16: X | AF16: =IF(ISERROR(U16/T16),"-",(U16/T16)) -> 0.834666662 | AH16: =IF(SUMPRODUCT((A$14:A16=A16)*(B$14:B16=B16)*(C$14:C16=C16))>1,0,1) -> 1 | AI16: Contratos de prestación de servicios profesionales y de apoyo a la gestión | AJ16: Contratación directa | AK16: =IFERROR(VLOOKUP(F16,Tipo!$C$12:$C$27,1,FALSE),"NO") -> Prestación de servicios profesionales y de apoyo a la gestión, o para la ejecución de trabajos artísticos que sólo puedan encomendarse a determinadas personas naturales; | AL16: Inversión | AM16: 17
A17: 4 | B17: 2019 | C17: FDLUSA-CPS-004-2019 | D17: Contratos de prestación de servicios profesionales y de apoyo a la gestión | E17: Contratación directa | F17: Prestación de servicios profesionales y de apoyo a la gestión, o para la ejecución de trabajos artísticos que sólo puedan encomendarse a determinadas personas naturales; | G17: PRESTAR LOS SERVICIOS PROFESIONALES A LA ALCALDÍA LOCAL DE USAQUÉN, ÁREA GESTIÓN DEL DESARROLLO LOCAL-CONTRATOS, PARA EL DESARROLLO DE LAS ACTUACIONES ADMINISTRATIVAS NECESARIAS RELACIONADAS CON LOS ASUNTOS JURÍDICOS DE LA CONTRATACIÓN DEL FONDO DE DESARROLLO LOCAL, REQUERIDOS PARA EL NORMAL FUNCIONAMIENTO DE LA ENTIDAD | H17: Inversión | I17: 45 | J17: =IF(ISERROR(VLOOKUP(I17,Eje_Pilar!$C$2:$E$47,2,FALSE))," ",VLOOKUP(I17,Eje_Pilar!$C$2:$E$47,2,FALSE)) -> Gobernanza e influencia local, regional e internacional | K17: =IF(ISERROR(VLOOKUP(I17,Eje_Pilar!$C$2:$E$47,3,FALSE))," ",VLOOKUP(I17,Eje_Pilar!$C$2:$E$47,3,FALSE)) -> Eje Transversal 4 Gobierno Legitimo, Fortalecimiento Local y Eficiencia | L17: 3-3-1-15-07-45-1574-000 | M17: 1070008128 | N17: DANIEL EMILIO BARACALDO GÓMEZ | O17: 69000000 | R17: 1 | S17: 6000000 | T17: 75000000 | U17: 66000000 | V17: 2019-01-15 | W17: 2019-01-16 | X17: 2019-12-31 | Y17: 345 | Z17: 30 | AC17: X | AF17: 0.88 | AH17: =IF(SUMPRODUCT((A$14:A17=A17)*(B$14:B17=B17)*(C$14:C17=C17))>1,0,1) -> 1 | AI17: Contratos de prestación de servicios profesionales y de apoyo a la gestión | AJ17: Contratación directa | AK17: =IFERROR(VLOOKUP(F17,Tipo!$C$12:$C$27,1,FALSE),"NO") -> Prestación de servicios profesionales y de apoyo a la gestión, o para la ejecución de trabajos artísticos que sólo puedan encomendarse a determinadas personas naturales; | AL17: Inversión | AM17: 45
A18: 5 | B18: 2019 | C18: FDLUSA-CPS 005-2019 | D18: Contratos de prestación de servicios profesionales y de apoyo a la gestión | E18: Contratación directa | F18: Prestación de servicios profesionales y de apoyo a la gestión, o para la ejecución de trabajos artísticos que sólo puedan encomendarse a determinadas personas naturales; | G18: PRESTAR LOS SERVICIOS PROFESIONALES EN EL DESARROLLO OPERATIVO DE LOS TRÁMITES CONTRACTUALES A CARGO DEL AREA DE GESTION DEL DESARROLLO LOCAL DEL FONDO DE DESARROLLO LOCAL DE USAQUÉN | H18: Inversión | I18: 45 | J18: =IF(ISERROR(VLOOKUP(I18,Eje_Pilar!$C$2:$E$47,2,FALSE))," ",VLOOKUP(I18,Eje_Pilar!$C$2:$E$47,2,FALSE)) -> Gobernanza e influencia local, regional e internacional | K18: =IF(ISERROR(VLOOKUP(I18,Eje_Pilar!$C$2:$E$47,3,FALSE))," ",VLOOKUP(I18,Eje_Pilar!$C$2:$E$47,3,FALSE)) -> Eje Transversal 4 Gobierno Legitimo, Fortalecimiento Local y Eficiencia | L18: 3-3-1-15-07-45-1574-000 | M18: 1032452291 | N18: LINA FERNANDA RODRIGUEZ ARANGO | O18: 52900000 | R18: 1 | S18: 9200000 | T18: 62100000 | U18: 50293333 | V18: 2019-01-16 | W18: 2019-01-18 | X18: 2019-12-31 | Y18: 343 | Z18: 60 | AC18: X | AF18: 0.8098765378 | AH18: =IF(SUMPRODUCT((A$14:A18=A18)*(B$14:B18=B18)*(C$14:C18=C18))>1,0,1) -> 1 | AI18: Contratos de prestación de servicios profesionales y de apoyo a la gestión | AJ18: Contratación directa | AK18: =IFERROR(VLOOKUP(F18,Tipo!$C$12:$C$27,1,FALSE),"NO") -> Prestación de servicios profesionales y de apoyo a la gestión, o para la ejecución de trabajos artísticos que sólo puedan encomendarse a determinadas personas naturales; | AL18: Inversión | AM18: 45
A19: 6 | B19: 2019 | C19: FDLUSA-CPS 006-2019 | D19: Contratos de prestación de servicios profesionales y de apoyo a la gestión | E19: Contratación directa | F19: Prestación de servicios profesionales y de apoyo a la gestión, o para la ejecución de trabajos artísticos que sólo puedan encomendarse a determinadas personas naturales; | G19: PRESTAR LOS SERVICIOS PROFESIONALES EN EL DESARROLLO OPERATIVO DE LOS TRÁMITES CONTRACTUALES A CARGO DEL AREA DE GESTION DEL DESARROLLO LOCAL DEL FONDO DE DESARROLLO LOCAL DE USAQUÉN | H19: Inversión | I19: 45 | J19: =IF(ISERROR(VLOOKUP(I19,Eje_Pilar!$C$2:$E$47,2,FALSE))," ",VLOOKUP(I19,Eje_Pilar!$C$2:$E$47,2,FALSE)) -> Gobernanza e influencia local, regional e internacional | K19: =IF(ISERROR(VLOOKUP(I19,Eje_Pilar!$C$2:$E$47,3,FALSE))," ",VLOOKUP(I19,Eje_Pilar!$C$2:$E$47,3,FALSE)) -> Eje Transversal 4 Gobierno Legitimo, Fortalecimiento Local y Eficiencia | L19: 3-3-1-15-07-45-1574-000 | M19: 1026281012 | N19: PAULA CAMILA CAMARGO VARGAS | O19: 52900000 | R19: 1 | S19: 4600000 | T19: 57500000 | U19: 49680000 | V19: 2019-01-16 | W19: 2019-01-18 | X19: 2019-12-31 | Y19: 343 | Z19: 30 | AC19: X | AF19: 0.864 | AH19: =IF(SUMPRODUCT((A$14:A19=A19)*(B$14:B19=B19)*(C$14:C19=C19))>1,0,1) -> 1 | AI19: =IFERROR(VLOOKUP(D19,tipo,1,FALSE),"NO") -> Contratos de prestación de servicios profesionales y de apoyo a la gestión | AJ19: =IFERROR(VLOOKUP(E19,modal,1,FALSE),"NO") -> Contratación directa | AK19: =IFERROR(VLOOKUP(F19,Tipo!$C$12:$C$27,1,FALSE),"NO") -> Prestación de servicios profesionales y de apoyo a la gestión, o para la ejecución de trabajos artísticos que sólo puedan encomendarse a determinadas personas naturales; | AL19: =IFERROR(VLOOKUP(H19,afectacion,1,FALSE),"NO") -> Inversión | AM19: =IFERROR(VLOOKUP(I19,programa,1,FALSE),"NO") -> 45
A20: 7 | B20: 2019 | C20: FDLUSA-CPS-007-2019 | D20: Contratos de prestación de servicios profesionales y de apoyo a la gestión | E20: Contratación directa | F20: Prestación de servicios profesionales y de apoyo a la gestión, o para la ejecución de trabajos artísticos que sólo puedan encomendarse a determinadas personas naturales; | G20: PRESTAR LOS SERVICIOS PROFESIONALES A LA ALCALDÍA LOCAL DE USAQUÉN, PARA APOYAR LA REALIZACIÓN DE ACTIVIDADES, ADMINISTRATIVAS Y DEMÁS ASUNTOS PROPIOS DE LA MISMA EN CUMPLIMIENTO Del PLAN DE DESARROLLO “USACA MEJOR PARA TODOS, USAQUÉN CUENTA CONTIGO 2017-2020 | H20: Inversión | I20: 45 | J20: =IF(ISERROR(VLOOKUP(I20,Eje_Pilar!$C$2:$E$47,2,FALSE))," ",VLOOKUP(I20,Eje_Pilar!$C$2:$E$47,2,FALSE)) -> Gobernanza e influencia local, regional e internacional | K20: =IF(ISERROR(VLOOKUP(I20,Eje_Pilar!$C$2:$E$47,3,FALSE))," ",VLOOKUP(I20,Eje_Pilar!$C$2:$E$47,3,FALSE)) -> Eje Transversal 4 Gobierno Legitimo, Fortalecimiento Local y Eficiencia | L20: 3-3-1-15-07-45-1574-000 | M20: 33369684 | N20: NEDDY ESTHER SANDOVAL FIGUEREDO | O20: 69000000 | R20: 1 | S20: 6000000 | T20: 75000000 | U20: 65600000 | V20: 2019-01-16 | W20: 2019-01-18 | X20: 2019-12-31 | Y20: 343 | Z20: 30 | AC20: X | AF20: 0.8746666667 | AH20: =IF(SUMPRODUCT((A$14:A20=A20)*(B$14:B20=B20)*(C$14:C20=C20))>1,0,1) -> 1
A21: 8 | B21: 2019 | C21: FDLUSA-CPS-008-2019 | D21: Contratos de prestación de servicios profesionales y de apoyo a la gestión | E21: Contratación directa | F21: Prestación de servicios profesionales y de apoyo a la gestión, o para la ejecución de trabajos artísticos que sólo puedan encomendarse a determinadas personas naturales; | G21: PRESTAR LOS SERVICIOS PROFESIONALES ESPECIALIZADOS A LA ALCALDÍA LOCAL DE USAQUÉN, ÁREA GESTIÓN DEL DESARROLLO LOCAL-CONTRATOS, PARA EL DESARROLLO DE LAS ACTUACIONES ADMINISTRATIVAS NECESARIAS RELACIONADAS CON LOS ASUNTOS JURÍDICOS DE LA CONTRATACIÓN DEL FONDO DE DESARROLLO LOCAL, REQUERIDOS PARA EL NORMAL FUNCIONAMIENTO DE LA ENTIDAD | H21: Inversión | I21: 45 | J21: =IF(ISERROR(VLOOKUP(I21,Eje_Pilar!$C$2:$E$47,2,FALSE))," ",VLOOKUP(I21,Eje_Pilar!$C$2:$E$47,2,FALSE)) -> Gobernanza e influencia local, regional e internacional | K21: =IF(ISERROR(VLOOKUP(I21,Eje_Pilar!$C$2:$E$47,3,FALSE))," ",VLOOKUP(I21,Eje_Pilar!$C$2:$E$47,3,FALSE)) -> Eje Transversal 4 Gobierno Legitimo, Fortalecimiento Local y Eficiencia | L21: 3-3-1-15-07-45-1574-000 | M21: 52451276 | N21: MONICA JOHANNA HERNANDEZ PERAZA | O21: 83950000 | R21: 1 | S21: 14600000 | T21: 98550000 | U21: 79813333 | V21: 2019-01-16 | W21: 2019-01-18 | X21: 2019-12-31 | Y21: 343 | Z21: 60 | AC21: X | AF21: 0.8098765398 | AH21: =IF(SUMPRODUCT((A$14:A21=A21)*(B$14:B21=B21)*(C$14:C21=C21))>1,0,1) -> 1
A22: 9 | B22: 2019 | C22: FDLUSA-CPS-009-2019 | D22: Contratos de prestación de servicios profesionales y de apoyo a la gestión | E22: Contratación directa | F22: Prestación de servicios profesionales y de apoyo a la gestión, o para la ejecución de trabajos artísticos que sólo puedan encomendarse a determinadas personas naturales; | G22: PRESTAR LOS SERVICIOS PROFESIONALES A LA ALCALDÍA LOCAL DE USAQUEN PARA APOYAR LA COORDINACIÓN Y EJECUCIÓN DE ACTIVIDADES RELACIONADAS CON LA INFRAESTRUCTURA DE PARQUES, ZONAS DE RECREACIÓN, EMBELLECIMIENTO Y ORNATO QUE SE ADELANTEN EN LA LOCALIDAD Y ACTIVIDADES CONEXAS, DEL PLAN DE DESARROLLO “USACA MEJOR PARA TODOS, USAQUÉN CUENTA CONTIGO 2017-2020 | H22: Inversión | I22: 17 | J22: =IF(ISERROR(VLOOKUP(I22,Eje_Pilar!$C$2:$E$47,2,FALSE))," ",VLOOKUP(I22,Eje_Pilar!$C$2:$E$47,2,FALSE)) -> Espacio público, derecho de todos | K22: =IF(ISERROR(VLOOKUP(I22,Eje_Pilar!$C$2:$E$47,3,FALSE))," ",VLOOKUP(I22,Eje_Pilar!$C$2:$E$47,3,FALSE)) -> Pilar 2 Democracía Urbana | L22: 3-3-1-15-02-17-1567-000 | M22: 74082911 | N22: ESTEBAN MARTÍNEZ TORRES | O22: 69000000 | R22: 1 | S22: 11000000 | T22: 80000000 | U22: 62000000 | V22: 2019-01-16 | W22: 2019-01-21 | X22: 2019-12-31 | Y22: 340 | Z22: 60 | AC22: X | AF22: 0.775 | AH22: =IF(SUMPRODUCT((A$14:A22=A22)*(B$14:B22=B22)*(C$14:C22=C22))>1,0,1) -> 1 | AI22: Contratos de prestación de servicios profesionales y de apoyo a la gestión | AJ22: Contratación directa | AK22: =IFERROR(VLOOKUP(F22,Tipo!$C$12:$C$27,1,FALSE),"NO") -> Prestación de servicios profesionales y de apoyo a la gestión, o para la ejecución de trabajos artísticos que sólo puedan encomendarse a determinadas personas naturales; | AL22: Inversión | AM22: 17
A23: 10 | B23: 2019 | C23: FDLUSA-CPS 010-2019 | D23: Contratos de prestación de servicios profesionales y de apoyo a la gestión | E23: Contratación directa | F23: Prestación de servicios profesionales y de apoyo a la gestión, o para la ejecución de trabajos artísticos que sólo puedan encomendarse a determinadas personas naturales; | G23: PRESTAR LOS SERVICIOS PROFESIONALES DE APOYO AL ALCALDE LOCAL EN LA GESTIÓN DE LOS ASUNTOS RELACIONADOS CON SEGURIDAD CIUDADANA, CONVIVENCIA Y PREVENCIÓN DE CONFLICTIVIDADES, VIOLENCIAS Y DELITOS EN LA LOCALIDAD, DE CONFORMIDAD CON EL MARCO NORMATIVO APLICABLE EN LA MATERIA | H23: Inversión | I23: 19 | J23: =IF(ISERROR(VLOOKUP(I23,Eje_Pilar!$C$2:$E$47,2,FALSE))," ",VLOOKUP(I23,Eje_Pilar!$C$2:$E$47,2,FALSE)) -> Seguridad y convivencia para todos | K23: =IF(ISERROR(VLOOKUP(I23,Eje_Pilar!$C$2:$E$47,3,FALSE))," ",VLOOKUP(I23,Eje_Pilar!$C$2:$E$47,3,FALSE)) -> Pilar 3 Construcción de Comunidad y Cultura Ciudadana | L23: 3-3-1-15-03-19-1569-000 | M23: 6772797 | N23: ANGELO NAPOLEON RUIZ PERILLA | O23: 80500000 | R23: 1 | S23: 14000000 | T23: 94500000 | U23: 75366000 | V23: 2019-01-17 | W23: 2019-01-23 | X23: 2019-12-31 | Y23: 338 | Z23: 60 | AC23: X | AF23: 0.7975238095 | AH23: =IF(SUMPRODUCT((A$14:A23=A23)*(B$14:B23=B23)*(C$14:C23=C23))>1,0,1) -> 1 | AI23: Contratos de prestación de servicios profesionales y de apoyo a la gestión | AJ23: Contratación directa | AK23: =IFERROR(VLOOKUP(F23,Tipo!$C$12:$C$27,1,FALSE),"NO") -> Prestación de servicios profesionales y de apoyo a la gestión, o para la ejecución de trabajos artísticos que sólo puedan encomendarse a determinadas personas naturales; | AL23: Inversión | AM23: 19
A24: 11 | B24: 2019 | C24: FDLUSA-CPS 011-2019 | D24: Contratos de prestación de servicios profesionales y de apoyo a la gestión | E24: Contratación directa | F24: Prestación de servicios profesionales y de apoyo a la gestión, o para la ejecución de trabajos artísticos que sólo puedan encomendarse a determinadas personas naturales; | G24: PRESTAR LOS SERVICIOS DE APOYO A LA GESTIÓN DE LA ALCALDÍA LOCAL EN EL SOSTENIMIENTO DE ESPACIOS RECUPERADOS A TRAVÉS DEL DESARROLLO DE ACTIVIDADES DE SEGURIDAD Y CONVIVENCIA, ACOMPAÑAMIENTO A LA CIUDADANÍA, SOPORTE LOGÍSTICO Y DIFUSIÓN DE LAS ACTIVIDADES PROGRAMADAS ZONA DE USAQUÉN CENTRO | H24: Inversión | I24: 19 | J24: =IF(ISERROR(VLOOKUP(I24,Eje_Pilar!$C$2:$E$47,2,FALSE))," ",VLOOKUP(I24,Eje_Pilar!$C$2:$E$47,2,FALSE)) -> Seguridad y convivencia para todos | K24: =IF(ISERROR(VLOOKUP(I24,Eje_Pilar!$C$2:$E$47,3,FALSE))," ",VLOOKUP(I24,Eje_Pilar!$C$2:$E$47,3,FALSE)) -> Pilar 3 Construcción de Comunidad y Cultura Ciudadana | L24: 3-3-1-15-03-19-1569-000 | M24: 1033738252 | N24: YESENIA GAMBOA PARDO | O24: 21780000 | R24: 2 | S24: 2442000 | T24: 24222000 | U24: 20262000 | V24: 2019-01-17 | W24: 2019-01-24 | X24: 2019-12-23 | Y24: 330 | Z24: 7 | AC24: X | AF24: 0.8365122616 | AH24: =IF(SUMPRODUCT((A$14:A24=A24)*(B$14:B24=B24)*(C$14:C24=C24))>1,0,1) -> 1 | AI24: Contratos de prestación de servicios profesionales y de apoyo a la gestión | AJ24: Contratación directa | AK24: =IFERROR(VLOOKUP(F24,Tipo!$C$12:$C$27,1,FALSE),"NO") -> Prestación de servicios profesionales y de apoyo a la gestión, o para la ejecución de trabajos artísticos que sólo puedan encomendarse a determinadas personas naturales; | AL24: Inversión | AM24: 19
A25: 12 | B25: 2019 | C25: FDLUSA-CPS-012-2019 | D25: Contratos de prestación de servicios profesionales y de apoyo a la gestión | E25: Contratación directa | F25: Prestación de servicios profesionales y de apoyo a la gestión, o para la ejecución de trabajos artísticos que sólo puedan encomendarse a determinadas personas naturales; | G25: PRESTAR LOS SERVICIOS DE APOYO A LA GESTIÓN EN EL LEVANTAMIENTO DE INVENTARIOS, CONTROL DE BIENES MUEBLES E INMUEBLES EXISTENTES, A CARGO DE LA ALCALDÍA LOCAL DE USAQUÉN | H25: Inversión | I25: 45 | J25: =IF(ISERROR(VLOOKUP(I25,Eje_Pilar!$C$2:$E$47,2,FALSE))," ",VLOOKUP(I25,Eje_Pilar!$C$2:$E$47,2,FALSE)) -> Gobernanza e influencia local, regional e internacional | K25: =IF(ISERROR(VLOOKUP(I25,Eje_Pilar!$C$2:$E$47,3,FALSE))," ",VLOOKUP(I25,Eje_Pilar!$C$2:$E$47,3,FALSE)) -> Eje Transversal 4 Gobierno Legitimo, Fortalecimiento Local y Eficiencia | L25: 3-3-1-15-07-45-1574-000 | M25: 91430672 | N25: ANGEL MARIA NORIEGA GOMEZ | O25: 18960000 | R25: 2 | S25: 9480000 | T25: 28440000 | U25: 25596000 | V25: 2019-01-16 | W25: 2019-01-22 | X25: 2019-09-21 | Y25: 240 | Z25: 99 | AC25: X | AF25: 0.9 | AH25: =IF(SUMPRODUCT((A$14:A25=A25)*(B$14:B25=B25)*(C$14:C25=C25))>1,0,1) -> 1 | AI25: Contratos de prestación de servicios profesionales y de apoyo a la gestión | AJ25: Contratación directa | AK25: =IFERROR(VLOOKUP(F25,Tipo!$C$12:$C$27,1,FALSE),"NO") -> Prestación de servicios profesionales y de apoyo a la gestión, o para la ejecución de trabajos artísticos que sólo puedan encomendarse a determinadas personas naturales; | AL25: Inversión | AM25: 45
A26: 13 | B26: 2019 | C26: FDLUSA-CPS 013-2019 | D26: Contratos de prestación de servicios profesionales y de apoyo a la gestión | E26: Contratación directa | F26: Prestación de servicios profesionales y de apoyo a la gestión, o para la ejecución de trabajos artísticos que sólo puedan encomendarse a determinadas personas naturales; | G26: PRESTAR LOS SERVICIOS PROFESIONALES PARA APOYAR AL EQUIPO DE PRENSA Y COMUNICACIONES DE LA ALCALDÍA LOCAL EN LA REALIZACIÓN DE PRODUCTOS Y PIEZAS DIGITALES, IMPRESAS Y PUBLICITARIAS DE GRAN FORMATO Y DE ANIMACIÓN GRÁFICA, ASÍ COMO APOYAR LA PRODUCCIÓN Y MONTAJE DE EVENTOS | H26: Inversión | I26: 45 | J26: =IF(ISERROR(VLOOKUP(I26,Eje_Pilar!$C$2:$E$47,2,FALSE))," ",VLOOKUP(I26,Eje_Pilar!$C$2:$E$47,2,FALSE)) -> Gobernanza e influencia local, regional e internacional | K26: =IF(ISERROR(VLOOKUP(I26,Eje_Pilar!$C$2:$E$47,3,FALSE))," ",VLOOKUP(I26,Eje_Pilar!$C$2:$E$47,3,FALSE)) -> Eje Transversal 4 Gobierno Legitimo, Fortalecimiento Local y Eficiencia | L26: 3-3-1-15-07-45-1574-000 | M26: 1026270869 | N26: SEBASTIAN SANCHEZ GONZALEZ | O26: 50105000 | R26: 1 | S26: 9110000 | T26: 59215000 | U26: 47827500 | V26: 2019-01-25 | W26: 2019-02-01 | X26: 2019-12-31 | Y26: 330 | Z26: 60 | AC26: X | AF26: 0.8076923077 | AH26: =IF(SUMPRODUCT((A$14:A26=A26)*(B$14:B26=B26)*(C$14:C26=C26))>1,0,1) -> 1 | AI26: Contratos de prestación de servicios profesionales y de apoyo a la gestión | AJ26: Contratación directa | AK26: =IFERROR(VLOOKUP(F26,Tipo!$C$12:$C$27,1,FALSE),"NO") -> Prestación de servicios profesionales y de apoyo a la gestión, o para la ejecución de trabajos artísticos que sólo puedan encomendarse a determinadas personas naturales; | AL26: Inversión | AM26: 45
A27: 14 | B27: 2019 | C27: FDLUSA-CPS 014-2019 | D27: Contratos de prestación de servicios profesionales y de apoyo a la gestión | E27: Contratación directa | F27: Prestación de servicios profesionales y de apoyo a la gestión, o para la ejecución de trabajos artísticos que sólo puedan encomendarse a determinadas personas naturales; | G27: PRESTAR SERVICIOS DE APOYO PARA LA REALIZACIÓN DE ACTIVIDADES SECRETARIALES Y TRAMITES DE INFORMACIÓN REQUERIDAS EN EL DESPACHO DE LA ALCALDÍA LOCAL | H27: Inversión | I27: 45 | J27: =IF(ISERROR(VLOOKUP(I27,Eje_Pilar!$C$2:$E$47,2,FALSE))," ",VLOOKUP(I27,Eje_Pilar!$C$2:$E$47,2,FALSE)) -> Gobernanza e influencia local, regional e internacional | K27: =IF(ISERROR(VLOOKUP(I27,Eje_Pilar!$C$2:$E$47,3,FALSE))," ",VLOOKUP(I27,Eje_Pilar!$C$2:$E$47,3,FALSE)) -> Eje Transversal 4 Gobierno Legitimo, Fortalecimiento Local y Eficiencia | L27: 3-3-1-15-07-45-1574-000 | M27: 1015397616 | N27: JUAN DIEGO BUSTOS MUÑOZ | O27: 27600000 | R27: 1 | S27: 4800000 | T27: 32400000 | U27: 25840000 | V27: 2019-01-17 | W27: 2019-01-23 | X27: 2019-12-31 | Y27: 338 | Z27: 60 | AC27: X | AF27: 0.7975308642 | AH27: =IF(SUMPRODUCT((A$14:A27=A27)*(B$14:B27=B27)*(C$14:C27=C27))>1,0,1) -> 1 | AI27: Contratos de prestación de servicios profesionales y de apoyo a la gestión | AJ27: Contratación directa | AK27: =IFERROR(VLOOKUP(F27,Tipo!$C$12:$C$27,1,FALSE),"NO") -> Prestación de servicios profesionales y de apoyo a la gestión, o para la ejecución de trabajos artísticos que sólo puedan encomendarse a determinadas personas naturales; | AL27: Inversión | AM27: 45
A28: 15 | B28: 2019 | C28: FDLUSA-CPS 015-2019 | D28: Contratos de prestación de servicios profesionales y de apoyo a la gestión | E28: Contratación directa | F28: Prestación de servicios profesionales y de apoyo a la gestión, o para la ejecución de trabajos artísticos que sólo puedan encomendarse a determinadas personas naturales; | G28: PRESTAR LOS SERVICIOS PROFESIONALES A LA ALCALDÍA LOCAL DE USAQUÉN, PARA LA EJECUCIÓN DE ACTIVIDADES DE PROTECCIÓN DE LAS ZONAS DE RESERVA, BUEN USO Y CUIDADO DEL ESPACIO PUBLICO, CUMPLIMIENTO DE NORMAS DE CONVIVENCIA, PREVENCION DE CONTRAVENCIONES Y DEMAS ASUNTOS DE SEGURIDAD Y CONVENIENCIA CONTEMPLADAS EN PLAN DE DESARROLLO “USACA MEJOR PARA TODOS, USAQUÉN CUENTA CONTIGO 2017-2020 | H28: Inversión | I28: 19 | J28: =IF(ISERROR(VLOOKUP(I28,Eje_Pilar!$C$2:$E$47,2,FALSE))," ",VLOOKUP(I28,Eje_Pilar!$C$2:$E$47,2,FALSE)) -> Seguridad y convivencia para todos | K28: =IF(ISERROR(VLOOKUP(I28,Eje_Pilar!$C$2:$E$47,3,FALSE))," ",VLOOKUP(I28,Eje_Pilar!$C$2:$E$47,3,FALSE)) -> Pilar 3 Construcción de Comunidad y Cultura Ciudadana | L28: 3-3-1-15-03-19-1569-000 | M28: 33377415 | N28: LILIANA MARCELA PÉREZ MORENO | O28: 40000000 | R28: 2 | S28: 19999999 | T28: 59999999 | U28: 53666666 | V28: 2019-01-18 | W28: 2019-01-24 | X28: 2019-09-23 | Y28: 330 | Z28: 97 | AC28: X | AF28: 0.8944444482 | AH28: =IF(SUMPRODUCT((A$14:A28=A28)*(B$14:B28=B28)*(C$14:C28=C28))>1,0,1) -> 1 | AI28: Contratos de prestación de servicios profesionales y de apoyo a la gestión | AJ28: Contratación directa | AK28: =IFERROR(VLOOKUP(F28,Tipo!$C$12:$C$27,1,FALSE),"NO") -> Prestación de servicios profesionales y de apoyo a la gestión, o para la ejecución de trabajos artísticos que sólo puedan encomendarse a determinadas personas naturales; | AL28: Inversión | AM28: 19
A29: 16 | B29: 2019 | C29: FDLUSA-CPS-016-2019 | D29: Contratos de prestación de servicios profesionales y de apoyo a la gestión | E29: Contratación directa | F29: Prestación de servicios profesionales y de apoyo a la gestión, o para la ejecución de trabajos artísticos que sólo puedan encomendarse a determinadas personas naturales; | G29: PRESTAR LOS SERVICIOS PROFESIONALES PARA APOYAR AL EQUIPO DE PRENSA Y COMUNICACIONES DE LA ALCALDÍA LOCAL EN LA CREACIÓN, REALIZACIÓN Y PRODUCCIÓN DE VÍDEOS QUE TRANSMITAN UN MENSAJE EN LA COMUNICACIÓN INTERNA Y EXTERNA | H29: Inversión | I29: 45 | J29: =IF(ISERROR(VLOOKUP(I29,Eje_Pilar!$C$2:$E$47,2,FALSE))," ",VLOOKUP(I29,Eje_Pilar!$C$2:$E$47,2,FALSE)) -> Gobernanza e influencia local, regional e internacional | K29: =IF(ISERROR(VLOOKUP(I29,Eje_Pilar!$C$2:$E$47,3,FALSE))," ",VLOOKUP(I29,Eje_Pilar!$C$2:$E$47,3,FALSE)) -> Eje Transversal 4 Gobierno Legitimo, Fortalecimiento Local y Eficiencia | L29: 3-3-1-15-07-45-1574-000 | M29: 7171391 | N29: CAMILO ALFREDO BARON RIVEROS | O29: 50105000 | T29: 50105000 | U29: 47371999 | V29: 2019-01-18 | W29: 2019-01-29 | X29: 2019-12-28 | Y29: 330 | AC29: X | AF29: 0.9454545255 | AH29: =IF(SUMPRODUCT((A$14:A29=A29)*(B$14:B29=B29)*(C$14:C29=C29))>1,0,1) -> 1 | AI29: Contratos de prestación de servicios profesionales y de apoyo a la gestión | AJ29: Contratación directa | AK29: =IFERROR(VLOOKUP(F29,Tipo!$C$12:$C$27,1,FALSE),"NO") -> Prestación de servicios profesionales y de apoyo a la gestión, o para la ejecución de trabajos artísticos que sólo puedan encomendarse a determinadas personas naturales; | AL29: Inversión | AM29: 45
A30: 17 | B30: 2019 | C30: FDLUSA-CPS-017-2019 | D30: Contratos de prestación de servicios profesionales y de apoyo a la gestión | E30: Contratación directa | F30: Prestación de servicios profesionales y de apoyo a la gestión, o para la ejecución de trabajos artísticos que sólo puedan encomendarse a determinadas personas naturales; | G30: PRESTAR LOS SERVICIOS PROFESIONALES PARA APOYAR AL EQUIPO DE PRENSA Y COMUNICACIONES DE LA ALCALDÍA LOCAL EN LA REALIZACIÓN Y PUBLICACIÓN DE CONTENIDOS DE REDES SOCIALES Y CANALES DE DIVULGACIÓN DIGITAL (SITIO WEB) DE LA ALCALDÍA LOCAL | H30: Inversión | I30: 45 | J30: =IF(ISERROR(VLOOKUP(I30,Eje_Pilar!$C$2:$E$47,2,FALSE))," ",VLOOKUP(I30,Eje_Pilar!$C$2:$E$47,2,FALSE)) -> Gobernanza e influencia local, regional e internacional | K30: =IF(ISERROR(VLOOKUP(I30,Eje_Pilar!$C$2:$E$47,3,FALSE))," ",VLOOKUP(I30,Eje_Pilar!$C$2:$E$47,3,FALSE)) -> Eje Transversal 4 Gobierno Legitimo, Fortalecimiento Local y Eficiencia | L30: 3-3-1-15-07-45-1574-000 | M30: 1121872238 | N30: LIZETH CAROLINA SANTIAGO TIBAVIZCO | O30: 50105000 | R30: 1 | S30: 9110000 | T30: 59215000 | U30: 48738500 | V30: 2019-01-23 | W30: 2019-01-25 | X30: 2019-12-24 | Y30: 330 | Z30: 60 | AC30: X | AF30: 0.8230769231 | AH30: =IF(SUMPRODUCT((A$14:A30=A30)*(B$14:B30=B30)*(C$14:C30=C30))>1,0,1) -> 1 | AI30: Contratos de prestación de servicios profesionales y de apoyo a la gestión | AJ30: Contratación directa | AK30: =IFERROR(VLOOKUP(F30,Tipo!$C$12:$C$27,1,FALSE),"NO") -> Prestación de servicios profesionales y de apoyo a la gestión, o para la ejecución de trabajos artísticos que sólo puedan encomendarse a determinadas personas naturales; | AL30: Inversión | AM30: 45
A31: 18 | B31: 2019 | C31: FDLUSA-CPS-018-2019 | D31: Contratos de prestación de servicios profesionales y de apoyo a la gestión | E31: Contratación directa | F31: Prestación de servicios profesionales y de apoyo a la gestión, o para la ejecución de trabajos artísticos que sólo puedan encomendarse a determinadas personas naturales; | G31: PRESTAR SERVICIOS PROFESIONALES AL ÁREA GESTIÓN DEL DESARROLLO LOCAL-CDI, EN LA EJECUCIÓN DE LAS ACTIVIDADES OPERATIVAS Y ADMINISTRATIVAS RELACIONADAS CON LA GESTIÓN DOCUMENTAL DE LOS ARCHIVOS DE LA ALCALDÍA Y EL TRÁMITE PERTINENTE A LAS COMUNICACIONES INTERNAS Y EXTERNAS CON EL FIN DE CONTROLAR DE FORMA ÁGIL Y OPORTUNA LOS DOCUMENTOS ENVIADOS Y RECIBIDOS POR LAS DEPENDENCIAS, DE ACUERDO A LOS APLICATIVOS Y LAS NORMAS VIGENTES DE LA MATERIA | H31: Inversión | I31: 45 | J31: =IF(ISERROR(VLOOKUP(I31,Eje_Pilar!$C$2:$E$47,2,FALSE))," ",VLOOKUP(I31,Eje_Pilar!$C$2:$E$47,2,FALSE)) -> Gobernanza e influencia local, regional e internacional | K31: =IF(ISERROR(VLOOKUP(I31,Eje_Pilar!$C$2:$E$47,3,FALSE))," ",VLOOKUP(I31,Eje_Pilar!$C$2:$E$47,3,FALSE)) -> Eje Transversal 4 Gobierno Legitimo, Fortalecimiento Local y Eficiencia | L31: 3-3-1-15-07-45-1574-000 | M31: 79713488 | N31: EDGAR MAURICIO GOMEZ MEDINA | O31: 47725000 | R31: 1 | S31: 8300000 | T31: 56025000 | U31: 44820000 | V31: 2019-01-17 | W31: 2019-01-22 | X31: 2019-12-31 | Y31: 340 | Z31: 60 | AC31: X | AF31: 0.8 | AH31: =IF(SUMPRODUCT((A$14:A31=A31)*(B$14:B31=B31)*(C$14:C31=C31))>1,0,1) -> 1 | AI31: Contratos de prestación de servicios profesionales y de apoyo a la gestión | AJ31: Contratación directa | AK31: =IFERROR(VLOOKUP(F31,Tipo!$C$12:$C$27,1,FALSE),"NO") -> Prestación de servicios profesionales y de apoyo a la gestión, o para la ejecución de trabajos artísticos que sólo puedan encomendarse a determinadas personas naturales; | AL31: Inversión | AM31: 45
A32: 19 | B32: 2019 | C32: FDLUSA-CPS-019-2019 | D32: Contratos de prestación de servicios profesionales y de apoyo a la gestión | E32: Contratación directa | F32: Prestación de servicios profesionales y de apoyo a la gestión, o para la ejecución de trabajos artísticos que sólo puedan encomendarse a determinadas personas naturales; | G32: PRESTAR LOS SERVICIOS PROFESIONALES A LA ALCALDÍA LOCAL DE USAQUÉN PARA APOYAR LA GESTIÓN JURÍDICA DE LA CASA DEL CONSUMIDOR DE LA LOCALIDAD | H32: Inversión | I32: 45 | J32: =IF(ISERROR(VLOOKUP(I32,Eje_Pilar!$C$2:$E$47,2,FALSE))," ",VLOOKUP(I32,Eje_Pilar!$C$2:$E$47,2,FALSE)) -> Gobernanza e influencia local, regional e internacional | K32: =IF(ISERROR(VLOOKUP(I32,Eje_Pilar!$C$2:$E$47,3,FALSE))," ",VLOOKUP(I32,Eje_Pilar!$C$2:$E$47,3,FALSE)) -> Eje Transversal 4 Gobierno Legitimo, Fortalecimiento Local y Eficiencia | L32: 3-3-1-15-07-45-1574-000 | M32: 1022327851 | N32: JUAN CAMILO RAMIREZ PINTO | O32: 55000000 | T32: 55000000 | U32: 52666666 | V32: 2019-01-18 | W32: 2019-01-30 | X32: 2019-12-29 | Y32: 330 | AC32: X | AF32: 0.9575757455 | AH32: =IF(SUMPRODUCT((A$14:A32=A32)*(B$14:B32=B32)*(C$14:C32=C32))>1,0,1) -> 1 | AI32: Contratos de prestación de servicios profesionales y de apoyo a la gestión | AJ32: Contratación directa | AK32: =IFERROR(VLOOKUP(F32,Tipo!$C$12:$C$27,1,FALSE),"NO") -> Prestación de servicios profesionales y de apoyo a la gestión, o para la ejecución de trabajos artísticos que sólo puedan encomendarse a determinadas personas naturales; | AL32: Inversión | AM32: 45
A33: 20 | B33: 2019 | C33: FDLUSA-CPS 020-2019 | D33: Contratos de prestación de servicios profesionales y de apoyo a la gestión | E33: Contratación directa | F33: Prestación de servicios profesionales y de apoyo a la gestión, o para la ejecución de trabajos artísticos que sólo puedan encomendarse a determinadas personas naturales; | G33: PRESTAR LOS SERVICIOS PROFESIONALES A LA ALCALDÍA LOCAL DE USAQUÉN, PARA LA EJECUCIÓN DE ACTIVIDADES DE PROTECCIÓN DE LAS ZONAS DE RESERVA, BUEN USO Y CUIDADO DEL ESPACIO PUBLICO, CUMPLIMIENTO DE NORMAS DE CONVIVENCIA, PREVENCION DE CONTRAVENCIONES Y DEMAS ASUNTOS DE SEGURIDAD Y CONVENIENCIA CONTEMPLADAS EN PLAN DE DESARROLLO “USACA MEJOR PARA TODOS, USAQUÉN CUENTA CONTIGO 2017-2020 | H33: Inversión | I33: 19 | J33: =IF(ISERROR(VLOOKUP(I33,Eje_Pilar!$C$2:$E$47,2,FALSE))," ",VLOOKUP(I33,Eje_Pilar!$C$2:$E$47,2,FALSE)) -> Seguridad y convivencia para todos | K33: =IF(ISERROR(VLOOKUP(I33,Eje_Pilar!$C$2:$E$47,3,FALSE))," ",VLOOKUP(I33,Eje_Pilar!$C$2:$E$47,3,FALSE)) -> Pilar 3 Construcción de Comunidad y Cultura Ciudadana | L33: 3-3-1-15-03-19-1569-000 | M33: 1031134149 | N33: LEIDY JHOANA ZAMBRANO GUEVARA | O33: 40000000 | R33: 2 | S33: 19999999 | T33: 59999999 | U33: 53666667 | V33: 2019-01-18 | W33: 2019-01-24 | X33: 2019-09-23 | Y33: 240 | Z33: 97 | AC33: X | AF33: 0.8944444649 | AH33: =IF(SUMPRODUCT((A$14:A33=A33)*(B$14:B33=B33)*(C$14:C33=C33))>1,0,1) -> 1 | AI33: Contratos de prestación de servicios profesionales y de apoyo a la gestión | AJ33: Contratación directa | AK33: =IFERROR(VLOOKUP(F33,Tipo!$C$12:$C$27,1,FALSE),"NO") -> Prestación de servicios profesionales y de apoyo a la gestión, o para la ejecución de trabajos artísticos que sólo puedan encomendarse a determinadas personas naturales; | AL33: Inversión | AM33: 19
A34: 21 | B34: 2019 | C34: FDLUSA-CPS-021-2019 | D34: Contratos de prestación de servicios profesionales y de apoyo a la gestión | E34: Contratación directa | F34: Prestación de servicios profesionales y de apoyo a la gestión, o para la ejecución de trabajos artísticos que sólo puedan encomendarse a determinadas personas naturales; | G34: PRESTAR LOS SERVICIOS PROFESIONALES A LA ALCALDÍA LOCAL DE USAQUÉN, EN EL APOYO E IMPULSO DE LAS ACTUACIONES ADMINISTRATIVAS DE COBRO PERSUASIVO A QUE HAYA LUGAR Y REALIZAR EL TRÁMITE RESPECTIVO PARA ADELANTAR SU COBRO COACTIVO DE ACUERDO A LAS METAS DE GESTIÓN DE CARTERA DE LA ALCALDÍA LOCAL | H34: Inversión | I34: 45 | J34: =IF(ISERROR(VLOOKUP(I34,Eje_Pilar!$C$2:$E$47,2,FALSE))," ",VLOOKUP(I34,Eje_Pilar!$C$2:$E$47,2,FALSE)) -> Gobernanza e influencia local, regional e internacional | K34: =IF(ISERROR(VLOOKUP(I34,Eje_Pilar!$C$2:$E$47,3,FALSE))," ",VLOOKUP(I34,Eje_Pilar!$C$2:$E$47,3,FALSE)) -> Eje Transversal 4 Gobierno Legitimo, Fortalecimiento Local y Eficiencia | L34: 3-3-1-15-07-45-1574-000 | M34: 51846576 | N34: CLAUDIA NELLY SASTOQUE MARTINEZ | O34: 33200000 | R34: 2 | S34: 16599999 | T34: 49799999 | U34: 44543000 | V34: 2019-01-18 | W34: 2019-01-24 | X34: 2019-09-23 | Y34: 240 | Z34: 97 | AC34: X | AF34: 0.894437769 | AH34: =IF(SUMPRODUCT((A$14:A34=A34)*(B$14:B34=B34)*(C$14:C34=C34))>1,0,1) -> 1 | AI34: Contratos de prestación de servicios profesionales y de apoyo a la gestión | AJ34: Contratación directa | AK34: =IFERROR(VLOOKUP(F34,Tipo!$C$12:$C$27,1,FALSE),"NO") -> Prestación de servicios profesionales y de apoyo a la gestión, o para la ejecución de trabajos artísticos que sólo puedan encomendarse a determinadas personas naturales; | AL34: Inversión | AM34: 45
A35: 22 | B35: 2019 | C35: FDLUSA-CPC-022-2019 | D35: Contratos de prestación de servicios profesionales y de apoyo a la gestión | E35: Contratación directa | F35: Prestación de servicios profesionales y de apoyo a la gestión, o para la ejecución de trabajos artísticos que sólo puedan encomendarse a determinadas personas naturales; | G35: PRESTAR LOS SERVICIOS DE APOYO AL DESPACHO DE LA ALCALDÍA DE USAQUÈN, EN EL DESARROLLO DE ACTIVIDADES Y TRÁMITES DE CARÁCTER OPERATIVO PARA EL BUEN FUNCIONAMIENTO DE LA DEPENDENCIA | H35: Inversión | I35: 45 | J35: =IF(ISERROR(VLOOKUP(I35,Eje_Pilar!$C$2:$E$47,2,FALSE))," ",VLOOKUP(I35,Eje_Pilar!$C$2:$E$47,2,FALSE)) -> Gobernanza e influencia local, regional e internacional | K35: =IF(ISERROR(VLOOKUP(I35,Eje_Pilar!$C$2:$E$47,3,FALSE))," ",VLOOKUP(I35,Eje_Pilar!$C$2:$E$47,3,FALSE)) -> Eje Transversal 4 Gobierno Legitimo, Fortalecimiento Local y Eficiencia | L35: 3-3-1-15-07-45-1574-000 | M35: 1020464156 | N35: GERALDINE STEPHANNY CABEZAS PALACIOS | O35: 40700000 | R35: 1 | S35: 8386666 | T35: 49086666 | U35: 39836666 | V35: 2019-01-18 | W35: 2019-01-23 | X35: 2019-12-22 | Y35: 330 | Z35: 68 | AC35: X | AF35: 0.8115577864 | AH35: =IF(SUMPRODUCT((A$14:A35=A35)*(B$14:B35=B35)*(C$14:C35=C35))>1,0,1) -> 1 | AI35: Contratos de prestación de servicios profesionales y de apoyo a la gestión | AJ35: Contratación directa | AK35: =IFERROR(VLOOKUP(F35,Tipo!$C$12:$C$27,1,FALSE),"NO") -> Prestación de servicios profesionales y de apoyo a la gestión, o para la ejecución de trabajos artísticos que sólo puedan encomendarse a determinadas personas naturales; | AL35: Inversión | AM35: 45
A36: 23 | B36: 2019 | C36: FDLUSA-023-2019 | D36: Contratos de prestación de servicios profesionales y de apoyo a la gestión | E36: Contratación directa | F36: Prestación de servicios profesionales y de apoyo a la gestión, o para la ejecución de trabajos artísticos que sólo puedan encomendarse a determinadas personas naturales; | G36: PRESTAR LOS SERVICIOS PROFESIONALES A LA ALCALDÍA LOCAL DE USAQUEN PARA APOYAR LA COORDINACION DE LA EJECUCIÓN DE LOS PROYECTOS CULTURALES, RECREATIVOS Y DEPORTIVOS CONTEMPLADOS EN EL PLAN DE DESARROLLO LOCAL “USACA MEJOR PARA TODOS, USAQUÉN CUENTA CONTIGO 2017-2020 | H36: Inversión | I36: 11 | J36: =IF(ISERROR(VLOOKUP(I36,Eje_Pilar!$C$2:$E$47,2,FALSE))," ",VLOOKUP(I36,Eje_Pilar!$C$2:$E$47,2,FALSE)) -> Mejores oportunidades para el desarrollo a través de la cultura, la recreación y el deporte | K36: =IF(ISERROR(VLOOKUP(I36,Eje_Pilar!$C$2:$E$47,3,FALSE))," ",VLOOKUP(I36,Eje_Pilar!$C$2:$E$47,3,FALSE)) -> Pilar 1 Igualdad de Calidad de Vida | L36: 3-3-1-15-01-11-1570-000 | M36: 79618617 | N36: JOHN ERIK BELTRÁN ESCOBAR | O36: 74750000 | R36: 1 | S36: 13000000 | T36: 87750000 | U36: 69550000 | V36: 2019-01-22 | W36: 2019-01-25 | X36: 2019-12-31 | Y36: 336 | Z36: 60 | AC36: X | AF36: 0.7925925926 | AH36: =IF(SUMPRODUCT((A$14:A36=A36)*(B$14:B36=B36)*(C$14:C36=C36))>1,0,1) -> 1 | AI36: =IFERROR(VLOOKUP(D36,tipo,1,FALSE),"NO") -> Contratos de prestación de servicios profesionales y de apoyo a la gestión | AJ36: =IFERROR(VLOOKUP(E36,modal,1,FALSE),"NO") -> Contratación directa | AK36: =IFERROR(VLOOKUP(F36,Tipo!$C$12:$C$27,1,FALSE),"NO") -> Prestación de servicios profesionales y de apoyo a la gestión, o para la ejecución de trabajos artísticos que sólo puedan encomendarse a determinadas personas naturales; | AL36: =IFERROR(VLOOKUP(H36,afectacion,1,FALSE),"NO") -> Inversión | AM36: =IFERROR(VLOOKUP(I36,programa,1,FALSE),"NO") -> 11
A37: 24 | B37: 2019 | C37: FDLUSA-CPS-024-2019 | D37: Contratos de prestación de servicios profesionales y de apoyo a la gestión | E37: Contratación directa | F37: Prestación de servicios profesionales y de apoyo a la gestión, o para la ejecución de trabajos artísticos que sólo puedan encomendarse a determinadas personas naturales; | G37: PRESTAR LOS SERVICIOS PROFESIONALES PARA APOYAR A LA ALCALDÍA LOCAL DE USAQUÉN EN LA ADMINISTRACIÓN Y SOPORTE DE LA ESTRUCTURA TECNOLÓGICA DE PROPIEDAD Y CUSTODIA DEL FONDO DE DESARROLLO LOCAL DE USAQUÉN Y REALIZAR LOS PROCESOS DE FORMULACIÓN Y EJECUCIÓN DE PROYECTOS TIC Y RELACIONADOS CON SU ÁREA | H37: Inversión | I37: 45 | J37: =IF(ISERROR(VLOOKUP(I37,Eje_Pilar!$C$2:$E$47,2,FALSE))," ",VLOOKUP(I37,Eje_Pilar!$C$2:$E$47,2,FALSE)) -> Gobernanza e influencia local, regional e internacional | K37: =IF(ISERROR(VLOOKUP(I37,Eje_Pilar!$C$2:$E$47,3,FALSE))," ",VLOOKUP(I37,Eje_Pilar!$C$2:$E$47,3,FALSE)) -> Eje Transversal 4 Gobierno Legitimo, Fortalecimiento Local y Eficiencia | L37: 3-3-1-15-07-45-1574-000 | M37: 1019033686 | N37: EDGAR ALBERTO LEON MEDINA | O37: 42000000 | R37: 2 | S37: 21000000 | T37: 63000000 | U37: 59070000 | V37: 2019-01-18 | W37: 2019-01-22 | X37: 2019-09-21 | Y37: 240 | Z37: 99 | AC37: X | AF37: 0.9376190476 | AH37: =IF(SUMPRODUCT((A$14:A37=A37)*(B$14:B37=B37)*(C$14:C37=C37))>1,0,1) -> 1 | AI37: Contratos de prestación de servicios profesionales y de apoyo a la gestión | AJ37: Contratación directa | AK37: =IFERROR(VLOOKUP(F37,Tipo!$C$12:$C$27,1,FALSE),"NO") -> Prestación de servicios profesionales y de apoyo a la gestión, o para la ejecución de trabajos artísticos que sólo puedan encomendarse a determinadas personas naturales; | AL37: Inversión | AM37: 45
A38: 25 | B38: 2019 | C38: FDLUSA-CPS-025-2019 | D38: Contratos de prestación de servicios profesionales y de apoyo a la gestión | E38: Contratación directa | F38: Prestación de servicios profesionales y de apoyo a la gestión, o para la ejecución de trabajos artísticos que sólo puedan encomendarse a determinadas personas naturales; | G38: PRESTAR LOS SERVICIOS DE TECNOLOGO EN CONSTRUCCIÓN O ÁREAS AFINES A LA ALCALDÍA LOCAL DE USAQUÉN, PARA APOYAR EL DESARROLLO DEL PROYECTO “PARQUE PARA MÍ, PARA TI, PARA TODOS” , ENFOCADO AL SECTOR DE ESPACIO PÚBLICO, PARQUES, DEMÁS ZONAS DE RECREACIÓN Y SUS COMPONENTES, MEDIANTE EL DESARROLLO DE PROCESOS TÉCNICOS QUE SE ENCUENTREN CONTEMPLADOS EN EL PLAN DE DESARROLLO USACA MEJOR PARA TODOS, USAQUEN CUENTA CONTIGO 2017-2020 | H38: Inversión | I38: 17 | J38: =IF(ISERROR(VLOOKUP(I38,Eje_Pilar!$C$2:$E$47,2,FALSE))," ",VLOOKUP(I38,Eje_Pilar!$C$2:$E$47,2,FALSE)) -> Espacio público, derecho de todos | K38: =IF(ISERROR(VLOOKUP(I38,Eje_Pilar!$C$2:$E$47,3,FALSE))," ",VLOOKUP(I38,Eje_Pilar!$C$2:$E$47,3,FALSE)) -> Pilar 2 Democracía Urbana | L38: 3-3-1-15-02-17-1567-000 | M38: 1018482756 | N38: FREDY EDUARDO SANCHEZ ALARCON | O38: 24000000 | R38: 2 | S38: 12000000 | T38: 36000000 | U38: 32400000 | V38: 2019-01-18 | W38: 2019-01-22 | X38: 2019-09-21 | Y38: 240 | Z38: 99 | AC38: X | AF38: 0.9 | AH38: =IF(SUMPRODUCT((A$14:A38=A38)*(B$14:B38=B38)*(C$14:C38=C38))>1,0,1) -> 1 | AI38: =IFERROR(VLOOKUP(D38,tipo,1,FALSE),"NO") -> Contratos de prestación de servicios profesionales y de apoyo a la gestión | AJ38: =IFERROR(VLOOKUP(E38,modal,1,FALSE),"NO") -> Contratación directa | AK38: =IFERROR(VLOOKUP(F38,Tipo!$C$12:$C$27,1,FALSE),"NO") -> Prestación de servicios profesionales y de apoyo a la gestión, o para la ejecución de trabajos artísticos que sólo puedan encomendarse a determinadas personas naturales; | AL38: =IFERROR(VLOOKUP(H38,afectacion,1,FALSE),"NO") -> Inversión | AM38: =IFERROR(VLOOKUP(I38,programa,1,FALSE),"NO") -> 17
A39: 26 | B39: 2019 | C39: FDLUSA-CPS-026-2019 | D39: Contratos de prestación de servicios profesionales y de apoyo a la gestión | E39: Contratación directa | F39: Prestación de servicios profesionales y de apoyo a la gestión, o para la ejecución de trabajos artísticos que sólo puedan encomendarse a determinadas personas naturales; | G39: PRESTAR LOS SERVICIOS PROFESIONALES PARA APOYAR AL ALCALDE LOCAL EN LA PROMOCIÓN, ACOMPAÑAMIENTO Y ATENCIÓN DE LAS INSTANCIAS DE COORDINACIÓN INTERINSTITUCIONALES Y LAS INSTANCIAS DE PARTICIPACIÓN LOCALES, ASÍ COMO LOS PROCESOS COMUNITARIOS EN LA LOCALIDAD | H39: Inversión | I39: 45 | J39: =IF(ISERROR(VLOOKUP(I39,Eje_Pilar!$C$2:$E$47,2,FALSE))," ",VLOOKUP(I39,Eje_Pilar!$C$2:$E$47,2,FALSE)) -> Gobernanza e influencia local, regional e internacional | K39: =IF(ISERROR(VLOOKUP(I39,Eje_Pilar!$C$2:$E$47,3,FALSE))," ",VLOOKUP(I39,Eje_Pilar!$C$2:$E$47,3,FALSE)) -> Eje Transversal 4 Gobierno Legitimo, Fortalecimiento Local y Eficiencia | L39: 3-3-1-15-07-45-1573-000 | M39: 1023866379 | N39: OSCAR ALEXANDER MONTIEL SANDOVAL | O39: 57500000 | R39: 1 | S39: 5000000 | T39: 62500000 | U39: 51333333 | V39: 2019-01-18 | W39: 2019-01-23 | X39: 2019-12-31 | Y39: 338 | Z39: 30 | AC39: X | AF39: 0.821333328 | AH39: =IF(SUMPRODUCT((A$14:A39=A39)*(B$14:B39=B39)*(C$14:C39=C39))>1,0,1) -> 1 | AI39: Contratos de prestación de servicios profesionales y de apoyo a la gestión | AJ39: Contratación directa | AK39: =IFERROR(VLOOKUP(F39,Tipo!$C$12:$C$27,1,FALSE),"NO") -> Prestación de servicios profesionales y de apoyo a la gestión, o para la ejecución de trabajos artísticos que sólo puedan encomendarse a determinadas personas naturales; | AL39: Inversión | AM39: 45
A40: 27 | B40: 2019 | C40: FDLUSA-CPS-027-2019 | D40: Contratos de prestación de servicios profesionales y de apoyo a la gestión | E40: Contratación directa | F40: Prestación de servicios profesionales y de apoyo a la gestión, o para la ejecución de trabajos artísticos que sólo puedan encomendarse a determinadas personas naturales; | G40: PRESTAR LOS SERVICIOS PROFESIONALES A LA ALCALDÍA LOCAL DE USAQUÉN, PARA APOYAR EL ÁREA DE INFRAESTRUCTURA ENFOCADO AL SECTOR MOVILIDAD, MEDIANTE LA REALIZACIÓN DE PROCESOS TÉCNICOS Y DE ATENCIÓN A LA CIUDADANÍA RELACIONADOS CON ESPACIO PÚBLICO, QUE SE ENCUENTREN CONTEMPLADOS EN EL PLAN DE DESARROLLO “USACA MEJOR PARA TODOS, USAQUÉN CUENTA CONTIGO 2017-2020” | H40: Inversión | I40: 18 | J40: =IF(ISERROR(VLOOKUP(I40,Eje_Pilar!$C$2:$E$47,2,FALSE))," ",VLOOKUP(I40,Eje_Pilar!$C$2:$E$47,2,FALSE)) -> Mejor movilidad para todos | K40: =IF(ISERROR(VLOOKUP(I40,Eje_Pilar!$C$2:$E$47,3,FALSE))," ",VLOOKUP(I40,Eje_Pilar!$C$2:$E$47,3,FALSE)) -> Pilar 2 Democracía Urbana | L40: 3-3-1-15-02-18-1572-000 | M40: 1010202084 | N40: ZAIDA MARYELINE SARMIENTO CARDENAS | O40: 33200000 | R40: 2 | S40: 16461667 | T40: 49661667 | U40: 44681667 | V40: 2019-01-18 | W40: 2019-01-23 | X40: 2019-09-22 | Y40: 240 | Z40: 98 | AC40: X | AF40: 0.8997214491 | AH40: =IF(SUMPRODUCT((A$14:A40=A40)*(B$14:B40=B40)*(C$14:C40=C40))>1,0,1) -> 1 | AI40: Contratos de prestación de servicios profesionales y de apoyo a la gestión | AJ40: Contratación directa | AK40: =IFERROR(VLOOKUP(F40,Tipo!$C$12:$C$27,1,FALSE),"NO") -> Prestación de servicios profesionales y de apoyo a la gestión, o para la ejecución de trabajos artísticos que sólo puedan encomendarse a determinadas personas naturales; | AL40: Inversión | AM40: 18
A41: 28 | B41: 2019 | C41: FDLUSA-CPS-028-2019 | D41: Contratos de prestación de servicios profesionales y de apoyo a la gestión | E41: Contratación directa | F41: Prestación de servicios profesionales y de apoyo a la gestión, o para la ejecución de trabajos artísticos que sólo puedan encomendarse a determinadas personas naturales; | G41: PRESTAR LOS SERVICIOS PROFESIONALES A LA ALCALDÍA LOCAL DE USAQUÉN, PARA APOYAR EL ÁREA DE INFRAESTRUCTURA ENFOCADO AL SECTOR MOVILIDAD, MEDIANTE LA REALIZACIÓN DE PROCESOS TÉCNICOS Y DE ATENCIÓN A LA CIUDADANÍA RELACIONADOS CON ESPACIO PÚBLICO, QUE SE ENCUENTREN CONTEMPLADOS EN EL PLAN DE DESARROLLO “USACA MEJOR PARA TODOS, USAQUÉN CUENTA CONTIGO 2017-2020” | H41: Inversión | I41: 18 | J41: =IF(ISERROR(VLOOKUP(I41,Eje_Pilar!$C$2:$E$47,2,FALSE))," ",VLOOKUP(I41,Eje_Pilar!$C$2:$E$47,2,FALSE)) -> Mejor movilidad para todos | K41: =IF(ISERROR(VLOOKUP(I41,Eje_Pilar!$C$2:$E$47,3,FALSE))," ",VLOOKUP(I41,Eje_Pilar!$C$2:$E$47,3,FALSE)) -> Pilar 2 Democracía Urbana | L41: 3-3-1-15-02-18-1572-000 | M41: 1048849987 | N41: MIGUEL ANDRES BEJARANO ALFONSO | O41: 33200000 | R41: 2 | S41: 16461667 | T41: 49661667 | U41: 44681667 | V41: 2019-01-18 | W41: 2019-01-23 | X41: 2019-09-22 | Y41: 240 | Z41: 98 | AC41: X | AF41: 0.8997214491 | AH41: =IF(SUMPRODUCT((A$14:A41=A41)*(B$14:B41=B41)*(C$14:C41=C41))>1,0,1) -> 1 | AI41: Contratos de prestación de servicios profesionales y de apoyo a la gestión | AJ41: Contratación directa | AK41: =IFERROR(VLOOKUP(F41,Tipo!$C$12:$C$27,1,FALSE),"NO") -> Prestación de servicios profesionales y de apoyo a la gestión, o para la ejecución de trabajos artísticos que sólo puedan encomendarse a determinadas personas naturales; | AL41: Inversión | AM41: 18
A42: 29 | B42: 2019 | C42: FDLUSA-CPS-029-2019 V2 | D42: Contratos de prestación de servicios profesionales y de apoyo a la gestión | E42: Contratación directa | F42: Prestación de servicios profesionales y de apoyo a la gestión, o para la ejecución de trabajos artísticos que sólo puedan encomendarse a determinadas personas naturales; | G42: PRESTAR LOS SERVICIOS PROFESIONALES A LA ALCALDÍA LOCAL DE USAQUEN EN EL DESARROLLO DE ACTIVIDADES Y TRAMITES ADMINISTRATIVOS RELACIONADOS CON LA PLANEACIÓN Y ESTRUCTURACIÓN DEL PROYECTO DE INVERSIÓN REPARCHANDO ANDO, NECESARIOS EN EL ÁREA DE GESTIÓN DE DESARROLLO LOCAL PARA DAR ALCANCE A LAS METAS ESTABLECIDAS EN EL PLAN DE DESARROLLOLOCAL DE USAQUEN, BOGOTÁ D.C. VIGENTE | H42: Inversión | I42: 18 | J42: =IF(ISERROR(VLOOKUP(I42,Eje_Pilar!$C$2:$E$47,2,FALSE))," ",VLOOKUP(I42,Eje_Pilar!$C$2:$E$47,2,FALSE)) -> Mejor movilidad para todos | K42: =IF(ISERROR(VLOOKUP(I42,Eje_Pilar!$C$2:$E$47,3,FALSE))," ",VLOOKUP(I42,Eje_Pilar!$C$2:$E$47,3,FALSE)) -> Pilar 2 Democracía Urbana | L42: 3-3-1-15-02-18-1572-000 | M42: 81717512 | N42: JUAN MANUEL BARRERA MONTERROSA | O42: 66355000 | R42: 1 | S42: 5770000 | T42: 72125000 | U42: 61931333 | V42: 2019-01-18 | W42: 2019-01-24 | X42: 2019-12-31 | Y42: 336 | Z42: 30 | AC42: X | AF42: 0.858666662 | AH42: =IF(SUMPRODUCT((A$14:A42=A42)*(B$14:B42=B42)*(C$14:C42=C42))>1,0,1) -> 1 | AI42: Contratos de prestación de servicios profesionales y de apoyo a la gestión | AJ42: Contratación directa | AK42: =IFERROR(VLOOKUP(F42,Tipo!$C$12:$C$27,1,FALSE),"NO") -> Prestación de servicios profesionales y de apoyo a la gestión, o para la ejecución de trabajos artísticos que sólo puedan encomendarse a determinadas personas naturales; | AL42: Inversión | AM42: 18
A43: 30 | B43: 2019 | C43: FDLUSA-CPS-030-2019 | D43: Contratos de prestación de servicios profesionales y de apoyo a la gestión | E43: Contratación directa | F43: Prestación de servicios profesionales y de apoyo a la gestión, o para la ejecución de trabajos artísticos que sólo puedan encomendarse a determinadas personas naturales; | G43: PRESTAR LOS SERVICIOS PROFESIONALES A LA ALCALDÍA LOCAL DE USAQUEN EN EL DESARROLLO DE ACTIVIDADES Y TRAMITES ADMINISTRATIVOS RELACIONADOS CON LA PLANEACIÓN Y ESTRUCTURACIÓN DEL PROYECTO DE INVERSIÓN “ REPARCHANDO ANDO”, NECESARIOS EN EL ÁREA DE GESTIÓN DE DESARROLLO LOCAL PARA DAR ALCANCE A LAS METAS ESTABLECIDAS EN EL PLAN DE DESARROLLOLOCAL DE USAQUEN, BOGOTÁ D.C. VIGENTE | H43: Inversión | I43: 18 | J43: =IF(ISERROR(VLOOKUP(I43,Eje_Pilar!$C$2:$E$47,2,FALSE))," ",VLOOKUP(I43,Eje_Pilar!$C$2:$E$47,2,FALSE)) -> Mejor movilidad para todos | K43: =IF(ISERROR(VLOOKUP(I43,Eje_Pilar!$C$2:$E$47,3,FALSE))," ",VLOOKUP(I43,Eje_Pilar!$C$2:$E$47,3,FALSE)) -> Pilar 2 Democracía Urbana | L43: 3-3-1-15-02-18-1572-000 | M43: 46452369 | N43: NURY ZULIMA TORO AMAYA cedido a ANDRES OJEDA | O43: 66345000 | T43: 66345000 | U43: 53276334 | V43: 2019-01-18 | W43: 2019-01-23 | X43: 2019-12-31 | Y43: 338 | AC43: X | AF43: 0.8030195795 | AH43: =IF(SUMPRODUCT((A$14:A43=A43)*(B$14:B43=B43)*(C$14:C43=C43))>1,0,1) -> 1 | AI43: Contratos de prestación de servicios profesionales y de apoyo a la gestión | AJ43: Contratación directa | AK43: =IFERROR(VLOOKUP(F43,Tipo!$C$12:$C$27,1,FALSE),"NO") -> Prestación de servicios profesionales y de apoyo a la gestión, o para la ejecución de trabajos artísticos que sólo puedan encomendarse a determinadas personas naturales; | AL43: Inversión | AM43: 18
A44: 31 | B44: 2019 | C44: FDLUSA-CPS-031-2019 | D44: Contratos de prestación de servicios profesionales y de apoyo a la gestión | E44: Contratación directa | F44: Prestación de servicios profesionales y de apoyo a la gestión, o para la ejecución de trabajos artísticos que sólo puedan encomendarse a determinadas personas naturales; | G44: PRESTAR LOS SERVICIOS DE APOYO EN EL ÁREA DE GESTIÓN DE DESARROLLO LOCAL-CDI , PARA DAR TRAMITE PERTINENTE A LAS COMUNICACIONES INTERNAS Y EXTERNAS DE FORMA ÁGIL Y OPORTUNA EN LA ALCALDÍA LOCAL DE USAQUÉN DE ACUERDO AL SISTEMA DE GESTIÓN DOCUMENTAL | H44: Inversión | I44: 45 | J44: =IF(ISERROR(VLOOKUP(I44,Eje_Pilar!$C$2:$E$47,2,FALSE))," ",VLOOKUP(I44,Eje_Pilar!$C$2:$E$47,2,FALSE)) -> Gobernanza e influencia local, regional e internacional | K44: =IF(ISERROR(VLOOKUP(I44,Eje_Pilar!$C$2:$E$47,3,FALSE))," ",VLOOKUP(I44,Eje_Pilar!$C$2:$E$47,3,FALSE)) -> Eje Transversal 4 Gobierno Legitimo, Fortalecimiento Local y Eficiencia | L44: 3-3-1-15-07-45-1574-000 | M44: 1018508214 | N44: MARIA PAULA BARRAZA CASTILLO | O44: 18960000 | T44: 18960000 | U44: 15879000 | V44: 2019-01-18 | W44: 2019-01-22 | X44: 2019-09-21 | Y44: 240 | AC44: X | AF44: 0.8375 | AH44: =IF(SUMPRODUCT((A$14:A44=A44)*(B$14:B44=B44)*(C$14:C44=C44))>1,0,1) -> 1 | AI44: Contratos de prestación de servicios profesionales y de apoyo a la gestión | AJ44: Contratación directa | AK44: =IFERROR(VLOOKUP(F44,Tipo!$C$12:$C$27,1,FALSE),"NO") -> Prestación de servicios profesionales y de apoyo a la gestión, o para la ejecución de trabajos artísticos que sólo puedan encomendarse a determinadas personas naturales; | AL44: Inversión | AM44: 45
A45: 32 | B45: 2019 | C45: FDLUSA-CPS-032-2019 | D45: Contratos de prestación de servicios profesionales y de apoyo a la gestión | E45: Contratación directa | F45: Prestación de servicios profesionales y de apoyo a la gestión, o para la ejecución de trabajos artísticos que sólo puedan encomendarse a determinadas personas naturales; | G45: PRESTAR LOS SERVICIOS PROFESIONALES A LA ALCALDÍA LOCAL DE USAQUÉN, EN LA REALIZACIÓN DE ACTIVIDADES Y TRAMITES ADMINISTRATIVOS REFERENTES AL PROCESO PRESUPUESTAL LOCAL NECESARIOS PARA EL NORMAL FUNCIONAMIENTO DEL ÁREA DE GESTIÓN DE DESARROLLO LOCAL | H45: Inversión | I45: 45 | J45: =IF(ISERROR(VLOOKUP(I45,Eje_Pilar!$C$2:$E$47,2,FALSE))," ",VLOOKUP(I45,Eje_Pilar!$C$2:$E$47,2,FALSE)) -> Gobernanza e influencia local, regional e internacional | K45: =IF(ISERROR(VLOOKUP(I45,Eje_Pilar!$C$2:$E$47,3,FALSE))," ",VLOOKUP(I45,Eje_Pilar!$C$2:$E$47,3,FALSE)) -> Eje Transversal 4 Gobierno Legitimo, Fortalecimiento Local y Eficiencia | L45: 3-3-1-15-07-45-1574-000 | M45: 7180332 DE TUNJA / 1010161388 DE BOGOTA | N45: HECTOR WILSON CASTELBLANCO RODRIGUEZ | O45: 38400000 | R45: 2 | S45: 19200000 | T45: 57600000 | U45: 49440000 | V45: 2019-01-18 | W45: 2019-01-22 | X45: 2019-09-21 | Y45: 240 | Z45: 99 | AC45: X | AF45: 0.8583333333 | AH45: =IF(SUMPRODUCT((A$14:A45=A45)*(B$14:B45=B45)*(C$14:C45=C45))>1,0,1) -> 1 | AI45: Contratos de prestación de servicios profesionales y de apoyo a la gestión | AJ45: Contratación directa | AK45: =IFERROR(VLOOKUP(F45,Tipo!$C$12:$C$27,1,FALSE),"NO") -> Prestación de servicios profesionales y de apoyo a la gestión, o para la ejecución de trabajos artísticos que sólo puedan encomendarse a determinadas personas naturales; | AL45: Inversión | AM45: 45
A46: 35 | B46: 2019 | C46: FDLUSA-CPS-035-2019 V2 | D46: Contratos de prestación de servicios profesionales y de apoyo a la gestión | E46: Contratación directa | F46: Prestación de servicios profesionales y de apoyo a la gestión, o para la ejecución de trabajos artísticos que sólo puedan encomendarse a determinadas personas naturales; | G46: PRESTAR LOS SERVICIOS PROFESIONALES A LA ALCALDÍA LOCAL DE USAQUÉN EN EL ACOMPAÑAMIENTO TÉCNICO DE LOS ASUNTOS RELACIONADOS CON LA INFRAESTRUCTURA VIAL Y LAS OBRAS QUE SE ADELANTEN EN LA LOCALIDAD, ACTIVIDADES CONEXAS, DEL PLAN DE DESARROLLO “USACA MEJOR PARA TODOS, USAQUÉN CUENTA CONTIGO 2017-2020 | H46: Inversión | I46: 18 | J46: =IF(ISERROR(VLOOKUP(I46,Eje_Pilar!$C$2:$E$47,2,FALSE))," ",VLOOKUP(I46,Eje_Pilar!$C$2:$E$47,2,FALSE)) -> Mejor movilidad para todos | K46: =IF(ISERROR(VLOOKUP(I46,Eje_Pilar!$C$2:$E$47,3,FALSE))," ",VLOOKUP(I46,Eje_Pilar!$C$2:$E$47,3,FALSE)) -> Pilar 2 Democracía Urbana | L46: 3-3-1-15-02-18-1572-000 | M46: 1023924170 | N46: DIANA CATHERINE VERGARA SANCHEZ | O46: 55000000 | R46: 2 | S46: 11666667 | T46: 66666667 | U46: 53666667 | V46: 2019-01-22 | W46: 2019-01-24 | X46: 2019-12-23 | Y46: 330 | Z46: 7 | AC46: X | AF46: 0.805000001 | AH46: =IF(SUMPRODUCT((A$14:A46=A46)*(B$14:B46=B46)*(C$14:C46=C46))>1,0,1) -> 1 | AI46: =IFERROR(VLOOKUP(D46,tipo,1,FALSE),"NO") -> Contratos de prestación de servicios profesionales y de apoyo a la gestión | AJ46: =IFERROR(VLOOKUP(E46,modal,1,FALSE),"NO") -> Contratación directa | AK46: =IFERROR(VLOOKUP(F46,Tipo!$C$12:$C$27,1,FALSE),"NO") -> Prestación de servicios profesionales y de apoyo a la gestión, o para la ejecución de trabajos artísticos que sólo puedan encomendarse a determinadas personas naturales; | AL46: =IFERROR(VLOOKUP(H46,afectacion,1,FALSE),"NO") -> Inversión | AM46: =IFERROR(VLOOKUP(I46,programa,1,FALSE),"NO") -> 18
A47: 36 | B47: 2019 | C47: FDLUSA-CPS-036-2019 | D47: Contratos de prestación de servicios profesionales y de apoyo a la gestión | E47: Contratación directa | F47: Prestación de servicios profesionales y de apoyo a la gestión, o para la ejecución de trabajos artísticos que sólo puedan encomendarse a determinadas personas naturales; | G47: PRESTAR LOS SERVICIOS DE APOYO A LA GESTIÓN DE LA ALCALDÍA LOCAL EN EL SOSTENIMIENTO DE ESPACIOS RECUPERADOS A TRAVÉS DEL DESARROLLO DE ACTIVIDADES DE SEGURIDAD Y CONVIVENCIA, ACOMPAÑAMIENTO A LA CIUDADANÍA, SOPORTE LOGÍSTICO Y DIFUSIÓN DE LAS ACTIVIDADES PROGRAMADAS ZONA DE USAQUÉN CENTRO | H47: Inversión | I47: 19 | J47: =IF(ISERROR(VLOOKUP(I47,Eje_Pilar!$C$2:$E$47,2,FALSE))," ",VLOOKUP(I47,Eje_Pilar!$C$2:$E$47,2,FALSE)) -> Seguridad y convivencia para todos | K47: =IF(ISERROR(VLOOKUP(I47,Eje_Pilar!$C$2:$E$47,3,FALSE))," ",VLOOKUP(I47,Eje_Pilar!$C$2:$E$47,3,FALSE)) -> Pilar 3 Construcción de Comunidad y Cultura Ciudadana | L47: 3-3-1-15-03-19-1569-000 | M47: 1019140911 | N47: LAURA PAOLA CORTES DUARTE | O47: 15840000 | R47: 2 | S47: 7920000 | T47: 23760000 | U47: 19866000 | V47: 2019-01-22 | W47: 2019-01-30 | X47: 2019-09-29 | Y47: 240 | Z47: 97 | AC47: X | AF47: 0.8361111111 | AH47: =IF(SUMPRODUCT((A$14:A47=A47)*(B$14:B47=B47)*(C$14:C47=C47))>1,0,1) -> 1 | AI47: Contratos de prestación de servicios profesionales y de apoyo a la gestión | AJ47: Contratación directa | AK47: =IFERROR(VLOOKUP(F47,Tipo!$C$12:$C$27,1,FALSE),"NO") -> Prestación de servicios profesionales y de apoyo a la gestión, o para la ejecución de trabajos artísticos que sólo puedan encomendarse a determinadas personas naturales; | AL47: Inversión | AM47: 19
A48: 37 | B48: 2019 | C48: FDLUSA-CPS-037-2019 | D48: Contratos de prestación de servicios profesionales y de apoyo a la gestión | E48: Contratación directa | F48: Prestación de servicios profesionales y de apoyo a la gestión, o para la ejecución de trabajos artísticos que sólo puedan encomendarse a determinadas personas naturales; | G48: PRESTAR LOS SERVICIOS DE APOYO EN EL ÁREA DE GESTIÓN DE DESARROLLO LOCAL-CDI , PARA DAR TRAMITE PERTINENTE A LAS COMUNICACIONES INTERNAS Y EXTERNAS DE FORMA ÁGIL Y OPORTUNA EN LA ALCALDÍA LOCAL DE USAQUÉN DE ACUERDO AL SISTEMA DE GESTIÓN DOCUMENTAL | H48: Inversión | I48: 45 | J48: =IF(ISERROR(VLOOKUP(I48,Eje_Pilar!$C$2:$E$47,2,FALSE))," ",VLOOKUP(I48,Eje_Pilar!$C$2:$E$47,2,FALSE)) -> Gobernanza e influencia local, regional e internacional | K48: =IF(ISERROR(VLOOKUP(I48,Eje_Pilar!$C$2:$E$47,3,FALSE))," ",VLOOKUP(I48,Eje_Pilar!$C$2:$E$47,3,FALSE)) -> Eje Transversal 4 Gobierno Legitimo, Fortalecimiento Local y Eficiencia | L48: 3-3-1-15-07-45-1574-000 | M48: 80845381 | N48: JUAN CAMILO RAMIREZ ZAMBRANO | O48: 18960000 | R48: 3 | S48: 9480000 | T48: 28440000 | U48: 24885000 | V48: 2019-01-23 | W48: 2019-02-04 | X48: 2019-09-29 | Y48: 240 | Z48: 1900-02-26 | AC48: X | AF48: 0.875 | AH48: =IF(SUMPRODUCT((A$14:A48=A48)*(B$14:B48=B48)*(C$14:C48=C48))>1,0,1) -> 1 | AI48: Contratos de prestación de servicios profesionales y de apoyo a la gestión | AJ48: Contratación directa | AK48: =IFERROR(VLOOKUP(F48,Tipo!$C$12:$C$27,1,FALSE),"NO") -> Prestación de servicios profesionales y de apoyo a la gestión, o para la ejecución de trabajos artísticos que sólo puedan encomendarse a determinadas personas naturales; | AL48: Inversión | AM48: 45
A49: 38 | B49: 2019 | C49: FDLUSA-CPS-038-2019 | D49: Contratos de prestación de servicios profesionales y de apoyo a la gestión | E49: Contratación directa | F49: Prestación de servicios profesionales y de apoyo a la gestión, o para la ejecución de trabajos artísticos que sólo puedan encomendarse a determinadas personas naturales; | G49: PRESTAR LOS SERVICIOS PROFESIONALES A LA ALCALDÍA LOCAL DE USAQUEN, EN LA REALIZACIÓN DE LOS TRÁMITES INSTITUCIONALES RELACIONADOS CON EL RÉGIMEN DE PROPIEDAD HORIZONTAL | H49: Inversión | I49: 45 | J49: =IF(ISERROR(VLOOKUP(I49,Eje_Pilar!$C$2:$E$47,2,FALSE))," ",VLOOKUP(I49,Eje_Pilar!$C$2:$E$47,2,FALSE)) -> Gobernanza e influencia local, regional e internacional | K49: =IF(ISERROR(VLOOKUP(I49,Eje_Pilar!$C$2:$E$47,3,FALSE))," ",VLOOKUP(I49,Eje_Pilar!$C$2:$E$47,3,FALSE)) -> Eje Transversal 4 Gobierno Legitimo, Fortalecimiento Local y Eficiencia | L49: 3-3-1-15-07-45-1574-000 | M49: 39675074 | N49: ANGELA GORDILLO RIVERA | O49: 45650000 | R49: 1 | S49: 8300000 | T49: 53950000 | U49: 42606667 | V49: 2019-01-25 | W49: 2019-01-30 | X49: 2019-12-29 | Y49: 330 | Z49: 60 | AC49: X | AF49: 0.7897435959 | AH49: =IF(SUMPRODUCT((A$14:A49=A49)*(B$14:B49=B49)*(C$14:C49=C49))>1,0,1) -> 1 | AI49: Contratos de prestación de servicios profesionales y de apoyo a la gestión | AJ49: Contratación directa | AK49: =IFERROR(VLOOKUP(F49,Tipo!$C$12:$C$27,1,FALSE),"NO") -> Prestación de servicios profesionales y de apoyo a la gestión, o para la ejecución de trabajos artísticos que sólo puedan encomendarse a determinadas personas naturales; | AL49: Inversión | AM49: 45
A50: 39 | B50: 2019 | C50: FDLUSA-CPS-039-2019 | D50: Contratos de prestación de servicios profesionales y de apoyo a la gestión | E50: Contratación directa | F50: Prestación de servicios profesionales y de apoyo a la gestión, o para la ejecución de trabajos artísticos que sólo puedan encomendarse a determinadas personas naturales; | G50: PRESTAR LOS SERVICIOS DE APOYO A LA GESTIÓN DE LA ALCALDÍA LOCAL EN EL DESARROLLO DE ACTIVIDADES DE PARTICIPACION CIUDADANA, ACOMPAÑAMIENTO A LA CIUDADANÍA,PARTICIPACIÓN EN LOS PROCESOS DE PREVENCIÓN DE LAS CONTRAVENCIONES EN LA LOCALIDAD, IMPULSO Y DINAMIZACIÓN PARA LA EJECUCIÓN DE LOS PROYECTOS QUE HACEN PARTE DEL PLAN DE DESARROLLO “USACA MEJOR PARA TODOS, USAQUÉN CUENTA CONTIGO 2017-2020” | H50: Inversión | I50: 45 | J50: =IF(ISERROR(VLOOKUP(I50,Eje_Pilar!$C$2:$E$47,2,FALSE))," ",VLOOKUP(I50,Eje_Pilar!$C$2:$E$47,2,FALSE)) -> Gobernanza e influencia local, regional e internacional | K50: =IF(ISERROR(VLOOKUP(I50,Eje_Pilar!$C$2:$E$47,3,FALSE))," ",VLOOKUP(I50,Eje_Pilar!$C$2:$E$47,3,FALSE)) -> Eje Transversal 4 Gobierno Legitimo, Fortalecimiento Local y Eficiencia | L50: 3-3-1-15-07-45-1573-000 | M50: 1015460888 | N50: JUAN SEBASTIAN RAMIREZ CORTES | O50: 26070000 | T50: 26070000 | U50: 25122000 | V50: 2019-01-24 | W50: 2019-01-28 | X50: 2019-12-27 | Y50: 330 | AC50: X | AF50: 0.9636363636 | AH50: =IF(SUMPRODUCT((A$14:A50=A50)*(B$14:B50=B50)*(C$14:C50=C50))>1,0,1) -> 1 | AI50: Contratos de prestación de servicios profesionales y de apoyo a la gestión | AJ50: Contratación directa | AK50: =IFERROR(VLOOKUP(F50,Tipo!$C$12:$C$27,1,FALSE),"NO") -> Prestación de servicios profesionales y de apoyo a la gestión, o para la ejecución de trabajos artísticos que sólo puedan encomendarse a determinadas personas naturales; | AL50: Inversión | AM50: 45
A51: 40 | B51: 2019 | C51: FDLUSA-CPS-040-2019 | D51: Contratos de prestación de servicios profesionales y de apoyo a la gestión | E51: Contratación directa | F51: Prestación de servicios profesionales y de apoyo a la gestión, o para la ejecución de trabajos artísticos que sólo puedan encomendarse a determinadas personas naturales; | G51: PRESTAR LOS SERVICIOS PROFESIONALES PARA COORDINAR, LIDERAR Y ASESORAR LOS PLANES Y ESTRATEGIAS DE COMUNICACIÓN INTERNA Y EXTERNA PARA LA DIVULGACIÓN DE LOS PROGRAMAS, PROYECTOS Y ACTIVIDADES DE LA ALCALDÍA LOCAL USAQUEN | H51: Inversión | I51: 45 | J51: =IF(ISERROR(VLOOKUP(I51,Eje_Pilar!$C$2:$E$47,2,FALSE))," ",VLOOKUP(I51,Eje_Pilar!$C$2:$E$47,2,FALSE)) -> Gobernanza e influencia local, regional e internacional | K51: =IF(ISERROR(VLOOKUP(I51,Eje_Pilar!$C$2:$E$47,3,FALSE))," ",VLOOKUP(I51,Eje_Pilar!$C$2:$E$47,3,FALSE)) -> Eje Transversal 4 Gobierno Legitimo, Fortalecimiento Local y Eficiencia | L51: 3-3-1-15-07-45-1574-000 | M51: 63548489 | N51: IVON ADRIANA JIMENEZ ZAPATA | O51: 75790000 | R51: 1 | S51: 13780000 | T51: 89570000 | U51: 73034000 | V51: 2019-01-24 | W51: 2019-01-28 | X51: 2019-12-27 | Y51: 330 | Z51: 60 | AC51: X | AF51: 0.8153846154 | AH51: =IF(SUMPRODUCT((A$14:A51=A51)*(B$14:B51=B51)*(C$14:C51=C51))>1,0,1) -> 1 | AI51: Contratos de prestación de servicios profesionales y de apoyo a la gestión | AJ51: Contratación directa | AK51: =IFERROR(VLOOKUP(F51,Tipo!$C$12:$C$27,1,FALSE),"NO") -> Prestación de servicios profesionales y de apoyo a la gestión, o para la ejecución de trabajos artísticos que sólo puedan encomendarse a determinadas personas naturales; | AL51: Inversión | AM51: 45
A52: 41 | B52: 2019 | C52: FDLUSA-CPS-041-2019 | D52: Contratos de prestación de servicios profesionales y de apoyo a la gestión | E52: Contratación directa | F52: Prestación de servicios profesionales y de apoyo a la gestión, o para la ejecución de trabajos artísticos que sólo puedan encomendarse a determinadas personas naturales; | G52: PRESTAR LOS SERVICIOS PROFESIONALES PARA APOYAR LA FORMULACIÓN, EJECUCIÓN, SEGUIMIENTO Y MEJORA CONTINUA DE LAS HERRAMIENTAS QUE CONFORMAN LA GESTIÓN AMBIENTAL INSTITUCIONAL DE LA ALCALDÍA LOCAL | H52: Inversión | I52: 45 | J52: =IF(ISERROR(VLOOKUP(I52,Eje_Pilar!$C$2:$E$47,2,FALSE))," ",VLOOKUP(I52,Eje_Pilar!$C$2:$E$47,2,FALSE)) -> Gobernanza e influencia local, regional e internacional | K52: =IF(ISERROR(VLOOKUP(I52,Eje_Pilar!$C$2:$E$47,3,FALSE))," ",VLOOKUP(I52,Eje_Pilar!$C$2:$E$47,3,FALSE)) -> Eje Transversal 4 Gobierno Legitimo, Fortalecimiento Local y Eficiencia | L52: 3-3-1-15-07-45-1574-000 | M52: 20363777 | N52: MARIA CONSUELO DEAZA MORA | O52: 36440000 | R52: 1 | S52: 13665000 | T52: 50105000 | U52: 47827500 | V52: 2019-01-25 | W52: 2019-02-01 | X52: 2019-12-01 | Y52: 240 | Z52: 90 | AC52: X | AF52: 0.9545454545 | AH52: =IF(SUMPRODUCT((A$14:A52=A52)*(B$14:B52=B52)*(C$14:C52=C52))>1,0,1) -> 1 | AI52: Contratos de prestación de servicios profesionales y de apoyo a la gestión | AJ52: Contratación directa | AK52: =IFERROR(VLOOKUP(F52,Tipo!$C$12:$C$27,1,FALSE),"NO") -> Prestación de servicios profesionales y de apoyo a la gestión, o para la ejecución de trabajos artísticos que sólo puedan encomendarse a determinadas personas naturales; | AL52: Inversión | AM52: 45
A53: 42 | B53: 2019 | C53: FDLUSA-CPS-042-2019 | D53: Contratos de prestación de servicios profesionales y de apoyo a la gestión | E53: Contratación directa | F53: Prestación de servicios profesionales y de apoyo a la gestión, o para la ejecución de trabajos artísticos que sólo puedan encomendarse a determinadas personas naturales; | G53: PRESTAR LOS SERVICIOS PROFESIONALES PARA APOYAR AL EQUIPO DE PRENSA Y COMUNICACIONES DE LA ALCALDÍA LOCAL MEDIANTE EL REGISTRO, LA EDICIÓN Y LA PRESENTACIÓN DE FOTOGRAFÍAS DE LOS ACONTECIMIENTOS, HECHOS Y EVENTOS DE LA ALCALDÍA LOCAL EN LOS MEDIOS DE COMUNICACIÓN, ESPECIALMENTE ESCRITOS, DIGITALES Y AUDIOVISUALES. | H53: Inversión | I53: 45 | J53: =IF(ISERROR(VLOOKUP(I53,Eje_Pilar!$C$2:$E$47,2,FALSE))," ",VLOOKUP(I53,Eje_Pilar!$C$2:$E$47,2,FALSE)) -> Gobernanza e influencia local, regional e internacional | K53: =IF(ISERROR(VLOOKUP(I53,Eje_Pilar!$C$2:$E$47,3,FALSE))," ",VLOOKUP(I53,Eje_Pilar!$C$2:$E$47,3,FALSE)) -> Eje Transversal 4 Gobierno Legitimo, Fortalecimiento Local y Eficiencia | L53: 3-3-1-15-07-45-1574-000 | M53: 52106203 | N53: JADY GONZALEZ RODRIGUEZ | O53: 55000000 | R53: 1 | S53: 5000000 | T53: 60000000 | U53: 53500000 | V53: 2019-01-24 | W53: 2019-01-25 | X53: 2019-12-24 | Y53: 330 | Z53: 30 | AC53: X | AF53: 0.8916666667 | AH53: =IF(SUMPRODUCT((A$14:A53=A53)*(B$14:B53=B53)*(C$14:C53=C53))>1,0,1) -> 1 | AI53: Contratos de prestación de servicios profesionales y de apoyo a la gestión | AJ53: Contratación directa | AK53: =IFERROR(VLOOKUP(F53,Tipo!$C$12:$C$27,1,FALSE),"NO") -> Prestación de servicios profesionales y de apoyo a la gestión, o para la ejecución de trabajos artísticos que sólo puedan encomendarse a determinadas personas naturales; | AL53: Inversión | AM53: 45
A54: 43 | B54: 2019 | C54: FDLUSA-CPS-043-2019 | D54: Contratos de prestación de servicios profesionales y de apoyo a la gestión | E54: Contratación directa | F54: Prestación de servicios profesionales y de apoyo a la gestión, o para la ejecución de trabajos artísticos que sólo puedan encomendarse a determinadas personas naturales; | G54: PRESTAR SERVICIOS DE APOYO TECNICO PARA LA GESTIÓN DE LA JUNTA ADMINISTRADORA LOCAL DE USAQUÉN PARA EL DESARROLLO DE LAS ACTIVIDADES ADMINISTRATIVAS Y OPERATIVAS REQUERIDAS PARA EL NORMAL FUNCIONAMIENTO DE LA CORPORACIÓN | H54: Inversión | I54: 45 | J54: =IF(ISERROR(VLOOKUP(I54,Eje_Pilar!$C$2:$E$47,2,FALSE))," ",VLOOKUP(I54,Eje_Pilar!$C$2:$E$47,2,FALSE)) -> Gobernanza e influencia local, regional e internacional | K54: =IF(ISERROR(VLOOKUP(I54,Eje_Pilar!$C$2:$E$47,3,FALSE))," ",VLOOKUP(I54,Eje_Pilar!$C$2:$E$47,3,FALSE)) -> Eje Transversal 4 Gobierno Legitimo, Fortalecimiento Local y Eficiencia | L54: 3-3-1-15-07-45-1574-000 | M54: 1032442625 | N54: LEANNE ALEJANDRA MORENO MAHECHA | O54: 33000000 | R54: 1 | S54: 6000000 | T54: 39000000 | U54: 31800000 | V54: 2019-01-24 | W54: 2019-01-28 | X54: 2019-12-27 | Y54: 330 | Z54: 60 | AC54: X | AF54: 0.8153846154 | AH54: =IF(SUMPRODUCT((A$14:A54=A54)*(B$14:B54=B54)*(C$14:C54=C54))>1,0,1) -> 1 | AI54: Contratos de prestación de servicios profesionales y de apoyo a la gestión | AJ54: Contratación directa | AK54: =IFERROR(VLOOKUP(F54,Tipo!$C$12:$C$27,1,FALSE),"NO") -> Prestación de servicios profesionales y de apoyo a la gestión, o para la ejecución de trabajos artísticos que sólo puedan encomendarse a determinadas personas naturales; | AL54: Inversión | AM54: 45
A55: 44 | B55: 2019 | C55: FDLUSA-CPS-044-2019 | D55: Contratos de prestación de servicios profesionales y de apoyo a la gestión | E55: Contratación directa | F55: Prestación de servicios profesionales y de apoyo a la gestión, o para la ejecución de trabajos artísticos que sólo puedan encomendarse a determinadas personas naturales; | G55: PRESTAR SERVICIOS A LA ACALDIA LOCAL PARA APOYAR Y DAR SOPORTE TÉCNICO AL ADMINISTRADOR Y USUARIO FINAL DE LA RED DE SISTEMAS Y TECNOLOGÍA E INFORMACIÓN DE LA ALCALDÍA LOCAL | H55: Inversión | I55: 45 | J55: =IF(ISERROR(VLOOKUP(I55,Eje_Pilar!$C$2:$E$47,2,FALSE))," ",VLOOKUP(I55,Eje_Pilar!$C$2:$E$47,2,FALSE)) -> Gobernanza e influencia local, regional e internacional | K55: =IF(ISERROR(VLOOKUP(I55,Eje_Pilar!$C$2:$E$47,3,FALSE))," ",VLOOKUP(I55,Eje_Pilar!$C$2:$E$47,3,FALSE)) -> Eje Transversal 4 Gobierno Legitimo, Fortalecimiento Local y Eficiencia | L55: 3-3-1-15-07-45-1574-000 | M55: 79536048 | N55: CARLOS EDUARDO BARRAGÁN PLAZAS | O55: 24000000 | R55: 2 | S55: 12000000 | T55: 36000000 | U55: 31500000 | V55: 2019-01-24 | W55: 2019-01-30 | X55: 2019-09-29 | Y55: 240 | Z55: 90 | AC55: X | AF55: 0.875 | AH55: =IF(SUMPRODUCT((A$14:A55=A55)*(B$14:B55=B55)*(C$14:C55=C55))>1,0,1) -> 1 | AI55: Contratos de prestación de servicios profesionales y de apoyo a la gestión | AJ55: Contratación directa | AK55: =IFERROR(VLOOKUP(F55,Tipo!$C$12:$C$27,1,FALSE),"NO") -> Prestación de servicios profesionales y de apoyo a la gestión, o para la ejecución de trabajos artísticos que sólo puedan encomendarse a determinadas personas naturales; | AL55: Inversión | AM55: 45
A56: 45 | B56: 2019 | C56: FDLUSA-CPS 045-2019 | D56: Contratos de prestación de servicios profesionales y de apoyo a la gestión | E56: Contratación directa | F56: Prestación de servicios profesionales y de apoyo a la gestión, o para la ejecución de trabajos artísticos que sólo puedan encomendarse a determinadas personas naturales; | G56: PRESTAR LOS SERVICIOS PROFESIONALES A LA ALCALDÍA LOCAL DE USAQUEN, EN LA REALIZACIÓN DE ACTIVIDADES Y TRAMITES ADMINISTRATIVOS RELACIONADOS CON LOS ASUNTOS CONTABLES Y FINANCIERAS NECESARIOS PARA EL NORMAL FUNCIONAMIENTO DEL ÁREA DE GESTIÓN DE DESARROLLO LOCAL | H56: Inversión | I56: 45 | J56: =IF(ISERROR(VLOOKUP(I56,Eje_Pilar!$C$2:$E$47,2,FALSE))," ",VLOOKUP(I56,Eje_Pilar!$C$2:$E$47,2,FALSE)) -> Gobernanza e influencia local, regional e internacional | K56: =IF(ISERROR(VLOOKUP(I56,Eje_Pilar!$C$2:$E$47,3,FALSE))," ",VLOOKUP(I56,Eje_Pilar!$C$2:$E$47,3,FALSE)) -> Eje Transversal 4 Gobierno Legitimo, Fortalecimiento Local y Eficiencia | L56: 3-3-1-15-07-45-1574-000 | M56: 53000759 | N56: JENNY ALEXANDRA FERNANDEZ VILLAR | O56: 38400000 | R56: 2 | S56: 19200000 | T56: 57600000 | U56: 53730000 | V56: 2019-01-24 | W56: 2019-01-25 | X56: 2019-09-24 | Y56: 240 | Z56: 96 | AC56: X | AF56: 0.9328125 | AH56: =IF(SUMPRODUCT((A$14:A56=A56)*(B$14:B56=B56)*(C$14:C56=C56))>1,0,1) -> 1 | AI56: Contratos de prestación de servicios profesionales y de apoyo a la gestión | AJ56: Contratación directa | AK56: =IFERROR(VLOOKUP(F56,Tipo!$C$12:$C$27,1,FALSE),"NO") -> Prestación de servicios profesionales y de apoyo a la gestión, o para la ejecución de trabajos artísticos que sólo puedan encomendarse a determinadas personas naturales; | AL56: Inversión | AM56: 45
A57: 46 | B57: 2019 | C57: FDLUSA-CPS-046-2019 | D57: Contratos de prestación de servicios profesionales y de apoyo a la gestión | E57: Contratación directa | F57: Prestación de servicios profesionales y de apoyo a la gestión, o para la ejecución de trabajos artísticos que sólo puedan encomendarse a determinadas personas naturales; | G57: PRESTAR LOS SERVICIOS PROFESIONALES A LA ALCALDÍA LOCAL DE USAQUÉN, LA REALIZACIÓN DE PROCESOS TÉCNICOS Y ADMINISTRATIVOS NECESARIOS PARA LA EJECUCIÓN LOS PROYECTOS RELACIONADOS CON INFRAESTRUCTURA VIAL, ESPACIOS PUBLICOS Y DEMÁS REALACIONADOS QUE SE ENCUENTREN CONTEMPLADOS EN EL PLAN DE DESARROLLO ¿USACA MEJOR PARA TODOS, USAQUÉN CUENTA CONTIGO 2017-2020 | H57: Inversión | I57: 18 | J57: =IF(ISERROR(VLOOKUP(I57,Eje_Pilar!$C$2:$E$47,2,FALSE))," ",VLOOKUP(I57,Eje_Pilar!$C$2:$E$47,2,FALSE)) -> Mejor movilidad para todos | K57: =IF(ISERROR(VLOOKUP(I57,Eje_Pilar!$C$2:$E$47,3,FALSE))," ",VLOOKUP(I57,Eje_Pilar!$C$2:$E$47,3,FALSE)) -> Pilar 2 Democracía Urbana | L57: 3-3-1-15-02-18-1572-000 | M57: 1077860558 | N57: JUAN DAVID DONOSO TOVAR | O57: 48000000 | R57: 2 | S57: 22000000 | T57: 70000000 | U57: 61000000 | V57: 2019-01-24 | W57: 2019-02-11 | X57: 2019-12-11 | Y57: 240 | Z57: 80 | AC57: X | AF57: 0.8714285714 | AH57: =IF(SUMPRODUCT((A$14:A57=A57)*(B$14:B57=B57)*(C$14:C57=C57))>1,0,1) -> 1 | AI57: Contratos de prestación de servicios profesionales y de apoyo a la gestión | AJ57: Contratación directa | AK57: =IFERROR(VLOOKUP(F57,Tipo!$C$12:$C$27,1,FALSE),"NO") -> Prestación de servicios profesionales y de apoyo a la gestión, o para la ejecución de trabajos artísticos que sólo puedan encomendarse a determinadas personas naturales; | AL57: Inversión | AM57: 18
A58: 47 | B58: 2019 | C58: FDLUSA-CPS 047-2019 | D58: Contratos de prestación de servicios profesionales y de apoyo a la gestión | E58: Contratación directa | F58: Prestación de servicios profesionales y de apoyo a la gestión, o para la ejecución de trabajos artísticos que sólo puedan encomendarse a determinadas personas naturales; | G58: PRESTAR SERVICIOS DE APOYO A LA GESTIÓN AL ÁREA DE GESTIÓN POLICIVA EN ASUNTOS RELACIONADOS CON EL REPARTO EN LOS APLICATIVOS DE GESTIÓN DOCUMENTAL Y APLICATIVOS MISIONALES PARA ACTUACIONES ADMINISTRATIVAS Y EL CÓDIGO NACIONAL DE POLICÍA Y CONVIVENCIA | H58: Inversión | I58: 45 | J58: =IF(ISERROR(VLOOKUP(I58,Eje_Pilar!$C$2:$E$47,2,FALSE))," ",VLOOKUP(I58,Eje_Pilar!$C$2:$E$47,2,FALSE)) -> Gobernanza e influencia local, regional e internacional | K58: =IF(ISERROR(VLOOKUP(I58,Eje_Pilar!$C$2:$E$47,3,FALSE))," ",VLOOKUP(I58,Eje_Pilar!$C$2:$E$47,3,FALSE)) -> Eje Transversal 4 Gobierno Legitimo, Fortalecimiento Local y Eficiencia | L58: 3-3-1-15-07-45-1574-000 | M58: 1014211634 | N58: ANA MARIA CASTANEDA VALLEJO | O58: 18960000 | R58: 2 | S58: 9480000 | T58: 28440000 | U58: 24569000 | V58: 2019-01-31 | W58: 2019-02-05 | X58: 2019-10-04 | Y58: 240 | Z58: 85 | AC58: X | AF58: 0.8638888889 | AH58: =IF(SUMPRODUCT((A$14:A58=A58)*(B$14:B58=B58)*(C$14:C58=C58))>1,0,1) -> 1 | AI58: Contratos de prestación de servicios profesionales y de apoyo a la gestión | AJ58: Contratación directa | AK58: =IFERROR(VLOOKUP(F58,Tipo!$C$12:$C$27,1,FALSE),"NO") -> Prestación de servicios profesionales y de apoyo a la gestión, o para la ejecución de trabajos artísticos que sólo puedan encomendarse a determinadas personas naturales; | AL58: Inversión | AM58: 45
A59: 48 | B59: 2019 | C59: FDLUSA-CPS-048-2019 | D59: Contratos de prestación de servicios profesionales y de apoyo a la gestión | E59: Contratación directa | F59: Prestación de servicios profesionales y de apoyo a la gestión, o para la ejecución de trabajos artísticos que sólo puedan encomendarse a determinadas personas naturales; | G59: PRESTAR LOS SERVICIOS PROFESIONALES PARA APOYAR TÉCNICAMENTE LAS DISTINTAS ETAPAS DE LOS PROCESOS DE COMPETENCIA DE LA ALCALDÍA LOCAL PARA LA DEPURACIÓN DE ACTUACIONES ADMINISTRATIVAS | H59: Inversión | I59: 45 | J59: =IF(ISERROR(VLOOKUP(I59,Eje_Pilar!$C$2:$E$47,2,FALSE))," ",VLOOKUP(I59,Eje_Pilar!$C$2:$E$47,2,FALSE)) -> Gobernanza e influencia local, regional e internacional | K59: =IF(ISERROR(VLOOKUP(I59,Eje_Pilar!$C$2:$E$47,3,FALSE))," ",VLOOKUP(I59,Eje_Pilar!$C$2:$E$47,3,FALSE)) -> Eje Transversal 4 Gobierno Legitimo, Fortalecimiento Local y Eficiencia | L59: 3-3-1-15-07-45-1574-000 | M59: 52779922 | N59: ANGELA MARIA BOHORQUEZ BEDOYA | O59: 48000000 | R59: 1 | S59: 11680000 | T59: 59680000 | U59: 47680000 | V59: 2019-02-13 | W59: 2019-02-18 | X59: 2019-12-14 | Y59: 300 | Z59: 60 | AC59: X | AF59: 0.7989276139 | AH59: =IF(SUMPRODUCT((A$14:A59=A59)*(B$14:B59=B59)*(C$14:C59=C59))>1,0,1) -> 1 | AI59: Contratos de prestación de servicios profesionales y de apoyo a la gestión | AJ59: Contratación directa | AK59: =IFERROR(VLOOKUP(F59,Tipo!$C$12:$C$27,1,FALSE),"NO") -> Prestación de servicios profesionales y de apoyo a la gestión, o para la ejecución de trabajos artísticos que sólo puedan encomendarse a determinadas personas naturales; | AL59: Inversión | AM59: 45
A60: 51 | B60: 2019 | C60: FDLUSA-CPS-051-2019 V2 | D60: Contratos de prestación de servicios profesionales y de apoyo a la gestión | E60: Contratación directa | F60: Prestación de servicios profesionales y de apoyo a la gestión, o para la ejecución de trabajos artísticos que sólo puedan encomendarse a determinadas personas naturales; | G60: PRESTAR LOS SERVICIOS DE APOYO EN EL ÁREA DE GESTIÓN DE DESARROLLO LOCAL-ARCHIVO EN LA EJECUCIÓN DE ACTIVIDADES DE CARÁCTER OPERATIVAS PARA LA GESTIÓN DOCUMENTAL DE LA ALCALDÍA LOCAL, DESARROLLANDO PROCESOS DE INCORPORACIÓN DE LOS DOCUMENTOS ENVIADOS Y RECIBIDOS QUE HACEN PARTE DE LOS DISTINTOS EXPEDIENTES Y MANTENER AL DÍA EL ARCHIVO, DE ACUERDO A LA NORMATIVIDAD VIGENTE | H60: Inversión | I60: 45 | J60: =IF(ISERROR(VLOOKUP(I60,Eje_Pilar!$C$2:$E$47,2,FALSE))," ",VLOOKUP(I60,Eje_Pilar!$C$2:$E$47,2,FALSE)) -> Gobernanza e influencia local, regional e internacional | K60: =IF(ISERROR(VLOOKUP(I60,Eje_Pilar!$C$2:$E$47,3,FALSE))," ",VLOOKUP(I60,Eje_Pilar!$C$2:$E$47,3,FALSE)) -> Eje Transversal 4 Gobierno Legitimo, Fortalecimiento Local y Eficiencia | L60: 3-3-1-15-07-45-1574-000 | M60: 1024547622 | N60: LINA ALEJANDRA PÁEZ RODRÍGUEZ | O60: 18960000 | R60: 2 | S60: 9480000 | T60: 28440000 | U60: 22673000 | V60: 2019-01-24 | W60: 2019-01-29 | X60: 2019-09-28 | Y60: 240 | Z60: 92 | AC60: X | AF60: 0.7972222222 | AH60: =IF(SUMPRODUCT((A$14:A60=A60)*(B$14:B60=B60)*(C$14:C60=C60))>1,0,1) -> 1 | AI60: Contratos de prestación de servicios profesionales y de apoyo a la gestión | AJ60: Contratación directa | AK60: =IFERROR(VLOOKUP(F60,Tipo!$C$12:$C$27,1,FALSE),"NO") -> Prestación de servicios profesionales y de apoyo a la gestión, o para la ejecución de trabajos artísticos que sólo puedan encomendarse a determinadas personas naturales; | AL60: Inversión | AM60: 45
A61: 52 | B61: 2019 | C61: FDLUSA-CPS-052-2019 | D61: Contratos de prestación de servicios profesionales y de apoyo a la gestión | E61: Contratación directa | F61: Prestación de servicios profesionales y de apoyo a la gestión, o para la ejecución de trabajos artísticos que sólo puedan encomendarse a determinadas personas naturales; | G61: PRESTAR LOS SERVICIOS DE APOYO EN EL ÁREA DE GESTIÓN DE DESARROLLO LOCAL-ARCHIVO EN LA EJECUCIÓN DE ACTIVIDADES DE CARÁCTER OPERATIVAS PARA LA GESTIÓN DOCUMENTAL DE LA ALCALDÍA LOCAL, DESARROLLANDO PROCESOS DE INCORPORACIÓN DE LOS DOCUMENTOS ENVIADOS Y RECIBIDOS QUE HACEN PARTE DE LOS DISTINTOS EXPEDIENTES Y MANTENER AL DÍA EL ARCHIVO, DE ACUERDO A LA NORMATIVIDAD VIGENTE | H61: Inversión | I61: 45 | J61: =IF(ISERROR(VLOOKUP(I61,Eje_Pilar!$C$2:$E$47,2,FALSE))," ",VLOOKUP(I61,Eje_Pilar!$C$2:$E$47,2,FALSE)) -> Gobernanza e influencia local, regional e internacional | K61: =IF(ISERROR(VLOOKUP(I61,Eje_Pilar!$C$2:$E$47,3,FALSE))," ",VLOOKUP(I61,Eje_Pilar!$C$2:$E$47,3,FALSE)) -> Eje Transversal 4 Gobierno Legitimo, Fortalecimiento Local y Eficiencia | L61: 3-3-1-15-07-45-1574-000 | M61: 1013600966 | N61: LIZBETH NAYIBE ESCOBAR AYA | O61: 18960000 | R61: 2 | S61: 9480000 | T61: 28440000 | U61: 25043000 | V61: 2019-01-24 | W61: 2019-01-31 | X61: 2019-09-30 | Y61: 240 | Z61: 92 | AC61: X | AF61: 0.8805555556 | AH61: =IF(SUMPRODUCT((A$14:A61=A61)*(B$14:B61=B61)*(C$14:C61=C61))>1,0,1) -> 1 | AI61: Contratos de prestación de servicios profesionales y de apoyo a la gestión | AJ61: Contratación directa | AK61: =IFERROR(VLOOKUP(F61,Tipo!$C$12:$C$27,1,FALSE),"NO") -> Prestación de servicios profesionales y de apoyo a la gestión, o para la ejecución de trabajos artísticos que sólo puedan encomendarse a determinadas personas naturales; | AL61: Inversión | AM61: 45
A62: 53 | B62: 2019 | C62: FDLUSA-CPS-053-2019 | D62: Contratos de prestación de servicios profesionales y de apoyo a la gestión | E62: Contratación directa | F62: Prestación de servicios profesionales y de apoyo a la gestión, o para la ejecución de trabajos artísticos que sólo puedan encomendarse a determinadas personas naturales; | G62: PRESTAR LOS SERVICIOS DE APOYO EN EL ÁREA DE GESTIÓN DE DESARROLLO LOCAL-ARCHIVO EN LA EJECUCIÓN DE ACTIVIDADES DE CARÁCTER OPERATIVAS PARA LA GESTIÓN DOCUMENTAL DE LA ALCALDÍA LOCAL, DESARROLLANDO PROCESOS DE INCORPORACIÓN DE LOS DOCUMENTOS ENVIADOS Y RECIBIDOS QUE HACEN PARTE DE LOS DISTINTOS EXPEDIENTES Y MANTENER AL DÍA EL ARCHIVO, DE ACUERDO A LA NORMATIVIDAD VIGENTE | H62: Inversión | I62: 45 | J62: =IF(ISERROR(VLOOKUP(I62,Eje_Pilar!$C$2:$E$47,2,FALSE))," ",VLOOKUP(I62,Eje_Pilar!$C$2:$E$47,2,FALSE)) -> Gobernanza e influencia local, regional e internacional | K62: =IF(ISERROR(VLOOKUP(I62,Eje_Pilar!$C$2:$E$47,3,FALSE))," ",VLOOKUP(I62,Eje_Pilar!$C$2:$E$47,3,FALSE)) -> Eje Transversal 4 Gobierno Legitimo, Fortalecimiento Local y Eficiencia | L62: 3-3-1-15-07-45-1574-000 | M62: 1023010257 | N62: JULIAN DAVID ALVAREZ PINZON | O62: 18960000 | R62: 2 | S62: 9480000 | T62: 28440000 | U62: 23542000 | V62: 2019-02-12 | W62: 2019-02-18 | X62: 2019-09-17 | Y62: 240 | Z62: 73 | AC62: X | AF62: 0.8277777778 | AH62: =IF(SUMPRODUCT((A$14:A62=A62)*(B$14:B62=B62)*(C$14:C62=C62))>1,0,1) -> 1 | AI62: Contratos de prestación de servicios profesionales y de apoyo a la gestión | AJ62: Contratación directa | AK62: =IFERROR(VLOOKUP(F62,Tipo!$C$12:$C$27,1,FALSE),"NO") -> Prestación de servicios profesionales y de apoyo a la gestión, o para la ejecución de trabajos artísticos que sólo puedan encomendarse a determinadas personas naturales; | AL62: Inversión | AM62: 45
A63: 54 | B63: 2019 | C63: FDLUSA-CPS-054-2019 | D63: Contratos de prestación de servicios profesionales y de apoyo a la gestión | E63: Contratación directa | F63: Prestación de servicios profesionales y de apoyo a la gestión, o para la ejecución de trabajos artísticos que sólo puedan encomendarse a determinadas personas naturales; | G63: PRESTAR LOS SERVICIOS DE APOYO EN EL ÁREA DE GESTIÓN DE DESARROLLO LOCAL-ARCHIVO EN LA EJECUCIÓN DE ACTIVIDADES DE CARÁCTER OPERATIVAS PARA LA GESTIÓN DOCUMENTAL DE LA ALCALDÍA LOCAL, DESARROLLANDO PROCESOS DE INCORPORACIÓN DE LOS DOCUMENTOS ENVIADOS Y RECIBIDOS QUE HACEN PARTE DE LOS DISTINTOS EXPEDIENTES Y MANTENER AL DÍA EL ARCHIVO, DE ACUERDO A LA NORMATIVIDAD VIGENTE | H63: Inversión | I63: 45 | J63: =IF(ISERROR(VLOOKUP(I63,Eje_Pilar!$C$2:$E$47,2,FALSE))," ",VLOOKUP(I63,Eje_Pilar!$C$2:$E$47,2,FALSE)) -> Gobernanza e influencia local, regional e internacional | K63: =IF(ISERROR(VLOOKUP(I63,Eje_Pilar!$C$2:$E$47,3,FALSE))," ",VLOOKUP(I63,Eje_Pilar!$C$2:$E$47,3,FALSE)) -> Eje Transversal 4 Gobierno Legitimo, Fortalecimiento Local y Eficiencia | L63: 3-3-1-15-07-45-1574-000 | M63: 53094395 | N63: DIANA MARCELA GALEANO RAMOS | O63: 18960000 | R63: 2 | S63: 9480000 | T63: 28440000 | U63: 22515000 | V63: 2019-01-25 | W63: 2019-01-29 | X63: 2019-09-28 | Y63: 240 | Z63: 90 | AC63: X | AF63: 0.7916666667 | AH63: =IF(SUMPRODUCT((A$14:A63=A63)*(B$14:B63=B63)*(C$14:C63=C63))>1,0,1) -> 1 | AI63: Contratos de prestación de servicios profesionales y de apoyo a la gestión | AJ63: Contratación directa | AK63: =IFERROR(VLOOKUP(F63,Tipo!$C$12:$C$27,1,FALSE),"NO") -> Prestación de servicios profesionales y de apoyo a la gestión, o para la ejecución de trabajos artísticos que sólo puedan encomendarse a determinadas personas naturales; | AL63: Inversión | AM63: 45
A64: 55 | B64: 2019 | C64: FDLUSA-CPS-055-2019 | D64: Contratos de prestación de servicios profesionales y de apoyo a la gestión | E64: Contratación directa | F64: Prestación de servicios profesionales y de apoyo a la gestión, o para la ejecución de trabajos artísticos que sólo puedan encomendarse a determinadas personas naturales; | G64: PRESTAR LOS SERVICIOS DE APOYO EN EL ÁREA DE GESTIÓN DE DESARROLLO LOCAL-ARCHIVO EN LA EJECUCIÓN DE ACTIVIDADES DE CARÁCTER OPERATIVAS PARA LA GESTIÓN DOCUMENTAL DE LA ALCALDÍA LOCAL, DESARROLLANDO PROCESOS DE INCORPORACIÓN DE LOS DOCUMENTOS ENVIADOS Y RECIBIDOS QUE HACEN PARTE DE LOS DISTINTOS EXPEDIENTES Y MANTENER AL DÍA EL ARCHIVO, DE ACUERDO A LA NORMATIVIDAD VIGENTE | H64: Inversión | I64: 45 | J64: =IF(ISERROR(VLOOKUP(I64,Eje_Pilar!$C$2:$E$47,2,FALSE))," ",VLOOKUP(I64,Eje_Pilar!$C$2:$E$47,2,FALSE)) -> Gobernanza e influencia local, regional e internacional | K64: =IF(ISERROR(VLOOKUP(I64,Eje_Pilar!$C$2:$E$47,3,FALSE))," ",VLOOKUP(I64,Eje_Pilar!$C$2:$E$47,3,FALSE)) -> Eje Transversal 4 Gobierno Legitimo, Fortalecimiento Local y Eficiencia | L64: 3-3-1-15-07-45-1574-000 | M64: 53094395 | N64: SANTIAGO ANDRES PATIÑO HERNANDEZ | O64: 18960000 | R64: 2 | S64: 9480000 | T64: 28440000 | U64: 23858000 | V64: 2019-02-11 | W64: 2019-02-14 | X64: 10/10/20019 | Y64: 240 | Z64: 1900-03-17 | AC64: X | AF64: 0.8388888889 | AH64: =IF(SUMPRODUCT((A$14:A64=A64)*(B$14:B64=B64)*(C$14:C64=C64))>1,0,1) -> 1 | AI64: Contratos de prestación de servicios profesionales y de apoyo a la gestión | AJ64: Contratación directa | AK64: =IFERROR(VLOOKUP(F64,Tipo!$C$12:$C$27,1,FALSE),"NO") -> Prestación de servicios profesionales y de apoyo a la gestión, o para la ejecución de trabajos artísticos que sólo puedan encomendarse a determinadas personas naturales; | AL64: Inversión | AM64: 45
A65: 56 | B65: 2019 | C65: FDLUSA-CPS-056-2019 | D65: Contratos de prestación de servicios profesionales y de apoyo a la gestión | E65: Contratación directa | F65: Prestación de servicios profesionales y de apoyo a la gestión, o para la ejecución de trabajos artísticos que sólo puedan encomendarse a determinadas personas naturales; | G65: PRESTAR LOS SERVICIOS DE APOYO EN EL ÁREA DE GESTIÓN DE DESARROLLO LOCAL-ARCHIVO EN LA EJECUCIÓN DE ACTIVIDADES DE CARÁCTER OPERATIVAS PARA LA GESTIÓN DOCUMENTAL DE LA ALCALDÍA LOCAL, DESARROLLANDO PROCESOS DE INCORPORACIÓN DE LOS DOCUMENTOS ENVIADOS Y RECIBIDOS QUE HACEN PARTE DE LOS DISTINTOS EXPEDIENTES Y MANTENER AL DÍA EL ARCHIVO, DE ACUERDO A LA NORMATIVIDAD VIGENTE | H65: Inversión | I65: 45 | J65: =IF(ISERROR(VLOOKUP(I65,Eje_Pilar!$C$2:$E$47,2,FALSE))," ",VLOOKUP(I65,Eje_Pilar!$C$2:$E$47,2,FALSE)) -> Gobernanza e influencia local, regional e internacional | K65: =IF(ISERROR(VLOOKUP(I65,Eje_Pilar!$C$2:$E$47,3,FALSE))," ",VLOOKUP(I65,Eje_Pilar!$C$2:$E$47,3,FALSE)) -> Eje Transversal 4 Gobierno Legitimo, Fortalecimiento Local y Eficiencia | L65: 3-3-1-15-07-45-1574-000 | M65: 1019064257 | N65: JESSENIA MUSTAFÁ BARRERA | O65: 18960000 | R65: 2 | S65: 9480000 | T65: 28440000 | U65: 25043000 | V65: 2019-01-25 | W65: 2019-01-29 | X65: 2019-09-28 | Y65: 240 | Z65: 92 | AC65: X | AF65: 0.8805555556 | AH65: =IF(SUMPRODUCT((A$14:A65=A65)*(B$14:B65=B65)*(C$14:C65=C65))>1,0,1) -> 1 | AI65: Contratos de prestación de servicios profesionales y de apoyo a la gestión | AJ65: Contratación directa | AK65: =IFERROR(VLOOKUP(F65,Tipo!$C$12:$C$27,1,FALSE),"NO") -> Prestación de servicios profesionales y de apoyo a la gestión, o para la ejecución de trabajos artísticos que sólo puedan encomendarse a determinadas personas naturales; | AL65: Inversión | AM65: 45
A66: 57 | B66: 2019 | C66: FDLUSA-CPS-057-2019 | D66: Contratos de prestación de servicios profesionales y de apoyo a la gestión | E66: Contratación directa | F66: Prestación de servicios profesionales y de apoyo a la gestión, o para la ejecución de trabajos artísticos que sólo puedan encomendarse a determinadas personas naturales; | G66: PRESTAR LOS SERVICIOS DE APOYO EN EL ÁREA DE GESTIÓN DE DESARROLLO LOCAL-ARCHIVO EN LA EJECUCIÓN DE ACTIVIDADES DE CARÁCTER OPERATIVAS PARA LA GESTIÓN DOCUMENTAL DE LA ALCALDÍA LOCAL, DESARROLLANDO PROCESOS DE INCORPORACIÓN DE LOS DOCUMENTOS ENVIADOS Y RECIBIDOS QUE HACEN PARTE DE LOS DISTINTOS EXPEDIENTES Y MANTENER AL DÍA EL ARCHIVO, DE ACUERDO A LA NORMATIVIDAD VIGENTE | H66: Inversión | I66: 45 | J66: =IF(ISERROR(VLOOKUP(I66,Eje_Pilar!$C$2:$E$47,2,FALSE))," ",VLOOKUP(I66,Eje_Pilar!$C$2:$E$47,2,FALSE)) -> Gobernanza e influencia local, regional e internacional | K66: =IF(ISERROR(VLOOKUP(I66,Eje_Pilar!$C$2:$E$47,3,FALSE))," ",VLOOKUP(I66,Eje_Pilar!$C$2:$E$47,3,FALSE)) -> Eje Transversal 4 Gobierno Legitimo, Fortalecimiento Local y Eficiencia | L66: 3-3-1-15-07-45-1574-000 | M66: 1032371349 | N66: NATALIA ALVAREZ GARCIA | O66: 18960000 | R66: 2 | S66: 9480000 | T66: 28440000 | U66: 25820000 | V66: 2019-01-25 | W66: 2019-02-01 | X66: 2019-09-30 | Y66: 240 | Z66: 90 | AC66: X | AF66: 0.9078762307 | AH66: =IF(SUMPRODUCT((A$14:A66=A66)*(B$14:B66=B66)*(C$14:C66=C66))>1,0,1) -> 1 | AI66: Contratos de prestación de servicios profesionales y de apoyo a la gestión | AJ66: Contratación directa | AK66: =IFERROR(VLOOKUP(F66,Tipo!$C$12:$C$27,1,FALSE),"NO") -> Prestación de servicios profesionales y de apoyo a la gestión, o para la ejecución de trabajos artísticos que sólo puedan encomendarse a determinadas personas naturales; | AL66: Inversión | AM66: 45
A67: 59 | B67: 2019 | C67: FDLUSA-CPS-059-2019 | D67: Contratos de prestación de servicios profesionales y de apoyo a la gestión | E67: Contratación directa | F67: Prestación de servicios profesionales y de apoyo a la gestión, o para la ejecución de trabajos artísticos que sólo puedan encomendarse a determinadas personas naturales; | G67: PRESTAR SERVICIOS PROFESIONALES PARA APOYAR JURÍDICAMENTE LA EJECUCIÓN DE LAS ACCIONES REQUERIDAS PARA LA DEPURACIÓN DE LAS ACTUACIONES ADMINISTRATIVAS QUE CURSAN EN LA ALCALDÍA LOCAL | H67: Inversión | I67: 45 | J67: =IF(ISERROR(VLOOKUP(I67,Eje_Pilar!$C$2:$E$47,2,FALSE))," ",VLOOKUP(I67,Eje_Pilar!$C$2:$E$47,2,FALSE)) -> Gobernanza e influencia local, regional e internacional | K67: =IF(ISERROR(VLOOKUP(I67,Eje_Pilar!$C$2:$E$47,3,FALSE))," ",VLOOKUP(I67,Eje_Pilar!$C$2:$E$47,3,FALSE)) -> Eje Transversal 4 Gobierno Legitimo, Fortalecimiento Local y Eficiencia | L67: 3-3-1-15-07-45-1574-000 | M67: 1020723768 | N67: JUAN MANUEL MONCADA URBINA | O67: 36440000 | R67: 1 | S67: 11691166 | T67: 48131166 | U67: 45853667 | V67: 2019-02-13 | W67: 2019-02-27 | X67: 2019-10-13 | Y67: 240 | Z67: 77 | AC67: X | AF67: 0.9526814081 | AH67: =IF(SUMPRODUCT((A$14:A67=A67)*(B$14:B67=B67)*(C$14:C67=C67))>1,0,1) -> 1 | AI67: Contratos de prestación de servicios profesionales y de apoyo a la gestión | AJ67: Contratación directa | AK67: =IFERROR(VLOOKUP(F67,Tipo!$C$12:$C$27,1,FALSE),"NO") -> Prestación de servicios profesionales y de apoyo a la gestión, o para la ejecución de trabajos artísticos que sólo puedan encomendarse a determinadas personas naturales; | AL67: Inversión | AM67: 45
A68: 60 | B68: 2019 | C68: FDLUSA-CPS-060-2019 | D68: Contratos de prestación de servicios profesionales y de apoyo a la gestión | E68: Contratación directa | F68: Prestación de servicios profesionales y de apoyo a la gestión, o para la ejecución de trabajos artísticos que sólo puedan encomendarse a determinadas personas naturales; | G68: “PRESTAR LOS SERVICIOS DE APOYO A LA GESTIÓN DE LA ALCALDÍA LOCAL EN EL DESARROLLO DE ACTIVIDADES DE SEGURIDAD Y CONVIVENCIA, ACOMPAÑAMIENTO A LA CIUDADANÍA, PARTICIPACIÓN EN LOS PROCESOS DE PREVENCIÓN DE LAS CONTRAVENCIONES EN LA LOCALIDAD, IMPULSO Y DINAMIZACIÓN PARA LA EJECUCIÓN DE LOS PROYECTOS QUE HACEN PARTE DEL PLAN DE DESARROLLO “USACA MEJOR PARA TODO | H68: Inversión | I68: 19 | J68: =IF(ISERROR(VLOOKUP(I68,Eje_Pilar!$C$2:$E$47,2,FALSE))," ",VLOOKUP(I68,Eje_Pilar!$C$2:$E$47,2,FALSE)) -> Seguridad y convivencia para todos | K68: =IF(ISERROR(VLOOKUP(I68,Eje_Pilar!$C$2:$E$47,3,FALSE))," ",VLOOKUP(I68,Eje_Pilar!$C$2:$E$47,3,FALSE)) -> Pilar 3 Construcción de Comunidad y Cultura Ciudadana | L68: 3-3-1-15-03-19-1569-000 | M68: 1012376481 | N68: EDWIN MAURICIO SANCHEZ RIAÑO | O68: 18960000 | R68: 2 | S68: 8137000 | T68: 27097000 | U68: 23542000 | V68: 2019-02-12 | W68: 2019-02-18 | X68: 2019-10-17 | Y68: 240 | Z68: 73 | AC68: X | AF68: 0.8688046647 | AH68: =IF(SUMPRODUCT((A$14:A68=A68)*(B$14:B68=B68)*(C$14:C68=C68))>1,0,1) -> 1 | AI68: Contratos de prestación de servicios profesionales y de apoyo a la gestión | AJ68: Contratación directa | AK68: =IFERROR(VLOOKUP(F68,Tipo!$C$12:$C$27,1,FALSE),"NO") -> Prestación de servicios profesionales y de apoyo a la gestión, o para la ejecución de trabajos artísticos que sólo puedan encomendarse a determinadas personas naturales; | AL68: Inversión | AM68: 19
A69: 61 | B69: 2019 | C69: FDLUSA-CPS-061-2019 | D69: Contratos de prestación de servicios profesionales y de apoyo a la gestión | E69: Contratación directa | F69: Prestación de servicios profesionales y de apoyo a la gestión, o para la ejecución de trabajos artísticos que sólo puedan encomendarse a determinadas personas naturales; | G69: PRESTAR LOS SERVICIOS PROFESIONALES A LA ALCALDÍA LOCAL, PARA APOYAR EL ÁREA GESTIÓN POLICIVA EN LA VALORACIÓN E IMPULSO FRENTE A LAS QUEJAS CIUDADANAS DE CONOCIMIENTO DE LA ALCALDÍA LOCAL DE USAQUÉN | H69: Inversión | I69: 45 | J69: =IF(ISERROR(VLOOKUP(I69,Eje_Pilar!$C$2:$E$47,2,FALSE))," ",VLOOKUP(I69,Eje_Pilar!$C$2:$E$47,2,FALSE)) -> Gobernanza e influencia local, regional e internacional | K69: =IF(ISERROR(VLOOKUP(I69,Eje_Pilar!$C$2:$E$47,3,FALSE))," ",VLOOKUP(I69,Eje_Pilar!$C$2:$E$47,3,FALSE)) -> Eje Transversal 4 Gobierno Legitimo, Fortalecimiento Local y Eficiencia | L69: 3-3-1-15-07-45-1574-000 | M69: 1152693746 | N69: JUAN PABLO PORRAS FLORIAN-LIGIA MARGARITA MOGOLLÒN BEHAINE | O69: 55000000 | R69: 1 | S69: 10000000 | T69: 65000000 | U69: 51666666 | V69: 2019-01-28 | W69: 2019-01-31 | X69: 2019-12-30 | Y69: 330 | Z69: 60 | AC69: X | AF69: 0.7948717846 | AH69: =IF(SUMPRODUCT((A$14:A69=A69)*(B$14:B69=B69)*(C$14:C69=C69))>1,0,1) -> 1 | AI69: Contratos de prestación de servicios profesionales y de apoyo a la gestión | AJ69: Contratación directa | AK69: =IFERROR(VLOOKUP(F69,Tipo!$C$12:$C$27,1,FALSE),"NO") -> Prestación de servicios profesionales y de apoyo a la gestión, o para la ejecución de trabajos artísticos que sólo puedan encomendarse a determinadas personas naturales; | AL69: Inversión | AM69: 45
A70: 62 | B70: 2019 | C70: FDLUSA-CPS-062-2019 | D70: Contratos de prestación de servicios profesionales y de apoyo a la gestión | E70: Contratación directa | F70: Prestación de servicios profesionales y de apoyo a la gestión, o para la ejecución de trabajos artísticos que sólo puedan encomendarse a determinadas personas naturales; | G70: PRESTAR LOS SERVICIOS PREOFESIONALES PARA APOYAR TÉCNICAMENTE A LOS RESPONSABLES E INTEGRANTES DE LOS PROCESOS EN LA IMPLEMENTACIÓN DE HERRAMIENTAS DE GESTIÓN, SIGUIENDO LOS LINEAMIENTOS METODOLÓGICOS ESTABLECIDOS POR LA OFICINA ASESORA DE PLANEACIÓN DE LA SECRETARÍA DISTRITAL DE GOBIERNO | H70: Inversión | I70: 45 | J70: =IF(ISERROR(VLOOKUP(I70,Eje_Pilar!$C$2:$E$47,2,FALSE))," ",VLOOKUP(I70,Eje_Pilar!$C$2:$E$47,2,FALSE)) -> Gobernanza e influencia local, regional e internacional | K70: =IF(ISERROR(VLOOKUP(I70,Eje_Pilar!$C$2:$E$47,3,FALSE))," ",VLOOKUP(I70,Eje_Pilar!$C$2:$E$47,3,FALSE)) -> Eje Transversal 4 Gobierno Legitimo, Fortalecimiento Local y Eficiencia | L70: 3-3-1-15-07-45-1574-000 | M70: 80157911 | N70: HERNANDO ANDRÉS LADINO REYES | O70: 50105000 | R70: 1 | S70: 9110000 | T70: 59215000 | U70: 44790833 | V70: 2019-01-28 | W70: 2019-02-06 | X70: 2019-12-30 | Y70: 330 | Z70: 60 | AC70: X | AF70: 0.7564102508 | AH70: =IF(SUMPRODUCT((A$14:A70=A70)*(B$14:B70=B70)*(C$14:C70=C70))>1,0,1) -> 1 | AI70: Contratos de prestación de servicios profesionales y de apoyo a la gestión | AJ70: Contratación directa | AK70: =IFERROR(VLOOKUP(F70,Tipo!$C$12:$C$27,1,FALSE),"NO") -> Prestación de servicios profesionales y de apoyo a la gestión, o para la ejecución de trabajos artísticos que sólo puedan encomendarse a determinadas personas naturales; | AL70: Inversión | AM70: 45
A71: 64 | B71: 2019 | C71: FDLUSA-CPS-064-2019 | D71: Contratos de prestación de servicios profesionales y de apoyo a la gestión | E71: Contratación directa | F71: Prestación de servicios profesionales y de apoyo a la gestión, o para la ejecución de trabajos artísticos que sólo puedan encomendarse a determinadas personas naturales; | G71: “PRESTAR SERVICIOS PROFESIONALES PARA APOYAR JURÍDICAMENTE LA EJECUCIÓN DE LAS ACCIONES REQUERIDAS PARA LA DEPURACIÓN DE LAS ACTUACIONES ADMINISTRATIVAS QUE CURSAN EN LA ALCALDÍA LOCAL”. | H71: Inversión | I71: 45 | J71: =IF(ISERROR(VLOOKUP(I71,Eje_Pilar!$C$2:$E$47,2,FALSE))," ",VLOOKUP(I71,Eje_Pilar!$C$2:$E$47,2,FALSE)) -> Gobernanza e influencia local, regional e internacional | K71: =IF(ISERROR(VLOOKUP(I71,Eje_Pilar!$C$2:$E$47,3,FALSE))," ",VLOOKUP(I71,Eje_Pilar!$C$2:$E$47,3,FALSE)) -> Eje Transversal 4 Gobierno Legitimo, Fortalecimiento Local y Eficiencia | L71: 3-3-1-15-07-45-1574-000 | M71: 52835322 | N71: ADEY JELITZHA SANABRIA CASTILLO/ SABRINA JOHANNA RIZZO MARTINEZ | O71: 50105000 | R71: 1 | S71: 4555000 | T71: 54660000 | U71: 42513332 | V71: 2019-01-28 | W71: 2019-02-07 | X71: 2019-12-31 | Y71: 330 | Z71: 30 | AC71: X | AF71: 0.7777777534 | AH71: =IF(SUMPRODUCT((A$14:A71=A71)*(B$14:B71=B71)*(C$14:C71=C71))>1,0,1) -> 1 | AI71: Contratos de prestación de servicios profesionales y de apoyo a la gestión | AJ71: Contratación directa | AK71: =IFERROR(VLOOKUP(F71,Tipo!$C$12:$C$27,1,FALSE),"NO") -> Prestación de servicios profesionales y de apoyo a la gestión, o para la ejecución de trabajos artísticos que sólo puedan encomendarse a determinadas personas naturales; | AL71: Inversión | AM71: 45
A72: 65 | B72: 2019 | C72: FDLUSA-CPS-065-2019 | D72: Contratos de prestación de servicios profesionales y de apoyo a la gestión | E72: Contratación directa | F72: Prestación de servicios profesionales y de apoyo a la gestión, o para la ejecución de trabajos artísticos que sólo puedan encomendarse a determinadas personas naturales; | G72: “PRESTAR SERVICIOS PROFESIONALES PARA APOYAR JURÍDICAMENTE LA EJECUCIÓN DE LAS ACCIONES REQUERIDAS PARA LA DEPURACIÓN DE LAS ACTUACIONES ADMINISTRATIVAS QUE CURSAN EN LA ALCALDÍA LOCAL”. | H72: Inversión | I72: 45 | J72: =IF(ISERROR(VLOOKUP(I72,Eje_Pilar!$C$2:$E$47,2,FALSE))," ",VLOOKUP(I72,Eje_Pilar!$C$2:$E$47,2,FALSE)) -> Gobernanza e influencia local, regional e internacional | K72: =IF(ISERROR(VLOOKUP(I72,Eje_Pilar!$C$2:$E$47,3,FALSE))," ",VLOOKUP(I72,Eje_Pilar!$C$2:$E$47,3,FALSE)) -> Eje Transversal 4 Gobierno Legitimo, Fortalecimiento Local y Eficiencia | L72: 3-3-1-15-07-45-1574-000 | M72: 52087528 | N72: YINNA MARCELA ROMERO RODRIGUEZ | O72: 50105000 | R72: 1 | S72: 9110000 | T72: 59215000 | U72: 44790833 | V72: 2019-01-28 | W72: 2019-02-06 | X72: 2019-12-31 | Y72: 330 | Z72: 60 | AC72: X | AF72: 0.7564102508 | AH72: =IF(SUMPRODUCT((A$14:A72=A72)*(B$14:B72=B72)*(C$14:C72=C72))>1,0,1) -> 1 | AI72: Contratos de prestación de servicios profesionales y de apoyo a la gestión | AJ72: Contratación directa | AK72: =IFERROR(VLOOKUP(F72,Tipo!$C$12:$C$27,1,FALSE),"NO") -> Prestación de servicios profesionales y de apoyo a la gestión, o para la ejecución de trabajos artísticos que sólo puedan encomendarse a determinadas personas naturales; | AL72: Inversión | AM72: 45
A73: 66 | B73: 2019 | C73: FDLUSA-CPS-066-2019 | D73: Contratos de prestación de servicios profesionales y de apoyo a la gestión | E73: Contratación directa | F73: Prestación de servicios profesionales y de apoyo a la gestión, o para la ejecución de trabajos artísticos que sólo puedan encomendarse a determinadas personas naturales; | G73: “PRESTAR LOS SERVICIOS PROFESIONALES PARA DAR TRAMITE E IMPULSO PROCESAL A LAS ACTUACIONES ADMINISTRATIVAS ADELANTADAS, DESARROLLAR LAS ACTIVIDADES QUE GARANTICEN LA PROTECCIÓN DE LA RESERVA FORESTAL PROTECTORA BOSQUE ORIENTAL, POLIGONOS DE MONITOREO, AREAS DE OCUPACIÓN PUBLICA PRIORITARIA Y DEMÁS ZONAS DE ESPECIAL PROTECCIÓN AMBIENTAL EN LA LOCALIDAD DE USAQUÉN | H73: Inversión | I73: 45 | J73: =IF(ISERROR(VLOOKUP(I73,Eje_Pilar!$C$2:$E$47,2,FALSE))," ",VLOOKUP(I73,Eje_Pilar!$C$2:$E$47,2,FALSE)) -> Gobernanza e influencia local, regional e internacional | K73: =IF(ISERROR(VLOOKUP(I73,Eje_Pilar!$C$2:$E$47,3,FALSE))," ",VLOOKUP(I73,Eje_Pilar!$C$2:$E$47,3,FALSE)) -> Eje Transversal 4 Gobierno Legitimo, Fortalecimiento Local y Eficiencia | L73: 3-3-1-15-07-45-1574-000 | M73: 80133657 | N73: JOSE GUSTAVO ORTIZ FIGUEREDO | O73: 36440000 | R73: 2 | S73: 16549833 | T73: 52989833 | U73: 45701833 | V73: 2019-02-12 | W73: 2019-02-15 | X73: 2019-10-14 | Y73: 240 | Z73: 30 | AC73: X | AF73: 0.8624641825 | AH73: =IF(SUMPRODUCT((A$14:A73=A73)*(B$14:B73=B73)*(C$14:C73=C73))>1,0,1) -> 1 | AI73: Contratos de prestación de servicios profesionales y de apoyo a la gestión | AJ73: Contratación directa | AK73: =IFERROR(VLOOKUP(F73,Tipo!$C$12:$C$27,1,FALSE),"NO") -> Prestación de servicios profesionales y de apoyo a la gestión, o para la ejecución de trabajos artísticos que sólo puedan encomendarse a determinadas personas naturales; | AL73: Inversión | AM73: 45
A74: 67 | B74: 2019 | C74: FDLUSA-CPS-067-2019 | D74: Contratos de prestación de servicios profesionales y de apoyo a la gestión | E74: Contratación directa | F74: Prestación de servicios profesionales y de apoyo a la gestión, o para la ejecución de trabajos artísticos que sólo puedan encomendarse a determinadas personas naturales; | G74: “PRESTAR SERVICIOS PROFESIONALES PARA APOYAR JURÍDICAMENTE LA EJECUCIÓN DE LAS ACCIONES REQUERIDAS PARA LA DEPURACIÓN DE LAS ACTUACIONES ADMINISTRATIVAS QUE CURSAN EN LA ALCALDÍA LOCAL”. | H74: Inversión | I74: 45 | J74: =IF(ISERROR(VLOOKUP(I74,Eje_Pilar!$C$2:$E$47,2,FALSE))," ",VLOOKUP(I74,Eje_Pilar!$C$2:$E$47,2,FALSE)) -> Gobernanza e influencia local, regional e internacional | K74: =IF(ISERROR(VLOOKUP(I74,Eje_Pilar!$C$2:$E$47,3,FALSE))," ",VLOOKUP(I74,Eje_Pilar!$C$2:$E$47,3,FALSE)) -> Eje Transversal 4 Gobierno Legitimo, Fortalecimiento Local y Eficiencia | L74: 3-3-1-15-07-45-1574-000 | M74: 1018411175 | N74: INGRID LORENA DIAZ MARTIN | O74: 50105000 | R74: 1 | S74: 4555000 | T74: 54660000 | U74: 46916500 | V74: 2019-01-31 | W74: 2019-02-07 | X74: 2019-12-31 | Y74: 330 | Z74: 30 | AC74: X | AF74: =IF(ISERROR(U74/T74),"-",(U74/T74)) -> 0.8583333333 | AH74: =IF(SUMPRODUCT((A$14:A74=A74)*(B$14:B74=B74)*(C$14:C74=C74))>1,0,1) -> 1 | AI74: Contratos de prestación de servicios profesionales y de apoyo a la gestión | AJ74: Contratación directa | AK74: =IFERROR(VLOOKUP(F74,Tipo!$C$12:$C$27,1,FALSE),"NO") -> Prestación de servicios profesionales y de apoyo a la gestión, o para la ejecución de trabajos artísticos que sólo puedan encomendarse a determinadas personas naturales; | AL74: Inversión | AM74: 45
A75: 68 | B75: 2019 | C75: FDLUSA-CPS-068-2019 | D75: Contratos de prestación de servicios profesionales y de apoyo a la gestión | E75: Contratación directa | F75: Prestación de servicios profesionales y de apoyo a la gestión, o para la ejecución de trabajos artísticos que sólo puedan encomendarse a determinadas personas naturales; | G75: PRESTAR SERVICIOS PROFESIONALES PARA APOYAR JURÍDICAMENTE LA EJECUCIÓN DE LAS ACCIONES REQUERIDAS PARA LA DEPURACIÓN DE LAS ACTUACIONES ADMINISTRATIVAS QUE CURSAN EN LA ALCALDÍA LOCAL | H75: Inversión | I75: 45 | J75: =IF(ISERROR(VLOOKUP(I75,Eje_Pilar!$C$2:$E$47,2,FALSE))," ",VLOOKUP(I75,Eje_Pilar!$C$2:$E$47,2,FALSE)) -> Gobernanza e influencia local, regional e internacional | K75: =IF(ISERROR(VLOOKUP(I75,Eje_Pilar!$C$2:$E$47,3,FALSE))," ",VLOOKUP(I75,Eje_Pilar!$C$2:$E$47,3,FALSE)) -> Eje Transversal 4 Gobierno Legitimo, Fortalecimiento Local y Eficiencia | L75: 3-3-1-15-07-45-1574-000 | M75: 1065642375 | N75: ANDRES GUILLERMO MAESTRE ARAUJO | O75: 50105000 | R75: 1 | S75: 4555000 | T75: 54660000 | U75: 46005500 | V75: 2019-01-30 | W75: 2019-02-13 | X75: 2019-12-31 | Y75: 318 | Z75: 30 | AC75: X | AF75: 0.8416666667 | AH75: =IF(SUMPRODUCT((A$14:A75=A75)*(B$14:B75=B75)*(C$14:C75=C75))>1,0,1) -> 1 | AI75: Contratos de prestación de servicios profesionales y de apoyo a la gestión | AJ75: Contratación directa | AK75: =IFERROR(VLOOKUP(F75,Tipo!$C$12:$C$27,1,FALSE),"NO") -> Prestación de servicios profesionales y de apoyo a la gestión, o para la ejecución de trabajos artísticos que sólo puedan encomendarse a determinadas personas naturales; | AL75: Inversión | AM75: 45
A76: 70 | B76: 2019 | C76: FDLUSA-CPS-070-2019 | D76: Contratos de prestación de servicios profesionales y de apoyo a la gestión | E76: Contratación directa | F76: Prestación de servicios profesionales y de apoyo a la gestión, o para la ejecución de trabajos artísticos que sólo puedan encomendarse a determinadas personas naturales; | G76: “PRESTAR LOS SERVICIOS PROFESIONALES A LA ALCALDIA LOCAL DE USAQUEN PARA REALIZAR EL APOYO AL SEGUIMIENTO Y EJECUCIÓN DE LOS PROGRAMAS RELACIONADOS CON EL PROYECTO DE INVERSIÓN TODOS SOMOS GUARDABOSQUES DE CIUDAD, Y ACTIVIDADES DE GESTIÓN AMBIENTAL DEL PLAN DE DESARROLLO LOCAL “USACA MEJOR PARA TODOS, USAQUÉN CUENTA CONTIGO 2017-2020”. | H76: Inversión | I76: 38 | J76: =IF(ISERROR(VLOOKUP(I76,Eje_Pilar!$C$2:$E$47,2,FALSE))," ",VLOOKUP(I76,Eje_Pilar!$C$2:$E$47,2,FALSE)) -> Recuperación y manejo de la Estructura Ecológica Principal | K76: =IF(ISERROR(VLOOKUP(I76,Eje_Pilar!$C$2:$E$47,3,FALSE))," ",VLOOKUP(I76,Eje_Pilar!$C$2:$E$47,3,FALSE)) -> Eje Transversal 3 Sostenibilidad Ambiental basada en la eficiencia energética | L76: 3-3-1-15-06-38-1575-000 | M76: 52914116 | N76: DECXY CONSTANZA BELTRAN RODRIGUEZ/ JENNY PATRICIA VANEGAS MESA | O76: 33200000 | R76: 2 | S76: 16185000 | T76: 49385000 | U76: 40393333 | V76: 2019-01-29 | W76: 2019-02-04 | X76: 2019-10-03 | Y76: 240 | Z76: 87 | AC76: X | AF76: 0.8179271641 | AH76: =IF(SUMPRODUCT((A$14:A76=A76)*(B$14:B76=B76)*(C$14:C76=C76))>1,0,1) -> 1 | AI76: Contratos de prestación de servicios profesionales y de apoyo a la gestión | AJ76: Contratación directa | AK76: =IFERROR(VLOOKUP(F76,Tipo!$C$12:$C$27,1,FALSE),"NO") -> Prestación de servicios profesionales y de apoyo a la gestión, o para la ejecución de trabajos artísticos que sólo puedan encomendarse a determinadas personas naturales; | AL76: Inversión | AM76: 38
A77: 71 | B77: 2019 | C77: FDLUSA-CPS-071-2019 | D77: Contratos de prestación de servicios profesionales y de apoyo a la gestión | E77: Contratación directa | F77: Prestación de servicios profesionales y de apoyo a la gestión, o para la ejecución de trabajos artísticos que sólo puedan encomendarse a determinadas personas naturales; | G77: PRESTAR LOS SERVICIOS PROFESIONALES A LA ALCALDÍA LOCAL DE USAQUÉN EN LA EJECUCIÓN DE ACTIVIDADES DE APOYO REQUERIDAS EN LAS DIFERENTES ÁREAS PARA EL CUMPLIMIENTO DE LAS GESTIONES ADMINISTRATIVAS QUE PERMITAN EL FORTALECIMIENTO DE LOS PROCESOS Y LA ENTREGA OPORTUNA DE LOS SERVICIOS A LA COMUNIDAD | H77: Inversión | I77: 45 | J77: =IF(ISERROR(VLOOKUP(I77,Eje_Pilar!$C$2:$E$47,2,FALSE))," ",VLOOKUP(I77,Eje_Pilar!$C$2:$E$47,2,FALSE)) -> Gobernanza e influencia local, regional e internacional | K77: =IF(ISERROR(VLOOKUP(I77,Eje_Pilar!$C$2:$E$47,3,FALSE))," ",VLOOKUP(I77,Eje_Pilar!$C$2:$E$47,3,FALSE)) -> Eje Transversal 4 Gobierno Legitimo, Fortalecimiento Local y Eficiencia | L77: 3-3-1-15-07-45-1574-000 | M77: 1018403181 | N77: CARLOS GIOVANI PADILLA RAMOS | O77: 47725000 | R77: 1 | S77: 8300000 | T77: 56025000 | U77: 43575000 | V77: 2019-01-31 | W77: 2019-02-01 | X77: 2019-12-31 | Y77: 330 | Z77: 60 | AC77: X | AF77: 0.7777777778 | AH77: =IF(SUMPRODUCT((A$14:A77=A77)*(B$14:B77=B77)*(C$14:C77=C77))>1,0,1) -> 1 | AI77: Contratos de prestación de servicios profesionales y de apoyo a la gestión | AJ77: Contratación directa | AK77: =IFERROR(VLOOKUP(F77,Tipo!$C$12:$C$27,1,FALSE),"NO") -> Prestación de servicios profesionales y de apoyo a la gestión, o para la ejecución de trabajos artísticos que sólo puedan encomendarse a determinadas personas naturales; | AL77: Inversión | AM77: 45
A78: 72 | B78: 2019 | C78: FDLUSA-CPS-072-2019 | D78: Contratos de prestación de servicios profesionales y de apoyo a la gestión | E78: Contratación directa | F78: Prestación de servicios profesionales y de apoyo a la gestión, o para la ejecución de trabajos artísticos que sólo puedan encomendarse a determinadas personas naturales; | G78: PRESTAR LOS SERVICIOS PROFESIONALES A LA ALCALDÍA LOCAL DE USAQUÉN EN LOS PROCESOS DE ARTICULACIÓN INTERINSTITUCIONAL DE LA ALCALDÍA LOCAL DE USAQUÉN CON LAS INSTITUCIONES PÚBLICAS DE LOS NIVELES NACIONAL Y DISTRITAL, ORGANIZACIONES PRIVADAS Y ORGANISMOS DE COOPERACIÓN INTERNACIONAL QUE PUEDAN TENER INCIDENCIA EN LA LOCALIDAD Y PERMITAN EL CUMPLIMIENTO DE METAS PREVISTAS EN EL PLAN DE DESARROLLO“USACA MEJOR PARA TODOS, USAQUÉN CUENTA CONTIGO 2017-2020, ASÍ COMO APOYAR EL SEGUIMIENTO A LAS ACTIVIDADES DE TIPO ADMINISTRATIVO DE LA ALCALDÍA LOCAL | H78: Inversión | I78: 45 | J78: =IF(ISERROR(VLOOKUP(I78,Eje_Pilar!$C$2:$E$47,2,FALSE))," ",VLOOKUP(I78,Eje_Pilar!$C$2:$E$47,2,FALSE)) -> Gobernanza e influencia local, regional e internacional | K78: =IF(ISERROR(VLOOKUP(I78,Eje_Pilar!$C$2:$E$47,3,FALSE))," ",VLOOKUP(I78,Eje_Pilar!$C$2:$E$47,3,FALSE)) -> Eje Transversal 4 Gobierno Legitimo, Fortalecimiento Local y Eficiencia | L78: 3-3-1-15-07-45-1574-000 | M78: 1013630428 | N78: ERIKA HUARTOS CASTAÑEDA | O78: 60500000 | R78: 1 | S78: 11000000 | T78: =+O78+Q78+S78 -> 71500000 | U78: 54633333 | V78: 2019-02-04 | W78: 2019-02-18 | X78: 2019-12-17 | Y78: 300 | Z78: 60 | AC78: X | AF78: 0.7641025594 | AH78: =IF(SUMPRODUCT((A$14:A78=A78)*(B$14:B78=B78)*(C$14:C78=C78))>1,0,1) -> 1 | AI78: Contratos de prestación de servicios profesionales y de apoyo a la gestión | AJ78: Contratación directa | AK78: =IFERROR(VLOOKUP(F78,Tipo!$C$12:$C$27,1,FALSE),"NO") -> Prestación de servicios profesionales y de apoyo a la gestión, o para la ejecución de trabajos artísticos que sólo puedan encomendarse a determinadas personas naturales; | AL78: Inversión | AM78: 45
A79: 73 | B79: 2019 | C79: FDLUSA-CPS-073-2019 | D79: Contratos de prestación de servicios profesionales y de apoyo a la gestión | E79: Contratación directa | F79: Prestación de servicios profesionales y de apoyo a la gestión, o para la ejecución de trabajos artísticos que sólo puedan encomendarse a determinadas personas naturales; | G79: PRESTAR LOS SERVICIOS PROFESIONALES A LA ALCALDÍA LOCAL DE USAQUÉN PARA APOYAR LA GESTIÓN TECNICA EN CUANTO AL CONTROL, VERIFICACIÓN DE REGLAMENTACIÓN, METROLOGIA LEGAL Y DEMAS ACTIVIDADES A QUE HAYA LUGAR EN LA CASA DEL CONSUMIDOR DE LA LOCALIDAD | H79: Inversión | I79: 45 | J79: =IF(ISERROR(VLOOKUP(I79,Eje_Pilar!$C$2:$E$47,2,FALSE))," ",VLOOKUP(I79,Eje_Pilar!$C$2:$E$47,2,FALSE)) -> Gobernanza e influencia local, regional e internacional | K79: =IF(ISERROR(VLOOKUP(I79,Eje_Pilar!$C$2:$E$47,3,FALSE))," ",VLOOKUP(I79,Eje_Pilar!$C$2:$E$47,3,FALSE)) -> Eje Transversal 4 Gobierno Legitimo, Fortalecimiento Local y Eficiencia | L79: 3-3-1-15-07-45-1574-000 | M79: 79645389 | N79: WILSON MAURICIO CONTRERAS RODRÍGUEZ | O79: 36440000 | R79: 2 | S79: 13209499 | T79: 49649499 | U79: 42817000 | V79: 2019-02-01 | W79: 2019-03-04 | X79: 2019-11-03 | Y79: 240 | Z79: 57 | AC79: X | AF79: 0.8623853385 | AH79: =IF(SUMPRODUCT((A$14:A79=A79)*(B$14:B79=B79)*(C$14:C79=C79))>1,0,1) -> 1 | AI79: Contratos de prestación de servicios profesionales y de apoyo a la gestión | AJ79: Contratación directa | AK79: =IFERROR(VLOOKUP(F79,Tipo!$C$12:$C$27,1,FALSE),"NO") -> Prestación de servicios profesionales y de apoyo a la gestión, o para la ejecución de trabajos artísticos que sólo puedan encomendarse a determinadas personas naturales; | AL79: Inversión | AM79: 45
A80: 74 | B80: 2019 | C80: FDLUSA-CPS-074-2019 | D80: Contratos de prestación de servicios profesionales y de apoyo a la gestión | E80: Contratación directa | F80: Prestación de servicios profesionales y de apoyo a la gestión, o para la ejecución de trabajos artísticos que sólo puedan encomendarse a determinadas personas naturales; | G80: PRESTAR LOS SERVICIOS PROFESIONALES A LA ALCALDIA LOCAL DE USAQUEN EN EL ACOMPAÑAMIENTO TÉCNICO DE LOS ASUNTOS RELACIONADOS CON INFRAESTRUCTURA DE PARQUES, ZONAS DE RECREACION, EMBELLECIMIENTO Y ORNATO QUE SE ADELANTEN EN LA LOCALIDAD, ACTIVIDADES CONEXAS, DEL PLAN DE DESARROLLO “USACA MEJOR PARA TODOS, USAQUÉN CUENTA CONTIGO 2017-2020 | H80: Inversión | I80: 17 | J80: =IF(ISERROR(VLOOKUP(I80,Eje_Pilar!$C$2:$E$47,2,FALSE))," ",VLOOKUP(I80,Eje_Pilar!$C$2:$E$47,2,FALSE)) -> Espacio público, derecho de todos | K80: =IF(ISERROR(VLOOKUP(I80,Eje_Pilar!$C$2:$E$47,3,FALSE))," ",VLOOKUP(I80,Eje_Pilar!$C$2:$E$47,3,FALSE)) -> Pilar 2 Democracía Urbana | L80: 3-3-1-15-02-17-1567-000 | M80: 1032403462 | N80: CHRISTIAN ALBERTO CERINZA OSPINA | O80: 42000000 | R80: 2 | S80: 21000000 | T80: =+O80+Q80+S80 -> 63000000 | U80: 50575000 | V80: 2019-02-08 | W80: 2019-02-12 | X80: 2019-10-11 | Y80: 240 | Z80: 79 | AC80: X | AF80: 0.8027777778 | AH80: =IF(SUMPRODUCT((A$14:A80=A80)*(B$14:B80=B80)*(C$14:C80=C80))>1,0,1) -> 1 | AI80: Contratos de prestación de servicios profesionales y de apoyo a la gestión | AJ80: Contratación directa | AK80: =IFERROR(VLOOKUP(F80,Tipo!$C$12:$C$27,1,FALSE),"NO") -> Prestación de servicios profesionales y de apoyo a la gestión, o para la ejecución de trabajos artísticos que sólo puedan encomendarse a determinadas personas naturales; | AL80: Inversión | AM80: 17
A81: 75 | B81: 2019 | C81: FDLUSA-CPS-075-2019 | D81: Contratos de prestación de servicios profesionales y de apoyo a la gestión | E81: Contratación directa | F81: Prestación de servicios profesionales y de apoyo a la gestión, o para la ejecución de trabajos artísticos que sólo puedan encomendarse a determinadas personas naturales; | G81: “PRESTAR LOS SERVICIOS PROFESIONALES A LA ALCALDÍA LOCAL DE USAQUÉN, PARA LA EJECUCIÓN DE LAS ACTIVIDADES Y PROCESOS ADMINISTRATIVOS RELACIONADOS CON LA GESTIÓN DEL RIESGO Y CAMBIO CLIMÁTICO, AGLOMERACIONES Y DEMÁS CONTEMPLADOS EN EL PLAN DE DESARROLLO “USACA MEJOR PARA TODOS, USAQUÉN CUENTA CONTIGO 2017-2020”. | H81: Inversión | I81: 4 | J81: =IF(ISERROR(VLOOKUP(I81,Eje_Pilar!$C$2:$E$47,2,FALSE))," ",VLOOKUP(I81,Eje_Pilar!$C$2:$E$47,2,FALSE)) -> Familias protegidas y adaptadas al cambio climático | K81: =IF(ISERROR(VLOOKUP(I81,Eje_Pilar!$C$2:$E$47,3,FALSE))," ",VLOOKUP(I81,Eje_Pilar!$C$2:$E$47,3,FALSE)) -> Pilar 1 Igualdad de Calidad de Vida | L81: 3-3-1-15-01-04-1576-000 | M81: 52410335 | N81: CLAUDIA LILIANA MOYA ORJUELA | O81: 55000000 | R81: 1 | S81: 11000000 | T81: 66000000 | U81: 55366667 | V81: 2019-02-13 | W81: 2019-02-14 | X81: 2019-12-13 | Y81: 300 | Z81: 60 | AC81: X | AF81: 0.8388888939 | AH81: =IF(SUMPRODUCT((A$14:A81=A81)*(B$14:B81=B81)*(C$14:C81=C81))>1,0,1) -> 1 | AI81: Contratos de prestación de servicios profesionales y de apoyo a la gestión | AJ81: Contratación directa | AK81: =IFERROR(VLOOKUP(F81,Tipo!$C$12:$C$27,1,FALSE),"NO") -> Prestación de servicios profesionales y de apoyo a la gestión, o para la ejecución de trabajos artísticos que sólo puedan encomendarse a determinadas personas naturales; | AL81: Inversión | AM81: 4
A82: 76 | B82: 2019 | C82: FDLUSA-CPS-076-2019 | D82: Contratos de prestación de servicios profesionales y de apoyo a la gestión | E82: Contratación directa | F82: Prestación de servicios profesionales y de apoyo a la gestión, o para la ejecución de trabajos artísticos que sólo puedan encomendarse a determinadas personas naturales; | G82: “PRESTAR LOS SERVICIOS PROFESIONALES PARA APOYAR TÉCNICAMENTE LAS DISTINTAS ETAPAS DE LOS PROCESOS DE COMPETENCIA DE LAS INSPECCIONES DE POLICÍA DE LA LOCALIDAD, SEGÚN REPARTO”. | H82: Inversión | I82: 45 | J82: =IF(ISERROR(VLOOKUP(I82,Eje_Pilar!$C$2:$E$47,2,FALSE))," ",VLOOKUP(I82,Eje_Pilar!$C$2:$E$47,2,FALSE)) -> Gobernanza e influencia local, regional e internacional | K82: =IF(ISERROR(VLOOKUP(I82,Eje_Pilar!$C$2:$E$47,3,FALSE))," ",VLOOKUP(I82,Eje_Pilar!$C$2:$E$47,3,FALSE)) -> Eje Transversal 4 Gobierno Legitimo, Fortalecimiento Local y Eficiencia | L82: 3-3-1-15-07-45-1574-000 | M82: 79495857 | N82: WILLIAM SANCHEZ FERRUCHO | O82: 53132000 | T82: 53132000 | U82: 34284500 | V82: 2019-03-01 | W82: 2019-03-07 | X82: 2019-12-31 | Y82: 294 | AC82: X | AF82: 0.6452702703 | AH82: =IF(SUMPRODUCT((A$14:A82=A82)*(B$14:B82=B82)*(C$14:C82=C82))>1,0,1) -> 1 | AI82: Contratos de prestación de servicios profesionales y de apoyo a la gestión | AJ82: Contratación directa | AK82: =IFERROR(VLOOKUP(F82,Tipo!$C$12:$C$27,1,FALSE),"NO") -> Prestación de servicios profesionales y de apoyo a la gestión, o para la ejecución de trabajos artísticos que sólo puedan encomendarse a determinadas personas naturales; | AL82: Inversión | AM82: 45
A83: 77 | B83: 2019 | C83: FDLUSA-CPS-077-2019 | D83: Contratos de prestación de servicios profesionales y de apoyo a la gestión | E83: Contratación directa | F83: Prestación de servicios profesionales y de apoyo a la gestión, o para la ejecución de trabajos artísticos que sólo puedan encomendarse a determinadas personas naturales; | G83: “PRESTAR LOS SERVICIOS PROFESIONALES PARA APOYAR TECNICAMENTE LAS DISTINTAS ETAPAS DE LOS PROCESOS DE COMPETENCIA DE LAS INSPECCIONES DE POLICIA DE LA LOCALIDAD, SEGÚN REPARTO”. | H83: Inversión | I83: 45 | J83: =IF(ISERROR(VLOOKUP(I83,Eje_Pilar!$C$2:$E$47,2,FALSE))," ",VLOOKUP(I83,Eje_Pilar!$C$2:$E$47,2,FALSE)) -> Gobernanza e influencia local, regional e internacional | K83: =IF(ISERROR(VLOOKUP(I83,Eje_Pilar!$C$2:$E$47,3,FALSE))," ",VLOOKUP(I83,Eje_Pilar!$C$2:$E$47,3,FALSE)) -> Eje Transversal 4 Gobierno Legitimo, Fortalecimiento Local y Eficiencia | L83: 3-3-1-15-07-45-1574-000 | M83: 13255143 | N83: GERMAN ISIDRO QUINTANA RODRIGUEZ | O83: 53850000 | R83: 1 | S83: 12744500 | T83: 66594500 | U83: 50439500 | V83: 2019-02-18 | W83: 2019-02-20 | X83: 2019-12-19 | Y83: 300 | Z83: 71 | AC83: X | AF83: 0.7574123989 | AH83: =IF(SUMPRODUCT((A$14:A83=A83)*(B$14:B83=B83)*(C$14:C83=C83))>1,0,1) -> 1 | AI83: Contratos de prestación de servicios profesionales y de apoyo a la gestión | AJ83: Contratación directa | AK83: =IFERROR(VLOOKUP(F83,Tipo!$C$12:$C$27,1,FALSE),"NO") -> Prestación de servicios profesionales y de apoyo a la gestión, o para la ejecución de trabajos artísticos que sólo puedan encomendarse a determinadas personas naturales; | AL83: Inversión | AM83: 45
A84: 78 | B84: 2019 | C84: FDLUSA-CPS-078-2019 | D84: Contratos de prestación de servicios profesionales y de apoyo a la gestión | E84: Contratación directa | F84: Prestación de servicios profesionales y de apoyo a la gestión, o para la ejecución de trabajos artísticos que sólo puedan encomendarse a determinadas personas naturales; | G84: “PRESTAR LOS SERVICIOS PROFESIONALES PARA APOYAR TECNICAMENTE LAS DISTINTAS ETAPAS DE LOS PROCESOS DE COMPETENCIA DE LAS INSPECCIONES DE POLICIA DE LA LOCALIDAD, SEGÚN REPARTO”. | H84: Inversión | I84: 45 | J84: =IF(ISERROR(VLOOKUP(I84,Eje_Pilar!$C$2:$E$47,2,FALSE))," ",VLOOKUP(I84,Eje_Pilar!$C$2:$E$47,2,FALSE)) -> Gobernanza e influencia local, regional e internacional | K84: =IF(ISERROR(VLOOKUP(I84,Eje_Pilar!$C$2:$E$47,3,FALSE))," ",VLOOKUP(I84,Eje_Pilar!$C$2:$E$47,3,FALSE)) -> Eje Transversal 4 Gobierno Legitimo, Fortalecimiento Local y Eficiencia | L84: 3-3-1-15-07-45-1574-000 | M84: 82393070 | N84: EDSON ANDRES RINCON MARTINEZ | O84: 53850000 | R84: 1 | S84: 12565000 | T84: 66415000 | U84: 50260000 | V84: 2019-02-19 | W84: 2019-02-21 | X84: 2019-02-20 | Y84: 300 | Z84: 70 | AC84: X | AF84: 0.7567567568 | AH84: =IF(SUMPRODUCT((A$14:A84=A84)*(B$14:B84=B84)*(C$14:C84=C84))>1,0,1) -> 1 | AI84: Contratos de prestación de servicios profesionales y de apoyo a la gestión | AJ84: Contratación directa | AK84: =IFERROR(VLOOKUP(F84,Tipo!$C$12:$C$27,1,FALSE),"NO") -> Prestación de servicios profesionales y de apoyo a la gestión, o para la ejecución de trabajos artísticos que sólo puedan encomendarse a determinadas personas naturales; | AL84: Inversión | AM84: 45
A85: 79 | B85: 2019 | C85: FDLUSA-CPS 079-2019 | D85: Contratos de prestación de servicios profesionales y de apoyo a la gestión | E85: Contratación directa | F85: Prestación de servicios profesionales y de apoyo a la gestión, o para la ejecución de trabajos artísticos que sólo puedan encomendarse a determinadas personas naturales; | G85: PRESTAR LOS SERVICIOS PROFESIONALES A LA ALCALDÍA LOCAL DE USAQUÉN, EN EL SEGUIMIENTO Y CONSOLIDACIÓN DE LA EJECUCIÓN DE LOS PROGRAMAS Y PROYECTOS CONTEMPLADOS EN EL PLAN DE DESARROLLO LOCAL “USACA MEJOR PARA TODOS, USAQUÉN CUENTA CONTIGO 2017-2020 | H85: Inversión | I85: 45 | J85: =IF(ISERROR(VLOOKUP(I85,Eje_Pilar!$C$2:$E$47,2,FALSE))," ",VLOOKUP(I85,Eje_Pilar!$C$2:$E$47,2,FALSE)) -> Gobernanza e influencia local, regional e internacional | K85: =IF(ISERROR(VLOOKUP(I85,Eje_Pilar!$C$2:$E$47,3,FALSE))," ",VLOOKUP(I85,Eje_Pilar!$C$2:$E$47,3,FALSE)) -> Eje Transversal 4 Gobierno Legitimo, Fortalecimiento Local y Eficiencia | L85: 3-3-1-15-07-45-1574-000 | M85: 52535501 | N85: MARIA DEL PILAR MUJICA SANDOVAL | O85: 46160000 | R85: 2 | S85: 23080000 | T85: 69240000 | U85: 55007333 | V85: 2019-02-12 | W85: 2019-02-15 | X85: 2019-10-14 | Y85: 240 | Z85: 76 | AC85: X | AF85: 0.7944444396 | AH85: =IF(SUMPRODUCT((A$14:A85=A85)*(B$14:B85=B85)*(C$14:C85=C85))>1,0,1) -> 1 | AI85: Contratos de prestación de servicios profesionales y de apoyo a la gestión | AJ85: Contratación directa | AK85: =IFERROR(VLOOKUP(F85,Tipo!$C$12:$C$27,1,FALSE),"NO") -> Prestación de servicios profesionales y de apoyo a la gestión, o para la ejecución de trabajos artísticos que sólo puedan encomendarse a determinadas personas naturales; | AL85: Inversión | AM85: 45
A86: 81 | B86: 2019 | C86: FDLUSA-CPS-081-2019 | D86: Contratos de prestación de servicios profesionales y de apoyo a la gestión | E86: Contratación directa | F86: Prestación de servicios profesionales y de apoyo a la gestión, o para la ejecución de trabajos artísticos que sólo puedan encomendarse a determinadas personas naturales; | G86: “PRESTAR SERVICIOS PROFESIONALES PARA APOYAR JURÍDICAMENTE LA EJECUCIÓN DE LAS ACCIONES REQUERIDAS PARA LA DEPURACIÓN DE LAS ACTUACIONES ADMINISTRATIVAS QUE CURSAN EN LA ALCALDÍA LOCAL”. | H86: Inversión | I86: 45 | J86: =IF(ISERROR(VLOOKUP(I86,Eje_Pilar!$C$2:$E$47,2,FALSE))," ",VLOOKUP(I86,Eje_Pilar!$C$2:$E$47,2,FALSE)) -> Gobernanza e influencia local, regional e internacional | K86: =IF(ISERROR(VLOOKUP(I86,Eje_Pilar!$C$2:$E$47,3,FALSE))," ",VLOOKUP(I86,Eje_Pilar!$C$2:$E$47,3,FALSE)) -> Eje Transversal 4 Gobierno Legitimo, Fortalecimiento Local y Eficiencia | L86: 3-3-1-15-07-45-1574-000 | M86: 51940503 | N86: FELIPE ANDRES ESCOBAR SALCEDO-MARIA MERCEDES ARENAS ORTIZ | O86: 45555550 | R86: 1 | S86: 9111110 | T86: 54666660 | U86: 35073500 | V86: 2019-02-20 | W86: 2019-02-26 | X86: 2019-12-26 | Y86: 300 | Z86: 60 | AC86: X | AF86: 0.6415884929 | AH86: =IF(SUMPRODUCT((A$14:A86=A86)*(B$14:B86=B86)*(C$14:C86=C86))>1,0,1) -> 1 | AI86: Contratos de prestación de servicios profesionales y de apoyo a la gestión | AJ86: Contratación directa | AK86: =IFERROR(VLOOKUP(F86,Tipo!$C$12:$C$27,1,FALSE),"NO") -> Prestación de servicios profesionales y de apoyo a la gestión, o para la ejecución de trabajos artísticos que sólo puedan encomendarse a determinadas personas naturales; | AL86: Inversión | AM86: 45
A87: 82 | B87: 2019 | C87: FDLUSA-CPS-082-2019 | D87: Contratos de prestación de servicios profesionales y de apoyo a la gestión | E87: Contratación directa | F87: Prestación de servicios profesionales y de apoyo a la gestión, o para la ejecución de trabajos artísticos que sólo puedan encomendarse a determinadas personas naturales; | G87: “PRESTAR LOS SERVICIOS PROFESIONALES PARA APOYAR TÉCNICAMENTE LAS DISTINTAS ETAPAS DE LOS PROCESOS DE COMPETENCIA DE LA ALCALDÍA LOCAL PARA LA DEPURACIÓN DE ACTUACIONES ADMINISTRATIVAS.” | H87: Inversión | I87: 45 | J87: =IF(ISERROR(VLOOKUP(I87,Eje_Pilar!$C$2:$E$47,2,FALSE))," ",VLOOKUP(I87,Eje_Pilar!$C$2:$E$47,2,FALSE)) -> Gobernanza e influencia local, regional e internacional | K87: =IF(ISERROR(VLOOKUP(I87,Eje_Pilar!$C$2:$E$47,3,FALSE))," ",VLOOKUP(I87,Eje_Pilar!$C$2:$E$47,3,FALSE)) -> Eje Transversal 4 Gobierno Legitimo, Fortalecimiento Local y Eficiencia | L87: 3-3-1-15-07-45-1574-000 | M87: 51551108 | N87: MARTHA ELENA MACHADO SANCHEZ | O87: 50880000 | T87: 50880000 | U87: 26080000 | V87: 2019-02-11 | W87: 2019-02-18 | X87: 2019-12-31 | Y87: 318 | AC87: X | AF87: 0.5125786164 | AH87: =IF(SUMPRODUCT((A$14:A87=A87)*(B$14:B87=B87)*(C$14:C87=C87))>1,0,1) -> 1 | AI87: Contratos de prestación de servicios profesionales y de apoyo a la gestión | AJ87: Contratación directa | AK87: =IFERROR(VLOOKUP(F87,Tipo!$C$12:$C$27,1,FALSE),"NO") -> Prestación de servicios profesionales y de apoyo a la gestión, o para la ejecución de trabajos artísticos que sólo puedan encomendarse a determinadas personas naturales; | AL87: Inversión | AM87: 45
A88: 83 | B88: 2019 | C88: FDLUSA-CPS-083-2019 | D88: Contratos de prestación de servicios profesionales y de apoyo a la gestión | E88: Contratación directa | F88: Prestación de servicios profesionales y de apoyo a la gestión, o para la ejecución de trabajos artísticos que sólo puedan encomendarse a determinadas personas naturales; | G88: PRESTAR LOS SERVICIOS PROFESIONALES PARA APOYAR TÉCNICAMENTE LAS DISTINTAS ETAPAS DE LOS PROCESOS DE COMPETENCIA DE LA ALCALDÍA LOCAL PARA LA DEPURACIÓN DE ACTUACIONES ADMINISTRATIVAS.” | H88: Inversión | I88: 45 | J88: =IF(ISERROR(VLOOKUP(I88,Eje_Pilar!$C$2:$E$47,2,FALSE))," ",VLOOKUP(I88,Eje_Pilar!$C$2:$E$47,2,FALSE)) -> Gobernanza e influencia local, regional e internacional | K88: =IF(ISERROR(VLOOKUP(I88,Eje_Pilar!$C$2:$E$47,3,FALSE))," ",VLOOKUP(I88,Eje_Pilar!$C$2:$E$47,3,FALSE)) -> Eje Transversal 4 Gobierno Legitimo, Fortalecimiento Local y Eficiencia | L88: 3-3-1-15-07-45-1574-000 | M88: 19269288 | N88: CLAUDIO JOSE GUILLERMO HERNANDEZ GUEVARA | O88: 48000000 | T88: 48000000 | U88: 48000000 | V88: 2019-02-12 | W88: 2019-02-18 | X88: 2019-12-14 | Y88: 300 | AC88: X | AF88: 1 | AH88: =IF(SUMPRODUCT((A$14:A88=A88)*(B$14:B88=B88)*(C$14:C88=C88))>1,0,1) -> 1 | AI88: Contratos de prestación de servicios profesionales y de apoyo a la gestión | AJ88: Contratación directa | AK88: =IFERROR(VLOOKUP(F88,Tipo!$C$12:$C$27,1,FALSE),"NO") -> Prestación de servicios profesionales y de apoyo a la gestión, o para la ejecución de trabajos artísticos que sólo puedan encomendarse a determinadas personas naturales; | AL88: Inversión | AM88: 45
A89: 84 | B89: 2019 | C89: FDLUSA-CPS-084-2019 | D89: Contratos de prestación de servicios profesionales y de apoyo a la gestión | E89: Contratación directa | F89: Prestación de servicios profesionales y de apoyo a la gestión, o para la ejecución de trabajos artísticos que sólo puedan encomendarse a determinadas personas naturales; | G89: PRESTAR LOS SERVICIOS PROFESIONALES A LA ALCALDÍA LOCAL DE USAQUÉN PARA LA REALIZACIÓN DE ACTIVIDADES ADMINISTRATIVAS Y JURÍDICAS NECESARIAS PARA LA EJECUCIÓN DEL PROYECTO LEGALÍZATE CONTEMPLADO EN EL PLAN DE DESARROLLO LOCAL “USACA MEJOR PARA TODOS, USAQUÉN CUENTA CONTIGO 2017-2020 | H89: Inversión | I89: 15 | J89: =IF(ISERROR(VLOOKUP(I89,Eje_Pilar!$C$2:$E$47,2,FALSE))," ",VLOOKUP(I89,Eje_Pilar!$C$2:$E$47,2,FALSE)) -> Recuperación, incorporación, vida urbana y control de la ilegalidad | K89: =IF(ISERROR(VLOOKUP(I89,Eje_Pilar!$C$2:$E$47,3,FALSE))," ",VLOOKUP(I89,Eje_Pilar!$C$2:$E$47,3,FALSE)) -> Pilar 2 Democracía Urbana | L89: 3-3-1-15-02-15-1568-000 | M89: 52296767 | N89: MARIA ELIZABETH CASALLAS FERNANDEZ | O89: 41600000 | R89: 2 | S89: 20800000 | T89: 62400000 | U89: 50440000 | V89: 2019-02-15 | W89: 2019-02-25 | X89: 2019-10-24 | Y89: 240 | Z89: 66 | AC89: X | AF89: 0.8083333333 | AH89: =IF(SUMPRODUCT((A$14:A89=A89)*(B$14:B89=B89)*(C$14:C89=C89))>1,0,1) -> 1 | AI89: Contratos de prestación de servicios profesionales y de apoyo a la gestión | AJ89: Contratación directa | AK89: =IFERROR(VLOOKUP(F89,Tipo!$C$12:$C$27,1,FALSE),"NO") -> Prestación de servicios profesionales y de apoyo a la gestión, o para la ejecución de trabajos artísticos que sólo puedan encomendarse a determinadas personas naturales; | AL89: Inversión | AM89: 15
A90: 85 | B90: 2019 | C90: FDLUSA-CPS-085-2019 | D90: Contratos de prestación de servicios profesionales y de apoyo a la gestión | E90: Contratación directa | F90: Prestación de servicios profesionales y de apoyo a la gestión, o para la ejecución de trabajos artísticos que sólo puedan encomendarse a determinadas personas naturales; | G90: PRESTAR LOS SERVICIOS PROFESIONALES AL FONDO DE DESARROLLO LOCAL DE USAQUEN COMO INGENIERO CATASTRAL PARA EL DESARROLLO DE TEMAS TECNICOS NECESARIOS PARA LA EJECUCIÓN DEL PROYECTO LEGALÍZATE CONTEMPLADO EN EL PLAN DE DESARROLLO LOCAL “USACA MEJOR PARA TODOS, USAQUÉN CUENTA CONTIGO 2017-2020 | H90: Inversión | I90: 15 | J90: =IF(ISERROR(VLOOKUP(I90,Eje_Pilar!$C$2:$E$47,2,FALSE))," ",VLOOKUP(I90,Eje_Pilar!$C$2:$E$47,2,FALSE)) -> Recuperación, incorporación, vida urbana y control de la ilegalidad | K90: =IF(ISERROR(VLOOKUP(I90,Eje_Pilar!$C$2:$E$47,3,FALSE))," ",VLOOKUP(I90,Eje_Pilar!$C$2:$E$47,3,FALSE)) -> Pilar 2 Democracía Urbana | L90: 3-3-1-15-02-15-1568-000 | M90: 1032356987 | N90: ELKIN BALTAZAR SUAREZ GUIZA | O90: 41600000 | R90: 2 | S90: 20800000 | T90: 62400000 | U90: 52173333 | V90: 2019-02-12 | W90: 2019-02-15 | X90: 2019-10-14 | Y90: 240 | Z90: 76 | AC90: X | AF90: 0.8361111058 | AH90: =IF(SUMPRODUCT((A$14:A90=A90)*(B$14:B90=B90)*(C$14:C90=C90))>1,0,1) -> 1 | AI90: Contratos de prestación de servicios profesionales y de apoyo a la gestión | AJ90: Contratación directa | AK90: =IFERROR(VLOOKUP(F90,Tipo!$C$12:$C$27,1,FALSE),"NO") -> Prestación de servicios profesionales y de apoyo a la gestión, o para la ejecución de trabajos artísticos que sólo puedan encomendarse a determinadas personas naturales; | AL90: Inversión | AM90: 15
A91: 87 | B91: 2019 | C91: FDLUSA-CPS 087-2019 | D91: Contratos de prestación de servicios profesionales y de apoyo a la gestión | E91: Contratación directa | F91: Prestación de servicios profesionales y de apoyo a la gestión, o para la ejecución de trabajos artísticos que sólo puedan encomendarse a determinadas personas naturales; | G91: PRESTAR LOS SERVICIOS COMO CONDUCTOR DE VEHÍCULO LIVIANO Y/O PESADO EN LA ALCALDÍA LOCAL DE USAQUÉN CON PLACAS OLM872, OJX855, OLM958 Y OLN059 | H91: Inversión | I91: 45 | J91: =IF(ISERROR(VLOOKUP(I91,Eje_Pilar!$C$2:$E$47,2,FALSE))," ",VLOOKUP(I91,Eje_Pilar!$C$2:$E$47,2,FALSE)) -> Gobernanza e influencia local, regional e internacional | K91: =IF(ISERROR(VLOOKUP(I91,Eje_Pilar!$C$2:$E$47,3,FALSE))," ",VLOOKUP(I91,Eje_Pilar!$C$2:$E$47,3,FALSE)) -> Eje Transversal 4 Gobierno Legitimo, Fortalecimiento Local y Eficiencia | L91: 3-3-1-15-07-45-1574-000 | M91: 7979993 | N91: FREDY ANDRES GORDILLO VALERO | O91: 9480000 | T91: 9480000 | U91: 9480000 | V91: 2019-02-14 | W91: 2019-02-15 | X91: 2019-06-14 | Y91: 120 | AC91: X | AF91: 1 | AH91: =IF(SUMPRODUCT((A$14:A91=A91)*(B$14:B91=B91)*(C$14:C91=C91))>1,0,1) -> 1 | AI91: Contratos de prestación de servicios profesionales y de apoyo a la gestión | AJ91: Contratación directa | AK91: =IFERROR(VLOOKUP(F91,Tipo!$C$12:$C$27,1,FALSE),"NO") -> Prestación de servicios profesionales y de apoyo a la gestión, o para la ejecución de trabajos artísticos que sólo puedan encomendarse a determinadas personas naturales; | AL91: Inversión | AM91: 45
A92: 88 | B92: 2019 | C92: FDLUSA-CPS 088-2019 | D92: Contratos de prestación de servicios profesionales y de apoyo a la gestión | E92: Contratación directa | F92: Prestación de servicios profesionales y de apoyo a la gestión, o para la ejecución de trabajos artísticos que sólo puedan encomendarse a determinadas personas naturales; | G92: PRESTAR LOS SERVICIOS COMO CONDUCTOR DE VEHÍCULO LIVIANO Y/O PESADO EN LA ALCALDÍA LOCAL DE USAQUÉN CON PLACAS OLM872, OJX855, OLM958 Y OLN05 | H92: Inversión | I92: 45 | J92: =IF(ISERROR(VLOOKUP(I92,Eje_Pilar!$C$2:$E$47,2,FALSE))," ",VLOOKUP(I92,Eje_Pilar!$C$2:$E$47,2,FALSE)) -> Gobernanza e influencia local, regional e internacional | K92: =IF(ISERROR(VLOOKUP(I92,Eje_Pilar!$C$2:$E$47,3,FALSE))," ",VLOOKUP(I92,Eje_Pilar!$C$2:$E$47,3,FALSE)) -> Eje Transversal 4 Gobierno Legitimo, Fortalecimiento Local y Eficiencia | L92: 3-3-1-15-07-45-1574-000 | M92: 80101374 | N92: YEFER ANDERSON NOVOA AREVALO | O92: 9480000 | T92: 9480000 | U92: 9480000 | V92: 2019-02-14 | W92: 2019-02-18 | X92: 2019-06-17 | Y92: 120 | AC92: X | AF92: 1 | AH92: =IF(SUMPRODUCT((A$14:A92=A92)*(B$14:B92=B92)*(C$14:C92=C92))>1,0,1) -> 1 | AI92: Contratos de prestación de servicios profesionales y de apoyo a la gestión | AJ92: Contratación directa | AK92: =IFERROR(VLOOKUP(F92,Tipo!$C$12:$C$27,1,FALSE),"NO") -> Prestación de servicios profesionales y de apoyo a la gestión, o para la ejecución de trabajos artísticos que sólo puedan encomendarse a determinadas personas naturales; | AL92: Inversión | AM92: 45
A93: 89 | B93: 2019 | C93: FDLUSA-CPS-089-2019 | D93: Contratos de prestación de servicios profesionales y de apoyo a la gestión | E93: Contratación directa | F93: Prestación de servicios profesionales y de apoyo a la gestión, o para la ejecución de trabajos artísticos que sólo puedan encomendarse a determinadas personas naturales; | G93: PRESTAR SERVICIOS PROFESIONALES PARA APOYAR JURÍDICAMENTE LA EJECUCIÓN DE LAS ACCIONES REQUERIDAS PARA LA DEPURACIÓN DE LAS ACTUACIONES ADMINISTRATIVAS QUE CURSAN EN LA ALCALDÍA LOCAL | H93: Inversión | I93: 45 | J93: =IF(ISERROR(VLOOKUP(I93,Eje_Pilar!$C$2:$E$47,2,FALSE))," ",VLOOKUP(I93,Eje_Pilar!$C$2:$E$47,2,FALSE)) -> Gobernanza e influencia local, regional e internacional | K93: =IF(ISERROR(VLOOKUP(I93,Eje_Pilar!$C$2:$E$47,3,FALSE))," ",VLOOKUP(I93,Eje_Pilar!$C$2:$E$47,3,FALSE)) -> Eje Transversal 4 Gobierno Legitimo, Fortalecimiento Local y Eficiencia | L93: 3-3-1-15-07-45-1574-000 | M93: 1020767590 | N93: DIANA CAROLINA CASTAÑEDA ARCHILA | O93: 36440000 | R93: 2 | S93: 18220000 | T93: 54660000 | U93: 45246333 | V93: 2019-02-14 | W93: 2019-02-18 | X93: 2019-10-17 | Y93: 240 | Z93: 73 | AC93: X | AF93: 0.8277777717 | AH93: =IF(SUMPRODUCT((A$14:A93=A93)*(B$14:B93=B93)*(C$14:C93=C93))>1,0,1) -> 1 | AI93: Contratos de prestación de servicios profesionales y de apoyo a la gestión | AJ93: Contratación directa | AK93: =IFERROR(VLOOKUP(F93,Tipo!$C$12:$C$27,1,FALSE),"NO") -> Prestación de servicios profesionales y de apoyo a la gestión, o para la ejecución de trabajos artísticos que sólo puedan encomendarse a determinadas personas naturales; | AL93: Inversión | AM93: 45
A94: 90 | B94: 2019 | C94: FDLUSA-CPS-090-2019 | D94: Contratos de prestación de servicios profesionales y de apoyo a la gestión | E94: Contratación directa | F94: Prestación de servicios profesionales y de apoyo a la gestión, o para la ejecución de trabajos artísticos que sólo puedan encomendarse a determinadas personas naturales; | G94: PRESTAR LOS SERVICIOS PROFESIONALES AL FONDO DE DESARROLLO LOCAL DE USAQUEN COMO TRABAJADOR SOCIAL BRINDANDO EL ACOMPAÑAMIENTO SOCIAL A LAS FAMILIAS Y BENEFICIARIOS IDENTIFICADOS DENTRO DEL PROYECTO LEGALÍZATE CONTEMPLADO EN EL PLAN DE DESARROLLO LOCAL “USACA MEJOR PARA TODOS, USAQUÉN CUENTA CONTIGO 2017-2020 | H94: Inversión | I94: 15 | J94: =IF(ISERROR(VLOOKUP(I94,Eje_Pilar!$C$2:$E$47,2,FALSE))," ",VLOOKUP(I94,Eje_Pilar!$C$2:$E$47,2,FALSE)) -> Recuperación, incorporación, vida urbana y control de la ilegalidad | K94: =IF(ISERROR(VLOOKUP(I94,Eje_Pilar!$C$2:$E$47,3,FALSE))," ",VLOOKUP(I94,Eje_Pilar!$C$2:$E$47,3,FALSE)) -> Pilar 2 Democracía Urbana | L94: 3-3-1-15-02-15-1568-000 | M94: 51750836 | N94: MARLENY GÓMEZ GÓMEZ | O94: 41600000 | R94: 2 | S94: 20800000 | T94: 62400000 | U94: 51480000 | V94: 2019-02-15 | W94: 2019-02-19 | X94: 2019-10-18 | Y94: 240 | Z94: 72 | AC94: X | AF94: 0.825 | AH94: =IF(SUMPRODUCT((A$14:A94=A94)*(B$14:B94=B94)*(C$14:C94=C94))>1,0,1) -> 1 | AI94: Contratos de prestación de servicios profesionales y de apoyo a la gestión | AJ94: Contratación directa | AK94: =IFERROR(VLOOKUP(F94,Tipo!$C$12:$C$27,1,FALSE),"NO") -> Prestación de servicios profesionales y de apoyo a la gestión, o para la ejecución de trabajos artísticos que sólo puedan encomendarse a determinadas personas naturales; | AL94: Inversión | AM94: 15
A95: 91 | B95: 2019 | C95: FDLUSA-CPS-091-2019 | D95: Contratos de prestación de servicios profesionales y de apoyo a la gestión | E95: Contratación directa | F95: Prestación de servicios profesionales y de apoyo a la gestión, o para la ejecución de trabajos artísticos que sólo puedan encomendarse a determinadas personas naturales; | G95: PRESTAR SERVICIOS DE APOYO PARA LA REALIZACIÓN DE ACTIVIDADES ASISTENCIALES NECESARIAS PARA LA ANTENCIÓN DE LOS DESPACHOS COMISIORIOS ALLEGADOS AL DESPACHO DE LA ALCALDÍA LOCAL | H95: Inversión | I95: 45 | J95: =IF(ISERROR(VLOOKUP(I95,Eje_Pilar!$C$2:$E$47,2,FALSE))," ",VLOOKUP(I95,Eje_Pilar!$C$2:$E$47,2,FALSE)) -> Gobernanza e influencia local, regional e internacional | K95: =IF(ISERROR(VLOOKUP(I95,Eje_Pilar!$C$2:$E$47,3,FALSE))," ",VLOOKUP(I95,Eje_Pilar!$C$2:$E$47,3,FALSE)) -> Eje Transversal 4 Gobierno Legitimo, Fortalecimiento Local y Eficiencia | L95: 3-3-1-15-07-45-1574-000 | M95: 1136887379 | N95: MIGUEL FABIAN OSORIO MARTINEZ | O95: 24000000 | R95: 1 | S95: 2400000 | T95: 26400000 | U95: 23840000 | V95: 2019-02-14 | W95: 2019-02-18 | X95: 2019-12-17 | Y95: 300 | Z95: 30 | AC95: X | AF95: 0.903030303 | AH95: =IF(SUMPRODUCT((A$14:A95=A95)*(B$14:B95=B95)*(C$14:C95=C95))>1,0,1) -> 1 | AI95: Contratos de prestación de servicios profesionales y de apoyo a la gestión | AJ95: Contratación directa | AK95: =IFERROR(VLOOKUP(F95,Tipo!$C$12:$C$27,1,FALSE),"NO") -> Prestación de servicios profesionales y de apoyo a la gestión, o para la ejecución de trabajos artísticos que sólo puedan encomendarse a determinadas personas naturales; | AL95: Inversión | AM95: 45
A96: 92 | B96: 2019 | C96: FDLUSA-CPS-092-2019 | D96: Contratos de prestación de servicios profesionales y de apoyo a la gestión | E96: Contratación directa | F96: Prestación de servicios profesionales y de apoyo a la gestión, o para la ejecución de trabajos artísticos que sólo puedan encomendarse a determinadas personas naturales; | G96: PRESTAR LOS SERVICIOS PROFESIONALES A LA ALCALDÍA LOCAL DE USAQUÉN PARA REALIZAR ACOMPAÑAMIENTO EN LA IDENTIFICACIÓN, IMPLEMENTACIÓN Y SEGUIMIENTO DE ACCIONES NECESARIAS PARA CUMPLIMIENTO DE OBJETIVOS DEL PLAN DE GESTIÓN Y LAS METAS ESTABLECIDAS EN EL PLAN DE DESARROLLO LOCAL | H96: Inversión | I96: 45 | J96: =IF(ISERROR(VLOOKUP(I96,Eje_Pilar!$C$2:$E$47,2,FALSE))," ",VLOOKUP(I96,Eje_Pilar!$C$2:$E$47,2,FALSE)) -> Gobernanza e influencia local, regional e internacional | K96: =IF(ISERROR(VLOOKUP(I96,Eje_Pilar!$C$2:$E$47,3,FALSE))," ",VLOOKUP(I96,Eje_Pilar!$C$2:$E$47,3,FALSE)) -> Eje Transversal 4 Gobierno Legitimo, Fortalecimiento Local y Eficiencia | L96: 3-3-1-15-07-45-1574-000 | M96: 80791247 | N96: JOSE DARWIN SANGUNO VELEZ | O96: 50000000 | R96: 1 | S96: 10000000 | T96: 60000000 | U96: 47666667 | V96: 2019-02-14 | W96: 2019-02-15 | X96: 2019-12-20 | Y96: 300 | Z96: 60 | AC96: X | AF96: 0.79444445 | AH96: =IF(SUMPRODUCT((A$14:A96=A96)*(B$14:B96=B96)*(C$14:C96=C96))>1,0,1) -> 1 | AI96: Contratos de prestación de servicios profesionales y de apoyo a la gestión | AJ96: Contratación directa | AK96: =IFERROR(VLOOKUP(F96,Tipo!$C$12:$C$27,1,FALSE),"NO") -> Prestación de servicios profesionales y de apoyo a la gestión, o para la ejecución de trabajos artísticos que sólo puedan encomendarse a determinadas personas naturales; | AL96: Inversión | AM96: 45
A97: 93 | B97: 2019 | C97: FDLUSA-CPS-093-2019 | D97: Contratos de prestación de servicios profesionales y de apoyo a la gestión | E97: Contratación directa | F97: Prestación de servicios profesionales y de apoyo a la gestión, o para la ejecución de trabajos artísticos que sólo puedan encomendarse a determinadas personas naturales; | G97: PRESTAR LOS SERVICIOS PROFESIONALES A LA ALCALDIA LOCAL DE USAQUEN EN EL ACOMPAÑAMIENTO A LAS INSTANCIAS DE PARTICIPACIÓN LOCALES, ASÍ COMO LOS PROCESOS COMUNITARIOS EN LA LOCALIDAD EN EL DESARROLLO DE ACTIVIDADES NECESARIAS PARA LA EJECUCION DE LOS PROYECTOS RELACIONADOS CON EL FORTALECIMIENTO PARA LA PARTICIPACIÓN EN LA LOCALIDAD | H97: Inversión | I97: 45 | J97: =IF(ISERROR(VLOOKUP(I97,Eje_Pilar!$C$2:$E$47,2,FALSE))," ",VLOOKUP(I97,Eje_Pilar!$C$2:$E$47,2,FALSE)) -> Gobernanza e influencia local, regional e internacional | K97: =IF(ISERROR(VLOOKUP(I97,Eje_Pilar!$C$2:$E$47,3,FALSE))," ",VLOOKUP(I97,Eje_Pilar!$C$2:$E$47,3,FALSE)) -> Eje Transversal 4 Gobierno Legitimo, Fortalecimiento Local y Eficiencia | L97: 3-3-1-15-07-45-1573-000 | M97: 1020713451 | N97: DANIEL VARGAS GARCIA | O97: 41500000 | T97: 41500000 | U97: 39010000 | V97: 2019-02-15 | W97: 2019-02-19 | X97: 2019-12-17 | Y97: 300 | AC97: X | AF97: 0.94 | AH97: =IF(SUMPRODUCT((A$14:A97=A97)*(B$14:B97=B97)*(C$14:C97=C97))>1,0,1) -> 1 | AI97: Contratos de prestación de servicios profesionales y de apoyo a la gestión | AJ97: Contratación directa | AK97: =IFERROR(VLOOKUP(F97,Tipo!$C$12:$C$27,1,FALSE),"NO") -> Prestación de servicios profesionales y de apoyo a la gestión, o para la ejecución de trabajos artísticos que sólo puedan encomendarse a determinadas personas naturales; | AL97: Inversión | AM97: 45
A98: 94 | B98: 2019 | C98: FDLUSA-CPS-094-2019 | D98: Contratos de prestación de servicios profesionales y de apoyo a la gestión | E98: Contratación directa | F98: Prestación de servicios profesionales y de apoyo a la gestión, o para la ejecución de trabajos artísticos que sólo puedan encomendarse a determinadas personas naturales; | G98: PRESTAR LOS SERVICIOS DE APOYO A LA GESTIÓN DEL ÁREA DE DESARROLLO LOCAL- CDI DE LA ALCALDÍA LOCAL DE USAQUÉN, EN LA EJECUCIÓN DE LAS ACTIVIDADES DE GESTIÓN Y ADMINISTRACIÓN DOCUMENTAL DE LOS ARCHIVOS DE LA ALCALDÍA DE ACUERDO A LA NORMATIVIDAD VIGENTE Y LOS PROCESOS DE LA ENTIDAD | H98: Inversión | I98: 45 | J98: =IF(ISERROR(VLOOKUP(I98,Eje_Pilar!$C$2:$E$47,2,FALSE))," ",VLOOKUP(I98,Eje_Pilar!$C$2:$E$47,2,FALSE)) -> Gobernanza e influencia local, regional e internacional | K98: =IF(ISERROR(VLOOKUP(I98,Eje_Pilar!$C$2:$E$47,3,FALSE))," ",VLOOKUP(I98,Eje_Pilar!$C$2:$E$47,3,FALSE)) -> Eje Transversal 4 Gobierno Legitimo, Fortalecimiento Local y Eficiencia | L98: 3-3-1-15-07-45-1574-000 | M98: 106973654 | N98: JEICER DISNEY GUTIERREZ | O98: 22400000 | R98: 2 | S98: 11106662 | T98: 33506662 | U98: 26413333 | V98: 2019-02-14 | W98: 2019-02-18 | X98: 2019-10-17 | Y98: 240 | Z98: 73 | AC98: X | AF98: 0.7883009355 | AH98: =IF(SUMPRODUCT((A$14:A98=A98)*(B$14:B98=B98)*(C$14:C98=C98))>1,0,1) -> 1 | AI98: Contratos de prestación de servicios profesionales y de apoyo a la gestión | AJ98: Contratación directa | AK98: =IFERROR(VLOOKUP(F98,Tipo!$C$12:$C$27,1,FALSE),"NO") -> Prestación de servicios profesionales y de apoyo a la gestión, o para la ejecución de trabajos artísticos que sólo puedan encomendarse a determinadas personas naturales; | AL98: Inversión | AM98: 45
A99: 95 | B99: 2019 | C99: FDLUSA-CPS-095-2019 | D99: Contratos de prestación de servicios profesionales y de apoyo a la gestión | E99: Contratación directa | F99: Prestación de servicios profesionales y de apoyo a la gestión, o para la ejecución de trabajos artísticos que sólo puedan encomendarse a determinadas personas naturales; | G99: PRESTAR SERVICIOS PROFESIONALES PARA APOYAR JURÍDICAMENTE LA EJECUCIÓN DE LAS ACCIONES REQUERIDAS PARA LA DEPURACIÓN DE LAS ACTUACIONES ADMINISTRATIVAS QUE CURSAN EN LA ALCALDÍA LOCAL | H99: Inversión | I99: 45 | J99: =IF(ISERROR(VLOOKUP(I99,Eje_Pilar!$C$2:$E$47,2,FALSE))," ",VLOOKUP(I99,Eje_Pilar!$C$2:$E$47,2,FALSE)) -> Gobernanza e influencia local, regional e internacional | K99: =IF(ISERROR(VLOOKUP(I99,Eje_Pilar!$C$2:$E$47,3,FALSE))," ",VLOOKUP(I99,Eje_Pilar!$C$2:$E$47,3,FALSE)) -> Eje Transversal 4 Gobierno Legitimo, Fortalecimiento Local y Eficiencia | L99: 3-3-1-15-07-45-1574-000 | M99: 1026267438 | N99: SERGIO GEOVANNY TOCANCIPA ARIZA | O99: 36440000 | R99: 1 | S99: 10780166 | T99: 47220166 | U99: 44942667 | V99: 2019-02-15 | W99: 2019-02-20 | X99: 2019-10-19 | Y99: 240 | Z99: 71 | AC99: X | AF99: 0.9517685092 | AH99: =IF(SUMPRODUCT((A$14:A99=A99)*(B$14:B99=B99)*(C$14:C99=C99))>1,0,1) -> 1 | AI99: Contratos de prestación de servicios profesionales y de apoyo a la gestión | AJ99: Contratación directa | AK99: =IFERROR(VLOOKUP(F99,Tipo!$C$12:$C$27,1,FALSE),"NO") -> Prestación de servicios profesionales y de apoyo a la gestión, o para la ejecución de trabajos artísticos que sólo puedan encomendarse a determinadas personas naturales; | AL99: Inversión | AM99: 45
A100: 96 | B100: 2019 | C100: FDLUSA-CPS-096-2019 | D100: Contratos de prestación de servicios profesionales y de apoyo a la gestión | E100: Contratación directa | F100: Prestación de servicios profesionales y de apoyo a la gestión, o para la ejecución de trabajos artísticos que sólo puedan encomendarse a determinadas personas naturales; | G100: PRESTAR LOS SERVICIOS TÉCNICOS PARA LA OPERACIÓN, SEGUIMIENTO Y CUMPLIMIENTO DE LOS PROCESOS Y PROCEDIMIENTOS DEL SERVICIO APOYOS PARA LA SEGURIDAD ECONÓMICA TIPO C, REQUERIDOS PARA EL OPORTUNO Y ADECUADO REGISTRO, CRUCE Y REPORTE DE LOS DATOS EN EL SISTEMA MISIONAL–SIRBE, QUE CONTRIBUYAN A LA GARANTÍA DE LOS DERECHOS DE LA POBLACIÓN MAYOR EN EL MARCO DE LA POLÍTICA PÚBLICA SOCIAL PARA EL ENVEJECIMIENTO Y LA VEJEZ EN EL DISTRITO CAPITAL A CARGO DE LA ALCALDÍA LOCAL. | H100: Inversión | I100: 3 | J100: =IF(ISERROR(VLOOKUP(I100,Eje_Pilar!$C$2:$E$47,2,FALSE))," ",VLOOKUP(I100,Eje_Pilar!$C$2:$E$47,2,FALSE)) -> Igualdad y autonomía para una Bogotá incluyente | K100: =IF(ISERROR(VLOOKUP(I100,Eje_Pilar!$C$2:$E$47,3,FALSE))," ",VLOOKUP(I100,Eje_Pilar!$C$2:$E$47,3,FALSE)) -> Pilar 1 Igualdad de Calidad de Vida | L100: 3-3-1-15-01-03-1571-000 | M100: 1022428363 | N100: ENITH STEPHANY BOHORQUEZ BUENO | O100: 22400000 | R100: 2 | S100: 11200000 | T100: 33600000 | U100: 27720000 | V100: 2019-02-14 | W100: 2019-02-19 | X100: 2019-10-18 | Y100: 240 | Z100: 72 | AC100: X | AF100: 0.825 | AH100: =IF(SUMPRODUCT((A$14:A100=A100)*(B$14:B100=B100)*(C$14:C100=C100))>1,0,1) -> 1 | AI100: Contratos de prestación de servicios profesionales y de apoyo a la gestión | AJ100: Contratación directa | AK100: =IFERROR(VLOOKUP(F100,Tipo!$C$12:$C$27,1,FALSE),"NO") -> Prestación de servicios profesionales y de apoyo a la gestión, o para la ejecución de trabajos artísticos que sólo puedan encomendarse a determinadas personas naturales; | AL100: Inversión | AM100: 3
A101: 97 | B101: 2019 | C101: FDLUSA-CPS-097-2019 | D101: Contratos de prestación de servicios profesionales y de apoyo a la gestión | E101: Contratación directa | F101: Prestación de servicios profesionales y de apoyo a la gestión, o para la ejecución de trabajos artísticos que sólo puedan encomendarse a determinadas personas naturales; | G101: PRESTAR LOS SERVICIOS PROFESIONALES PARA LA OPERACIÓN, PRESTACIÓN, SEGUIMIENTO Y CUMPLIMIENTO DE LOS PROCEDIMIENTOS ADMINISTRATIVOS, OPERATIVOS Y PROGRAMÁTICOS DEL SERVICIO APOYO ECONÓMICO TIPO C, QUE CONTRIBUYAN A LA GARANTÍA DE LOS DERECHOS DE LA POBLACIÓN MAYOR EN EL MARCO DE LA POLÍTICA PÚBLICA SOCIAL PARA EL ENVEJECIMIENTO Y LA VEJEZ EN EL DISTRITO CAPITAL A CARGO DE LA ALCALDÍA LOCAL | H101: Inversión | I101: 3 | J101: =IF(ISERROR(VLOOKUP(I101,Eje_Pilar!$C$2:$E$47,2,FALSE))," ",VLOOKUP(I101,Eje_Pilar!$C$2:$E$47,2,FALSE)) -> Igualdad y autonomía para una Bogotá incluyente | K101: =IF(ISERROR(VLOOKUP(I101,Eje_Pilar!$C$2:$E$47,3,FALSE))," ",VLOOKUP(I101,Eje_Pilar!$C$2:$E$47,3,FALSE)) -> Pilar 1 Igualdad de Calidad de Vida | L101: 3-3-1-15-01-03-1571-000 | M101: 15959991 | N101: PILAR ROCIO CASTRO DURÁN cedido a NICOLAS DDE JESUS CASTAÑEDA | O101: 38400000 | R101: 2 | S101: 17937777 | T101: 56337777 | U101: 46720000 | V101: 2019-02-15 | W101: 2019-02-20 | X101: 2019-10-19 | Y101: 240 | Z101: 71 | AC101: X | AF101: 0.8292836972 | AH101: =IF(SUMPRODUCT((A$14:A101=A101)*(B$14:B101=B101)*(C$14:C101=C101))>1,0,1) -> 1 | AI101: Contratos de prestación de servicios profesionales y de apoyo a la gestión | AJ101: Contratación directa | AK101: =IFERROR(VLOOKUP(F101,Tipo!$C$12:$C$27,1,FALSE),"NO") -> Prestación de servicios profesionales y de apoyo a la gestión, o para la ejecución de trabajos artísticos que sólo puedan encomendarse a determinadas personas naturales; | AL101: Inversión | AM101: 3
A102: 98 | B102: 2019 | C102: FDLUSA-CPS-098-2019 | D102: Contratos de prestación de servicios profesionales y de apoyo a la gestión | E102: Contratación directa | F102: Prestación de servicios profesionales y de apoyo a la gestión, o para la ejecución de trabajos artísticos que sólo puedan encomendarse a determinadas personas naturales; | G102: “PRESTAR LOS SERVICIOS PROFESIONALES A LA ALCALDIA LOCAL DE USAQUEN EN EL ACOMPAÑAMIENTO A LAS INSTANCIAS DE PARTICIPACIÓN LOCALES, ASÍ COMO LOS PROCESOS COMUNITARIOS EN LA LOCALIDAD EN EL DESARROLLO DE ACTIVIDADES NECESARIAS PARA LA EJECUCION DE LOS PROYECTOS RELACIONADOS CON EL FORTALECIMIENTO PARA LA PARTICIPACIÓN EN LA LOCALIDAD”. | H102: Inversión | I102: 45 | J102: =IF(ISERROR(VLOOKUP(I102,Eje_Pilar!$C$2:$E$47,2,FALSE))," ",VLOOKUP(I102,Eje_Pilar!$C$2:$E$47,2,FALSE)) -> Gobernanza e influencia local, regional e internacional | K102: =IF(ISERROR(VLOOKUP(I102,Eje_Pilar!$C$2:$E$47,3,FALSE))," ",VLOOKUP(I102,Eje_Pilar!$C$2:$E$47,3,FALSE)) -> Eje Transversal 4 Gobierno Legitimo, Fortalecimiento Local y Eficiencia | L102: 3-3-1-15-07-45-1573-000 | M102: 1024540712 | N102: ERIKA VANESSA USECHE TRIANA | O102: 33200000 | R102: 2 | S102: 17430000 | T102: 50630000 | U102: 40116667 | V102: 2019-02-20 | W102: 2019-02-25 | X102: 2019-10-24 | Y102: 240 | Z102: 71 | AC102: X | AF102: 0.7923497334 | AH102: =IF(SUMPRODUCT((A$14:A102=A102)*(B$14:B102=B102)*(C$14:C102=C102))>1,0,1) -> 1 | AI102: Contratos de prestación de servicios profesionales y de apoyo a la gestión | AJ102: Contratación directa | AK102: =IFERROR(VLOOKUP(F102,Tipo!$C$12:$C$27,1,FALSE),"NO") -> Prestación de servicios profesionales y de apoyo a la gestión, o para la ejecución de trabajos artísticos que sólo puedan encomendarse a determinadas personas naturales; | AL102: Inversión | AM102: 45
A103: 99 | B103: 2019 | C103: FDLUSA-CPS-099-2019 | D103: Contratos de prestación de servicios profesionales y de apoyo a la gestión | E103: Contratación directa | F103: Prestación de servicios profesionales y de apoyo a la gestión, o para la ejecución de trabajos artísticos que sólo puedan encomendarse a determinadas personas naturales; | G103: PRESTAR LOS SERVICIOS PROFESIONALES PARA LA OPERACIÓN, PRESTACIÓN, SEGUIMIENTO Y CUMPLIMIENTO DE LOS PROCEDIMIENTOS ADMINISTRATIVOS, OPERATIVOS Y PROGRAMÁTICOS DEL SERVICIO APOYO ECONÓMICO TIPO C, QUE CONTRIBUYAN A LA GARANTÍA DE LOS DERECHOS DE LA POBLACIÓN MAYOR EN EL MARCO DE LA POLÍTICA PÚBLICA SOCIAL PARA EL ENVEJECIMIENTO Y LA VEJEZ EN EL DISTRITO CAPITAL A CARGO DE LA ALCALDÍA LOCAL | H103: Inversión | I103: 3 | J103: =IF(ISERROR(VLOOKUP(I103,Eje_Pilar!$C$2:$E$47,2,FALSE))," ",VLOOKUP(I103,Eje_Pilar!$C$2:$E$47,2,FALSE)) -> Igualdad y autonomía para una Bogotá incluyente | K103: =IF(ISERROR(VLOOKUP(I103,Eje_Pilar!$C$2:$E$47,3,FALSE))," ",VLOOKUP(I103,Eje_Pilar!$C$2:$E$47,3,FALSE)) -> Pilar 1 Igualdad de Calidad de Vida | L103: 3-3-1-15-01-03-1571-000 | M103: 52108359 | N103: YENNY GIRALDO POSADA | O103: 38400000 | R103: 2 | S103: 19200000 | T103: 57600000 | U103: 47520000 | V103: 2019-02-15 | W103: 2019-02-19 | X103: 2019-10-18 | Y103: 240 | Z103: 72 | AC103: X | AF103: 0.825 | AH103: =IF(SUMPRODUCT((A$14:A103=A103)*(B$14:B103=B103)*(C$14:C103=C103))>1,0,1) -> 1 | AI103: Contratos de prestación de servicios profesionales y de apoyo a la gestión | AJ103: Contratación directa | AK103: =IFERROR(VLOOKUP(F103,Tipo!$C$12:$C$27,1,FALSE),"NO") -> Prestación de servicios profesionales y de apoyo a la gestión, o para la ejecución de trabajos artísticos que sólo puedan encomendarse a determinadas personas naturales; | AL103: Inversión | AM103: 3
A104: 100 | B104: 2019 | C104: FDLUSA-CPS 100-2019 | D104: Contratos de prestación de servicios profesionales y de apoyo a la gestión | E104: Contratación directa | F104: Prestación de servicios profesionales y de apoyo a la gestión, o para la ejecución de trabajos artísticos que sólo puedan encomendarse a determinadas personas naturales; | G104: PRESTAR LOS SERVICIOS COMO CONDUCTOR DE VEHÍCULO LIVIANO Y/O PESADO EN LA ALCALDÍA LOCAL DE USAQUÉN CON PLACAS OLM872, OJX855, OLM958 Y OLN05 | H104: Inversión | I104: 45 | J104: =IF(ISERROR(VLOOKUP(I104,Eje_Pilar!$C$2:$E$47,2,FALSE))," ",VLOOKUP(I104,Eje_Pilar!$C$2:$E$47,2,FALSE)) -> Gobernanza e influencia local, regional e internacional | K104: =IF(ISERROR(VLOOKUP(I104,Eje_Pilar!$C$2:$E$47,3,FALSE))," ",VLOOKUP(I104,Eje_Pilar!$C$2:$E$47,3,FALSE)) -> Eje Transversal 4 Gobierno Legitimo, Fortalecimiento Local y Eficiencia | L104: 3-3-1-15-07-45-1574-000 | M104: 1057690434 | N104: JAIRO ERNESTO MORENO | O104: 9480000 | T104: 9480000 | U104: 8611000 | V104: 2019-02-20 | W104: 2019-02-22 | X104: 2019-06-21 | Y104: 120 | AC104: X | AF104: 0.9083333333 | AH104: =IF(SUMPRODUCT((A$14:A104=A104)*(B$14:B104=B104)*(C$14:C104=C104))>1,0,1) -> 1 | AI104: =IFERROR(VLOOKUP(D104,tipo,1,FALSE),"NO") -> Contratos de prestación de servicios profesionales y de apoyo a la gestión | AJ104: =IFERROR(VLOOKUP(E104,modal,1,FALSE),"NO") -> Contratación directa | AK104: =IFERROR(VLOOKUP(F104,Tipo!$C$12:$C$27,1,FALSE),"NO") -> Prestación de servicios profesionales y de apoyo a la gestión, o para la ejecución de trabajos artísticos que sólo puedan encomendarse a determinadas personas naturales; | AL104: =IFERROR(VLOOKUP(H104,afectacion,1,FALSE),"NO") -> Inversión | AM104: =IFERROR(VLOOKUP(I104,programa,1,FALSE),"NO") -> 45
A105: 101 | B105: 2019 | C105: FDLUSA-CPS-101-2019 | D105: Contratos de prestación de servicios profesionales y de apoyo a la gestión | E105: Contratación directa | F105: Prestación de servicios profesionales y de apoyo a la gestión, o para la ejecución de trabajos artísticos que sólo puedan encomendarse a determinadas personas naturales; | G105: PRESTAR SERVICIOS PROFESIONALES PARA APOYAR JURÍDICAMENTE LA EJECUCIÓN DE LAS ACCIONES REQUERIDAS PARA LA DEPURACIÓN DE LAS ACTUACIONES ADMINISTRATIVAS QUE CURSAN EN LA ALCALDÍA LOCA | H105: Inversión | I105: 45 | J105: =IF(ISERROR(VLOOKUP(I105,Eje_Pilar!$C$2:$E$47,2,FALSE))," ",VLOOKUP(I105,Eje_Pilar!$C$2:$E$47,2,FALSE)) -> Gobernanza e influencia local, regional e internacional | K105: =IF(ISERROR(VLOOKUP(I105,Eje_Pilar!$C$2:$E$47,3,FALSE))," ",VLOOKUP(I105,Eje_Pilar!$C$2:$E$47,3,FALSE)) -> Eje Transversal 4 Gobierno Legitimo, Fortalecimiento Local y Eficiencia | L105: 3-3-1-15-07-45-1574-000 | M105: 39618949 | N105: YASMIN CORTES CANTOR | O105: 45550000 | R105: 1 | S105: 1822000 | T105: 47372000 | U105: 44942667 | V105: 2019-02-19 | W105: 2019-02-20 | X105: 2019-12-19 | Y105: 300 | Z105: 12 | AC105: X | AF105: 0.9487179558 | AH105: =IF(SUMPRODUCT((A$14:A105=A105)*(B$14:B105=B105)*(C$14:C105=C105))>1,0,1) -> 1 | AI105: Contratos de prestación de servicios profesionales y de apoyo a la gestión | AJ105: Contratación directa | AK105: =IFERROR(VLOOKUP(F105,Tipo!$C$12:$C$27,1,FALSE),"NO") -> Prestación de servicios profesionales y de apoyo a la gestión, o para la ejecución de trabajos artísticos que sólo puedan encomendarse a determinadas personas naturales; | AL105: Inversión | AM105: 45
A106: 102 | B106: 2019 | C106: FDLUSA-CPS-102-2019 | D106: Contratos de prestación de servicios profesionales y de apoyo a la gestión | E106: Contratación directa | F106: Prestación de servicios profesionales y de apoyo a la gestión, o para la ejecución de trabajos artísticos que sólo puedan encomendarse a determinadas personas naturales; | G106: PRESTAR LOS SERVICIOS PROFESIONALES A LA ALCALDÍA LOCAL DE USAQUÉN, PARA APOYAR EL ÁREA DE INFRAESTRUCTURA ENFOCADO AL SECTOR DE PARQUES, ZONAS DE RECREACION, EMBELLECIMIENTO Y ORNATO QUE SE ADELANTEN EN LA LOCALIDAD Y ACTIVIDADES CONEXAS, MEDIANTE LA REALIZACIÓN DE PROCESOS TÉCNICOS Y DE ATENCIÓN A LA CIUDADANÍA, QUE SE ENCUENTREN CONTEMPLADOS EN EL PLAN DE DESARROLLO “USACA MEJOR PARA TODOS, USAQUÉN CUENTA CONTIGO 2017-2020 | H106: Inversión | I106: 17 | J106: =IF(ISERROR(VLOOKUP(I106,Eje_Pilar!$C$2:$E$47,2,FALSE))," ",VLOOKUP(I106,Eje_Pilar!$C$2:$E$47,2,FALSE)) -> Espacio público, derecho de todos | K106: =IF(ISERROR(VLOOKUP(I106,Eje_Pilar!$C$2:$E$47,3,FALSE))," ",VLOOKUP(I106,Eje_Pilar!$C$2:$E$47,3,FALSE)) -> Pilar 2 Democracía Urbana | L106: 3-3-1-15-02-17-1567-000 | M106: 1020805835 | N106: LAURA JULIANA BAQUERO PERILLA | O106: 33200000 | R106: 2 | S106: 16600000 | T106: 49800000 | U106: 40670000 | V106: 2019-02-21 | W106: 2019-02-22 | X106: 2019-10-21 | Y106: 240 | Z106: 69 | AC106: X | AF106: 0.8166666667 | AH106: =IF(SUMPRODUCT((A$14:A106=A106)*(B$14:B106=B106)*(C$14:C106=C106))>1,0,1) -> 1 | AI106: Contratos de prestación de servicios profesionales y de apoyo a la gestión | AJ106: Contratación directa | AK106: =IFERROR(VLOOKUP(F106,Tipo!$C$12:$C$27,1,FALSE),"NO") -> Prestación de servicios profesionales y de apoyo a la gestión, o para la ejecución de trabajos artísticos que sólo puedan encomendarse a determinadas personas naturales; | AL106: Inversión | AM106: 17
A107: 103 | B107: 2019 | C107: FDLUSA-CPS-103-2019 | D107: Contratos de prestación de servicios profesionales y de apoyo a la gestión | E107: Contratación directa | F107: Prestación de servicios profesionales y de apoyo a la gestión, o para la ejecución de trabajos artísticos que sólo puedan encomendarse a determinadas personas naturales; | G107: PRESTAR LOS SERVICIOS DE APOYO A LA GESTIÓN DE LA ALCALDÍA LOCAL EN EL DESARROLLO DE ACTIVIDADES REALACIONADAS CON EQUIDAD DE GENERO, ACOMPAÑAMIENTO A LA CIUDADANÍA,PARTICIPACIÓN EN LOS PROCESOS DE PREVENCIÓN DE LAS CONTRAVENCIONES EN LA LOCALIDAD, IMPULSO Y DINAMIZACIÓN PARA LA EJECUCIÓN DE LOS PROYECTOS QUE HACEN PARTE DEL PLAN DE DESARROLLO “USACA MEJOR PARA TODOS, USAQUÉN CUENTA CONTIGO 2017-2020”. | H107: Inversión | I107: 20 | J107: =IF(ISERROR(VLOOKUP(I107,Eje_Pilar!$C$2:$E$47,2,FALSE))," ",VLOOKUP(I107,Eje_Pilar!$C$2:$E$47,2,FALSE)) -> Fortalecimiento del Sistema de Protección Integral a Mujeres Víctimas de Violencia - SOFIA | K107: =IF(ISERROR(VLOOKUP(I107,Eje_Pilar!$C$2:$E$47,3,FALSE))," ",VLOOKUP(I107,Eje_Pilar!$C$2:$E$47,3,FALSE)) -> Pilar 3 Construcción de Comunidad y Cultura Ciudadana | L107: 3-3-1-15-03-20-1577-000 | M107: 39792131 | N107: MARYLINYER LOZANO MENA | O107: 18960000 | R107: 1 | S107: 4740000 | T107: 23700000 | U107: 22515000 | V107: 2019-02-26 | W107: 2019-02-01 | X107: 2019-10-31 | Y107: 240 | Z107: 60 | AC107: X | AF107: 0.95 | AH107: =IF(SUMPRODUCT((A$14:A107=A107)*(B$14:B107=B107)*(C$14:C107=C107))>1,0,1) -> 1 | AI107: Contratos de prestación de servicios profesionales y de apoyo a la gestión | AJ107: Contratación directa | AK107: =IFERROR(VLOOKUP(F107,Tipo!$C$12:$C$27,1,FALSE),"NO") -> Prestación de servicios profesionales y de apoyo a la gestión, o para la ejecución de trabajos artísticos que sólo puedan encomendarse a determinadas personas naturales; | AL107: Inversión | AM107: 20
A108: 104 | B108: 2019 | C108: FDLUSA-CPS-104-2019 | D108: Contratos de prestación de servicios profesionales y de apoyo a la gestión | E108: Contratación directa | F108: Prestación de servicios profesionales y de apoyo a la gestión, o para la ejecución de trabajos artísticos que sólo puedan encomendarse a determinadas personas naturales; | G108: PRESTAR LOS SERVICIOS PROFESIONALES PARA APOYAR JURÍDICAMENTE LA EJECUCIÓN DE LAS ACCIONES REQUERIDAS PARA EL TRÁMITE E IMPULSO PROCESAL DE LAS ACTUACIONES CONTRAVENCIONALES Y/O QUERELLAS QUE CURSEN EN LAS INSPECCIONES DE POLICÍA DE LA LOCALIDAD | H108: Inversión | I108: 45 | J108: =IF(ISERROR(VLOOKUP(I108,Eje_Pilar!$C$2:$E$47,2,FALSE))," ",VLOOKUP(I108,Eje_Pilar!$C$2:$E$47,2,FALSE)) -> Gobernanza e influencia local, regional e internacional | K108: =IF(ISERROR(VLOOKUP(I108,Eje_Pilar!$C$2:$E$47,3,FALSE))," ",VLOOKUP(I108,Eje_Pilar!$C$2:$E$47,3,FALSE)) -> Eje Transversal 4 Gobierno Legitimo, Fortalecimiento Local y Eficiencia | L108: 3-3-1-15-07-45-1574-000 | M108: 73201582 | N108: ANGEL SAID VASQUEZ PARIA | O108: 45550000 | R108: 1 | S108: 9110000 | T108: 54660000 | U108: 43879833 | V108: 2019-02-21 | W108: 2019-02-27 | X108: 2019-12-26 | Y108: 300 | Z108: 60 | AC108: X | AF108: 0.8027777717 | AH108: =IF(SUMPRODUCT((A$14:A108=A108)*(B$14:B108=B108)*(C$14:C108=C108))>1,0,1) -> 1 | AI108: Contratos de prestación de servicios profesionales y de apoyo a la gestión | AJ108: Contratación directa | AK108: =IFERROR(VLOOKUP(F108,Tipo!$C$12:$C$27,1,FALSE),"NO") -> Prestación de servicios profesionales y de apoyo a la gestión, o para la ejecución de trabajos artísticos que sólo puedan encomendarse a determinadas personas naturales; | AL108: Inversión | AM108: 45
A109: 105 | B109: 2019 | C109: FDLUSA-CPS-105-2019 | D109: Contratos de prestación de servicios profesionales y de apoyo a la gestión | E109: Contratación directa | F109: Prestación de servicios profesionales y de apoyo a la gestión, o para la ejecución de trabajos artísticos que sólo puedan encomendarse a determinadas personas naturales; | G109: “PRESTAR LOS SERVICIOS PROFESIONALES A LA ALCALDIA LOCAL DE USAQUEN EN LAS ACTIVIDADES DE ACOMPAÑAMIENTO AL DESARROLLO DE VISITAS TÉCNICAS, PARA IDENTIFICAR Y HACER SEGUIMIENTO A LOS ASENTAMIENTOS HUMANOS EN EL EJERCICIO DE LOS PROCESOS DE INSPECCIÓN, VIGILANCIA Y CONTROL QUE GARANTICEN LA PROTECCIÓN DE LA RESERVA FORESTAL PROTECTORA BOSQUE ORIENTAL, POLIGONOS DE MONITOREO Y DEMAS ZONAS DE ESPECIAL PROTECCION DEL TERRITORIO, EN LA LOCALIDAD DE USAQUÉN”. | H109: Inversión | I109: 45 | J109: =IF(ISERROR(VLOOKUP(I109,Eje_Pilar!$C$2:$E$47,2,FALSE))," ",VLOOKUP(I109,Eje_Pilar!$C$2:$E$47,2,FALSE)) -> Gobernanza e influencia local, regional e internacional | K109: =IF(ISERROR(VLOOKUP(I109,Eje_Pilar!$C$2:$E$47,3,FALSE))," ",VLOOKUP(I109,Eje_Pilar!$C$2:$E$47,3,FALSE)) -> Eje Transversal 4 Gobierno Legitimo, Fortalecimiento Local y Eficiencia | L109: 3-3-1-15-07-45-1574-000 | M109: 79953156 | N109: YEBRAIL FERNANDO VARGAS BAYONA | O109: 53850000 | T109: 53850000 | U109: 50260000 | V109: 2019-02-20 | W109: 2019-02-21 | X109: 2019-12-20 | Y109: 300 | AC109: X | AF109: 0.9333333333 | AH109: =IF(SUMPRODUCT((A$14:A109=A109)*(B$14:B109=B109)*(C$14:C109=C109))>1,0,1) -> 1 | AI109: Contratos de prestación de servicios profesionales y de apoyo a la gestión | AJ109: Contratación directa | AK109: =IFERROR(VLOOKUP(F109,Tipo!$C$12:$C$27,1,FALSE),"NO") -> Prestación de servicios profesionales y de apoyo a la gestión, o para la ejecución de trabajos artísticos que sólo puedan encomendarse a determinadas personas naturales; | AL109: Inversión | AM109: 45
A110: 107 | B110: 2019 | C110: FDLUSA-CPS-107-2019 | D110: Contratos de prestación de servicios profesionales y de apoyo a la gestión | E110: Contratación directa | F110: Prestación de servicios profesionales y de apoyo a la gestión, o para la ejecución de trabajos artísticos que sólo puedan encomendarse a determinadas personas naturales; | G110: PRESTAR LOS SERVICIOS DE APOYO A LA GESTIÓN DE LA ALCALDÍA LOCAL EN EL DESARROLLO DE ACTIVIDADES DE PARTICIPACION CIUDADANA, ACOMPAÑAMIENTO A LA CIUDADANÍA, PARTICIPACIÓN EN LOS PROCESOS DE PREVENCIÓN DE LAS CONTRAVENCIONES EN LA LOCALIDAD, IMPULSO Y DINAMIZACIÓN PARA LA EJECUCIÓN DE LOS PROYECTOS QUE HACEN PARTE DEL PLAN DE DESARROLLO “USACA MEJOR PARA TODOS, USAQUÉN CUENTA CONTIGO 2017-2020 | H110: Inversión | I110: 45 | J110: =IF(ISERROR(VLOOKUP(I110,Eje_Pilar!$C$2:$E$47,2,FALSE))," ",VLOOKUP(I110,Eje_Pilar!$C$2:$E$47,2,FALSE)) -> Gobernanza e influencia local, regional e internacional | K110: =IF(ISERROR(VLOOKUP(I110,Eje_Pilar!$C$2:$E$47,3,FALSE))," ",VLOOKUP(I110,Eje_Pilar!$C$2:$E$47,3,FALSE)) -> Eje Transversal 4 Gobierno Legitimo, Fortalecimiento Local y Eficiencia | L110: 3-3-1-15-07-45-1573-000 | M110: 52249736 | N110: EUNICE FUENTES ALFONSO | O110: 18960000 | R110: 2 | S110: 9322000 | T110: 28282000 | U110: 22752000 | V110: 2019-02-21 | W110: 2019-02-28 | X110: 2019-10-31 | Y110: 240 | Z110: 63 | AC110: X | AF110: 0.8044692737 | AH110: =IF(SUMPRODUCT((A$14:A110=A110)*(B$14:B110=B110)*(C$14:C110=C110))>1,0,1) -> 1 | AI110: Contratos de prestación de servicios profesionales y de apoyo a la gestión | AJ110: Contratación directa | AK110: =IFERROR(VLOOKUP(F110,Tipo!$C$12:$C$27,1,FALSE),"NO") -> Prestación de servicios profesionales y de apoyo a la gestión, o para la ejecución de trabajos artísticos que sólo puedan encomendarse a determinadas personas naturales; | AL110: Inversión | AM110: 45
A111: 108 | B111: 2019 | C111: FDLUSA-CPS-108-2019 | D111: Contratos de prestación de servicios profesionales y de apoyo a la gestión | E111: Contratación directa | F111: Prestación de servicios profesionales y de apoyo a la gestión, o para la ejecución de trabajos artísticos que sólo puedan encomendarse a determinadas personas naturales; | G111: PRESTAR SERVICIOS PROFESIONALES PARA APOYAR JURÍDICAMENTE LA EJECUCIÓN DE LAS ACCIONES REQUERIDAS PARA LA DEPURACIÓN DE LAS ACTUACIONES ADMINISTRATIVAS QUE CURSAN EN LA ALCALDÍA LOCAL | H111: Inversión | I111: 45 | J111: =IF(ISERROR(VLOOKUP(I111,Eje_Pilar!$C$2:$E$47,2,FALSE))," ",VLOOKUP(I111,Eje_Pilar!$C$2:$E$47,2,FALSE)) -> Gobernanza e influencia local, regional e internacional | K111: =IF(ISERROR(VLOOKUP(I111,Eje_Pilar!$C$2:$E$47,3,FALSE))," ",VLOOKUP(I111,Eje_Pilar!$C$2:$E$47,3,FALSE)) -> Eje Transversal 4 Gobierno Legitimo, Fortalecimiento Local y Eficiencia | L111: 3-3-1-15-07-45-1574-000 | M111: 41702832 | N111: ANA BEATRIZ GARCÍA HERNÁNDEZ | O111: 36440000 | R111: 2 | S111: 14272333 | T111: 50712333 | U111: 41602333 | V111: 2019-02-21 | W111: 2019-02-27 | X111: 2019-10-27 | Y111: 240 | Z111: 63 | AC111: X | AF111: 0.8203592803 | AH111: =IF(SUMPRODUCT((A$14:A111=A111)*(B$14:B111=B111)*(C$14:C111=C111))>1,0,1) -> 1 | AI111: Contratos de prestación de servicios profesionales y de apoyo a la gestión | AJ111: Contratación directa | AK111: =IFERROR(VLOOKUP(F111,Tipo!$C$12:$C$27,1,FALSE),"NO") -> Prestación de servicios profesionales y de apoyo a la gestión, o para la ejecución de trabajos artísticos que sólo puedan encomendarse a determinadas personas naturales; | AL111: Inversión | AM111: 45
A112: 109 | B112: 2019 | C112: FDLUSA-CPS-109-2019 | D112: Contratos de prestación de servicios profesionales y de apoyo a la gestión | E112: Contratación directa | F112: Prestación de servicios profesionales y de apoyo a la gestión, o para la ejecución de trabajos artísticos que sólo puedan encomendarse a determinadas personas naturales; | G112: PRESTAR SERVICIOS DE APOYO A LA GESTIÓN DE LA JUNTA ADMINISTRADORA LOCAL DE USAQUÉN PARA EL DESARROLLO DE LAS ACTIVIDADES REQUERIDAS PARA EL NORMAL FUNCIONAMIENTO DE LA CORPORACIÓN | H112: Inversión | I112: 45 | J112: =IF(ISERROR(VLOOKUP(I112,Eje_Pilar!$C$2:$E$47,2,FALSE))," ",VLOOKUP(I112,Eje_Pilar!$C$2:$E$47,2,FALSE)) -> Gobernanza e influencia local, regional e internacional | K112: =IF(ISERROR(VLOOKUP(I112,Eje_Pilar!$C$2:$E$47,3,FALSE))," ",VLOOKUP(I112,Eje_Pilar!$C$2:$E$47,3,FALSE)) -> Eje Transversal 4 Gobierno Legitimo, Fortalecimiento Local y Eficiencia | L112: 3-3-1-15-07-45-1574-000 | M112: 1010200074 | N112: ERIKA SOLANYE LÓPEZ CÁRDENAS | O112: 23700000 | R112: 1 | S112: 4740000 | T112: 28440000 | U112: 22910000 | V112: 2019-02-21 | W112: 2019-02-26 | X112: 2019-12-26 | Y112: 300 | Z112: 60 | AC112: X | AF112: 0.8055555556 | AH112: =IF(SUMPRODUCT((A$14:A112=A112)*(B$14:B112=B112)*(C$14:C112=C112))>1,0,1) -> 1 | AI112: Contratos de prestación de servicios profesionales y de apoyo a la gestión | AJ112: Contratación directa | AK112: =IFERROR(VLOOKUP(F112,Tipo!$C$12:$C$27,1,FALSE),"NO") -> Prestación de servicios profesionales y de apoyo a la gestión, o para la ejecución de trabajos artísticos que sólo puedan encomendarse a determinadas personas naturales; | AL112: Inversión | AM112: 45
A113: 110 | B113: 2019 | C113: FDLUSA-CPS-110-2019 | D113: Contratos de prestación de servicios profesionales y de apoyo a la gestión | E113: Contratación directa | F113: Prestación de servicios profesionales y de apoyo a la gestión, o para la ejecución de trabajos artísticos que sólo puedan encomendarse a determinadas personas naturales; | G113: PRESTAR LOS SERVICIOS PROFESIONALES A LA ALCALDÍA LOCAL DE USAQUEN COMO APOYO EN LA COORDINACIÓN Y ACOMPAÑAMIENTO A LA EJECUCIÓN DE LOS PROYECTOS DE FORTALECIMIENTO DEL SISTEMA DE PROTECCIÓN INTEGRAL A MUJERES Y TEMAS DE GENERO, CONTEMPLADOS EN EL PLAN DE DESARROLLO LOCAL “USACA MEJOR PARA TODOS, USAQUÉN CUENTA CONTIGO 2017-2020”. | H113: Inversión | I113: 20 | J113: =IF(ISERROR(VLOOKUP(I113,Eje_Pilar!$C$2:$E$47,2,FALSE))," ",VLOOKUP(I113,Eje_Pilar!$C$2:$E$47,2,FALSE)) -> Fortalecimiento del Sistema de Protección Integral a Mujeres Víctimas de Violencia - SOFIA | K113: =IF(ISERROR(VLOOKUP(I113,Eje_Pilar!$C$2:$E$47,3,FALSE))," ",VLOOKUP(I113,Eje_Pilar!$C$2:$E$47,3,FALSE)) -> Pilar 3 Construcción de Comunidad y Cultura Ciudadana | L113: 3-3-1-15-03-20-1577-000 | M113: 52453676 | N113: ERIKA HUARTOS CASTAÑEDA/ ADEY JELITZHA SANABRIA CASTILLO | O113: 54815000 | R113: 1 | S113: 3462000 | T113: 58277000 | U113: 58277000 | V113: 2019-03-14 | W113: 2019-03-14 | X113: 2019-12-31 | Y113: 285 | Z113: 30 | AC113: X | AF113: 1 | AH113: =IF(SUMPRODUCT((A$14:A113=A113)*(B$14:B113=B113)*(C$14:C113=C113))>1,0,1) -> 1 | AI113: Contratos de prestación de servicios profesionales y de apoyo a la gestión | AJ113: Contratación directa | AK113: =IFERROR(VLOOKUP(F113,Tipo!$C$12:$C$27,1,FALSE),"NO") -> Prestación de servicios profesionales y de apoyo a la gestión, o para la ejecución de trabajos artísticos que sólo puedan encomendarse a determinadas personas naturales; | AL113: Inversión | AM113: 20
A114: 111 | B114: 2019 | C114: FDLUSA-CPS-111-2019 | D114: Contratos de prestación de servicios profesionales y de apoyo a la gestión | E114: Contratación directa | F114: Prestación de servicios profesionales y de apoyo a la gestión, o para la ejecución de trabajos artísticos que sólo puedan encomendarse a determinadas personas naturales; | G114: PRESTAR LOS SERVICIOS DE APOYO A LA GESTIÓN PARA EL CARGUE DE INFORMACIÓN AL APLICATIVO SI – ACTÚA, DE LAS ACTUACIONES ADMINISTRATIVAS ADELANTADAS EN EL ÁREA DE GESTIÓN POLICIVA DE LA ALCALDÍA LOCAL DE USAQUÉN | H114: Inversión | I114: 45 | J114: =IF(ISERROR(VLOOKUP(I114,Eje_Pilar!$C$2:$E$47,2,FALSE))," ",VLOOKUP(I114,Eje_Pilar!$C$2:$E$47,2,FALSE)) -> Gobernanza e influencia local, regional e internacional | K114: =IF(ISERROR(VLOOKUP(I114,Eje_Pilar!$C$2:$E$47,3,FALSE))," ",VLOOKUP(I114,Eje_Pilar!$C$2:$E$47,3,FALSE)) -> Eje Transversal 4 Gobierno Legitimo, Fortalecimiento Local y Eficiencia | L114: 3-3-1-15-07-45-1574-000 | M114: 37279092 | N114: YAMIRA DUARTE CUADROS | O114: 18960000 | R114: 2 | S114: 9480000 | T114: 28440000 | U114: 22831000 | V114: 2019-02-22 | W114: 2019-02-27 | X114: 2019-10-26 | Y114: 240 | Z114: 65 | AC114: X | AF114: 0.8027777778 | AH114: =IF(SUMPRODUCT((A$14:A114=A114)*(B$14:B114=B114)*(C$14:C114=C114))>1,0,1) -> 1 | AI114: Contratos de prestación de servicios profesionales y de apoyo a la gestión | AJ114: Contratación directa | AK114: =IFERROR(VLOOKUP(F114,Tipo!$C$12:$C$27,1,FALSE),"NO") -> Prestación de servicios profesionales y de apoyo a la gestión, o para la ejecución de trabajos artísticos que sólo puedan encomendarse a determinadas personas naturales; | AL114: Inversión | AM114: 45
A115: 112 | B115: 2019 | C115: FDLUSA-CPS-112-2019 | D115: Contratos de prestación de servicios profesionales y de apoyo a la gestión | E115: Contratación directa | F115: Prestación de servicios profesionales y de apoyo a la gestión, o para la ejecución de trabajos artísticos que sólo puedan encomendarse a determinadas personas naturales; | G115: PRESTAR LOS SERVICIOS PROFESIONALES AL ÁREA GESTIÓN POLICIVA, EN EL TRÁMITE Y RESPUESTA DE DERECHOS DE PETICIÓN DE FORMA INTEGRAL, QUE SEAN PRESENTADOS A LA ALCALDÍA LOCAL DE USAQUÉN PROVENIENTES DE LA COMUNIDAD Y/O DEMÁS ENTIDADES”. | H115: Inversión | I115: 45 | J115: =IF(ISERROR(VLOOKUP(I115,Eje_Pilar!$C$2:$E$47,2,FALSE))," ",VLOOKUP(I115,Eje_Pilar!$C$2:$E$47,2,FALSE)) -> Gobernanza e influencia local, regional e internacional | K115: =IF(ISERROR(VLOOKUP(I115,Eje_Pilar!$C$2:$E$47,3,FALSE))," ",VLOOKUP(I115,Eje_Pilar!$C$2:$E$47,3,FALSE)) -> Eje Transversal 4 Gobierno Legitimo, Fortalecimiento Local y Eficiencia | L115: 3-3-1-15-07-45-1574-000 | M115: 52063333 | N115: LOLA ELVIRA FRANCO SAAVEDRA | O115: 36440000 | R115: 2 | S115: 17612666 | T115: 54052666 | U115: 42665167 | V115: 2019-02-28 | W115: 2019-03-05 | X115: 2019-11-04 | Y115: 240 | Z115: 56 | AC115: X | AF115: 0.7893258586 | AH115: =IF(SUMPRODUCT((A$14:A115=A115)*(B$14:B115=B115)*(C$14:C115=C115))>1,0,1) -> 1 | AI115: Contratos de prestación de servicios profesionales y de apoyo a la gestión | AJ115: Contratación directa | AK115: =IFERROR(VLOOKUP(F115,Tipo!$C$12:$C$27,1,FALSE),"NO") -> Prestación de servicios profesionales y de apoyo a la gestión, o para la ejecución de trabajos artísticos que sólo puedan encomendarse a determinadas personas naturales; | AL115: Inversión | AM115: 45
A116: 113 | B116: 2019 | C116: FDLUSA-CPS-113-2019 | D116: Contratos de prestación de servicios profesionales y de apoyo a la gestión | E116: Contratación directa | F116: Prestación de servicios profesionales y de apoyo a la gestión, o para la ejecución de trabajos artísticos que sólo puedan encomendarse a determinadas personas naturales; | G116: PRESTAR LOS SERVICIOS PROFESIONALES PARA APOYAR JURÍDICAMENTE LA EJECUCIÓN DE LAS ACCIONES REQUERIDAS PARA EL TRÁMITE E IMPULSO PROCESAL DE LAS ACTUACIONES CONTRAVENCIONALES Y/O QUERELLAS QUE CURSEN EN LAS INSPECCIONES DE POLICÍA DE LA LOCALIDAD | H116: Inversión | I116: 45 | J116: =IF(ISERROR(VLOOKUP(I116,Eje_Pilar!$C$2:$E$47,2,FALSE))," ",VLOOKUP(I116,Eje_Pilar!$C$2:$E$47,2,FALSE)) -> Gobernanza e influencia local, regional e internacional | K116: =IF(ISERROR(VLOOKUP(I116,Eje_Pilar!$C$2:$E$47,3,FALSE))," ",VLOOKUP(I116,Eje_Pilar!$C$2:$E$47,3,FALSE)) -> Eje Transversal 4 Gobierno Legitimo, Fortalecimiento Local y Eficiencia | L116: 3-3-1-15-07-45-1574-000 | M116: 1076654950 | N116: NELSON JOHANNY RODRIGUEZ CONTRERAS | O116: 45550000 | R116: 1 | S116: 9110000 | T116: 54660000 | U116: 40995000 | V116: 2019-02-25 | W116: 2019-03-01 | X116: 2019-12-30 | Y116: 300 | Z116: 60 | AC116: X | AF116: 0.75 | AH116: =IF(SUMPRODUCT((A$14:A116=A116)*(B$14:B116=B116)*(C$14:C116=C116))>1,0,1) -> 1 | AI116: Contratos de prestación de servicios profesionales y de apoyo a la gestión | AJ116: Contratación directa | AK116: =IFERROR(VLOOKUP(F116,Tipo!$C$12:$C$27,1,FALSE),"NO") -> Prestación de servicios profesionales y de apoyo a la gestión, o para la ejecución de trabajos artísticos que sólo puedan encomendarse a determinadas personas naturales; | AL116: Inversión | AM116: 45
A117: 114 | B117: 2019 | C117: FDLUSA-CPS-114-2019 | D117: Contratos de prestación de servicios profesionales y de apoyo a la gestión | E117: Contratación directa | F117: Prestación de servicios profesionales y de apoyo a la gestión, o para la ejecución de trabajos artísticos que sólo puedan encomendarse a determinadas personas naturales; | G117: PRESTAR LOS SERVICIOS PROFESIONALES PARA APOYAR JURÍDICAMENTE LA EJECUCIÓN DE LAS ACCIONES REQUERIDAS PARA EL TRÁMITE E IMPULSO PROCESAL DE LAS ACTUACIONES CONTRAVENCIONALES Y/O QUERELLAS QUE CURSEN EN LAS INSPECCIONES DE POLICÍA DE LA LOCALIDAD | H117: Inversión | I117: 45 | J117: =IF(ISERROR(VLOOKUP(I117,Eje_Pilar!$C$2:$E$47,2,FALSE))," ",VLOOKUP(I117,Eje_Pilar!$C$2:$E$47,2,FALSE)) -> Gobernanza e influencia local, regional e internacional | K117: =IF(ISERROR(VLOOKUP(I117,Eje_Pilar!$C$2:$E$47,3,FALSE))," ",VLOOKUP(I117,Eje_Pilar!$C$2:$E$47,3,FALSE)) -> Eje Transversal 4 Gobierno Legitimo, Fortalecimiento Local y Eficiencia | L117: 3-3-1-15-07-45-1574-000 | M117: 52114539 | N117: MARLY ROCIO SUAREZ VASQUEZ | O117: 45550000 | R117: 1 | S117: 9110000 | T117: 54660000 | U117: 43272500 | V117: 2019-02-26 | W117: 2019-03-01 | X117: 2019-12-30 | Y117: 300 | Z117: 60 | AC117: X | AF117: 0.7916666667 | AH117: =IF(SUMPRODUCT((A$14:A117=A117)*(B$14:B117=B117)*(C$14:C117=C117))>1,0,1) -> 1 | AI117: Contratos de prestación de servicios profesionales y de apoyo a la gestión | AJ117: Contratación directa | AK117: =IFERROR(VLOOKUP(F117,Tipo!$C$12:$C$27,1,FALSE),"NO") -> Prestación de servicios profesionales y de apoyo a la gestión, o para la ejecución de trabajos artísticos que sólo puedan encomendarse a determinadas personas naturales; | AL117: Inversión | AM117: 45
A118: 115 | B118: 2019 | C118: FDLUSA-CPS-115-2019 | D118: Contratos de prestación de servicios profesionales y de apoyo a la gestión | E118: Contratación directa | F118: Prestación de servicios profesionales y de apoyo a la gestión, o para la ejecución de trabajos artísticos que sólo puedan encomendarse a determinadas personas naturales; | G118: PRESTAR LOS SERVICIOS DE APOYO A LA GESTIÓN DE LA ALCALDÍA LOCAL EN EL SOSTENIMIENTO DE ESPACIOS RECUPERADOS A TRAVÉS DEL DESARROLLO DE ACTIVIDADES DE SEGURIDAD Y CONVIVENCIA, ACOMPAÑAMIENTO A LA CIUDADANÍA, SOPORTE LOGÍSTICO Y DIFUSIÓN DE LAS ACTIVIDADES PROGRAMADAS ZONA DE USAQUÉN CENTRO | H118: Inversión | I118: 19 | J118: =IF(ISERROR(VLOOKUP(I118,Eje_Pilar!$C$2:$E$47,2,FALSE))," ",VLOOKUP(I118,Eje_Pilar!$C$2:$E$47,2,FALSE)) -> Seguridad y convivencia para todos | K118: =IF(ISERROR(VLOOKUP(I118,Eje_Pilar!$C$2:$E$47,3,FALSE))," ",VLOOKUP(I118,Eje_Pilar!$C$2:$E$47,3,FALSE)) -> Pilar 3 Construcción de Comunidad y Cultura Ciudadana | L118: 3-3-1-15-03-19-1569-000 | M118: 1020768822 | N118: NICOLAS HERRERA CASTRO | O118: 15840000 | R118: 2 | S118: 5742000 | T118: 21582000 | U118: 18546000 | V118: 2019-03-01 | W118: 2019-03-04 | X118: 2019-11-03 | Y118: 240 | Z118: 57 | AC118: X | AF118: 0.8593272171 | AH118: =IF(SUMPRODUCT((A$14:A118=A118)*(B$14:B118=B118)*(C$14:C118=C118))>1,0,1) -> 1 | AI118: Contratos de prestación de servicios profesionales y de apoyo a la gestión | AJ118: Contratación directa | AK118: =IFERROR(VLOOKUP(F118,Tipo!$C$12:$C$27,1,FALSE),"NO") -> Prestación de servicios profesionales y de apoyo a la gestión, o para la ejecución de trabajos artísticos que sólo puedan encomendarse a determinadas personas naturales; | AL118: Inversión | AM118: 19
A119: 116 | B119: 2019 | C119: FDLUSA-CI-116-2019-V2 | D119: Contratos interadministrativos | E119: Contratación directa | F119: Contratos interadministrativos | G119: “Aunar esfuerzos técnicos, administrativos, logísticos y financieros entre el Fondo de Desarrollo Local Usaquén y la Orquesta Filarmónica de Bogotá para el desarrollo y continuidad del Centro Filarmónico, como un espacio para el proceso de formación musical implementado por la OFB dirigido a la Localidad” | H119: Inversión | J119: =IF(ISERROR(VLOOKUP(I119,Eje_Pilar!$C$2:$E$47,2,FALSE))," ",VLOOKUP(I119,Eje_Pilar!$C$2:$E$47,2,FALSE)) ->  | K119: =IF(ISERROR(VLOOKUP(I119,Eje_Pilar!$C$2:$E$47,3,FALSE))," ",VLOOKUP(I119,Eje_Pilar!$C$2:$E$47,3,FALSE)) ->  | L119: NO APLICA | M119: 899999282 | N119: ORQUESTA FILARMONICA DE BOGOTA | T119: 0 | V119: 2019-03-07 | W119: 2019-03-07 | X119: 2019-12-30 | Y119: 240 | AC119: X | AF119: - | AH119: =IF(SUMPRODUCT((A$14:A119=A119)*(B$14:B119=B119)*(C$14:C119=C119))>1,0,1) -> 1 | AI119: Contratos interadministrativos | AJ119: Contratación directa | AK119: =IFERROR(VLOOKUP(F119,Tipo!$C$12:$C$27,1,FALSE),"NO") -> Contratos interadministrativos | AL119: Inversión | AM119: NO
A120: 117 | B120: 2019 | C120: FDLUSA-CPS-117-2019 | D120: Contratos de prestación de servicios profesionales y de apoyo a la gestión | E120: Contratación directa | F120: Prestación de servicios profesionales y de apoyo a la gestión, o para la ejecución de trabajos artísticos que sólo puedan encomendarse a determinadas personas naturales; | G120: PRESTAR LOS SERVICIOS PROFESIONALES A LA ALCALDÍA LOCAL DE USAQUÉN, LA REALIZACIÓN DE PROCESOS TÉCNICOS Y ADMINISTRATIVOS NECESARIOS PARA LA EJECUCIÓN LOS PROYECTOS RELACIONADOS CON INFRAESTRUCTURA VIAL, ESPACIOS PUBLICOS Y DEMÁS REALACIONADOS QUE SE ENCUENTREN CONTEMPLADOS EN EL PLAN DE DESARROLLO ¿USACA MEJOR PARA TODOS, USAQUÉN CUENTA CONTIGO 2017-2020 | H120: Inversión | I120: 18 | J120: =IF(ISERROR(VLOOKUP(I120,Eje_Pilar!$C$2:$E$47,2,FALSE))," ",VLOOKUP(I120,Eje_Pilar!$C$2:$E$47,2,FALSE)) -> Mejor movilidad para todos | K120: =IF(ISERROR(VLOOKUP(I120,Eje_Pilar!$C$2:$E$47,3,FALSE))," ",VLOOKUP(I120,Eje_Pilar!$C$2:$E$47,3,FALSE)) -> Pilar 2 Democracía Urbana | L120: 3-3-1-15-02-18-1572-000 | M120: 80038518 | N120: JHON JAIRO POVEDA ORDUÑA | O120: 48000000 | R120: 2 | S120: 22000000 | T120: 70000000 | U120: 55000000 | V120: 2019-03-07 | W120: 2019-03-11 | X120: 2019-10-10 | Y120: 240 | Z120: 60 | AC120: X | AF120: 0.7857142857 | AH120: =IF(SUMPRODUCT((A$14:A120=A120)*(B$14:B120=B120)*(C$14:C120=C120))>1,0,1) -> 1 | AI120: Contratos de prestación de servicios profesionales y de apoyo a la gestión | AJ120: Contratación directa | AK120: =IFERROR(VLOOKUP(F120,Tipo!$C$12:$C$27,1,FALSE),"NO") -> Prestación de servicios profesionales y de apoyo a la gestión, o para la ejecución de trabajos artísticos que sólo puedan encomendarse a determinadas personas naturales; | AL120: Inversión | AM120: 18
A121: 118 | B121: 2019 | C121: FDLUSA-CPS-118-2019 | D121: Contratos de prestación de servicios profesionales y de apoyo a la gestión | E121: Contratación directa | F121: Prestación de servicios profesionales y de apoyo a la gestión, o para la ejecución de trabajos artísticos que sólo puedan encomendarse a determinadas personas naturales; | G121: PRESTAR LOS SERVICIOS PROFESIONALES A LA ALCALDÍA LOCAL DE USAQUÉN PARA LA REALIZACION DE ACTIVIDADES ADMINISTRATIVAS Y JURIDICAS NECESARIAS PARA LA EJECUCIÓN DEL PROYECTO LEGALÍZATE CONTEMPLADO EN EL PLAN DE DESARROLLO LOCAL “USACA MEJOR PARA TODOS, USAQUÉN CUENTA CONTIGO 2017-2020 | H121: Inversión | I121: 15 | J121: =IF(ISERROR(VLOOKUP(I121,Eje_Pilar!$C$2:$E$47,2,FALSE))," ",VLOOKUP(I121,Eje_Pilar!$C$2:$E$47,2,FALSE)) -> Recuperación, incorporación, vida urbana y control de la ilegalidad | K121: =IF(ISERROR(VLOOKUP(I121,Eje_Pilar!$C$2:$E$47,3,FALSE))," ",VLOOKUP(I121,Eje_Pilar!$C$2:$E$47,3,FALSE)) -> Pilar 2 Democracía Urbana | L121: 3-3-1-15-02-15-1568-000 | M121: 20449811 | N121: ANA CECILIA PRIETO SALCEDO | O121: 41600000 | R121: 2 | S121: 19066667 | T121: 60666667 | U121: 47666667 | V121: 2019-03-07 | W121: 2019-03-11 | X121: 2019-10-10 | Y121: 240 | Z121: 50 | AC121: X | AF121: 0.7857142869 | AH121: =IF(SUMPRODUCT((A$14:A121=A121)*(B$14:B121=B121)*(C$14:C121=C121))>1,0,1) -> 1 | AI121: Contratos de prestación de servicios profesionales y de apoyo a la gestión | AJ121: Contratación directa | AK121: =IFERROR(VLOOKUP(F121,Tipo!$C$12:$C$27,1,FALSE),"NO") -> Prestación de servicios profesionales y de apoyo a la gestión, o para la ejecución de trabajos artísticos que sólo puedan encomendarse a determinadas personas naturales; | AL121: Inversión | AM121: 15
A122: 119 | B122: 2019 | C122: FDLUSA-CPS-119-2019 | D122: Contratos de prestación de servicios profesionales y de apoyo a la gestión | E122: Contratación directa | F122: Prestación de servicios profesionales y de apoyo a la gestión, o para la ejecución de trabajos artísticos que sólo puedan encomendarse a determinadas personas naturales; | G122: PRESTAR LOS SERVICIOS PROFESIONALES A LA ALCALDÍA LOCAL DE USAQUÉN EN LA REALIZACION DE PROCESOS TÉCNICOS Y ADMINISTRATIVOS NECESARIOS PARA LA EJECUCIÓN LOS PROYECTOS RELACIONADOS CON INFRAESTRUCTURA VIAL, ESPACIOS PUBLICOS Y DEMÁS REALACIONADOS QUE SE ENCUENTREN CONTEMPLADOS EN EL PLAN DE DESARROLLO “USACA MEJOR PARA TODOS, USAQUÉN CUENTA CONTIGO 2017-2020”. | H122: Inversión | I122: 18 | J122: =IF(ISERROR(VLOOKUP(I122,Eje_Pilar!$C$2:$E$47,2,FALSE))," ",VLOOKUP(I122,Eje_Pilar!$C$2:$E$47,2,FALSE)) -> Mejor movilidad para todos | K122: =IF(ISERROR(VLOOKUP(I122,Eje_Pilar!$C$2:$E$47,3,FALSE))," ",VLOOKUP(I122,Eje_Pilar!$C$2:$E$47,3,FALSE)) -> Pilar 2 Democracía Urbana | L122: 3-3-1-15-02-18-1572-000 | M122: 80183346 | N122: SAEN RODRIGO PUNTES BQUERO | O122: 48000000 | R122: 2 | S122: 21400000 | T122: 69400000 | U122: 54400000 | V122: 2019-03-08 | W122: 2019-03-13 | X122: 2019-11-10 | Y122: 240 | Z122: 47 | AC122: X | AF122: 0.7838616715 | AH122: =IF(SUMPRODUCT((A$14:A122=A122)*(B$14:B122=B122)*(C$14:C122=C122))>1,0,1) -> 1 | AI122: Contratos de prestación de servicios profesionales y de apoyo a la gestión | AJ122: Contratación directa | AK122: =IFERROR(VLOOKUP(F122,Tipo!$C$12:$C$27,1,FALSE),"NO") -> Prestación de servicios profesionales y de apoyo a la gestión, o para la ejecución de trabajos artísticos que sólo puedan encomendarse a determinadas personas naturales; | AL122: Inversión | AM122: 18
A123: 120 | B123: 2019 | C123: FDLUSA-MC-01-2019 | D123: Contratos de prestación de servicios | E123: Contratación mínima cuantia | F123: No aplica | G123: ADQUISICIÓN DE UNA (01) CERTIFICACION DE FIRMA DIGITAL PARA EL FONDO DE DESARROLLO LOCAL DE USAQUEN | H123: Funcionamiento | J123: =IF(ISERROR(VLOOKUP(I123,Eje_Pilar!$C$2:$E$47,2,FALSE))," ",VLOOKUP(I123,Eje_Pilar!$C$2:$E$47,2,FALSE)) ->  | K123: =IF(ISERROR(VLOOKUP(I123,Eje_Pilar!$C$2:$E$47,3,FALSE))," ",VLOOKUP(I123,Eje_Pilar!$C$2:$E$47,3,FALSE)) ->  | L123: 3-1-2-02-01-03-0005-000 | M123: 830084433 | N123: SOCIEDAD CAMERAL DE CERTIFICACION DIGITAL CERTICAMARA S A SIGLA : CERTICAMARA S A. | O123: 201794 | T123: 201794 | U123: 201794 | V123: 2019-03-08 | W123: 2019-03-08 | X123: 2019-04-07 | Y123: 30 | AC123: X | AF123: 1 | AH123: =IF(SUMPRODUCT((A$14:A123=A123)*(B$14:B123=B123)*(C$14:C123=C123))>1,0,1) -> 1 | AI123: Contratos de prestación de servicios | AJ123: Contratación mínima cuantia | AK123: =IFERROR(VLOOKUP(F123,Tipo!$C$12:$C$27,1,FALSE),"NO") -> NO | AL123: Funcionamiento | AM123: NO
A124: 121 | B124: 2019 | C124: FDLUSA-CPS-121-2019 | D124: Contratos de prestación de servicios profesionales y de apoyo a la gestión | E124: Contratación directa | F124: Prestación de servicios profesionales y de apoyo a la gestión, o para la ejecución de trabajos artísticos que sólo puedan encomendarse a determinadas personas naturales; | G124: “PRESTAR LOS SERVICIOS PROFESIONALES A LA ALCALDÍA LOCAL DE USAQUEN EN EL APOYO O ACOMPAÑAMIENTO A LA EJECUCIÓN DE LOS PROYECTOS CULTURALES, RECREATIVOS Y DEPORTIVOS CONTEMPLADOS EN EL PLAN DE DESARROLLO LOCAL “USACA MEJOR PARA TODOS, USAQUÉN CUENTA CONTIGO 2017-2020”. | H124: Inversión | I124: 11 | J124: =IF(ISERROR(VLOOKUP(I124,Eje_Pilar!$C$2:$E$47,2,FALSE))," ",VLOOKUP(I124,Eje_Pilar!$C$2:$E$47,2,FALSE)) -> Mejores oportunidades para el desarrollo a través de la cultura, la recreación y el deporte | K124: =IF(ISERROR(VLOOKUP(I124,Eje_Pilar!$C$2:$E$47,3,FALSE))," ",VLOOKUP(I124,Eje_Pilar!$C$2:$E$47,3,FALSE)) -> Pilar 1 Igualdad de Calidad de Vida | L124: 3-3-1-15-01-11-1570-000 | M124: 52507772 | N124: JAIDID JIMENEZ DUARTE | O124: 40000000 | R124: 1 | S124: 7666666 | T124: 47666666 | U124: 45166667 | V124: 2019-03-13 | W124: 2019-03-15 | X124: 2019-11-14 | Y124: 240 | Z124: 46 | AC124: X | AF124: 0.9475524678 | AH124: =IF(SUMPRODUCT((A$14:A124=A124)*(B$14:B124=B124)*(C$14:C124=C124))>1,0,1) -> 1 | AI124: Contratos de prestación de servicios profesionales y de apoyo a la gestión | AJ124: Contratación directa | AK124: =IFERROR(VLOOKUP(F124,Tipo!$C$12:$C$27,1,FALSE),"NO") -> Prestación de servicios profesionales y de apoyo a la gestión, o para la ejecución de trabajos artísticos que sólo puedan encomendarse a determinadas personas naturales; | AL124: Inversión | AM124: 11
A125: 122 | B125: 2019 | C125: SECOP I: FDLUSA-CPS-122-2019 | D125: Contratos de prestación de servicios profesionales y de apoyo a la gestión | E125: Contratación directa | F125: Prestación de servicios profesionales y de apoyo a la gestión, o para la ejecución de trabajos artísticos que sólo puedan encomendarse a determinadas personas naturales; | G125: PRESTAR LOS SERVICIOS PROFESIONALES PARA APOYAR JURÍDICAMENTE LA EJECU-CIÓN DE LAS ACCIONES REQUERIDAS PARA EL TRÁMITE E IMPULSO PROCESAL DE LAS ACTUACIONES CONTRAVENCIONALES Y/O QUERELLAS QUE CURSEN EN LAS INSPEC-CIONES DE POLICÍA DE LA LOCALIDAD | H125: Inversión | I125: 45 | J125: =IF(ISERROR(VLOOKUP(I125,Eje_Pilar!$C$2:$E$47,2,FALSE))," ",VLOOKUP(I125,Eje_Pilar!$C$2:$E$47,2,FALSE)) -> Gobernanza e influencia local, regional e internacional | K125: =IF(ISERROR(VLOOKUP(I125,Eje_Pilar!$C$2:$E$47,3,FALSE))," ",VLOOKUP(I125,Eje_Pilar!$C$2:$E$47,3,FALSE)) -> Eje Transversal 4 Gobierno Legitimo, Fortalecimiento Local y Eficiencia | L125: 3-3-1-15-07-45-1574-000 | M125: 1136882812 | N125: PALOMA STEFANIA MOSQUERA STANFORD - MARIA CRISTINA TOBON CAMACHO | O125: 42968833 | R125: 1 | S125: 9110000 | T125: 52078833 | U125: 40539500 | V125: 2019-03-15 | W125: 19/03/2019 - 02/09/2019 | X125: 31/12/2019 - 31/12/2019 | Y125: 283 | Z125: 60 | AC125: X | AF125: 0.778425661 | AH125: =IF(SUMPRODUCT((A$14:A125=A125)*(B$14:B125=B125)*(C$14:C125=C125))>1,0,1) -> 1 | AI125: Contratos de prestación de servicios profesionales y de apoyo a la gestión | AJ125: Contratación directa | AK125: =IFERROR(VLOOKUP(F125,Tipo!$C$12:$C$27,1,FALSE),"NO") -> Prestación de servicios profesionales y de apoyo a la gestión, o para la ejecución de trabajos artísticos que sólo puedan encomendarse a determinadas personas naturales; | AL125: Inversión | AM125: 45
A126: 123 | B126: 2019 | C126: SECOP 1: FDLUSA-CPS-123-2019 | D126: Contratos de prestación de servicios profesionales y de apoyo a la gestión | E126: Contratación directa | F126: Prestación de servicios profesionales y de apoyo a la gestión, o para la ejecución de trabajos artísticos que sólo puedan encomendarse a determinadas personas naturales; | G126: PRESTAR LOS SERVICIOS PROFESIONALES PARA DAR TRAMITE E IMPULSO PROCESAL A LAS ACTUACIONES ADMINISTRATIVAS ADELANTADAS, DESARROLLAR LAS ACTIVIDADES QUE GARANTICEN LA PROTECCIÓN DE LA RESERVA FORESTAL PROTECTORA BOSQUE ORIENTAL, POLIGONOS DE MONITOREO, AREAS DE OCUPACIÓN PUBLICA PRIORITARIA Y DEMÁS ZONAS DE ESPECIAL PROTECCIÓN AMBIENTAL EN LA LOCALIDAD DE USAQUÉN | H126: Inversión | I126: 45 | J126: =IF(ISERROR(VLOOKUP(I126,Eje_Pilar!$C$2:$E$47,2,FALSE))," ",VLOOKUP(I126,Eje_Pilar!$C$2:$E$47,2,FALSE)) -> Gobernanza e influencia local, regional e internacional | K126: =IF(ISERROR(VLOOKUP(I126,Eje_Pilar!$C$2:$E$47,3,FALSE))," ",VLOOKUP(I126,Eje_Pilar!$C$2:$E$47,3,FALSE)) -> Eje Transversal 4 Gobierno Legitimo, Fortalecimiento Local y Eficiencia | L126: 3-3-1-15-07-45-1574-000 | M126: 52852694 | N126: ANGELICA ESTUPÍÑAN FORERO | O126: 45900000 | R126: 1 | S126: 7310000 | T126: 53210000 | U126: 45560000 | V126: 2019-03-15 | W126: 2019-03-18 | X126: 2019-12-18 | Y126: 270 | Z126: 43 | AC126: X | AF126: 0.8562300319 | AH126: =IF(SUMPRODUCT((A$14:A126=A126)*(B$14:B126=B126)*(C$14:C126=C126))>1,0,1) -> 1 | AI126: Contratos de prestación de servicios profesionales y de apoyo a la gestión | AJ126: Contratación directa | AK126: =IFERROR(VLOOKUP(F126,Tipo!$C$12:$C$27,1,FALSE),"NO") -> Prestación de servicios profesionales y de apoyo a la gestión, o para la ejecución de trabajos artísticos que sólo puedan encomendarse a determinadas personas naturales; | AL126: Inversión | AM126: 45
A127: 124 | B127: 2019 | C127: FDLUSA-CPS-124-2019 | D127: Contratos de prestación de servicios profesionales y de apoyo a la gestión | E127: Contratación directa | F127: Prestación de servicios profesionales y de apoyo a la gestión, o para la ejecución de trabajos artísticos que sólo puedan encomendarse a determinadas personas naturales; | G127: PRESTAR LOS SERVICIOS PROFESIONALES A LA ALCALDÍA LOCAL DE USAQUEN, EN LA REALIZACIÓN DE LOS TRÁMITES INSTITUCIONALES RELACIONADOS CON EL RÉGIMEN DE PROPIEDAD HORIZONTAL” | H127: Inversión | I127: 45 | J127: =IF(ISERROR(VLOOKUP(I127,Eje_Pilar!$C$2:$E$47,2,FALSE))," ",VLOOKUP(I127,Eje_Pilar!$C$2:$E$47,2,FALSE)) -> Gobernanza e influencia local, regional e internacional | K127: =IF(ISERROR(VLOOKUP(I127,Eje_Pilar!$C$2:$E$47,3,FALSE))," ",VLOOKUP(I127,Eje_Pilar!$C$2:$E$47,3,FALSE)) -> Eje Transversal 4 Gobierno Legitimo, Fortalecimiento Local y Eficiencia | L127: 3-3-1-15-07-45-1574-000 | M127: 1032430206 | N127: DIEGO HERNANDO GARCIA HERNANDEZ | O127: 37350000 | R127: 1 | S127: 4150000 | T127: 41500000 | U127: 36658333 | V127: 2019-03-18 | W127: 2019-03-21 | X127: 2019-12-20 | Y127: 270 | Z127: 30 | AC127: X | AF127: 0.8833333253 | AH127: =IF(SUMPRODUCT((A$14:A127=A127)*(B$14:B127=B127)*(C$14:C127=C127))>1,0,1) -> 1 | AI127: Contratos de prestación de servicios profesionales y de apoyo a la gestión | AJ127: Contratación directa | AK127: =IFERROR(VLOOKUP(F127,Tipo!$C$12:$C$27,1,FALSE),"NO") -> Prestación de servicios profesionales y de apoyo a la gestión, o para la ejecución de trabajos artísticos que sólo puedan encomendarse a determinadas personas naturales; | AL127: Inversión | AM127: 45
A128: 125 | B128: 2019 | C128: FDLUSA-CPS-125-2019 | D128: Contratos de prestación de servicios profesionales y de apoyo a la gestión | E128: Contratación directa | F128: Prestación de servicios profesionales y de apoyo a la gestión, o para la ejecución de trabajos artísticos que sólo puedan encomendarse a determinadas personas naturales; | G128: PRESTAR LOS SERVICIOS PROFESIONALES A LA ALCALDÍA LOCAL DE USAQUÉN PARA LA FORMULACIÓN, EJECUCIÓN Y LIQUIDACIÓN DE LOS PROCESOS DERIVADOS DE LOS PROYECTOS DE FORTALECIMIENTO DEL SISTEMA DE PROTECCIÓN INTEGRAL A MUJERES, TEMAS DE GÉNERO, Y EL FOMENTO DE LA PARTICIPACIÓN CIUDADANA, CONTEMPLADOS EN EL PLAN DE DESARROLLO LOCAL “USACA MEJOR PARA TODOS, USAQUÉN CUENTA CONTIGO 2017-2020”. | H128: Inversión | I128: 20 | J128: =IF(ISERROR(VLOOKUP(I128,Eje_Pilar!$C$2:$E$47,2,FALSE))," ",VLOOKUP(I128,Eje_Pilar!$C$2:$E$47,2,FALSE)) -> Fortalecimiento del Sistema de Protección Integral a Mujeres Víctimas de Violencia - SOFIA | K128: =IF(ISERROR(VLOOKUP(I128,Eje_Pilar!$C$2:$E$47,3,FALSE))," ",VLOOKUP(I128,Eje_Pilar!$C$2:$E$47,3,FALSE)) -> Pilar 3 Construcción de Comunidad y Cultura Ciudadana | L128: 3-3-1-15-03-20-1577-000 | M128: 49793413 | N128: ADEY JELITZHA SANABRIA CASTILLO/ OSIRIS MARINELLA SOLANO ARAMENDIS | O128: 36440000 | R128: 1 | S128: 6225166 | T128: 42665166 | U128: 36288167 | V128: 2019-03-18 | W128: 2019-03-20 | X128: 2019-11-20 | Y128: 270 | Z128: 60 | AC128: X | AF128: 0.8505338289 | AH128: =IF(SUMPRODUCT((A$14:A128=A128)*(B$14:B128=B128)*(C$14:C128=C128))>1,0,1) -> 1 | AI128: Contratos de prestación de servicios profesionales y de apoyo a la gestión | AJ128: Contratación directa | AK128: =IFERROR(VLOOKUP(F128,Tipo!$C$12:$C$27,1,FALSE),"NO") -> Prestación de servicios profesionales y de apoyo a la gestión, o para la ejecución de trabajos artísticos que sólo puedan encomendarse a determinadas personas naturales; | AL128: Inversión | AM128: 20
A129: 126 | B129: 2019 | C129: SECOP I: FDLUSA-CPS-126-2019 | D129: Contratos de prestación de servicios profesionales y de apoyo a la gestión | E129: Contratación directa | F129: Prestación de servicios profesionales y de apoyo a la gestión, o para la ejecución de trabajos artísticos que sólo puedan encomendarse a determinadas personas naturales; | G129: PRESTAR LOS SERVICIOS PROFESIONALES PARA APOYAR JURÍDICAMENTE LA EJECU-CIÓN DE LAS ACCIONES REQUERIDAS PARA EL TRÁMITE E IMPULSO PROCESAL DE LAS ACTUACIONES CONTRAVENCIONALES Y/O QUERELLAS QUE CURSEN EN LAS INSPEC-CIONES DE POLICÍA DE LA LOCALIDAD | H129: Inversión | I129: 45 | J129: =IF(ISERROR(VLOOKUP(I129,Eje_Pilar!$C$2:$E$47,2,FALSE))," ",VLOOKUP(I129,Eje_Pilar!$C$2:$E$47,2,FALSE)) -> Gobernanza e influencia local, regional e internacional | K129: =IF(ISERROR(VLOOKUP(I129,Eje_Pilar!$C$2:$E$47,3,FALSE))," ",VLOOKUP(I129,Eje_Pilar!$C$2:$E$47,3,FALSE)) -> Eje Transversal 4 Gobierno Legitimo, Fortalecimiento Local y Eficiencia | L129: 3-3-1-15-07-45-1574-000 | M129: 1098700541 | N129: JOSE KARLORLANDO LOPEZ URBINA | O129: 40995000 | R129: 1 | S129: 9110000 | T129: 50105000 | U129: 40084000 | V129: 2019-03-15 | W129: 2019-03-22 | X129: 2019-12-21 | Y129: 270 | Z129: 60 | AC129: X | AF129: 0.8 | AH129: =IF(SUMPRODUCT((A$14:A129=A129)*(B$14:B129=B129)*(C$14:C129=C129))>1,0,1) -> 1 | AI129: Contratos de prestación de servicios profesionales y de apoyo a la gestión | AJ129: Contratación directa | AK129: =IFERROR(VLOOKUP(F129,Tipo!$C$12:$C$27,1,FALSE),"NO") -> Prestación de servicios profesionales y de apoyo a la gestión, o para la ejecución de trabajos artísticos que sólo puedan encomendarse a determinadas personas naturales; | AL129: Inversión | AM129: 45
A130: 127 | B130: 2019 | C130: FDLUSA-MC-02-2019 | D130: Suministro | E130: Contratación mínima cuantia | F130: No aplica | G130: SUMINISTRO DE ELEMENTOS DE PAPELERÍA Y ÚTILES DE OFICINA A PRECIOS UNITARIOS FIJOS, DE ACUERDO CON LAS ESPECIFICACIONES REQUERIDAS POR EL FONDO DE DESARROLLO LOCAL DE USAQUÉN | H130: Funcionamiento | J130: =IF(ISERROR(VLOOKUP(I130,Eje_Pilar!$C$2:$E$47,2,FALSE))," ",VLOOKUP(I130,Eje_Pilar!$C$2:$E$47,2,FALSE)) ->  | K130: =IF(ISERROR(VLOOKUP(I130,Eje_Pilar!$C$2:$E$47,3,FALSE))," ",VLOOKUP(I130,Eje_Pilar!$C$2:$E$47,3,FALSE)) ->  | L130: 3-1-2-02-01-02-0002-000 | M130: 800209890 | N130: COMERCIALIZADORA VINARTA S.A.S | O130: 20000000 | R130: 1 | S130: 10000000 | T130: 30000000 | U130: 13993377 | V130: 2019-03-21 | W130: 2019-04-01 | X130: 2019-12-31 | Y130: 270 | Z130: 1 | AC130: X | AF130: 0.4664459 | AH130: =IF(SUMPRODUCT((A$14:A130=A130)*(B$14:B130=B130)*(C$14:C130=C130))>1,0,1) -> 1 | AI130: Suministro | AJ130: Contratación mínima cuantia | AK130: =IFERROR(VLOOKUP(F130,Tipo!$C$12:$C$27,1,FALSE),"NO") -> NO | AL130: Funcionamiento | AM130: NO
AH131: =IF(SUMPRODUCT((A$14:A131=A131)*(B$14:B131=B131)*(C$14:C131=C131))>1,0,1) -> 1 | AI131: NO | AJ131: NO | AK131: =IFERROR(VLOOKUP(F131,Tipo!$C$12:$C$27,1,FALSE),"NO") -> NO | AL131: NO | AM131: NO
A132: 129 | B132: 2019 | C132: SECOP I: FDLUSA-CPS-129-2019 | D132: Contratos de prestación de servicios profesionales y de apoyo a la gestión | E132: Contratación directa | F132: Prestación de servicios profesionales y de apoyo a la gestión, o para la ejecución de trabajos artísticos que sólo puedan encomendarse a determinadas personas naturales; | G132: PRESTAR LOS SERVICIOS DE APOYO A LA GESTIÓN DE LA ALCALDÍA LOCAL EN EL DESARROLLO DE ACTIVIDADES DE SEGURIDAD Y CONVIVENCIA, ACOMPAÑAMIENTO A LA CIUDADANÍA,PARTICIPACIÓN EN LOS PROCESOS DE PREVENCIÓN DE LAS CONTRAVENCIONES EN LA LOCALIDAD, IMPULSO Y DINAMIZACIÓN PARA LA EJECUCIÓN DE LOS PROYECTOS QUE HACEN PARTE DEL PLAN DE DESARROLLO “USACA MEJOR PARA TODO | H132: Inversión | I132: 19 | J132: =IF(ISERROR(VLOOKUP(I132,Eje_Pilar!$C$2:$E$47,2,FALSE))," ",VLOOKUP(I132,Eje_Pilar!$C$2:$E$47,2,FALSE)) -> Seguridad y convivencia para todos | K132: =IF(ISERROR(VLOOKUP(I132,Eje_Pilar!$C$2:$E$47,3,FALSE))," ",VLOOKUP(I132,Eje_Pilar!$C$2:$E$47,3,FALSE)) -> Pilar 3 Construcción de Comunidad y Cultura Ciudadana | L132: 3-3-1-15-03-19-1569-000 | M132: 80793784 | N132: LUIS CARLOS PEÑUELA VARGAS | O132: 18960000 | R132: 2 | S132: 4503000 | T132: 23463000 | U132: 19908000 | V132: 2019-04-01 | W132: 2019-04-04 | X132: 2019-12-03 | Y132: 240 | Z132: 27 | AC132: X | AF132: 0.8484848485 | AH132: =IF(SUMPRODUCT((A$14:A132=A132)*(B$14:B132=B132)*(C$14:C132=C132))>1,0,1) -> 1 | AI132: Contratos de prestación de servicios profesionales y de apoyo a la gestión | AJ132: Contratación directa | AK132: =IFERROR(VLOOKUP(F132,Tipo!$C$12:$C$27,1,FALSE),"NO") -> Prestación de servicios profesionales y de apoyo a la gestión, o para la ejecución de trabajos artísticos que sólo puedan encomendarse a determinadas personas naturales; | AL132: Inversión | AM132: 19
A133: 130 | B133: 2019 | C133: FDLUSA-CMA-002-2019 | D133: Consultoría | E133: Concurso de méritos | F133: No aplica | G133: Realizar la Interventoría y supervisión técnica, administrativa, financiera y jurídica del contrato No. 259/2018 cuyo objeto es: Desarrollar el segundo nivel de las Escuelas de Formación Artística, Escuelas de Formación Deportiva: Nuevas Tendencias Deportivas y Ciudadanos Activos, Ciudadanos Felices: Actividad Lúdica y Física para el Adulto Mayor en la localidad de Usaquén 2019 | H133: Inversión | I133: 11 | J133: =IF(ISERROR(VLOOKUP(I133,Eje_Pilar!$C$2:$E$47,2,FALSE))," ",VLOOKUP(I133,Eje_Pilar!$C$2:$E$47,2,FALSE)) -> Mejores oportunidades para el desarrollo a través de la cultura, la recreación y el deporte | K133: =IF(ISERROR(VLOOKUP(I133,Eje_Pilar!$C$2:$E$47,3,FALSE))," ",VLOOKUP(I133,Eje_Pilar!$C$2:$E$47,3,FALSE)) -> Pilar 1 Igualdad de Calidad de Vida | L133: 3-3-1-15-01-11-1570-000 | M133: 901271341 | N133: CONSORCIO INTERVENTORIA CULTURA Y DEPORTE | O133: 74900000 | T133: 74900000 | U133: 67410000 | V133: 2019-04-09 | W133: 2019-05-02 | X133: 2019-11-21 | Y133: 210 | Z133: 60 | AC133: X | AF133: 0.9 | AH133: =IF(SUMPRODUCT((A$14:A133=A133)*(B$14:B133=B133)*(C$14:C133=C133))>1,0,1) -> 1 | AI133: Consultoría | AJ133: Concurso de méritos | AK133: =IFERROR(VLOOKUP(F133,Tipo!$C$12:$C$27,1,FALSE),"NO") -> NO | AL133: Inversión | AM133: 11
A134: 131 | B134: 2019 | C134: SECOP I: FDLUSA-CPS-131-2019 | D134: Arrendamiento de bienes inmuebles | E134: Contratación directa | F134: El arrendamiento o adquisición de inmuebles | G134: Entregar en calidad de arrendamiento, el inmueble identificado con la nomenclatura Cra. 7ª No. 182 A 81 de la ciudad de Bogotá, en la Casa Vecinal del barrio San Antonio (Usaquén) que cuenta con un área total de 699.2 M2, de los cuales hay 346.7 M2 construidos | H134: Inversión | I134: 11 | J134: =IF(ISERROR(VLOOKUP(I134,Eje_Pilar!$C$2:$E$47,2,FALSE))," ",VLOOKUP(I134,Eje_Pilar!$C$2:$E$47,2,FALSE)) -> Mejores oportunidades para el desarrollo a través de la cultura, la recreación y el deporte | K134: =IF(ISERROR(VLOOKUP(I134,Eje_Pilar!$C$2:$E$47,3,FALSE))," ",VLOOKUP(I134,Eje_Pilar!$C$2:$E$47,3,FALSE)) -> Pilar 1 Igualdad de Calidad de Vida | L134: 3-3-1-15-01-11-1570-000 | M134: 8600420874 | N134: JUANTA DE ACCION COMUNAL BARRIO SAN ANTONIO NORTE | O134: 54000000 | R134: 1 | S134: 18000000 | T134: 72000000 | U134: 42000000 | V134: 2019-04-08 | W134: 2019-04-15 | X134: 2019-12-31 | Y134: 255 | Z134: 60 | AC134: X | AF134: =IF(ISERROR(U134/T134),"-",(U134/T134)) -> 0.5833333333 | AH134: =IF(SUMPRODUCT((A$14:A134=A134)*(B$14:B134=B134)*(C$14:C134=C134))>1,0,1) -> 1 | AI134: Arrendamiento de bienes inmuebles | AJ134: Contratación directa | AK134: =IFERROR(VLOOKUP(F134,Tipo!$C$12:$C$27,1,FALSE),"NO") -> El arrendamiento o adquisición de inmuebles | AL134: Inversión | AM134: 11
D135: Seguros | M135: 860002400 | T135: 0 | AC135: X | AF135: - | AH135: =IF(SUMPRODUCT((A$14:A135=A135)*(B$14:B135=B135)*(C$14:C135=C135))>1,0,1) -> 0 | AI135: Seguros | AJ135: NO | AK135: =IFERROR(VLOOKUP(F135,Tipo!$C$12:$C$27,1,FALSE),"NO") -> NO | AL135: NO | AM135: NO
A136: 134 | B136: 2019 | C136: FDLUSA-CC-134-2019 | D136: Compraventa de bienes inmuebles | E136: Contratación mínima cuantia | F136: No aplica | G136: “ADQUISICIÓN, CONFIGURACIÓN Y PUESTA EN FUNCIONAMIENTO DE EQUIPOS DE COMPUTO Y PERIFÉRICOS, PARA FORTALECER LA INFRAESTRUCTURA TECNOLÓGICA DE LAS DIFERENTES SEDES A CARGO DE LA ALCALDÍA LOCAL DE USAQUÉN”. | H136: Inversión | I136: 45 | J136: =IF(ISERROR(VLOOKUP(I136,Eje_Pilar!$C$2:$E$47,2,FALSE))," ",VLOOKUP(I136,Eje_Pilar!$C$2:$E$47,2,FALSE)) -> Gobernanza e influencia local, regional e internacional | K136: =IF(ISERROR(VLOOKUP(I136,Eje_Pilar!$C$2:$E$47,3,FALSE))," ",VLOOKUP(I136,Eje_Pilar!$C$2:$E$47,3,FALSE)) -> Eje Transversal 4 Gobierno Legitimo, Fortalecimiento Local y Eficiencia | L136: 3-3-1-15-07-45-1574-000 | M136: 8300160040 | N136: REDCOMPUTO | O136: 18302200 | T136: 18302200 | U136: 18302200 | V136: 2019-04-08 | W136: 2019-04-11 | X136: 2019-05-10 | Y136: 30 | Z136: 90 | AC136: X | AF136: 1 | AH136: =IF(SUMPRODUCT((A$14:A136=A136)*(B$14:B136=B136)*(C$14:C136=C136))>1,0,1) -> 1 | AI136: Compraventa de bienes inmuebles | AJ136: Contratación mínima cuantia | AK136: =IFERROR(VLOOKUP(F136,Tipo!$C$12:$C$27,1,FALSE),"NO") -> NO | AL136: Inversión | AM136: 45
A137: 135 | B137: 2019 | C137: FDLUSA-CPS-135-2019 | D137: Contratos de prestación de servicios profesionales y de apoyo a la gestión | E137: Contratación directa | F137: Prestación de servicios profesionales y de apoyo a la gestión, o para la ejecución de trabajos artísticos que sólo puedan encomendarse a determinadas personas naturales; | G137: PRESTAR LOS SERVICIOS PROFESIONALES A LA ALCALDIA LOCAL DE USAQUEN EN EL APOYO TÉCNICO PARA ACOMPAÑAR LA IM-PLEMENTACIÓN DE ÁREAS POTENCIALES DE RESTAURACIÓN Y/0 REHABILITACIÓN DE LA ESTRUCTURA ECOLÓGICA PRINCIPAL ENTORNO AL PROYECTO DENOMINADO TODOS SOMOS GUARDABOSQUES DE CIUDAD, DEL PLAN DE DESARROLLO "USACA MEJOR PARA TODOS, USAQUEN CUENTA CONTIGO 2017-2020 | H137: Inversión | I137: 38 | J137: =IF(ISERROR(VLOOKUP(I137,Eje_Pilar!$C$2:$E$47,2,FALSE))," ",VLOOKUP(I137,Eje_Pilar!$C$2:$E$47,2,FALSE)) -> Recuperación y manejo de la Estructura Ecológica Principal | K137: =IF(ISERROR(VLOOKUP(I137,Eje_Pilar!$C$2:$E$47,3,FALSE))," ",VLOOKUP(I137,Eje_Pilar!$C$2:$E$47,3,FALSE)) -> Eje Transversal 3 Sostenibilidad Ambiental basada en la eficiencia energética | L137: 3-3-1-15-06-38-1575-000 | M137: 91447494 | N137: ROLANDO HIGUITA RODRÍGUEZ | O137: 36600000 | T137: 36600000 | U137: 32177500 | V137: 2019-04-25 | W137: 2019-04-30 | X137: 2019-12-24 | Y137: 240 | AC137: X | AF137: 0.8791666667 | AH137: =IF(SUMPRODUCT((A$14:A137=A137)*(B$14:B137=B137)*(C$14:C137=C137))>1,0,1) -> 1 | AI137: Contratos de prestación de servicios profesionales y de apoyo a la gestión | AJ137: Contratación directa | AK137: =IFERROR(VLOOKUP(F137,Tipo!$C$12:$C$27,1,FALSE),"NO") -> Prestación de servicios profesionales y de apoyo a la gestión, o para la ejecución de trabajos artísticos que sólo puedan encomendarse a determinadas personas naturales; | AL137: Inversión | AM137: 38
A138: 136 | B138: 2019 | C138: FDLUSA-CPS-136-2019 | D138: Contratos de prestación de servicios profesionales y de apoyo a la gestión | E138: Contratación directa | F138: Prestación de servicios profesionales y de apoyo a la gestión, o para la ejecución de trabajos artísticos que sólo puedan encomendarse a determinadas personas naturales; | G138: “PRESTAR SERVICIOS DE APOYO A LA GESTIÓN AL ÁREA DE GESTIÓN POLICIVA EN ASUNTOS RELACIONADOS CON LA ASIGNACIÓN Y DEPURACIÓN EN LOS APLICATIVOS DE GESTIÓN DOCUMENTAL Y APLICATIVOS MISIONALES PARA ACTUACIONES ADMINISTRATIVAS Y EN CUMPLIMIENTO DEL CÓDIGO NACIONAL DE POLICÍA Y CONVIVENCIA”. | H138: Inversión | I138: 45 | J138: =IF(ISERROR(VLOOKUP(I138,Eje_Pilar!$C$2:$E$47,2,FALSE))," ",VLOOKUP(I138,Eje_Pilar!$C$2:$E$47,2,FALSE)) -> Gobernanza e influencia local, regional e internacional | K138: =IF(ISERROR(VLOOKUP(I138,Eje_Pilar!$C$2:$E$47,3,FALSE))," ",VLOOKUP(I138,Eje_Pilar!$C$2:$E$47,3,FALSE)) -> Eje Transversal 4 Gobierno Legitimo, Fortalecimiento Local y Eficiencia | L138: 3-3-1-15-07-45-1574-000 | M138: 52501883 | N138: MERY ESNEDA BLANCO SANCHEZ | O138: 18802000 | R138: 1 | S138: 4740000 | T138: 23542000 | U138: 17617000 | V138: 2019-04-29 | W138: 2019-05-03 | X138: 2019-12-31 | Y138: 238 | Z138: 60 | AC138: X | AF138: 0.7483221477 | AH138: =IF(SUMPRODUCT((A$14:A138=A138)*(B$14:B138=B138)*(C$14:C138=C138))>1,0,1) -> 1 | AI138: Contratos de prestación de servicios profesionales y de apoyo a la gestión | AJ138: Contratación directa | AK138: =IFERROR(VLOOKUP(F138,Tipo!$C$12:$C$27,1,FALSE),"NO") -> Prestación de servicios profesionales y de apoyo a la gestión, o para la ejecución de trabajos artísticos que sólo puedan encomendarse a determinadas personas naturales; | AL138: Inversión | AM138: 45
A139: 137 | B139: 2019 | C139: FDLUSA-MC-06-2019 | D139: Contratos de prestación de servicios | E139: Contratación mínima cuantia | F139: No aplica | G139: CONTRATAR UN OPERADOR LOGÍSTICO PARA QUE APOYE LOS SERVICIOS DE CATERING, MATERIALES Y APOYO LOGÍSTICO QUE SE REQUIERAN, PARA DESARROLLAR LAS ACTIVIDADES A EJE-CUTAR DURANTE LA CELEBRACIÓN DE LAS JORNADAS DE LA AFROCOLOMBIANIDAD EN USAQUÉN | H139: Inversión | I139: 11 | J139: =IF(ISERROR(VLOOKUP(I139,Eje_Pilar!$C$2:$E$47,2,FALSE))," ",VLOOKUP(I139,Eje_Pilar!$C$2:$E$47,2,FALSE)) -> Mejores oportunidades para el desarrollo a través de la cultura, la recreación y el deporte | K139: =IF(ISERROR(VLOOKUP(I139,Eje_Pilar!$C$2:$E$47,3,FALSE))," ",VLOOKUP(I139,Eje_Pilar!$C$2:$E$47,3,FALSE)) -> Pilar 1 Igualdad de Calidad de Vida | L139: 3-3-1-15-01-11-1570-000 | M139: 901179458 | N139: T&R SOLUTIONS ROBRI S.A.S | O139: 16821300 | T139: 16821300 | U139: 16821300 | V139: 2019-04-25 | W139: 2019-04-26 | X139: 2019-06-09 | Y139: 45 | AC139: X | AF139: 1 | AH139: =IF(SUMPRODUCT((A$14:A139=A139)*(B$14:B139=B139)*(C$14:C139=C139))>1,0,1) -> 1 | AI139: Contratos de prestación de servicios | AJ139: Contratación mínima cuantia | AK139: =IFERROR(VLOOKUP(F139,Tipo!$C$12:$C$27,1,FALSE),"NO") -> NO | AL139: Inversión | AM139: 11
A140: 138 | B140: 2019 | C140: FDLUSA-CPS-138-2019 | D140: Contratos de prestación de servicios profesionales y de apoyo a la gestión | E140: Contratación directa | F140: Prestación de servicios profesionales y de apoyo a la gestión, o para la ejecución de trabajos artísticos que sólo puedan encomendarse a determinadas personas naturales; | G140: “PRESTAR LOS SERVICIOS PROFESIONALES A LA ALCALDÍA LOCAL, PARA EL ACOMPAÑAMIENTO Y DESARROLLO DE ACTUACIONES TENDIENTES A REALIZAR LAS DILIGENCIAS COMISIONADAS POR LOS DESPACHOS JUDICIALES Y LAS ACTUACIONES REQUERIDAS EN EL ÁREA DE GESTIÓN POLICIVA JURÍDICA DE LA ALCALDÍA LOCAL QUE LE SEAN ASIGNADAS”. | H140: Inversión | I140: 45 | J140: =IF(ISERROR(VLOOKUP(I140,Eje_Pilar!$C$2:$E$47,2,FALSE))," ",VLOOKUP(I140,Eje_Pilar!$C$2:$E$47,2,FALSE)) -> Gobernanza e influencia local, regional e internacional | K140: =IF(ISERROR(VLOOKUP(I140,Eje_Pilar!$C$2:$E$47,3,FALSE))," ",VLOOKUP(I140,Eje_Pilar!$C$2:$E$47,3,FALSE)) -> Eje Transversal 4 Gobierno Legitimo, Fortalecimiento Local y Eficiencia | L140: 3-3-1-15-07-45-1574-000 | M140: 53039712 | N140: DIANA CATHERINE CLAVIJO ORTIZ | O140: 52000000 | T140: 52000000 | U140: 9533332 | V140: 2019-04-25 | W140: 2019-04-30 | X140: 2019-12-29 | Y140: 255 | AC140: X | AF140: 0.1833333077 | AH140: =IF(SUMPRODUCT((A$14:A140=A140)*(B$14:B140=B140)*(C$14:C140=C140))>1,0,1) -> 1 | AI140: Contratos de prestación de servicios profesionales y de apoyo a la gestión | AJ140: Contratación directa | AK140: =IFERROR(VLOOKUP(F140,Tipo!$C$12:$C$27,1,FALSE),"NO") -> Prestación de servicios profesionales y de apoyo a la gestión, o para la ejecución de trabajos artísticos que sólo puedan encomendarse a determinadas personas naturales; | AL140: Inversión | AM140: 45
A141: 139 | B141: 2019 | C141: FDLUSA-CONTRATO DE SEGUROS 139-2019 | D141: Seguros | E141: Contratación mínima cuantia | F141: No aplica | G141: CONTRATACIÓN DE LA PÓLIZA DE VIDA GRUPO DE LOS EDILES DE LA ALCALDIA LOCAL DE USAQUEN | H141: Funcionamiento | J141: =IF(ISERROR(VLOOKUP(I141,Eje_Pilar!$C$2:$E$47,2,FALSE))," ",VLOOKUP(I141,Eje_Pilar!$C$2:$E$47,2,FALSE)) ->  | K141: =IF(ISERROR(VLOOKUP(I141,Eje_Pilar!$C$2:$E$47,3,FALSE))," ",VLOOKUP(I141,Eje_Pilar!$C$2:$E$47,3,FALSE)) ->  | L141: 3-1-2-02-02-02-0001-005 | M141: 860009174 | N141: SEGUROS DE VIDA DEL ESTADO S.A | O141: 9568696 | T141: =+O141+Q141+S141 -> 9568696 | U141: 9568696 | V141: 2019-04-30 | W141: 2019-04-30 | X141: 2020-02-08 | Y141: 284 | AC141: X | AF141: 1 | AH141: =IF(SUMPRODUCT((A$14:A141=A141)*(B$14:B141=B141)*(C$14:C141=C141))>1,0,1) -> 1 | AI141: Seguros | AJ141: Contratación mínima cuantia | AK141: =IFERROR(VLOOKUP(F141,Tipo!$C$12:$C$27,1,FALSE),"NO") -> NO | AL141: Funcionamiento | AM141: NO
A142: 140 | B142: 2019 | C142: FDLUSA-CPS-140-2019 | D142: Contratos de prestación de servicios profesionales y de apoyo a la gestión | E142: Contratación directa | F142: Prestación de servicios profesionales y de apoyo a la gestión, o para la ejecución de trabajos artísticos que sólo puedan encomendarse a determinadas personas naturales; | G142: PRESTAR SERVICIOS PROFESIONALES PARA APOYAR JURÍDICAMENTE LA EJECUCIÓN DE LAS ACCIONES REQUERIDAS PARA LA DEPURACIÓN DE LAS ACTUACIONES ADMINISTRATIVAS QUE CURSAN EN LA ALCALDÍA LOCAL”. | H142: Inversión | I142: 45 | J142: =IF(ISERROR(VLOOKUP(I142,Eje_Pilar!$C$2:$E$47,2,FALSE))," ",VLOOKUP(I142,Eje_Pilar!$C$2:$E$47,2,FALSE)) -> Gobernanza e influencia local, regional e internacional | K142: =IF(ISERROR(VLOOKUP(I142,Eje_Pilar!$C$2:$E$47,3,FALSE))," ",VLOOKUP(I142,Eje_Pilar!$C$2:$E$47,3,FALSE)) -> Eje Transversal 4 Gobierno Legitimo, Fortalecimiento Local y Eficiencia | L142: 3-3-1-15-07-45-1574-000 | M142: 1026283295 | N142: SERGIO DAVID RUANO DOMINGUEZ/CRISTHIAN CAMILO ROA FAJARDO | O142: 34921667 | R142: 1 | S142: 4555000 | T142: 39476667 | U142: 30670333 | V142: 2019-05-08 | W142: 2019-05-14 | X142: 2019-12-31 | Y142: 227 | Z142: 30 | AC142: X | AF142: 0.7769230619 | AH142: =IF(SUMPRODUCT((A$14:A142=A142)*(B$14:B142=B142)*(C$14:C142=C142))>1,0,1) -> 1 | AI142: Contratos de prestación de servicios profesionales y de apoyo a la gestión | AJ142: Contratación directa | AK142: =IFERROR(VLOOKUP(F142,Tipo!$C$12:$C$27,1,FALSE),"NO") -> Prestación de servicios profesionales y de apoyo a la gestión, o para la ejecución de trabajos artísticos que sólo puedan encomendarse a determinadas personas naturales; | AL142: Inversión | AM142: 45
A143: 141 | B143: 2019 | C143: FDLUSA-CPS-141-2019 | D143: Contratos de prestación de servicios profesionales y de apoyo a la gestión | E143: Contratación directa | F143: Prestación de servicios profesionales y de apoyo a la gestión, o para la ejecución de trabajos artísticos que sólo puedan encomendarse a determinadas personas naturales; | G143: PRESTAR SERVICIOS PROFESIONALES PARA APOYAR JURÍDICAMENTE LA EJECUCIÓN DE LAS ACCIONES REQUERIDAS PARA LA DEPURACIÓN DE LAS ACTUACIONES ADMINISTRATIVAS QUE CURSAN EN LA ALCALDÍA LOCAL”. | H143: Inversión | I143: 45 | J143: =IF(ISERROR(VLOOKUP(I143,Eje_Pilar!$C$2:$E$47,2,FALSE))," ",VLOOKUP(I143,Eje_Pilar!$C$2:$E$47,2,FALSE)) -> Gobernanza e influencia local, regional e internacional | K143: =IF(ISERROR(VLOOKUP(I143,Eje_Pilar!$C$2:$E$47,3,FALSE))," ",VLOOKUP(I143,Eje_Pilar!$C$2:$E$47,3,FALSE)) -> Eje Transversal 4 Gobierno Legitimo, Fortalecimiento Local y Eficiencia | L143: 3-3-1-15-07-45-1574-000 | M143: 1020716217 | N143: LEIDY MARCELA CORTES SUAREZ | O143: 34921667 | R143: 1 | S143: 9110000 | T143: 44031667 | U143: 32188667 | V143: 2019-05-08 | W143: 2019-05-14 | X143: 2019-12-31 | Y143: 227 | Z143: 60 | AC143: X | AF143: 0.7310344848 | AH143: =IF(SUMPRODUCT((A$14:A143=A143)*(B$14:B143=B143)*(C$14:C143=C143))>1,0,1) -> 1 | AI143: Contratos de prestación de servicios profesionales y de apoyo a la gestión | AJ143: Contratación directa | AK143: =IFERROR(VLOOKUP(F143,Tipo!$C$12:$C$27,1,FALSE),"NO") -> Prestación de servicios profesionales y de apoyo a la gestión, o para la ejecución de trabajos artísticos que sólo puedan encomendarse a determinadas personas naturales; | AL143: Inversión | AM143: 45
A144: 142 | B144: 2019 | C144: FDLUSA-MC-007-2019 | D144: Contratos de prestación de servicios | E144: Contratación mínima cuantia | F144: No aplica | G144: “PRESTAR LOS SERVICIOS DE FOTOCOPIADO, BAJO LA FIGURA DE OUTSOURCING PARA LAS INSTALACIONES DE LA ALCALDÍA LOCAL DE USAQUÉN Y LA JUNTA ADMINISTRADORA LOCAL DE USAQUÉN.” | H144: Funcionamiento | J144: =IF(ISERROR(VLOOKUP(I144,Eje_Pilar!$C$2:$E$47,2,FALSE))," ",VLOOKUP(I144,Eje_Pilar!$C$2:$E$47,2,FALSE)) ->  | K144: =IF(ISERROR(VLOOKUP(I144,Eje_Pilar!$C$2:$E$47,3,FALSE))," ",VLOOKUP(I144,Eje_Pilar!$C$2:$E$47,3,FALSE)) ->  | L144: 3-1-2-02-02-03-0005-003 | M144: 830023178 | N144: GRAN IMAGEN S.A.S. | O144: 23187000 | T144: 23187000 | U144: 11942854 | V144: 2019-05-15 | W144: 2019-05-16 | X144: 2019-12-31 | Y144: 225 | AC144: X | AF144: 0.5150668047 | AH144: =IF(SUMPRODUCT((A$14:A144=A144)*(B$14:B144=B144)*(C$14:C144=C144))>1,0,1) -> 1 | AI144: Contratos de prestación de servicios | AJ144: Contratación mínima cuantia | AK144: =IFERROR(VLOOKUP(F144,Tipo!$C$12:$C$27,1,FALSE),"NO") -> NO | AL144: Funcionamiento | AM144: NO
A145: 143 | B145: 2019 | C145: FDLUSA-CPS-143-2019 | D145: Contratos de prestación de servicios | E145: Selección abreviada | F145: Subasta inversa | G145: PRESTAR EL SERVICIO INTEGRAL DE VIGILANCIA Y SEGURIDAD PRIVADA PERMANENTE CON MEDIO HUMANO, CON ARMA Y MEDIOS TECNOLÓGICOS PARA TODOS LOS BIENES MUEBLES E INMUEBLES DE PROPIEDAD DE LA ALCALDÍA LOCAL DE USAQUÉN – FONDO DE DESARROLLO LOCAL DE USAQUÉN Y DE LAS QUE LEGALMENTE SEA O LLEGARE A SER RESPONSABLE | H145: Funcionamiento | J145: =IF(ISERROR(VLOOKUP(I145,Eje_Pilar!$C$2:$E$47,2,FALSE))," ",VLOOKUP(I145,Eje_Pilar!$C$2:$E$47,2,FALSE)) ->  | K145: =IF(ISERROR(VLOOKUP(I145,Eje_Pilar!$C$2:$E$47,3,FALSE))," ",VLOOKUP(I145,Eje_Pilar!$C$2:$E$47,3,FALSE)) ->  | L145: 3-1-02-02-03-005-001-000 | M145: 800234493 | N145: SEGURIDAD FENIX DE COLOMBIA LTDA | O145: 590745065 | T145: 590745065 | U145: 439321668 | V145: 2019-05-15 | W145: 2019-05-20 | X145: 2020-02-20 | Y145: 270 | AC145: X | AF145: 0.7436738689 | AH145: =IF(SUMPRODUCT((A$14:A145=A145)*(B$14:B145=B145)*(C$14:C145=C145))>1,0,1) -> 1 | AI145: Contratos de prestación de servicios | AJ145: Selección abreviada | AK145: =IFERROR(VLOOKUP(F145,Tipo!$C$12:$C$27,1,FALSE),"NO") -> Subasta inversa | AL145: Funcionamiento | AM145: NO
A146: 144 | B146: 2019 | C146: FDLUSA-MC-008-2019 | D146: Suministro | E146: Contratación mínima cuantia | F146: No aplica | G146: SUMINISTRO DE COMBUSTIBLE -GASOLINA Y ACPM - PARA LOS VEHICULOS LIVIANOS Y PESADOS Y MAQUINARIA LIVIANA DE PROPIEDAD DE LA ALCALDIA LOCAL DE USAQUEN". | H146: Funcionamiento | J146: =IF(ISERROR(VLOOKUP(I146,Eje_Pilar!$C$2:$E$47,2,FALSE))," ",VLOOKUP(I146,Eje_Pilar!$C$2:$E$47,2,FALSE)) ->  | K146: =IF(ISERROR(VLOOKUP(I146,Eje_Pilar!$C$2:$E$47,3,FALSE))," ",VLOOKUP(I146,Eje_Pilar!$C$2:$E$47,3,FALSE)) ->  | L146: 0-1-2-02-01-02-0003-000 | M146: 830095213 | N146: ORGANIZACIÓN TERPEL S.A | O146: 15000000 | T146: 15000000 | U146: 9632301 | V146: 2019-05-17 | W146: 2019-05-21 | X146: 2019-12-20 | Y146: 210 | AC146: X | AF146: 0.6421534 | AH146: =IF(SUMPRODUCT((A$14:A146=A146)*(B$14:B146=B146)*(C$14:C146=C146))>1,0,1) -> 1 | AI146: Suministro | AJ146: Contratación mínima cuantia | AK146: =IFERROR(VLOOKUP(F146,Tipo!$C$12:$C$27,1,FALSE),"NO") -> NO | AL146: Funcionamiento | AM146: NO
A147: 145 | B147: 2019 | C147: FDLUSA-CPS-145-2019 | D147: Contratos de prestación de servicios profesionales y de apoyo a la gestión | E147: Contratación directa | F147: Prestación de servicios profesionales y de apoyo a la gestión, o para la ejecución de trabajos artísticos que sólo puedan encomendarse a determinadas personas naturales; | G147: PRESTAR LOS SERVICIOS PROFESIONALES PARA APOYAR AL PROFESIONAL 222-24 DEL ÁREA DE GESTIÓN POLICIVA JURÍDICA EN LA REVISIÓN Y REALIZACIÓN DE LOS TRÁMITES JURÍDICOS DE LAS ACTUACIONES ADMINISTRATIVAS QUE CURSAN EN LA ALCALDÍA LOCAL DE USAQUEN Y EN LAS ACTUACIONES REQUERIDAS EN EL ÁREA DE GESTIÓN POLICIVA JURÍDICA” | H147: Inversión | I147: 45 | J147: =IF(ISERROR(VLOOKUP(I147,Eje_Pilar!$C$2:$E$47,2,FALSE))," ",VLOOKUP(I147,Eje_Pilar!$C$2:$E$47,2,FALSE)) -> Gobernanza e influencia local, regional e internacional | K147: =IF(ISERROR(VLOOKUP(I147,Eje_Pilar!$C$2:$E$47,3,FALSE))," ",VLOOKUP(I147,Eje_Pilar!$C$2:$E$47,3,FALSE)) -> Eje Transversal 4 Gobierno Legitimo, Fortalecimiento Local y Eficiencia | L147: 3-3-1-15-07-45-1574-000 | M147: 1030565068 | N147: SEBASTIAN OSORIO JIMENEZ | O147: 35707000 | R147: 1 | S147: 10400000 | T147: 46107000 | U147: 30506667 | V147: 2019-06-04 | W147: 2019-06-05 | X147: 2019-12-31 | Y147: 206 | Z147: 60 | AC147: X | AF147: 0.6616493591 | AH147: =IF(SUMPRODUCT((A$14:A147=A147)*(B$14:B147=B147)*(C$14:C147=C147))>1,0,1) -> 1 | AI147: Contratos de prestación de servicios profesionales y de apoyo a la gestión | AJ147: Contratación directa | AK147: =IFERROR(VLOOKUP(F147,Tipo!$C$12:$C$27,1,FALSE),"NO") -> Prestación de servicios profesionales y de apoyo a la gestión, o para la ejecución de trabajos artísticos que sólo puedan encomendarse a determinadas personas naturales; | AL147: Inversión | AM147: 45
A148: 146 | B148: 2019 | C148: FDLUSA-LP-001-2019 | D148: Obra pública | E148: Licitación pública | F148: No aplica | G148: REALIZAR LAS OBRAS DE CONSERVACIÓN DE LA MALLA VIAL EN LA LOCALIDAD DE USAQUÉN Y SU ESPACIO PÚBLICO, EN BOGOTÁ, D.C. A TRAVÉS DEL SISTEMA DE PRECIOS UNITARIOS FIJOS Y A MONTO AGOTABLE | H148: Inversión | I148: 18 | J148: =IF(ISERROR(VLOOKUP(I148,Eje_Pilar!$C$2:$E$47,2,FALSE))," ",VLOOKUP(I148,Eje_Pilar!$C$2:$E$47,2,FALSE)) -> Mejor movilidad para todos | K148: =IF(ISERROR(VLOOKUP(I148,Eje_Pilar!$C$2:$E$47,3,FALSE))," ",VLOOKUP(I148,Eje_Pilar!$C$2:$E$47,3,FALSE)) -> Pilar 2 Democracía Urbana | L148: 3-3-1-15-02-18-1572-000 | M148: 901292776 | N148: CONSORCIO MALLA VIAL UZAQUEN | O148: 4727272727 | R148: 1 | S148: 226867384 | T148: 4954140111 | U148: 1502086629 | V148: 2019-06-13 | W148: PENDIENTE, DE LA ADJUDICACIÓN DE LA INTERVENTORÍA. | X148: PENDIENTE POR ACTA DE INICIO | Y148: 180 | Z148: 120 | AC148: X | AF148: 0.3031982534 | AH148: =IF(SUMPRODUCT((A$14:A148=A148)*(B$14:B148=B148)*(C$14:C148=C148))>1,0,1) -> 1 | AI148: Obra pública | AJ148: Licitación pública | AK148: =IFERROR(VLOOKUP(F148,Tipo!$C$12:$C$27,1,FALSE),"NO") -> NO | AL148: Inversión | AM148: 18
A149: 147 | B149: 2019 | C149: FDLUSA-CI-147-2019 | D149: Contratos interadministrativos | E149: Contratación directa | F149: Contratos interadministrativos | G149: AUNAR ESFUERZOS TÉCNICOS Y ADMINISTRATIVOS, ORIENTADOS A REALIZAR LAS OBRAS DE REAHABILITACIÓN DE LOS CODIGOS DE IDENTIFICACIÓN VIAL (CIV'S) 1001821; 1001822(100181Z 1001794;100177Z- 1001650 Y 1006694-, EN LA CALLE 163AvENTRE CARRERA 141A CARRERA 15 ENTRE CARRERA AUNAR ESFUERZOS TÉCNICOS Y ADMINISTRATIVOS ORIENTADOS A REALIZAR LAS OBRAS DE REHABILITACIÓN DE LOS CÓDIGOS DE IDENTIFICACIÓN VIAL (CIV´S) 1001824; 1001822; 1001812; 1001794; 1001772; 1001650; 1006694, EN LA CALLE 163A ENTRE CARRERA 14A A CARRERA 15 Y ENTRE CARRERA 17 A A K19A DEL BARRIO SAN CRISTOBAL NORTE DE LA LOCALIDAD DE USAQUÉN. | H149: Inversión | J149: =IF(ISERROR(VLOOKUP(I149,Eje_Pilar!$C$2:$E$47,2,FALSE))," ",VLOOKUP(I149,Eje_Pilar!$C$2:$E$47,2,FALSE)) ->  | K149: =IF(ISERROR(VLOOKUP(I149,Eje_Pilar!$C$2:$E$47,3,FALSE))," ",VLOOKUP(I149,Eje_Pilar!$C$2:$E$47,3,FALSE)) ->  | L149: NO APLICA | M149: 899999081 | N149: INSTITUTO DE DESARROLLO URBANO IDU | T149: 0 | V149: 2019-05-06 | W149: 2019-05-22 | X149: 2020-01-21 | Y149: 240 | AC149: X | AF149: - | AH149: =IF(SUMPRODUCT((A$14:A149=A149)*(B$14:B149=B149)*(C$14:C149=C149))>1,0,1) -> 1 | AI149: Contratos interadministrativos | AJ149: Contratación directa | AK149: =IFERROR(VLOOKUP(F149,Tipo!$C$12:$C$27,1,FALSE),"NO") -> Contratos interadministrativos | AL149: Inversión | AM149: NO
A150: 148 | B150: 2019 | C150: FDLUSA-CPS-148-2019 | D150: Contratos de prestación de servicios profesionales y de apoyo a la gestión | E150: Contratación directa | F150: Prestación de servicios profesionales y de apoyo a la gestión, o para la ejecución de trabajos artísticos que sólo puedan encomendarse a determinadas personas naturales; | G150: APOYAR LA GESTIÓN DOCUMENTAL DE LA ALCALDÍA LOCAL EN LA IMPLEMENTACIÓN DE LOS PROCESOS DE CLASIFICACIÓN, ORDENACIÓN, SELECCIÓN NATURAL, FOLIACIÓN, IDENTIFICACIÓN, LEVANTAMIENTO DE INVENTARIOS, ALMACENAMIENTO Y APLICACIÓN DE PROTOCOLOS DE ELIMINACIÓN Y TRANSFERENCIAS DOCUMENTALES | H150: Inversión | I150: 45 | J150: =IF(ISERROR(VLOOKUP(I150,Eje_Pilar!$C$2:$E$47,2,FALSE))," ",VLOOKUP(I150,Eje_Pilar!$C$2:$E$47,2,FALSE)) -> Gobernanza e influencia local, regional e internacional | K150: =IF(ISERROR(VLOOKUP(I150,Eje_Pilar!$C$2:$E$47,3,FALSE))," ",VLOOKUP(I150,Eje_Pilar!$C$2:$E$47,3,FALSE)) -> Eje Transversal 4 Gobierno Legitimo, Fortalecimiento Local y Eficiencia | L150: 3-3-1-15-07-45-1574-000 | M150: 1057597664 | N150: WENDY YINETH LINARES RINCÓN | O150: 16590000 | R150: 1 | S150: 4740000 | T150: 21330000 | U150: 14536000 | V150: 2019-06-10 | W150: 2019-06-12 | X150: 2019-12-31 | Y150: 210 | Z150: 60 | AC150: X | AF150: 0.6814814815 | AH150: =IF(SUMPRODUCT((A$14:A150=A150)*(B$14:B150=B150)*(C$14:C150=C150))>1,0,1) -> 1 | AI150: Contratos de prestación de servicios profesionales y de apoyo a la gestión | AJ150: Contratación directa | AK150: =IFERROR(VLOOKUP(F150,Tipo!$C$12:$C$27,1,FALSE),"NO") -> Prestación de servicios profesionales y de apoyo a la gestión, o para la ejecución de trabajos artísticos que sólo puedan encomendarse a determinadas personas naturales; | AL150: Inversión | AM150: 45
A151: 149 | B151: 2019 | C151: FDLUSA-149-2019 | D151: Contratos de prestación de servicios profesionales y de apoyo a la gestión | E151: Contratación directa | F151: Prestación de servicios profesionales y de apoyo a la gestión, o para la ejecución de trabajos artísticos que sólo puedan encomendarse a determinadas personas naturales; | G151: PRESTAR LOS SERVICIOS COMO CONDUCTOR DE VEHÍCULO LIVIANO Y/O PESADO EN LA ALCALDÍA LOCAL DE USAQUÉN CON PLACAS OLM872, OJX855, OLM958 Y OLN059 | H151: Inversión | I151: 45 | J151: =IF(ISERROR(VLOOKUP(I151,Eje_Pilar!$C$2:$E$47,2,FALSE))," ",VLOOKUP(I151,Eje_Pilar!$C$2:$E$47,2,FALSE)) -> Gobernanza e influencia local, regional e internacional | K151: =IF(ISERROR(VLOOKUP(I151,Eje_Pilar!$C$2:$E$47,3,FALSE))," ",VLOOKUP(I151,Eje_Pilar!$C$2:$E$47,3,FALSE)) -> Eje Transversal 4 Gobierno Legitimo, Fortalecimiento Local y Eficiencia | L151: 3-3-1-15-07-45-1574-000 | M151: 79799993 | N151: FREDY ANDRÉS GORDILLO VALERO | O151: 15405000 | R151: 1 | S151: 4740000 | T151: 20145000 | U151: 14141000 | V151: 2019-06-17 | W151: 2019-06-17 | X151: 2019-12-31 | Y151: 195 | Z151: 60 | AC151: X | AF151: 0.7019607843 | AH151: =IF(SUMPRODUCT((A$14:A151=A151)*(B$14:B151=B151)*(C$14:C151=C151))>1,0,1) -> 1 | AI151: Contratos de prestación de servicios profesionales y de apoyo a la gestión | AJ151: Contratación directa | AK151: =IFERROR(VLOOKUP(F151,Tipo!$C$12:$C$27,1,FALSE),"NO") -> Prestación de servicios profesionales y de apoyo a la gestión, o para la ejecución de trabajos artísticos que sólo puedan encomendarse a determinadas personas naturales; | AL151: Inversión | AM151: 45
A152: 150 | B152: 2019 | C152: FDLUSA-CPS-150-2019 | D152: Contratos de prestación de servicios profesionales y de apoyo a la gestión | E152: Contratación directa | F152: Prestación de servicios profesionales y de apoyo a la gestión, o para la ejecución de trabajos artísticos que sólo puedan encomendarse a determinadas personas naturales; | G152: PRESTAR LOS SERVICIOS COMO CONDUCTOR DE VEHÍCULO LIVIANO Y/O PESADO EN LA ALCALDÍA LOCAL DE USAQUÉN CON PLACAS OLM872, OJX855, OLM958 Y OLN059 | H152: Inversión | I152: 45 | J152: =IF(ISERROR(VLOOKUP(I152,Eje_Pilar!$C$2:$E$47,2,FALSE))," ",VLOOKUP(I152,Eje_Pilar!$C$2:$E$47,2,FALSE)) -> Gobernanza e influencia local, regional e internacional | K152: =IF(ISERROR(VLOOKUP(I152,Eje_Pilar!$C$2:$E$47,3,FALSE))," ",VLOOKUP(I152,Eje_Pilar!$C$2:$E$47,3,FALSE)) -> Eje Transversal 4 Gobierno Legitimo, Fortalecimiento Local y Eficiencia | L152: 3-3-1-15-07-45-1574-000 | M152: 80101374 | N152: YEFER ANDERSON NOVOA AREVALO | O152: 15405000 | R152: 1 | S152: 4740000 | T152: 20145000 | U152: 14062000 | V152: 2019-06-18 | W152: 2019-06-18 | X152: 2019-12-31 | Y152: 195 | Z152: 60 | AC152: X | AF152: 0.6980392157 | AH152: =IF(SUMPRODUCT((A$14:A152=A152)*(B$14:B152=B152)*(C$14:C152=C152))>1,0,1) -> 1 | AI152: Contratos de prestación de servicios profesionales y de apoyo a la gestión | AJ152: Contratación directa | AK152: =IFERROR(VLOOKUP(F152,Tipo!$C$12:$C$27,1,FALSE),"NO") -> Prestación de servicios profesionales y de apoyo a la gestión, o para la ejecución de trabajos artísticos que sólo puedan encomendarse a determinadas personas naturales; | AL152: Inversión | AM152: 45
A153: 151 | B153: 2019 | C153: FDLUSA-CPS-151-2019 | D153: Contratos de prestación de servicios profesionales y de apoyo a la gestión | E153: Contratación directa | F153: Prestación de servicios profesionales y de apoyo a la gestión, o para la ejecución de trabajos artísticos que sólo puedan encomendarse a determinadas personas naturales; | G153: PRESTAR LOS SERVICIOS COMO CONDUCTOR DE VEHÍCULO LIVIANO Y/O PESADO EN LA ALCALDÍA LOCAL DE USAQUÉN CON PLACAS OLM872, OJX855, OLM958 Y OLN059”.” | H153: Inversión | I153: 45 | J153: =IF(ISERROR(VLOOKUP(I153,Eje_Pilar!$C$2:$E$47,2,FALSE))," ",VLOOKUP(I153,Eje_Pilar!$C$2:$E$47,2,FALSE)) -> Gobernanza e influencia local, regional e internacional | K153: =IF(ISERROR(VLOOKUP(I153,Eje_Pilar!$C$2:$E$47,3,FALSE))," ",VLOOKUP(I153,Eje_Pilar!$C$2:$E$47,3,FALSE)) -> Eje Transversal 4 Gobierno Legitimo, Fortalecimiento Local y Eficiencia | L153: 3-3-1-15-07-45-1574-000 | M153: 79705890 | N153: ERNEY SACHICA RAVELO | O153: 15089000 | R153: 1 | S153: 4740000 | T153: 19829000 | U153: 14062000 | V153: 2019-06-18 | W153: 2019-06-20 | X153: 2019-12-31 | Y153: 192 | Z153: 60 | AC153: X | AF153: 0.7091633466 | AH153: =IF(SUMPRODUCT((A$14:A153=A153)*(B$14:B153=B153)*(C$14:C153=C153))>1,0,1) -> 1 | AI153: Contratos de prestación de servicios profesionales y de apoyo a la gestión | AJ153: Contratación directa | AK153: =IFERROR(VLOOKUP(F153,Tipo!$C$12:$C$27,1,FALSE),"NO") -> Prestación de servicios profesionales y de apoyo a la gestión, o para la ejecución de trabajos artísticos que sólo puedan encomendarse a determinadas personas naturales; | AL153: Inversión | AM153: 45
A154: 152 | B154: 2019 | C154: FDLUSA-SAMC-003-2019 | D154: Contratos de prestación de servicios | E154: Selección abreviada | F154: Selección abreviada por menor cuantía | G154: CONTRATAR A PRECIOS UNITARIOS Y A MONTO AGOTABLE LOS SERVICIOS DE APOYO TÉCNICO EN METROLOGÍA LEGAL EN LA MODALIDAD DE VERIFICACIÓN DE EQUIPOS E INSTRUMENTOS DE MEDICIÓN DE METROLOGÍA LEGAL BALANZA COMERCIALES Y SURTIDORES DE COMBUSTIBLE DERIVADOS DEL PETRÓLEO) PARA LA SUPERVISIÓN DE LOS MISMOS EN ESTABLECIMIENTOS COMERCIALES (ESTACIONES DE SERVICIO DE LLENADO, SUPERMERCADOS DE CADENA, AGRÍCOLAS Y MERCADOS EN GENERAL), EN LA LOCALIDAD DE USAQUÉN. | H154: Inversión | I154: 45 | J154: =IF(ISERROR(VLOOKUP(I154,Eje_Pilar!$C$2:$E$47,2,FALSE))," ",VLOOKUP(I154,Eje_Pilar!$C$2:$E$47,2,FALSE)) -> Gobernanza e influencia local, regional e internacional | K154: =IF(ISERROR(VLOOKUP(I154,Eje_Pilar!$C$2:$E$47,3,FALSE))," ",VLOOKUP(I154,Eje_Pilar!$C$2:$E$47,3,FALSE)) -> Eje Transversal 4 Gobierno Legitimo, Fortalecimiento Local y Eficiencia | L154: 3-3-1-15-07-45-1574-000 | M154: 79538529 | N154: LUIS MARIO SOSA RUEDA | O154: 58047600 | R154: 1 | S154: 27500000 | T154: 85547600 | U154: 21965313 | V154: 2019-06-21 | X154: 2019-10-02 | Y154: 90 | Z154: 90 | AC154: X | AF154: 0.2567613001 | AH154: =IF(SUMPRODUCT((A$14:A154=A154)*(B$14:B154=B154)*(C$14:C154=C154))>1,0,1) -> 1 | AI154: Contratos de prestación de servicios | AJ154: Selección abreviada | AK154: =IFERROR(VLOOKUP(F154,Tipo!$C$12:$C$27,1,FALSE),"NO") -> Selección abreviada por menor cuantía | AL154: Inversión | AM154: 45
A155: 153 | B155: 2019 | C155: FDLUSA-CPS-153-2019 | D155: Contratos de prestación de servicios profesionales y de apoyo a la gestión | E155: Contratación directa | F155: Prestación de servicios profesionales y de apoyo a la gestión, o para la ejecución de trabajos artísticos que sólo puedan encomendarse a determinadas personas naturales; | G155: CONTRATAR LOS SERVICIOS DE UN BACHILLER PARA EL FORTALECIMIENTO A LA GESTIÓN LOCAL DE PROCESOS INSTITUCIONALES Y SOCIALES DE INTERÉS PÚBLICO ARTICULADA POR EL FONDO DE DESARROLLO LOCAL DE USAQUÉN EN COMPAÑÍA DE SECTORES ADMINISTRATIVOS DEL DISTRITO, INSTANCIAS Y ORGANIZACIONES SOCIALES EN LA LOCALIDAD” | H155: Inversión | I155: 45 | J155: =IF(ISERROR(VLOOKUP(I155,Eje_Pilar!$C$2:$E$47,2,FALSE))," ",VLOOKUP(I155,Eje_Pilar!$C$2:$E$47,2,FALSE)) -> Gobernanza e influencia local, regional e internacional | K155: =IF(ISERROR(VLOOKUP(I155,Eje_Pilar!$C$2:$E$47,3,FALSE))," ",VLOOKUP(I155,Eje_Pilar!$C$2:$E$47,3,FALSE)) -> Eje Transversal 4 Gobierno Legitimo, Fortalecimiento Local y Eficiencia | L155: 3-3-1-15-07-45-1574-000 | M155: 39542439 | N155: MARIA VICTORIA BARBOSA SILVA | O155: 9960000 | T155: 9960000 | U155: 9351333 | V155: 2019-06-25 | W155: 2019-06-27 | X155: 2019-12-31 | Y155: 180 | AC155: X | AF155: 0.9388888554 | AH155: =IF(SUMPRODUCT((A$14:A155=A155)*(B$14:B155=B155)*(C$14:C155=C155))>1,0,1) -> 1 | AI155: Contratos de prestación de servicios profesionales y de apoyo a la gestión | AJ155: Contratación directa | AK155: =IFERROR(VLOOKUP(F155,Tipo!$C$12:$C$27,1,FALSE),"NO") -> Prestación de servicios profesionales y de apoyo a la gestión, o para la ejecución de trabajos artísticos que sólo puedan encomendarse a determinadas personas naturales; | AL155: Inversión | AM155: 45
A156: 154 | B156: 2019 | C156: FDLUSA-CI-154-2019 | D156: Contratos interadministrativos | E156: Contratación directa | F156: Contratos interadministrativos | G156: Aunar Esfuerzos Técnicos, Administrativos y Financieros, para desarrollar acciones de atención integral a personas con discapacidad, a través del otorgamiento de dispositivos de asistencia personal – ayudas técnicas que no se encuentren previstas o cubiertas dentro del Plan Obligatorio de Salud-POS, acorde a las características y necesidades individuales de las personas con discapacidad, su familia, cuidador o cuidadora y realizar acciones que contribuyan al mejoramiento de la calidad de vida de las personas con discapacidad, insertas en el proyecto No. 1566 “Entre todas y todos nos cuidamos”, establecidas para el componente “AYUDAS TÉCNICAS EN SALUD | H156: Inversión | I156: 3 | J156: =IF(ISERROR(VLOOKUP(I156,Eje_Pilar!$C$2:$E$47,2,FALSE))," ",VLOOKUP(I156,Eje_Pilar!$C$2:$E$47,2,FALSE)) -> Igualdad y autonomía para una Bogotá incluyente | K156: =IF(ISERROR(VLOOKUP(I156,Eje_Pilar!$C$2:$E$47,3,FALSE))," ",VLOOKUP(I156,Eje_Pilar!$C$2:$E$47,3,FALSE)) -> Pilar 1 Igualdad de Calidad de Vida | L156: 3-3-1-15-01-03-1566-000 | M156: 900971006 | N156: SUBRED INTEGRADA DE SERVICIOS DE SALUD NORTE E.S.E. | O156: 625000000 | T156: 625000000 | U156: 312500000 | V156: 2019-06-25 | W156: NO APLICA | X156: 2020-02-24 | Y156: 240 | AC156: X | AF156: 0.5 | AH156: =IF(SUMPRODUCT((A$14:A156=A156)*(B$14:B156=B156)*(C$14:C156=C156))>1,0,1) -> 1 | AI156: Contratos interadministrativos | AJ156: Contratación directa | AK156: =IFERROR(VLOOKUP(F156,Tipo!$C$12:$C$27,1,FALSE),"NO") -> Contratos interadministrativos | AL156: Inversión | AM156: 3
A157: 155 | B157: 2019 | C157: FDLUSA-SAMC-002-2019 | D157: Contratos de prestación de servicios | E157: Selección abreviada | F157: Selección abreviada por menor cuantía | G157: REALIZAR EL MANTENIMIENTO CORRECTIVO Y PREVENTIVO DE INSTRUMENTOS MUSICALES, ADQUISICIÓN DE NUEVOS INSTRUMENTOS MUSICALES Y PROVISIÓN DE REPUESTOS PARA EL FORTALECIMIENTO OPERATIVO DEL CENTRO FILARMÓNICO DE USAQUÉN, EN LA CIUDAD DE BOGOTÁ 2019 | H157: Inversión | I157: 11 | J157: =IF(ISERROR(VLOOKUP(I157,Eje_Pilar!$C$2:$E$47,2,FALSE))," ",VLOOKUP(I157,Eje_Pilar!$C$2:$E$47,2,FALSE)) -> Mejores oportunidades para el desarrollo a través de la cultura, la recreación y el deporte | K157: =IF(ISERROR(VLOOKUP(I157,Eje_Pilar!$C$2:$E$47,3,FALSE))," ",VLOOKUP(I157,Eje_Pilar!$C$2:$E$47,3,FALSE)) -> Pilar 1 Igualdad de Calidad de Vida | L157: 3-3-1-15-01-11-1570-000 | M157: 900131139 | N157: COMERCIALIZADORA SERDAN LTDA | O157: 111303019 | T157: 111303019 | V157: 2019-06-26 | W157: 2019-07-04 | X157: 2019-12-31 | Y157: 180 | AC157: X | AF157: 0 | AH157: =IF(SUMPRODUCT((A$14:A157=A157)*(B$14:B157=B157)*(C$14:C157=C157))>1,0,1) -> 1 | AI157: Contratos de prestación de servicios | AJ157: Selección abreviada | AK157: =IFERROR(VLOOKUP(F157,Tipo!$C$12:$C$27,1,FALSE),"NO") -> Selección abreviada por menor cuantía | AL157: Inversión | AM157: 11
A158: 156 | B158: 2019 | C158: FDLUSA-CPS-156-2019 | D158: Contratos de prestación de servicios profesionales y de apoyo a la gestión | E158: Contratación directa | F158: Prestación de servicios profesionales y de apoyo a la gestión, o para la ejecución de trabajos artísticos que sólo puedan encomendarse a determinadas personas naturales; | G158: CONTRATAR LOS SERVICIOS DE UN BACHILLER PARA EL FORTALECIMIENTO A LA GESTIÓN LOCAL DE PROCESOS INSTITUCIONALES Y SOCIALES DE INTERÉS PÚBLICO ARTICULADA POR EL FONDO DE DESARROLLO LOCAL DE USAQUÉN EN COMPAÑÍA DE SECTORES ADMINISTRATIVOS DEL DISTRITO, INSTANCIAS Y ORGANIZACIONES SOCIALES EN LA LOCALIDAD” | H158: Inversión | I158: 45 | J158: =IF(ISERROR(VLOOKUP(I158,Eje_Pilar!$C$2:$E$47,2,FALSE))," ",VLOOKUP(I158,Eje_Pilar!$C$2:$E$47,2,FALSE)) -> Gobernanza e influencia local, regional e internacional | K158: =IF(ISERROR(VLOOKUP(I158,Eje_Pilar!$C$2:$E$47,3,FALSE))," ",VLOOKUP(I158,Eje_Pilar!$C$2:$E$47,3,FALSE)) -> Eje Transversal 4 Gobierno Legitimo, Fortalecimiento Local y Eficiencia | L158: 3-3-1-15-07-45-1574-000 | M158: 1014204046 | N158: ANDRES FELIPE ARAGON ARANGO | O158: 9960000 | T158: 9960000 | U158: 8521333 | V158: 2019-06-25 | W158: 2019-06-27 | X158: 2019-12-31 | Y158: 180 | AC158: X | AF158: 0.8555555221 | AH158: =IF(SUMPRODUCT((A$14:A158=A158)*(B$14:B158=B158)*(C$14:C158=C158))>1,0,1) -> 1 | AI158: Contratos de prestación de servicios profesionales y de apoyo a la gestión | AJ158: Contratación directa | AK158: =IFERROR(VLOOKUP(F158,Tipo!$C$12:$C$27,1,FALSE),"NO") -> Prestación de servicios profesionales y de apoyo a la gestión, o para la ejecución de trabajos artísticos que sólo puedan encomendarse a determinadas personas naturales; | AL158: Inversión | AM158: 45
A159: 157 | B159: 2019 | C159: FDLUSA-CPS-157-2019 | D159: Contratos de prestación de servicios profesionales y de apoyo a la gestión | E159: Contratación directa | F159: Prestación de servicios profesionales y de apoyo a la gestión, o para la ejecución de trabajos artísticos que sólo puedan encomendarse a determinadas personas naturales; | G159: CONTRATAR LOS SERVICIOS DE UN BACHILLER PARA EL FORTALECIMIENTO A LA GESTIÓN LOCAL DE PROCESOS INSTITUCIONALES Y SOCIALES DE INTERÉS PÚBLICO ARTICULADA POR EL FONDO DE DESARROLLO LOCAL DE USAQUÉN EN COMPAÑÍA DE SECTORES ADMINISTRATIVOS DEL DISTRITO, INSTANCIAS Y ORGANIZACIONES SOCIALES EN LA LOCALIDAD” | H159: Inversión | I159: 45 | J159: =IF(ISERROR(VLOOKUP(I159,Eje_Pilar!$C$2:$E$47,2,FALSE))," ",VLOOKUP(I159,Eje_Pilar!$C$2:$E$47,2,FALSE)) -> Gobernanza e influencia local, regional e internacional | K159: =IF(ISERROR(VLOOKUP(I159,Eje_Pilar!$C$2:$E$47,3,FALSE))," ",VLOOKUP(I159,Eje_Pilar!$C$2:$E$47,3,FALSE)) -> Eje Transversal 4 Gobierno Legitimo, Fortalecimiento Local y Eficiencia | L159: 3-3-1-15-07-45-1574-000 | M159: 80150658 | N159: YADITH FERNANDO NADJAR MEZA | O159: 9960000 | T159: 9960000 | U159: 8521333 | V159: 2019-06-25 | W159: 2019-06-27 | X159: 2019-12-31 | Y159: 180 | AC159: X | AF159: 0.8555555221 | AH159: =IF(SUMPRODUCT((A$14:A159=A159)*(B$14:B159=B159)*(C$14:C159=C159))>1,0,1) -> 1 | AI159: Contratos de prestación de servicios profesionales y de apoyo a la gestión | AJ159: Contratación directa | AK159: =IFERROR(VLOOKUP(F159,Tipo!$C$12:$C$27,1,FALSE),"NO") -> Prestación de servicios profesionales y de apoyo a la gestión, o para la ejecución de trabajos artísticos que sólo puedan encomendarse a determinadas personas naturales; | AL159: Inversión | AM159: 45
A160: 158 | B160: 2019 | C160: FDLUSA-CPS-158-2019 | D160: Contratos de prestación de servicios profesionales y de apoyo a la gestión | E160: Contratación directa | F160: Prestación de servicios profesionales y de apoyo a la gestión, o para la ejecución de trabajos artísticos que sólo puedan encomendarse a determinadas personas naturales; | G160: CONTRATAR LOS SERVICIOS DE UN BACHILLER PARA EL FORTALECIMIENTO A LA GESTIÓN LOCAL DE PROCESOS INSTITUCIONALES Y SOCIALES DE INTERÉS PÚBLICO ARTICULADA POR EL FONDO DE DESARROLLO LOCAL DE USAQUÉN EN COMPAÑÍA DE SECTORES ADMINISTRATIVOS DEL DISTRITO, INSTANCIAS Y ORGANIZACIONES SOCIALES EN LA LOCALIDAD” | H160: Inversión | I160: 45 | J160: =IF(ISERROR(VLOOKUP(I160,Eje_Pilar!$C$2:$E$47,2,FALSE))," ",VLOOKUP(I160,Eje_Pilar!$C$2:$E$47,2,FALSE)) -> Gobernanza e influencia local, regional e internacional | K160: =IF(ISERROR(VLOOKUP(I160,Eje_Pilar!$C$2:$E$47,3,FALSE))," ",VLOOKUP(I160,Eje_Pilar!$C$2:$E$47,3,FALSE)) -> Eje Transversal 4 Gobierno Legitimo, Fortalecimiento Local y Eficiencia | L160: 3-3-1-15-07-45-1574-000 | M160: 26515316 | N160: NELCY SANCHEZ TRUJILLO | O160: 9960000 | T160: 9960000 | U160: 9351333 | V160: 2019-06-25 | W160: 2019-06-27 | X160: 2019-12-31 | Y160: 180 | AC160: X | AF160: 0.9388888554 | AH160: =IF(SUMPRODUCT((A$14:A160=A160)*(B$14:B160=B160)*(C$14:C160=C160))>1,0,1) -> 1 | AI160: Contratos de prestación de servicios profesionales y de apoyo a la gestión | AJ160: Contratación directa | AK160: =IFERROR(VLOOKUP(F160,Tipo!$C$12:$C$27,1,FALSE),"NO") -> Prestación de servicios profesionales y de apoyo a la gestión, o para la ejecución de trabajos artísticos que sólo puedan encomendarse a determinadas personas naturales; | AL160: Inversión | AM160: 45
A161: 159 | B161: 2019 | C161: FDLUSA-CPS-158-2019 | D161: Contratos de prestación de servicios profesionales y de apoyo a la gestión | E161: Contratación directa | F161: Prestación de servicios profesionales y de apoyo a la gestión, o para la ejecución de trabajos artísticos que sólo puedan encomendarse a determinadas personas naturales; | G161: CONTRATAR LOS SERVICIOS DE UN BACHILLER PARA EL FORTALECIMIENTO A LA GESTIÓN LOCAL DE PROCESOS INSTITUCIONALES Y SOCIALES DE INTERÉS PÚBLICO ARTICULADA POR EL FONDO DE DESARROLLO LOCAL DE USAQUÉN EN COMPAÑÍA DE SECTORES ADMINISTRATIVOS DEL DISTRITO, INSTANCIAS Y ORGANIZACIONES SOCIALES EN LA LOCALIDAD” | H161: Inversión | I161: 45 | J161: =IF(ISERROR(VLOOKUP(I161,Eje_Pilar!$C$2:$E$47,2,FALSE))," ",VLOOKUP(I161,Eje_Pilar!$C$2:$E$47,2,FALSE)) -> Gobernanza e influencia local, regional e internacional | K161: =IF(ISERROR(VLOOKUP(I161,Eje_Pilar!$C$2:$E$47,3,FALSE))," ",VLOOKUP(I161,Eje_Pilar!$C$2:$E$47,3,FALSE)) -> Eje Transversal 4 Gobierno Legitimo, Fortalecimiento Local y Eficiencia | L161: 3-3-1-15-07-45-1574-000 | M161: 26987203 | N161: MAIDA CECILIA ASIS URECHE | O161: 9960000 | T161: 9960000 | U161: 9019333 | V161: 2019-06-25 | X161: 2019-12-31 | Y161: 180 | AC161: X | AF161: 0.9055555221 | AH161: =IF(SUMPRODUCT((A$14:A161=A161)*(B$14:B161=B161)*(C$14:C161=C161))>1,0,1) -> 1 | AI161: Contratos de prestación de servicios profesionales y de apoyo a la gestión | AJ161: Contratación directa | AK161: =IFERROR(VLOOKUP(F161,Tipo!$C$12:$C$27,1,FALSE),"NO") -> Prestación de servicios profesionales y de apoyo a la gestión, o para la ejecución de trabajos artísticos que sólo puedan encomendarse a determinadas personas naturales; | AL161: Inversión | AM161: 45
A162: 160 | B162: 2019 | C162: FDLUSA-CPS-160-2019 | D162: Contratos de prestación de servicios profesionales y de apoyo a la gestión | E162: Contratación directa | F162: Prestación de servicios profesionales y de apoyo a la gestión, o para la ejecución de trabajos artísticos que sólo puedan encomendarse a determinadas personas naturales; | G162: “PRESTAR LOS SERVICIOS PROFESIONALES PARA APOYAR TÉCNICAMENTE LAS DISTINTAS ETAPAS DE LOS PROCESOS DE COMPETENCIA DE LAS INSPECCIONES DE POLICÍA DE LA LOCALIDAD, SEGÚN REPARTO”. | H162: Inversión | I162: 45 | J162: =IF(ISERROR(VLOOKUP(I162,Eje_Pilar!$C$2:$E$47,2,FALSE))," ",VLOOKUP(I162,Eje_Pilar!$C$2:$E$47,2,FALSE)) -> Gobernanza e influencia local, regional e internacional | K162: =IF(ISERROR(VLOOKUP(I162,Eje_Pilar!$C$2:$E$47,3,FALSE))," ",VLOOKUP(I162,Eje_Pilar!$C$2:$E$47,3,FALSE)) -> Eje Transversal 4 Gobierno Legitimo, Fortalecimiento Local y Eficiencia | L162: 3-3-1-15-07-45-1574-000 | M162: 1073512111 | N162: LAURA ALEJANDRA MARIN GARIBELLO | O162: 32310000 | R162: 1 | S162: 10770000 | T162: 43080000 | U162: 26745500 | V162: 2019-06-26 | W162: 2019-07-02 | X162: 2019-12-31 | Y162: 179 | Z162: 60 | AC162: X | AF162: 0.6208333333 | AH162: =IF(SUMPRODUCT((A$14:A162=A162)*(B$14:B162=B162)*(C$14:C162=C162))>1,0,1) -> 1 | AI162: Contratos de prestación de servicios profesionales y de apoyo a la gestión | AJ162: Contratación directa | AK162: =IFERROR(VLOOKUP(F162,Tipo!$C$12:$C$27,1,FALSE),"NO") -> Prestación de servicios profesionales y de apoyo a la gestión, o para la ejecución de trabajos artísticos que sólo puedan encomendarse a determinadas personas naturales; | AL162: Inversión | AM162: 45
A163: 161 | B163: 2019 | C163: FDLUSA-CPS-161-2019 | D163: Contratos de prestación de servicios profesionales y de apoyo a la gestión | E163: Contratación directa | F163: Prestación de servicios profesionales y de apoyo a la gestión, o para la ejecución de trabajos artísticos que sólo puedan encomendarse a determinadas personas naturales; | G163: ““PRESTAR LOS SERVICIOS PROFESIONALES A LA ALCALDÍA LOCAL DE USAQUÉN PARA APOYAR EL ÁREA DE INFRAESTRUCTURA ENFOCADO AL SECTOR MOVILIDAD, MEDIANTE LA REALIZACIÓN DE PROCESOS TÉCNICOS REQUERIDOS PARA DAR SOPORTE A LOS CONTRATOS EN EJECUCIÓN Y EJECUTADOS RELACIONADOS CON MALLA VIAL Y ESPACIO PÚBLICO, QUE SE ENCUENTREN CONTEMPLADOS EN EL PLAN DE DESARROLLO “USACA MEJOR PARA TODOS, USAQUÉN CUENTA CONTIGO 2017-2020” | H163: Inversión | I163: 18 | J163: =IF(ISERROR(VLOOKUP(I163,Eje_Pilar!$C$2:$E$47,2,FALSE))," ",VLOOKUP(I163,Eje_Pilar!$C$2:$E$47,2,FALSE)) -> Mejor movilidad para todos | K163: =IF(ISERROR(VLOOKUP(I163,Eje_Pilar!$C$2:$E$47,3,FALSE))," ",VLOOKUP(I163,Eje_Pilar!$C$2:$E$47,3,FALSE)) -> Pilar 2 Democracía Urbana | L163: 3-3-1-15-02-18-1572-000 | M163: 1020773984 | N163: JUAN CARLOS ROJAS PERDOMO | O163: 24900000 | R163: 1 | S163: 4150000 | T163: 29050000 | U163: 22686667 | V163: 2019-06-26 | W163: 2019-07-02 | X163: 2019-12-31 | Y163: 179 | Z163: 30 | AC163: X | AF163: 0.7809523924 | AH163: =IF(SUMPRODUCT((A$14:A163=A163)*(B$14:B163=B163)*(C$14:C163=C163))>1,0,1) -> 1 | AI163: Contratos de prestación de servicios profesionales y de apoyo a la gestión | AJ163: Contratación directa | AK163: =IFERROR(VLOOKUP(F163,Tipo!$C$12:$C$27,1,FALSE),"NO") -> Prestación de servicios profesionales y de apoyo a la gestión, o para la ejecución de trabajos artísticos que sólo puedan encomendarse a determinadas personas naturales; | AL163: Inversión | AM163: 18
A164: 162 | B164: 2019 | C164: FDLUSA-CPS-162-2019 | D164: Contratos de prestación de servicios profesionales y de apoyo a la gestión | E164: Contratación directa | F164: Prestación de servicios profesionales y de apoyo a la gestión, o para la ejecución de trabajos artísticos que sólo puedan encomendarse a determinadas personas naturales; | G164: PRESTAR LOS SERVICIOS PROFESIONALES A LA ALCALDÍA LOCAL, PARA EL ACOMPAÑAMIENTO Y DESARROLLO DE ACTUACIONES ADMINISTRATIVAS TENDIENTES PARA REALIZAR LAS DILIGENCIAS COMISIONADAS POR LOS DESPACHOS JUDICIALES”. | H164: Inversión | I164: 45 | J164: =IF(ISERROR(VLOOKUP(I164,Eje_Pilar!$C$2:$E$47,2,FALSE))," ",VLOOKUP(I164,Eje_Pilar!$C$2:$E$47,2,FALSE)) -> Gobernanza e influencia local, regional e internacional | K164: =IF(ISERROR(VLOOKUP(I164,Eje_Pilar!$C$2:$E$47,3,FALSE))," ",VLOOKUP(I164,Eje_Pilar!$C$2:$E$47,3,FALSE)) -> Eje Transversal 4 Gobierno Legitimo, Fortalecimiento Local y Eficiencia | L164: 3-3-1-15-07-45-1574-000 | M164: 1010208855 | N164: JUAN SEBASTIAN CASTRO GUZMAN | O164: 36000000 | R164: 1 | S164: 12000000 | T164: 48000000 | U164: 33600000 | V164: 2019-06-26 | W164: 2019-06-28 | X164: 2019-12-31 | Y164: 180 | Z164: 60 | AC164: X | AF164: 0.7 | AH164: =IF(SUMPRODUCT((A$14:A164=A164)*(B$14:B164=B164)*(C$14:C164=C164))>1,0,1) -> 1 | AI164: Contratos de prestación de servicios profesionales y de apoyo a la gestión | AJ164: Contratación directa | AK164: =IFERROR(VLOOKUP(F164,Tipo!$C$12:$C$27,1,FALSE),"NO") -> Prestación de servicios profesionales y de apoyo a la gestión, o para la ejecución de trabajos artísticos que sólo puedan encomendarse a determinadas personas naturales; | AL164: Inversión | AM164: 45
A165: 163 | B165: 2019 | C165: FDLUSA-CIPS-163-2019 | D165: Contratos interadministrativos | E165: Contratación directa | F165: Prestación de servicios profesionales y de apoyo a la gestión, o para la ejecución de trabajos artísticos que sólo puedan encomendarse a determinadas personas naturales; | G165: PRESTAR LOS SERVICIOS DE DISTRIBUCIÓN Y TRÁMITE DE COMUNICACIONES OFICIALES EXTERNAS ENVIADAS, EN FORMA PERSONALIZADA Y/O INMEDIATA, ASÍ COMO LOS SERVICIOS DE CORREO EN SUS DIFERENTES MODALIDADES, DE ACUERDO CON LAS NECESIDADES DEL SERVICIO Y LOS REQUERIMIENTOS DE LA ALCALDÍA LOCAL DE USAQUÉN, EN EL CENTRO DE DOCUMENTACIÓN E INFORMACIÓN DE LA MISMA | H165: Funcionamiento | J165: =IF(ISERROR(VLOOKUP(I165,Eje_Pilar!$C$2:$E$47,2,FALSE))," ",VLOOKUP(I165,Eje_Pilar!$C$2:$E$47,2,FALSE)) ->  | K165: =IF(ISERROR(VLOOKUP(I165,Eje_Pilar!$C$2:$E$47,3,FALSE))," ",VLOOKUP(I165,Eje_Pilar!$C$2:$E$47,3,FALSE)) ->  | L165: 3-1-02-02-01-0006-001 | M165: 900629179 | N165: SERVICIOS POSTALES NACIONALES S.A 4-72 | O165: 87000000 | T165: 87000000 | U165: 64519455 | V165: 2019-06-26 | W165: 2019-07-08 | X165: 2019-02-07 | Y165: 210 | AC165: X | AF165: 0.741602931 | AH165: =IF(SUMPRODUCT((A$14:A165=A165)*(B$14:B165=B165)*(C$14:C165=C165))>1,0,1) -> 1 | AI165: Contratos interadministrativos | AJ165: Contratación directa | AK165: =IFERROR(VLOOKUP(F165,Tipo!$C$12:$C$27,1,FALSE),"NO") -> Prestación de servicios profesionales y de apoyo a la gestión, o para la ejecución de trabajos artísticos que sólo puedan encomendarse a determinadas personas naturales; | AL165: Funcionamiento | AM165: NO
A166: 164 | B166: 2019 | C166: FDLUSA-CPS-164-2019 | D166: Contratos de prestación de servicios profesionales y de apoyo a la gestión | E166: Contratación directa | F166: Prestación de servicios profesionales y de apoyo a la gestión, o para la ejecución de trabajos artísticos que sólo puedan encomendarse a determinadas personas naturales; | G166: CONTRATAR LOS SERVICIOS DE UN BACHILLER PARA EL FORTALECIMIENTO A LA GESTIÓN LOCAL DE PROCESOS INSTITUCIONALES Y SOCIALES DE INTERÉS PÚBLICO ARTICULADA POR EL FONDO DE DESARROLLO LOCAL DE USAQUÉN EN COMPAÑÍA DE SECTORES ADMINISTRATIVOS DEL DISTRITO, INSTANCIAS Y ORGANIZACIONES SOCIALES EN LA LOCALIDAD” | H166: Inversión | I166: 45 | J166: =IF(ISERROR(VLOOKUP(I166,Eje_Pilar!$C$2:$E$47,2,FALSE))," ",VLOOKUP(I166,Eje_Pilar!$C$2:$E$47,2,FALSE)) -> Gobernanza e influencia local, regional e internacional | K166: =IF(ISERROR(VLOOKUP(I166,Eje_Pilar!$C$2:$E$47,3,FALSE))," ",VLOOKUP(I166,Eje_Pilar!$C$2:$E$47,3,FALSE)) -> Eje Transversal 4 Gobierno Legitimo, Fortalecimiento Local y Eficiencia | L166: 3-3-1-15-07-45-1574-000 | M166: 1018489973 | N166: JOSE LUIS PIÑEROS GONZALEZ | O166: 9960000 | T166: 9960000 | U166: 9074667 | V166: 2019-06-26 | W166: 2019-07-02 | X166: 2019-12-31 | Y166: 180 | AC166: X | AF166: 0.9111111446 | AH166: =IF(SUMPRODUCT((A$14:A166=A166)*(B$14:B166=B166)*(C$14:C166=C166))>1,0,1) -> 1 | AI166: Contratos de prestación de servicios profesionales y de apoyo a la gestión | AJ166: Contratación directa | AK166: =IFERROR(VLOOKUP(F166,Tipo!$C$12:$C$27,1,FALSE),"NO") -> Prestación de servicios profesionales y de apoyo a la gestión, o para la ejecución de trabajos artísticos que sólo puedan encomendarse a determinadas personas naturales; | AL166: Inversión | AM166: 45
A167: 165 | B167: 2019 | C167: SECOP I: FDLUSA-CPS-165-2019 | D167: Contratos de prestación de servicios profesionales y de apoyo a la gestión | E167: Contratación directa | F167: Prestación de servicios profesionales y de apoyo a la gestión, o para la ejecución de trabajos artísticos que sólo puedan encomendarse a determinadas personas naturales; | G167: PRESTAR SUS SERVICIOS PROFESIONALES A LA ALCALDÍA LOCAL DE USAQUEN APOYANDO LA EJECUCIÓN DEL PROYECTO 1568 LE-GALIZATE, EN EL COMPONENTE TÉCNICO AVALUANDO COMER-CIALMENTE LOS PREDIOS TENDIENTES' A LA TITULACIÓN CON-FORME A GARANTIZAR EL CUMPLIMIENTO DEL PLAN DE DESA-RROLLO LOCAL POR PRECIO UNITARIO | H167: Inversión | I167: 15 | J167: =IF(ISERROR(VLOOKUP(I167,Eje_Pilar!$C$2:$E$47,2,FALSE))," ",VLOOKUP(I167,Eje_Pilar!$C$2:$E$47,2,FALSE)) -> Recuperación, incorporación, vida urbana y control de la ilegalidad | K167: =IF(ISERROR(VLOOKUP(I167,Eje_Pilar!$C$2:$E$47,3,FALSE))," ",VLOOKUP(I167,Eje_Pilar!$C$2:$E$47,3,FALSE)) -> Pilar 2 Democracía Urbana | L167: 3-3-1-15-02-15-1568-000 | M167: 901171806 | N167: AVALUOS ACREDITADOS A.A S.A.S | O167: 11500000 | T167: 11500000 | U167: 5750000 | V167: 2019-06-26 | W167: 2019-07-15 | X167: 2019-12-31 | Y167: 180 | AC167: X | AF167: 0.5 | AH167: =IF(SUMPRODUCT((A$14:A167=A167)*(B$14:B167=B167)*(C$14:C167=C167))>1,0,1) -> 1 | AI167: =IFERROR(VLOOKUP(D167,tipo,1,FALSE),"NO") -> Contratos de prestación de servicios profesionales y de apoyo a la gestión | AJ167: =IFERROR(VLOOKUP(E167,modal,1,FALSE),"NO") -> Contratación directa | AK167: =IFERROR(VLOOKUP(F167,Tipo!$C$12:$C$27,1,FALSE),"NO") -> Prestación de servicios profesionales y de apoyo a la gestión, o para la ejecución de trabajos artísticos que sólo puedan encomendarse a determinadas personas naturales; | AL167: =IFERROR(VLOOKUP(H167,afectacion,1,FALSE),"NO") -> Inversión | AM167: =IFERROR(VLOOKUP(I167,programa,1,FALSE),"NO") -> 15
A168: 166 | B168: 2019 | C168: FDLUSA-CPS-166-2019 | D168: Contratos de prestación de servicios profesionales y de apoyo a la gestión | E168: Contratación directa | F168: Prestación de servicios profesionales y de apoyo a la gestión, o para la ejecución de trabajos artísticos que sólo puedan encomendarse a determinadas personas naturales; | G168: CONTRATAR LOS SERVICIOS DE UN BACHILLER PARA EL FORTALECIMIENTO A LA GESTIÓN LOCAL DE PROCESOS INSTITUCIONALES Y SOCIALES DE INTERÉS PÚBLICO ARTICULADA POR EL FONDO DE DESARROLLO LOCAL DE USAQUÉN EN COMPAÑÍA DE SECTORES ADMINISTRATIVOS DEL DISTRITO, INSTANCIAS Y ORGANIZACIONES SOCIALES EN LA LOCALIDAD” | H168: Inversión | I168: 45 | J168: =IF(ISERROR(VLOOKUP(I168,Eje_Pilar!$C$2:$E$47,2,FALSE))," ",VLOOKUP(I168,Eje_Pilar!$C$2:$E$47,2,FALSE)) -> Gobernanza e influencia local, regional e internacional | K168: =IF(ISERROR(VLOOKUP(I168,Eje_Pilar!$C$2:$E$47,3,FALSE))," ",VLOOKUP(I168,Eje_Pilar!$C$2:$E$47,3,FALSE)) -> Eje Transversal 4 Gobierno Legitimo, Fortalecimiento Local y Eficiencia | L168: 3-3-1-15-07-45-1574-000 | M168: 79739077 | N168: ARIEL FERNANDO VELANDIA VALDERRAMA | O168: 9960000 | T168: 9960000 | U168: 8964000 | V168: 2019-06-26 | X168: 2019-12-31 | Y168: 180 | AC168: X | AF168: 0.9 | AH168: =IF(SUMPRODUCT((A$14:A168=A168)*(B$14:B168=B168)*(C$14:C168=C168))>1,0,1) -> 1 | AI168: Contratos de prestación de servicios profesionales y de apoyo a la gestión | AJ168: Contratación directa | AK168: =IFERROR(VLOOKUP(F168,Tipo!$C$12:$C$27,1,FALSE),"NO") -> Prestación de servicios profesionales y de apoyo a la gestión, o para la ejecución de trabajos artísticos que sólo puedan encomendarse a determinadas personas naturales; | AL168: Inversión | AM168: 45
A169: 167 | B169: 2019 | C169: FDLUSA-CPS-167-2019 | D169: Contratos interadministrativos | E169: Contratación directa | F169: Contratos interadministrativos | G169: ANUAR ESFUERZOS TÉCNICOS, ADMINISTRATIVOS Y FINANCIEROS PARA ADELANTAR LAS OBRAS DEL CENTRO FUNDACIONAL, EN LA LOCALIDAD DE USAQUÉN, EN DESARROLLO DE LOS ESTUDIOS Y DISEÑOS DEL CONTRATO DE CONSULTORIA IDU-1514-2017 | H169: Inversión | I169: 18 | J169: =IF(ISERROR(VLOOKUP(I169,Eje_Pilar!$C$2:$E$47,2,FALSE))," ",VLOOKUP(I169,Eje_Pilar!$C$2:$E$47,2,FALSE)) -> Mejor movilidad para todos | K169: =IF(ISERROR(VLOOKUP(I169,Eje_Pilar!$C$2:$E$47,3,FALSE))," ",VLOOKUP(I169,Eje_Pilar!$C$2:$E$47,3,FALSE)) -> Pilar 2 Democracía Urbana | L169: 3-3-1-15-02-18-1572-000 | M169: 899999081 | N169: INSTITUTO DE DESARROLLO URBANO IDU | O169: 6000000000 | T169: 6000000000 | U169: 6000000000 | V169: 2019-06-26 | W169: EN EXPEDICIÓN | X169: 2021-08-25 | Y169: 810 | AC169: X | AF169: 1 | AH169: =IF(SUMPRODUCT((A$14:A169=A169)*(B$14:B169=B169)*(C$14:C169=C169))>1,0,1) -> 1 | AI169: Contratos interadministrativos | AJ169: Contratación directa | AK169: =IFERROR(VLOOKUP(F169,Tipo!$C$12:$C$27,1,FALSE),"NO") -> Contratos interadministrativos | AL169: Inversión | AM169: 18
A170: 168 | B170: 2019 | C170: FDLUSA-CI-168-2019 | D170: Contratos interadministrativos | E170: Contratación directa | F170: Contratos interadministrativos | G170: 1. Aunar esfuerzos técnicos, administrativos y financieros entre la SECRETARÍA DISTRITAL DEL HÁBITAT, el FONDO DE DESARROLLO LOCAL DE USAQUEN y la EMPRESA DE ACUEDUCTO Y ALCANTARILLADO DE BOGOTÁ - E.A.A.B E.S.P, para la construcción y mantenimiento rutinario de la Plazoleta del desarenador, ubicado en la Carrera 6A No. 163 – 08, propiedad de la EAAB-ESP., y el espacio público asociado, las cuales hacen parte del Proyecto “Nodo Comercial La Mariposa”, conforme las competencias legales asignadas a cada una de las entidades. | H170: Funcionamiento | J170: =IF(ISERROR(VLOOKUP(I170,Eje_Pilar!$C$2:$E$47,2,FALSE))," ",VLOOKUP(I170,Eje_Pilar!$C$2:$E$47,2,FALSE)) ->  | K170: =IF(ISERROR(VLOOKUP(I170,Eje_Pilar!$C$2:$E$47,3,FALSE))," ",VLOOKUP(I170,Eje_Pilar!$C$2:$E$47,3,FALSE)) ->  | L170: NO APLICA | M170: 89999906 | N170: SECRETARIA DISTRITAL DE HABITAT | O170: 0 | T170: 0 | V170: 2019-06-25 | W170: NO APLICA | X170: NO APLICA | Y170: 5 AÑOS | AC170: X | AF170: - | AH170: =IF(SUMPRODUCT((A$14:A170=A170)*(B$14:B170=B170)*(C$14:C170=C170))>1,0,1) -> 1 | AI170: Contratos interadministrativos | AJ170: Contratación directa | AK170: =IFERROR(VLOOKUP(F170,Tipo!$C$12:$C$27,1,FALSE),"NO") -> Contratos interadministrativos | AL170: Funcionamiento | AM170: NO
A171: 169 | B171: 2019 | C171: SECOP I: FDLUSA-CI-169-2019 | D171: Contratos interadministrativos | E171: Contratación directa | F171: Contratos interadministrativos | G171: Aunar esfuerzos técnicos, administrativos, financieros y ambientales para la intervención de los segmentos viales que se ubiquen en los predios que la EAAB administra o de los cuales es titular o que se encuentran ubicados en las áreas de importancia estratégica dentro de la Localidad de Usaquén. | H171: Funcionamiento | J171: =IF(ISERROR(VLOOKUP(I171,Eje_Pilar!$C$2:$E$47,2,FALSE))," ",VLOOKUP(I171,Eje_Pilar!$C$2:$E$47,2,FALSE)) ->  | K171: =IF(ISERROR(VLOOKUP(I171,Eje_Pilar!$C$2:$E$47,3,FALSE))," ",VLOOKUP(I171,Eje_Pilar!$C$2:$E$47,3,FALSE)) ->  | L171: NO APLICA | M171: 899999094 | N171: E.A.A.B, UAERMV, FDLUSA | T171: 0 | V171: 2019-06-26 | W171: NO APLICA | Y171: 360 | AC171: X | AF171: - | AH171: =IF(SUMPRODUCT((A$14:A171=A171)*(B$14:B171=B171)*(C$14:C171=C171))>1,0,1) -> 1 | AI171: Contratos interadministrativos | AJ171: Contratación directa | AK171: =IFERROR(VLOOKUP(F171,Tipo!$C$12:$C$27,1,FALSE),"NO") -> Contratos interadministrativos | AL171: Funcionamiento | AM171: NO
A172: 170 | B172: 2019 | C172: FDLUSA-CI-170-2019 | D172: Contratos interadministrativos | E172: Contratación directa | F172: Contratos interadministrativos | G172: COFINANCIAR LA DOTACIÓN TECNOLÓGICA DE INSTITUCIONES EDUCATIVAS DEL DISTRITO CAPITAL | H172: Inversión | I172: 7 | J172: =IF(ISERROR(VLOOKUP(I172,Eje_Pilar!$C$2:$E$47,2,FALSE))," ",VLOOKUP(I172,Eje_Pilar!$C$2:$E$47,2,FALSE)) -> Inclusión educativa para la equidad | K172: =IF(ISERROR(VLOOKUP(I172,Eje_Pilar!$C$2:$E$47,3,FALSE))," ",VLOOKUP(I172,Eje_Pilar!$C$2:$E$47,3,FALSE)) -> Pilar 1 Igualdad de Calidad de Vida | L172: 3-3-1-15-01-07-1565-000 | M172: 899999061 | N172: SECRETARÍA DE EDUCACIÓN DEL DISTRITO NEX COMPUTER SAS | O172: 425000000 | T172: 425000000 | U172: 425000000 | V172: 2019-05-08 | W172: NO APLICA | X172: 2019-12-31 | Y172: 210 | AC172: X | AF172: 1 | AH172: =IF(SUMPRODUCT((A$14:A172=A172)*(B$14:B172=B172)*(C$14:C172=C172))>1,0,1) -> 1 | AI172: Contratos interadministrativos | AJ172: Contratación directa | AK172: =IFERROR(VLOOKUP(F172,Tipo!$C$12:$C$27,1,FALSE),"NO") -> Contratos interadministrativos | AL172: Inversión | AM172: 7
A173: 171 | B173: 2019 | C173: FDLUSA-CI-171-2019 | D173: Interventoría | E173: Concurso de méritos | F173: No aplica | G173: REALIZAR LA INTERVENTORÍA, TÉCNICA, ADMINISTRATIVA, JURÍDICA, FINANCIERA, SOCIAL, AMBIENTAL Y DE SEGURIDAD Y SALUD EN EL TRABAJO AL CONTRATO” cuyo objeto es: “REALIZAR LAS OBRAS DE CONSERVACIÓN DE LA MALLA VIAL EN LA LOCALIDAD DE USAQUÉN Y SU ESPACIO PÚBLICO, EN BOGOTÁ, D.C. A TRAVÉS DEL SISTEMA DE PRECIOS UNITARIOS FIJOS Y A MONTO AGOTABLE | H173: Inversión | I173: 18 | J173: =IF(ISERROR(VLOOKUP(I173,Eje_Pilar!$C$2:$E$47,2,FALSE))," ",VLOOKUP(I173,Eje_Pilar!$C$2:$E$47,2,FALSE)) -> Mejor movilidad para todos | K173: =IF(ISERROR(VLOOKUP(I173,Eje_Pilar!$C$2:$E$47,3,FALSE))," ",VLOOKUP(I173,Eje_Pilar!$C$2:$E$47,3,FALSE)) -> Pilar 2 Democracía Urbana | L173: 3-3-1-15-02-18-1572-000 | M173: 901297779 | N173: CONSORCIO BOGOTA NORTE integrado por INCGROUP SAS NIT. 900.437.004-0 60% Y CONURMA INGENIEROS CONSULTORES SL SUCURSAL COLOMBIA NIT. 900.498.289-3 40% | O173: 472727273 | R173: 1 | S173: 32500000 | T173: 505227273 | U173: 209509905 | V173: 2019-06-28 | W173: 2019-07-29 | X173: 2019-01-28 | Y173: 180 | AC173: X | AF173: 0.4146844721 | AH173: =IF(SUMPRODUCT((A$14:A173=A173)*(B$14:B173=B173)*(C$14:C173=C173))>1,0,1) -> 1 | AI173: Interventoría | AJ173: Concurso de méritos | AK173: =IFERROR(VLOOKUP(F173,Tipo!$C$12:$C$27,1,FALSE),"NO") -> NO | AL173: Inversión | AM173: 18
A174: 367 | B174: 2019 | C174: 367 (NUMERO ASIGNADO POR IDIGER | D174: Otros | E174: Contratación directa | F174: No aplica | G174: ENTREGAR A LA ALCALDÍA LOCAL DE USAQUÉN A TÍTULO DE COMODATO, EQUIPOS DE COMUNICACIÓN Y SUS ACCESORIOS DE PROPIEDAD DEL IDIGER, CON DESTINO Y USO EXCLUSIVO DE LA ALCALDÍA LOCAL DE USAQUÉN DENTRO DE LA CIUDAD DE BOGOTÁ D.C. | H174: Inversión | J174: =IF(ISERROR(VLOOKUP(I174,Eje_Pilar!$C$2:$E$47,2,FALSE))," ",VLOOKUP(I174,Eje_Pilar!$C$2:$E$47,2,FALSE)) ->  | K174: =IF(ISERROR(VLOOKUP(I174,Eje_Pilar!$C$2:$E$47,3,FALSE))," ",VLOOKUP(I174,Eje_Pilar!$C$2:$E$47,3,FALSE)) ->  | L174: NO APLICA | M174: 8001542751 | N174: FONDO DE DESARROLLO LOCAL DE USAQUEN-INSTITUTO DISTRITAL DE GESTION DE RIESGOS Y CAMBIO CLIMATICO IDIGER | T174: 0 | V174: 2019-06-26 | W174: 2019-06-26 | X174: 2024-06-25 | Y174: 360 | AC174: X | AF174: - | AH174: =IF(SUMPRODUCT((A$14:A174=A174)*(B$14:B174=B174)*(C$14:C174=C174))>1,0,1) -> 1 | AI174: Otros | AJ174: Contratación directa | AK174: =IFERROR(VLOOKUP(F174,Tipo!$C$12:$C$27,1,FALSE),"NO") -> NO | AL174: Inversión | AM174: NO
A175: 173 | B175: 2019 | C175: FDLUSA-MC-09-2019 | D175: Suministro | E175: Contratación mínima cuantia | F175: No aplica | G175: ADQUISICIÓN DE CHAQUETAS DISTINTIVAS PARA LAS PRESENTACIONES DE LOS NIÑOS DEL CENTRO FILARMÓNICO DE USAQUÉN -CEFIU- 2019, DE ACUERDO A LAS ESPECIFICACIONES TÉCNICAS PROVISTAS POR LA ENTIDAD | H175: Inversión | I175: 11 | J175: =IF(ISERROR(VLOOKUP(I175,Eje_Pilar!$C$2:$E$47,2,FALSE))," ",VLOOKUP(I175,Eje_Pilar!$C$2:$E$47,2,FALSE)) -> Mejores oportunidades para el desarrollo a través de la cultura, la recreación y el deporte | K175: =IF(ISERROR(VLOOKUP(I175,Eje_Pilar!$C$2:$E$47,3,FALSE))," ",VLOOKUP(I175,Eje_Pilar!$C$2:$E$47,3,FALSE)) -> Pilar 1 Igualdad de Calidad de Vida | L175: 3-3-1-15-01-11-1570-000 | M175: 900990752 | N175: PROYECTOS INSTITUCIONALES DE COLOMBIA SAS - PROINCOL JK SAS | O175: 7973000 | T175: 7973000 | U175: 7973000 | V175: 2019-08-20 | W175: 2019-09-09 | X175: 2019-10-24 | Y175: 45 | AC175: X | AF175: 1 | AH175: =IF(SUMPRODUCT((A$14:A175=A175)*(B$14:B175=B175)*(C$14:C175=C175))>1,0,1) -> 1 | AI175: Suministro | AJ175: Contratación mínima cuantia | AK175: =IFERROR(VLOOKUP(F175,Tipo!$C$12:$C$27,1,FALSE),"NO") -> NO | AL175: Inversión | AM175: 11
A176: 174 | B176: 2019 | C176: FDLUSA-MC-011-2019 | D176: Compraventa de bienes muebles | E176: Contratación mínima cuantia | F176: No aplica | G176: ADQUISICIÓN DE SILLETERÍA PARA EL FORTALECIMIENTO PEDAGÓGICO DEL CENTRO FILARMÓNICO DE USAQUÉN -CEFIU- 2019, DE ACUERDO A LAS ESPECIFICACIONES TÉCNICAS PROVISTAS POR LA ENTIDAD | H176: Inversión | I176: 11 | J176: =IF(ISERROR(VLOOKUP(I176,Eje_Pilar!$C$2:$E$47,2,FALSE))," ",VLOOKUP(I176,Eje_Pilar!$C$2:$E$47,2,FALSE)) -> Mejores oportunidades para el desarrollo a través de la cultura, la recreación y el deporte | K176: =IF(ISERROR(VLOOKUP(I176,Eje_Pilar!$C$2:$E$47,3,FALSE))," ",VLOOKUP(I176,Eje_Pilar!$C$2:$E$47,3,FALSE)) -> Pilar 1 Igualdad de Calidad de Vida | L176: 3-3-1-15-01-11-1570-000 | M176: 900695659 | N176: INDUSTRIAS SAGGO S A S | O176: 3580000 | T176: 3580000 | U176: 3580000 | V176: 2019-08-20 | W176: 2019-08-30 | X176: 2019-09-29 | Y176: 30 | AC176: X | AF176: 1 | AH176: =IF(SUMPRODUCT((A$14:A176=A176)*(B$14:B176=B176)*(C$14:C176=C176))>1,0,1) -> 1 | AI176: Compraventa de bienes muebles | AJ176: Contratación mínima cuantia | AK176: =IFERROR(VLOOKUP(F176,Tipo!$C$12:$C$27,1,FALSE),"NO") -> NO | AL176: Inversión | AM176: 11
A177: 176 | B177: 2019 | C177: FDLUSA-CPS-176-2019 | D177: Contratos de prestación de servicios profesionales y de apoyo a la gestión | E177: Contratación directa | F177: Prestación de servicios profesionales y de apoyo a la gestión, o para la ejecución de trabajos artísticos que sólo puedan encomendarse a determinadas personas naturales; | G177: “PRESTAR LOS SERVICIOS PROFESIONALES A LA ALCALDÍA LOCAL DE USAQUÉN EN MATERIA JURÍDICA, EN APOYO DE LA REVISIÓN Y CONCEPTO DE LOS ASUNTOS JURÍDICOS QUE SE REQUIERAN POR PARTE DEL DESPACHO DEL ALCALDE LOCAL EN EL CUMPLIMIENTO DE LOS FINES DE LA GESTIÓN INSTITUCIONAL LOCAL” | H177: Inversión | I177: 45 | J177: =IF(ISERROR(VLOOKUP(I177,Eje_Pilar!$C$2:$E$47,2,FALSE))," ",VLOOKUP(I177,Eje_Pilar!$C$2:$E$47,2,FALSE)) -> Gobernanza e influencia local, regional e internacional | K177: =IF(ISERROR(VLOOKUP(I177,Eje_Pilar!$C$2:$E$47,3,FALSE))," ",VLOOKUP(I177,Eje_Pilar!$C$2:$E$47,3,FALSE)) -> Eje Transversal 4 Gobierno Legitimo, Fortalecimiento Local y Eficiencia | L177: 3-3-1-15-07-45-1574-000 | M177: 79266624 | N177: JORGE JACOB ROZO MONTERO | O177: 32195000 | R177: 1 | S177: 14100000 | T177: 46295000 | U177: 28435000 | V177: 2019-08-13 | W177: 2019-08-15 | X177: 2019-12-31 | Y177: 136 | Z177: 60 | AC177: X | AF177: 0.614213198 | AH177: =IF(SUMPRODUCT((A$14:A177=A177)*(B$14:B177=B177)*(C$14:C177=C177))>1,0,1) -> 1 | AI177: Contratos de prestación de servicios profesionales y de apoyo a la gestión | AJ177: Contratación directa | AK177: =IFERROR(VLOOKUP(F177,Tipo!$C$12:$C$27,1,FALSE),"NO") -> Prestación de servicios profesionales y de apoyo a la gestión, o para la ejecución de trabajos artísticos que sólo puedan encomendarse a determinadas personas naturales; | AL177: Inversión | AM177: 45
A178: 179 | B178: 2019 | C178: FDLUSA-CPS-179-2019 | D178: Contratos de prestación de servicios | E178: Contratación directa | F178: Prestación de servicios profesionales y de apoyo a la gestión, o para la ejecución de trabajos artísticos que sólo puedan encomendarse a determinadas personas naturales; | G178: PRESTAR LOS SERVICIOS PROFESIONALES A LA ALCALDÍA LOCAL DE USAQUÉN, ÁREA GESTIÓN DEL DESARROLLO LOCAL-CONTRATOS, PARA EL DESARROLLO DE LAS ACTUACIONES ADMINISTRATIVAS NECESARIAS RELACIONADAS CON LOS ASUNTOS JURÍDICOS DE LA CONTRATACIÓN DEL FONDO DE DESARROLLO LOCAL, REQUERIDOS PARA EL NORMAL FUNCIONAMIENTO DE LA ENTIDAD | H178: Inversión | I178: 45 | J178: =IF(ISERROR(VLOOKUP(I178,Eje_Pilar!$C$2:$E$47,2,FALSE))," ",VLOOKUP(I178,Eje_Pilar!$C$2:$E$47,2,FALSE)) -> Gobernanza e influencia local, regional e internacional | K178: =IF(ISERROR(VLOOKUP(I178,Eje_Pilar!$C$2:$E$47,3,FALSE))," ",VLOOKUP(I178,Eje_Pilar!$C$2:$E$47,3,FALSE)) -> Eje Transversal 4 Gobierno Legitimo, Fortalecimiento Local y Eficiencia | L178: 3-3-1-15-07-45-1574-000 | M178: 1018413410 | N178: CAMILA MORENO PULIDO | O178: 26200000 | R178: 1 | S178: 12000000 | T178: 38200000 | V178: 2019-08-16 | W178: 2019-08-20 | X178: 2019-12-31 | Y178: 131 | Z178: 60 | AC178: X | AF178: 0 | AH178: =IF(SUMPRODUCT((A$14:A178=A178)*(B$14:B178=B178)*(C$14:C178=C178))>1,0,1) -> 1 | AI178: Contratos de prestación de servicios | AJ178: Contratación directa | AK178: =IFERROR(VLOOKUP(F178,Tipo!$C$12:$C$27,1,FALSE),"NO") -> Prestación de servicios profesionales y de apoyo a la gestión, o para la ejecución de trabajos artísticos que sólo puedan encomendarse a determinadas personas naturales; | AL178: Inversión | AM178: 45
A179: 180 | B179: 2019 | C179: FDLUSA-CPS-180-2019 | D179: Contratos de prestación de servicios | E179: Contratación directa | F179: Prestación de servicios profesionales y de apoyo a la gestión, o para la ejecución de trabajos artísticos que sólo puedan encomendarse a determinadas personas naturales; | G179: “PRESTAR LOS SERVICIOS PROFESIONALES A LA ALCALDÍA LOCAL DE USAQUÉN EN MATERIA JURÍDICA, EN APOYO DE LA REVISIÓN Y CONCEPTO DE LOS ASUNTOS JURÍDICOS QUE SE REQUIERAN POR PARTE DEL DESPACHO DEL ALCALDE LOCAL EN EL CUMPLIMIENTO DE LOS FINES DE LA GESTIÓN INSTITUCIONAL LOCAL” | H179: Inversión | I179: 45 | J179: =IF(ISERROR(VLOOKUP(I179,Eje_Pilar!$C$2:$E$47,2,FALSE))," ",VLOOKUP(I179,Eje_Pilar!$C$2:$E$47,2,FALSE)) -> Gobernanza e influencia local, regional e internacional | K179: =IF(ISERROR(VLOOKUP(I179,Eje_Pilar!$C$2:$E$47,3,FALSE))," ",VLOOKUP(I179,Eje_Pilar!$C$2:$E$47,3,FALSE)) -> Eje Transversal 4 Gobierno Legitimo, Fortalecimiento Local y Eficiencia | L179: 3-3-1-15-07-45-1574-000 | M179: 1067845364 | N179: PALOMA STEFANIA MOSQUERA STANFORD | O179: 27965000 | R179: 1 | S179: 13630000 | T179: 41595000 | U179: 24440000 | V179: 2019-08-30 | W179: 2019-09-02 | X179: 2019-12-31 | Y179: 119 | Z179: 58 | AC179: X | AF179: 0.5875706215 | AH179: =IF(SUMPRODUCT((A$14:A179=A179)*(B$14:B179=B179)*(C$14:C179=C179))>1,0,1) -> 1 | AI179: Contratos de prestación de servicios | AJ179: Contratación directa | AK179: =IFERROR(VLOOKUP(F179,Tipo!$C$12:$C$27,1,FALSE),"NO") -> Prestación de servicios profesionales y de apoyo a la gestión, o para la ejecución de trabajos artísticos que sólo puedan encomendarse a determinadas personas naturales; | AL179: Inversión | AM179: 45
A180: 181 | B180: 2019 | C180: FDLUSA-MC-012-2019 | D180: Suministro | E180: Contratación mínima cuantia | F180: No aplica | G180: “SUMINISTRAR CONSUMIBLES DE IMPRESIÓN (CARTUCHOS Y TÓNER) PARA LAS DIFERENTES DEPENDENCIAS DE LA ALCALDÍA LOCAL DE USAQUÉN”. | H180: Funcionamiento | J180: =IF(ISERROR(VLOOKUP(I180,Eje_Pilar!$C$2:$E$47,2,FALSE))," ",VLOOKUP(I180,Eje_Pilar!$C$2:$E$47,2,FALSE)) ->  | K180: =IF(ISERROR(VLOOKUP(I180,Eje_Pilar!$C$2:$E$47,3,FALSE))," ",VLOOKUP(I180,Eje_Pilar!$C$2:$E$47,3,FALSE)) ->  | L180: 3-1-2-02-01-02-0005-000 | M180: 860053274 | N180: GRUPO LOS LAGOS S.A.S | O180: 19159394 | T180: 19159394 | V180: 2019-09-26 | W180: 2019-10-11 | X180: 2020-05-10 | Y180: 210 | AC180: X | AF180: 0 | AH180: =IF(SUMPRODUCT((A$14:A180=A180)*(B$14:B180=B180)*(C$14:C180=C180))>1,0,1) -> 1 | AI180: Suministro | AJ180: Contratación mínima cuantia | AK180: =IFERROR(VLOOKUP(F180,Tipo!$C$12:$C$27,1,FALSE),"NO") -> NO | AL180: Funcionamiento | AM180: NO
A181: 183 | B181: 2019 | C181: FDLUSA-CMA-007-2019 | D181: Interventoría | E181: Concurso de méritos | F181: No aplica | G181: Realizar la interventoría técnica, administrativa, financiera y jurídica de las actividades culturales y deportivas del contrato que resulte del proceso FDLUSA-LP-002-2019 cuyo objeto corresponde a : “CONTRATAR LOS SERVICIOS DE UN OPERADOR LOGISTICO QUE DESARROLLE LAS ACTIVIDADES REQUERIDAS POR LA ALCALDIA LOCAL DE USAQUEN EN EL MARCO DEL PLAN DE DESARROLLO LOCAL 2017-2020 “USACA MEJOR PARA TODOS, USAQUEN CUENTA CONTIGO, de acuerdo con las especificaciones técnicas definidas por la Entidad con cargo al proyecto: “Equidad en la cultura, la recreación y el deporte” No. 1570 del Plan de Desarrollo Local, “USACA MEJOR PARA TODOS, USAQUÉN CUENTA CONTIGO”. | H181: Inversión | I181: 11 | J181: =IF(ISERROR(VLOOKUP(I181,Eje_Pilar!$C$2:$E$47,2,FALSE))," ",VLOOKUP(I181,Eje_Pilar!$C$2:$E$47,2,FALSE)) -> Mejores oportunidades para el desarrollo a través de la cultura, la recreación y el deporte | K181: =IF(ISERROR(VLOOKUP(I181,Eje_Pilar!$C$2:$E$47,3,FALSE))," ",VLOOKUP(I181,Eje_Pilar!$C$2:$E$47,3,FALSE)) -> Pilar 1 Igualdad de Calidad de Vida | L181: 3-3-1-15-01-11-1570-000 | M181: 830059289 | N181: ASOCIACION DE DISCAPACITADOS FISICOS DEL SUR | O181: 36450000 | R181: 1 | S181: 50000000 | T181: 86450000 | V181: 2019-09-23 | X181: 2019-12-31 | Y181: 90 | Z181: 60 | AC181: X | AF181: 0 | AH181: =IF(SUMPRODUCT((A$14:A181=A181)*(B$14:B181=B181)*(C$14:C181=C181))>1,0,1) -> 1 | AI181: Interventoría | AJ181: Concurso de méritos | AK181: =IFERROR(VLOOKUP(F181,Tipo!$C$12:$C$27,1,FALSE),"NO") -> NO | AL181: Inversión | AM181: 11
A182: 184 | B182: 2019 | C182: FDLUSA-MC-013-2019 | D182: Suministro | E182: Contratación mínima cuantia | F182: No aplica | G182: “PRESTAR LOS SERVICIOS DE REVISIÓN, MANTENIMIENTO, RECARGA DE EXTINTORES DE PROPIEDAD DEL FONDO DE DESARROLLO LOCAL DE USAQUÉN”. | H182: Funcionamiento | J182: =IF(ISERROR(VLOOKUP(I182,Eje_Pilar!$C$2:$E$47,2,FALSE))," ",VLOOKUP(I182,Eje_Pilar!$C$2:$E$47,2,FALSE)) ->  | K182: =IF(ISERROR(VLOOKUP(I182,Eje_Pilar!$C$2:$E$47,3,FALSE))," ",VLOOKUP(I182,Eje_Pilar!$C$2:$E$47,3,FALSE)) ->  | L182: 3-1-2-02-01-02-0005-000 | M182: 900276396 | N182: MEGASERVICE GVM LTDA | O182: 635000 | T182: 635000 | V182: 2019-10-04 | W182: 2019-11-01 | X182: 2019-11-30 | Y182: 30 | AC182: X | AF182: 0 | AH182: =IF(SUMPRODUCT((A$14:A182=A182)*(B$14:B182=B182)*(C$14:C182=C182))>1,0,1) -> 1 | AI182: Suministro | AJ182: Contratación mínima cuantia | AK182: =IFERROR(VLOOKUP(F182,Tipo!$C$12:$C$27,1,FALSE),"NO") -> NO | AL182: Funcionamiento | AM182: NO
A183: 185 | B183: 2019 | C183: FDLUSA-CMA-08-2019 | D183: Consultoría | E183: Concurso de méritos | F183: No aplica | G183: SELECCIONAR UN INTERMEDIARIO DE SEGUROS, LEGALMENTE CONSTITUIDO EN COLOMBIA, QUE ASESORE AL FONDO DE DESARROLLO LOCAL DE USAQUÉN EN LA CONTRATACIÓN Y ADMINISTRACIÓN DEL PROGRAMA DE SEGUROS REQUERIDO PARA LA ADECUADA PROTECCIÓN DE LOS BIENES MUEBLES, INMUEBLES E INTERESES PATRIMONIALES DE LA ENTIDAD Y LOS BIENES POR LOS CUALES SEA O LLEGARE A SER LEGALMENTE RESPONSABLE, ASÍ COMO SEGURO DE VIDA EDILES, ASI COMO DE LA GESTION INTEGRAL DE ADMINISTRACION DE SINIESTROS Y RECLAMACIONES | H183: Funcionamiento | J183: =IF(ISERROR(VLOOKUP(I183,Eje_Pilar!$C$2:$E$47,2,FALSE))," ",VLOOKUP(I183,Eje_Pilar!$C$2:$E$47,2,FALSE)) ->  | K183: =IF(ISERROR(VLOOKUP(I183,Eje_Pilar!$C$2:$E$47,3,FALSE))," ",VLOOKUP(I183,Eje_Pilar!$C$2:$E$47,3,FALSE)) ->  | L183: NO APLICA | M183: 8000181658 | N183: JARGU SA. CORREDORE SDE SEGUROS | O183: 0 | T183: 0 | V183: 2019-10-16 | W183: 2019-10-16 | X183: 2020-12-31 | Y183: 60 | AC183: X | AF183: - | AH183: =IF(SUMPRODUCT((A$14:A183=A183)*(B$14:B183=B183)*(C$14:C183=C183))>1,0,1) -> 1 | AI183: Consultoría | AJ183: Concurso de méritos | AK183: =IFERROR(VLOOKUP(F183,Tipo!$C$12:$C$27,1,FALSE),"NO") -> NO | AL183: Funcionamiento | AM183: NO
A184: 186 | B184: 2019 | C184: FDLUSA-CPS-186-2019 | D184: Contratos de prestación de servicios profesionales y de apoyo a la gestión | E184: Contratación directa | F184: Prestación de servicios profesionales y de apoyo a la gestión, o para la ejecución de trabajos artísticos que sólo puedan encomendarse a determinadas personas naturales; | G184: ARRENDAMIENTO DEL PREDIO (OFICINA) UBICADA EN LA DIRECCION Calle 123 No. 7-51, oficina 705 del edificio KAIWA, localidad de Usaquén de la ciudad de Bogotá D.C., para el funcionamiento temporal de la sede administrativa de la junta administrativa local de Usaquén. | H184: Inversión | I184: 45 | J184: =IF(ISERROR(VLOOKUP(I184,Eje_Pilar!$C$2:$E$47,2,FALSE))," ",VLOOKUP(I184,Eje_Pilar!$C$2:$E$47,2,FALSE)) -> Gobernanza e influencia local, regional e internacional | K184: =IF(ISERROR(VLOOKUP(I184,Eje_Pilar!$C$2:$E$47,3,FALSE))," ",VLOOKUP(I184,Eje_Pilar!$C$2:$E$47,3,FALSE)) -> Eje Transversal 4 Gobierno Legitimo, Fortalecimiento Local y Eficiencia | L184: 3-3-1-15-07-45-1574-000 | M184: 19303075 | N184: JOSE ISAURO ALVARADO RINCON | O184: 13433333 | R184: 1 | S184: 6500000 | T184: 19933333 | U184: 9750000 | V184: 2019-10-28 | W184: 2019-11-01 | X184: 2019-12-31 | Y184: 60 | Z184: 30 | AC184: X | AF184: 0.489130443 | AH184: =IF(SUMPRODUCT((A$14:A184=A184)*(B$14:B184=B184)*(C$14:C184=C184))>1,0,1) -> 1 | AI184: Contratos de prestación de servicios profesionales y de apoyo a la gestión | AJ184: Contratación directa | AK184: =IFERROR(VLOOKUP(F184,Tipo!$C$12:$C$27,1,FALSE),"NO") -> Prestación de servicios profesionales y de apoyo a la gestión, o para la ejecución de trabajos artísticos que sólo puedan encomendarse a determinadas personas naturales; | AL184: Inversión | AM184: 45
A185: 190 | B185: 2019 | C185: FDLUSA-CA-190-2019 | D185: Arrendamiento de bienes inmuebles | E185: Contratación directa | F185: El arrendamiento o adquisición de inmuebles | G185: ARRENDAMIENTO DEL PREDIO (OFICINA) UBICADA EN LA DIRECCION Calle 123 No. 7-51, oficina 705 del edificio KAIWA, localidad de Usaquén de la ciudad de Bogotá D.C., para el funcionamiento temporal de la sede administrativa de la junta administrativa local de Usaquén. | H185: Inversión | I185: 45 | J185: =IF(ISERROR(VLOOKUP(I185,Eje_Pilar!$C$2:$E$47,2,FALSE))," ",VLOOKUP(I185,Eje_Pilar!$C$2:$E$47,2,FALSE)) -> Gobernanza e influencia local, regional e internacional | K185: =IF(ISERROR(VLOOKUP(I185,Eje_Pilar!$C$2:$E$47,3,FALSE))," ",VLOOKUP(I185,Eje_Pilar!$C$2:$E$47,3,FALSE)) -> Eje Transversal 4 Gobierno Legitimo, Fortalecimiento Local y Eficiencia | L185: 3-3-1-15-07-45-1574-000 | M185: 8600361226 | N185: INVERSIONES SALAZAR ARIAS LIMITADA | O185: 56605128 | T185: 56605128 | V185: 2019-11-26 | X185: 29/05/209 | AC185: X | AF185: 0 | AH185: =IF(SUMPRODUCT((A$14:A185=A185)*(B$14:B185=B185)*(C$14:C185=C185))>1,0,1) -> 1 | AI185: Arrendamiento de bienes inmuebles | AJ185: Contratación directa | AK185: =IFERROR(VLOOKUP(F185,Tipo!$C$12:$C$27,1,FALSE),"NO") -> El arrendamiento o adquisición de inmuebles | AL185: Inversión | AM185: 45
A186: 194 | B186: 2019 | C186: FDLUSA-MC-013-2019 | D186: Suministro | E186: Contratación mínima cuantia | G186: Contratar la adquisición de equipos, materiales y elementos requeridos para la dotación de los Jardines Infantiles operados por la Secretaria Distrital de Integración Social y para las aulas de educación inicial de las Instituciones Educativas Distritales, de la Localidad de Usaquén, de conformidad con los lugares, especificaciones y cantidades establecidas en el Anexo Técnico | H186: Inversión | I186: 2 | J186: =IF(ISERROR(VLOOKUP(I186,Eje_Pilar!$C$2:$E$47,2,FALSE))," ",VLOOKUP(I186,Eje_Pilar!$C$2:$E$47,2,FALSE)) -> Desarrollo integral desde la gestación hasta la adolescencia | K186: =IF(ISERROR(VLOOKUP(I186,Eje_Pilar!$C$2:$E$47,3,FALSE))," ",VLOOKUP(I186,Eje_Pilar!$C$2:$E$47,3,FALSE)) -> Pilar 1 Igualdad de Calidad de Vida | L186: 3-3-1-15-01-02-1383-000 | M186: 900276396 | N186: GRUPO EMPRESARIAL MADEX S A S | O186: 208579066 | T186: 208579066 | U186: 0 | V186: 2019-12-02 | W186: 2020-01-10 | X186: 2020-05-09 | Y186: 120 | AC186: X | AF186: 0 | AH186: =IF(SUMPRODUCT((A$14:A186=A186)*(B$14:B186=B186)*(C$14:C186=C186))>1,0,1) -> 1 | AI186: Suministro | AJ186: Contratación mínima cuantia | AK186: =IFERROR(VLOOKUP(F186,Tipo!$C$12:$C$27,1,FALSE),"NO") -> NO | AL186: Inversión | AM186: 2
A187: 187 | B187: 2019 | C187: FDLUSA-CMA 009-2019 | D187: Interventoría | E187: Concurso de méritos | G187: REALIZAR LA INTERVENTORÍA, TÉCNICA, JURÍDICA, FINANCIERA, SOCIAL, AMBIENTAL Y DE SEGURIDAD Y SALUD EN EL TRABAJO AL CONTRATO CUYO OBJETO ES "CONTRATAR A PRECIOS UNITARIOS FIJOS SIN FÓRMULA DE REAJUSTE Y A MONTO AGOTALE, LAS ACTIVIDADES REQUERIDAS PARA DEMOLICIÓN DE VIVIENDAS, RETIRO Y DISPOSICIÓN FINAL DE ESCOMBROS, EMPRADIZACIÓN, CERRAMIENTO, SEÑALIZACIÓN Y/O MANTENIMIENTO DE PREDIOS ADQUIRIDOS EN EL PROCESO DE REASENTAMIENTO DE FAMILIAS EN ALTO RIESGO EN LA LOCALIDAD DE USAQUEN" | H187: Inversión | I187: 4 | J187: =IF(ISERROR(VLOOKUP(I187,Eje_Pilar!$C$2:$E$47,2,FALSE))," ",VLOOKUP(I187,Eje_Pilar!$C$2:$E$47,2,FALSE)) -> Familias protegidas y adaptadas al cambio climático | K187: =IF(ISERROR(VLOOKUP(I187,Eje_Pilar!$C$2:$E$47,3,FALSE))," ",VLOOKUP(I187,Eje_Pilar!$C$2:$E$47,3,FALSE)) -> Pilar 1 Igualdad de Calidad de Vida | L187: 3-3-1-15-01-04-1576-000 | M187: 830123577-7 | N187: AC2R INGENIERIA Y PROYECTOS SAS | O187: 98397478 | T187: 98397478 | V187: 2019-10-31 | W187: 2019-11-26 | X187: 2019-03-25 | Y187: 120 | AC187: X | AF187: 0 | AH187: =IF(SUMPRODUCT((A$14:A187=A187)*(B$14:B187=B187)*(C$14:C187=C187))>1,0,1) -> 1 | AI187: Interventoría | AJ187: Concurso de méritos | AK187: =IFERROR(VLOOKUP(F187,Tipo!$C$12:$C$27,1,FALSE),"NO") -> NO | AL187: Inversión | AM187: 4
A188: 201 | B188: 2019 | C188: FDLUSA-CMA-011-2019 | D188: Consultoría | E188: Concurso de méritos | G188: CONTRATO N 201 DE 2019- FORMULAR LAS ALTERNATIVAS DE REDUCCIÓN DE RIESGO FÍSICO POR MOVIMIENTOS EN MASA EN EL SECTOR DE LAS DELICIAS DEL CARMEN EN LA LOCALIDAD DE USAQUÉN EN BOGOTÁ, D.C | H188: Inversión | I188: 4 | J188: =IF(ISERROR(VLOOKUP(I188,Eje_Pilar!$C$2:$E$47,2,FALSE))," ",VLOOKUP(I188,Eje_Pilar!$C$2:$E$47,2,FALSE)) -> Familias protegidas y adaptadas al cambio climático | K188: =IF(ISERROR(VLOOKUP(I188,Eje_Pilar!$C$2:$E$47,3,FALSE))," ",VLOOKUP(I188,Eje_Pilar!$C$2:$E$47,3,FALSE)) -> Pilar 1 Igualdad de Calidad de Vida | L188: 3-3-1-15-01-04-1576-000 | M188: 901350315 | N188: CONSORCIO ESTABILIZACION USAQUEN | O188: 299023824 | T188: 299023824 | V188: 2019-12-18 | W188: 2020-01-07 | X188: 2020-05-06 | Y188: 120 | AC188: X | AF188: 0 | AH188: =IF(SUMPRODUCT((A$14:A188=A188)*(B$14:B188=B188)*(C$14:C188=C188))>1,0,1) -> 1 | AI188: Consultoría | AJ188: Concurso de méritos | AK188: =IFERROR(VLOOKUP(F188,Tipo!$C$12:$C$27,1,FALSE),"NO") -> NO | AL188: Inversión | AM188: 4
A189: 202 | B189: 2019 | C189: FDLUSA-CMA-014-2019 | D189: Interventoría | E189: Concurso de méritos | G189: CONTRATO N 202 DE 2019- REALIZAR LA INTERVENTORÍA TÉCNICA, ADMINISTRATIVA, FINANCIERA, AMBIENTAL, SOCIAL Y JURÍDICA AL CONTRATO RESULTANTE DEL CONCURSO DE MERITOS ABIERTO, CUYO OBJETO ES: FORMULAR LAS ALTERNATIVAS DE REDUCCIÓN DE RIESGO FÍSICO POR MOVIMIENTOS EN MASA EN EL SECTOR DE LAS DELICIAS DEL CARMEN EN LA LOCALIDAD DE USAQUÉN EN BOGOTÁ, D.C | H189: Inversión | I189: 4 | J189: =IF(ISERROR(VLOOKUP(I189,Eje_Pilar!$C$2:$E$47,2,FALSE))," ",VLOOKUP(I189,Eje_Pilar!$C$2:$E$47,2,FALSE)) -> Familias protegidas y adaptadas al cambio climático | K189: =IF(ISERROR(VLOOKUP(I189,Eje_Pilar!$C$2:$E$47,3,FALSE))," ",VLOOKUP(I189,Eje_Pilar!$C$2:$E$47,3,FALSE)) -> Pilar 1 Igualdad de Calidad de Vida | L189: 3-3-1-15-01-04-1576-000 | M189: 830084684 | N189: J A M INGENIERIA Y MEDIO AMBIENTE S.A.S | O189: 112389764 | T189: 112389764 | V189: 2019-12-24 | W189: 2020-01-07 | X189: 2020-05-06 | Y189: 120 | AC189: X | AF189: 0 | AH189: =IF(SUMPRODUCT((A$14:A189=A189)*(B$14:B189=B189)*(C$14:C189=C189))>1,0,1) -> 1 | AI189: Interventoría | AJ189: Concurso de méritos | AK189: =IFERROR(VLOOKUP(F189,Tipo!$C$12:$C$27,1,FALSE),"NO") -> NO | AL189: Inversión | AM189: 4
A190: 182 | B190: 2019 | C190: FDLUSA-LP 003-2019 | D190: Obra pública | E190: Licitación pública | G190: CONTRATAR A PRECIOS UNITARIOS FIJOS SIN FÓRMULA DE REAJUSTE Y A MONTO AGOTALE, LAS ACTIVIDADES REQUERIDAS PARA DEMOLICIÓN DE VIVIENDAS, RETIRO Y DISPOSICIÓN FINAL DE ESCOMBROS, EMPRADIZACIÓN, CERRAMIENTO, SEÑALIZACIÓN Y/O MANTENIMIENTO DE PREDIOS ADQUIRIDOS EN EL PROCESO DE REASENTAMIENTO DE FAMILIAS EN ALTO RIESGO EN LA LOCALIDAD DE USAQUEN | H190: Inversión | I190: 4 | J190: =IF(ISERROR(VLOOKUP(I190,Eje_Pilar!$C$2:$E$47,2,FALSE))," ",VLOOKUP(I190,Eje_Pilar!$C$2:$E$47,2,FALSE)) -> Familias protegidas y adaptadas al cambio climático | K190: =IF(ISERROR(VLOOKUP(I190,Eje_Pilar!$C$2:$E$47,3,FALSE))," ",VLOOKUP(I190,Eje_Pilar!$C$2:$E$47,3,FALSE)) -> Pilar 1 Igualdad de Calidad de Vida | L190: 3-3-1-15-01-04-1576-000 | M190: 8305097503 | N190: MANTENIMIENTOS VIALES SAS | O190: 782225117 | T190: 782225117 | V190: 2019-10-04 | W190: 2019-11-26 | X190: 2020-03-25 | Y190: 120 | AC190: X | AF190: 0 | AH190: =IF(SUMPRODUCT((A$14:A190=A190)*(B$14:B190=B190)*(C$14:C190=C190))>1,0,1) -> 1 | AI190: Obra pública | AJ190: Licitación pública | AK190: =IFERROR(VLOOKUP(F190,Tipo!$C$12:$C$27,1,FALSE),"NO") -> NO | AL190: Inversión | AM190: 4
A191: 194 | B191: 2019 | C191: FDLUSA-MC-013-2019 | D191: Suministro | E191: Contratación mínima cuantia | G191: Contratar la adquisición de equipos, materiales y elementos requeridos para la dotación de los Jardines Infantiles operados por la Secretaria Distrital de Integración Social y para las aulas de educación inicial de las Instituciones Educativas Distritales, de la Localidad de Usaquén, de conformidad con los lugares, especificaciones y cantidades establecidas en el Anexo Técnico | H191: Inversión | I191: 7 | J191: =IF(ISERROR(VLOOKUP(I191,Eje_Pilar!$C$2:$E$47,2,FALSE))," ",VLOOKUP(I191,Eje_Pilar!$C$2:$E$47,2,FALSE)) -> Inclusión educativa para la equidad | K191: =IF(ISERROR(VLOOKUP(I191,Eje_Pilar!$C$2:$E$47,3,FALSE))," ",VLOOKUP(I191,Eje_Pilar!$C$2:$E$47,3,FALSE)) -> Pilar 1 Igualdad de Calidad de Vida | L191: 3-3-1-15-01-07-1565-000 | M191: 900276396 | N191: GRUPO EMPRESARIAL MADEX S A S | O191: 116414591 | T191: 116414591 | AC191: X | AF191: 0 | AH191: =IF(SUMPRODUCT((A$14:A191=A191)*(B$14:B191=B191)*(C$14:C191=C191))>1,0,1) -> 0 | AI191: Suministro | AJ191: Contratación mínima cuantia | AK191: =IFERROR(VLOOKUP(F191,Tipo!$C$12:$C$27,1,FALSE),"NO") -> NO | AL191: Inversión | AM191: 7
A192: 188 | B192: 2019 | C192: FDLUSA-CI 188-2019 (SECOP 1) | D192: Contratos interadministrativos | E192: Contratación directa | F192: Contratos interadministrativos | G192: Desarrollar el Tercer Nivel de las Escuelas de Formación Artística, Escuelas de Formación Deportiva: Nuevas Tendencias Deportivas y Ciudadanos Activos, Ciudadanos Felices: Actividad Lúdica y Física para el Adulto Mayor en la localidad de Usaquén 2020. Las anteriores actividades van dirigidas a niños, niñas, adolescentes, jóvenes, adultos y adultos mayores de la localidad, en el marco del proyecto 1570: Equidad en la Cultura, la recreación y el deporte | H192: Inversión | I192: 11 | J192: =IF(ISERROR(VLOOKUP(I192,Eje_Pilar!$C$2:$E$47,2,FALSE))," ",VLOOKUP(I192,Eje_Pilar!$C$2:$E$47,2,FALSE)) -> Mejores oportunidades para el desarrollo a través de la cultura, la recreación y el deporte | K192: =IF(ISERROR(VLOOKUP(I192,Eje_Pilar!$C$2:$E$47,3,FALSE))," ",VLOOKUP(I192,Eje_Pilar!$C$2:$E$47,3,FALSE)) -> Pilar 1 Igualdad de Calidad de Vida | L192: 3-3-1-15-01-11-1570-000 | M192: 8999992307 | N192: UNIVERSIDAD DISTRITAL FRANCISCO JOSE DE CALDAS | O192: 750000000 | T192: 750000000 | V192: 2019-12-16 | W192: 2020-01-02 | X192: 2020-08-01 | AC192: X | AF192: 0 | AH192: =IF(SUMPRODUCT((A$14:A192=A192)*(B$14:B192=B192)*(C$14:C192=C192))>1,0,1) -> 1 | AI192: Contratos interadministrativos | AJ192: Contratación directa | AK192: =IFERROR(VLOOKUP(F192,Tipo!$C$12:$C$27,1,FALSE),"NO") -> Contratos interadministrativos | AL192: Inversión | AM192: 11
A193: 193 | B193: 2019 | C193: FDLUSA-CMA-010-2019 | D193: Consultoría | E193: Concurso de méritos | G193: CONTRATO No 193 DE 2019- ELABORAR LOS ESTUDIOS TOPOGRAFICOS REQUERIDOS EN LA ETAPA PREVIA DEL PROCESO DE REGULARIZACION DE DESARROLLOS LEGALIZADOS EN LA LOCALIDAD DE USAQUEN BOGOTA D.C. | H193: Inversión | I193: 15 | J193: =IF(ISERROR(VLOOKUP(I193,Eje_Pilar!$C$2:$E$47,2,FALSE))," ",VLOOKUP(I193,Eje_Pilar!$C$2:$E$47,2,FALSE)) -> Recuperación, incorporación, vida urbana y control de la ilegalidad | K193: =IF(ISERROR(VLOOKUP(I193,Eje_Pilar!$C$2:$E$47,3,FALSE))," ",VLOOKUP(I193,Eje_Pilar!$C$2:$E$47,3,FALSE)) -> Pilar 2 Democracía Urbana | L193: 3-3-1-15-02-15-1568-000 | M193: 900749675 | N193: ARBITRIUM S A S | O193: 266699670 | R193: 1 | S193: 78197259 | T193: 344896929 | V193: 2019-12-10 | W193: 2019-12-23 | X193: 2020-05-23 | Y193: 150 | Z193: 60 | AC193: X | AF193: 0 | AH193: =IF(SUMPRODUCT((A$14:A193=A193)*(B$14:B193=B193)*(C$14:C193=C193))>1,0,1) -> 1 | AI193: Consultoría | AJ193: Concurso de méritos | AK193: =IFERROR(VLOOKUP(F193,Tipo!$C$12:$C$27,1,FALSE),"NO") -> NO | AL193: Inversión | AM193: 15
A194: 198 | B194: 2019 | C194: FDLUSA-CMA-13-2019 | D194: Interventoría | E194: Concurso de méritos | G194: REALIZAR LA INTERVENTORÍA TÉCNICA, ADMINISTRATIVA, FINANCIERA, JURÍDICA, AMBIENTAL Y SOCIAL AL CONTRATO DE OBRA PUBLICA RESULTANTE DEL PROCESO DE LICITACION PUBLICA FDLUSA-LP-XXX-2019 CUYO OBJETO CONTRATAR A MONTO AGOTABLE SIN FORMULA DE AJUSTE LAS OBRAS DE INTERVENCIÓN, MANTENIMIENTO, REHABILITACIÓN Y ACTUALIZACIÓN DEL EQUIPAMIENTO Y MOBILIARIO DEL PARQUE 01-079 DENOMINADO URBANIZACIÓN EL TOBERIN CATALOGADO COMO VECINAL EN LA LOCALIDAD DE USAQUÉN EN BOGOTÁ D.C | H194: Inversión | I194: 17 | J194: =IF(ISERROR(VLOOKUP(I194,Eje_Pilar!$C$2:$E$47,2,FALSE))," ",VLOOKUP(I194,Eje_Pilar!$C$2:$E$47,2,FALSE)) -> Espacio público, derecho de todos | K194: =IF(ISERROR(VLOOKUP(I194,Eje_Pilar!$C$2:$E$47,3,FALSE))," ",VLOOKUP(I194,Eje_Pilar!$C$2:$E$47,3,FALSE)) -> Pilar 2 Democracía Urbana | L194: 3-3-1-15-02-17-1567-000 | M194: 900426155 | N194: PROYECTISTAS ASOCIADOS SAS | O194: 199660818 | T194: 199660818 | V194: 2019-12-26 | W194: 2019-12-27 | X194: 2020-06-26 | Y194: 180 | AC194: X | AF194: 0 | AH194: =IF(SUMPRODUCT((A$14:A194=A194)*(B$14:B194=B194)*(C$14:C194=C194))>1,0,1) -> 1 | AI194: Interventoría | AJ194: Concurso de méritos | AK194: =IFERROR(VLOOKUP(F194,Tipo!$C$12:$C$27,1,FALSE),"NO") -> NO | AL194: Inversión | AM194: 17
A195: 195 | B195: 2019 | C195: FDLUSA-LP-4-2019 | D195: Obra pública | E195: Licitación pública | G195: Contratar a monto agotable sin formula de ajuste las obras de intervención, mantenimiento, rehabilitación y actualización del equipamiento y mobiliario del parque 01-079 denominado Urbanización Toberín, catalogado como vecinal en la localidad de Usaquén en Bogotá D.C | H195: Inversión | I195: 17 | J195: =IF(ISERROR(VLOOKUP(I195,Eje_Pilar!$C$2:$E$47,2,FALSE))," ",VLOOKUP(I195,Eje_Pilar!$C$2:$E$47,2,FALSE)) -> Espacio público, derecho de todos | K195: =IF(ISERROR(VLOOKUP(I195,Eje_Pilar!$C$2:$E$47,3,FALSE))," ",VLOOKUP(I195,Eje_Pilar!$C$2:$E$47,3,FALSE)) -> Pilar 2 Democracía Urbana | L195: 3-3-1-15-02-17-1567-000 | M195: 860091575 | N195: SISTEMAS INTEGRALES DE MANEJO AMBIENTAL SIMA LTDA | O195: 2131412550 | T195: 2131412550 | V195: 2019-12-18 | W195: 2019-12-19 | X195: 2020-06-18 | Y195: 180 | AC195: X | AF195: =IF(ISERROR(U195/T195),"-",(U195/T195)) -> 0 | AH195: =IF(SUMPRODUCT((A$14:A195=A195)*(B$14:B195=B195)*(C$14:C195=C195))>1,0,1) -> 1 | AI195: Obra pública | AJ195: Licitación pública | AK195: =IFERROR(VLOOKUP(F195,Tipo!$C$12:$C$27,1,FALSE),"NO") -> NO | AL195: Inversión | AM195: 17
A196: 192 | B196: 2019 | C196: FDLUSA-SAMC-004-2019 | D196: Contratos de prestación de servicios | E196: Selección abreviada | F196: Selección abreviada por menor cuantía | G196: Contratar un operador para la prestación de servicios de personal logístico y provisión de refrigerios para la puesta en marcha del Plan Navidad en la Zona Centro de Usaquén, en el marco del proyecto 1569 denominado ¿Usaquén tu Casa Segura¿, del Plan de Desarrollo Local, USACA MEJOR PARA TODOS, USAQUÉN CUENTA CONTIGO | H196: Inversión | I196: 19 | J196: =IF(ISERROR(VLOOKUP(I196,Eje_Pilar!$C$2:$E$47,2,FALSE))," ",VLOOKUP(I196,Eje_Pilar!$C$2:$E$47,2,FALSE)) -> Seguridad y convivencia para todos | K196: =IF(ISERROR(VLOOKUP(I196,Eje_Pilar!$C$2:$E$47,3,FALSE))," ",VLOOKUP(I196,Eje_Pilar!$C$2:$E$47,3,FALSE)) -> Pilar 3 Construcción de Comunidad y Cultura Ciudadana | L196: 3-3-1-15-03-19-1569-000 | M196: 800220563 | N196: FUNDACION ESCUELA CULTURAL COMUN&ARTE FUCCA | O196: 147582885 | T196: 147582885 | U196: 74110845 | V196: 2019-12-05 | W196: 2019-12-05 | X196: 2020-01-15 | Y196: 45 | AC196: X | AF196: 0.5021642245 | AH196: =IF(SUMPRODUCT((A$14:A196=A196)*(B$14:B196=B196)*(C$14:C196=C196))>1,0,1) -> 1 | AI196: Contratos de prestación de servicios | AJ196: Selección abreviada | AK196: =IFERROR(VLOOKUP(F196,Tipo!$C$12:$C$27,1,FALSE),"NO") -> Selección abreviada por menor cuantía | AL196: Inversión | AM196: 19
A197: 200 | B197: 2019 | C197: FDLUSA-CPS-200-2019 | D197: Contratos de prestación de servicios | E197: Selección abreviada | G197: Prestación de servicios con el fin de desarrollar acciones tendientes a prevenir la violencia contra la mujer en la localidad de Usaquén. en el marco del proyecto de inversión No.1577, Usaca, Mariposa Violeta del Plan de Desarrollo Local USACA MEJOR PARA TODOS, USAQUÉN CUENTA CONTIGO 2017-2020 | H197: Inversión | I197: 20 | J197: =IF(ISERROR(VLOOKUP(I197,Eje_Pilar!$C$2:$E$47,2,FALSE))," ",VLOOKUP(I197,Eje_Pilar!$C$2:$E$47,2,FALSE)) -> Fortalecimiento del Sistema de Protección Integral a Mujeres Víctimas de Violencia - SOFIA | K197: =IF(ISERROR(VLOOKUP(I197,Eje_Pilar!$C$2:$E$47,3,FALSE))," ",VLOOKUP(I197,Eje_Pilar!$C$2:$E$47,3,FALSE)) -> Pilar 3 Construcción de Comunidad y Cultura Ciudadana | L197: 3-3-1-15-03-20-1577-000 | M197: 8300184067 | N197: CORPORACION SOCIAL PARA EL DESARROLLO DE LOS GRUPOS ETNICOS Y CULTURALES MULTIETNIAS | O197: 165226600 | T197: 165226600 | Y197: 120 | AC197: X | AF197: 0 | AH197: =IF(SUMPRODUCT((A$14:A197=A197)*(B$14:B197=B197)*(C$14:C197=C197))>1,0,1) -> 1 | AI197: Contratos de prestación de servicios | AJ197: Selección abreviada | AK197: =IFERROR(VLOOKUP(F197,Tipo!$C$12:$C$27,1,FALSE),"NO") -> NO | AL197: Inversión | AM197: 20
A198: 175 | B198: 2019 | C198: FDLUSA-CPS-175-2019 | D198: Contratos de prestación de servicios profesionales y de apoyo a la gestión | E198: Contratación directa | G198: PRESTAR LOS SERVICIOS PROFESIONALES PARA APOYAR JURÍDICAMENTE LA EJECUCIÓN DE LAS ACCIONES REQUERIDAS PARA EL TRÁMITE E IMPULSO PROCESAL DE LAS ACTUACIONES CONTRAVENCIONALES Y/O QUERELLAS QUE CURSEN EN LAS INSPECCIONES DE POLICÍA DE LA LOCALIDAD | H198: Inversión | I198: 45 | J198: =IF(ISERROR(VLOOKUP(I198,Eje_Pilar!$C$2:$E$47,2,FALSE))," ",VLOOKUP(I198,Eje_Pilar!$C$2:$E$47,2,FALSE)) -> Gobernanza e influencia local, regional e internacional | K198: =IF(ISERROR(VLOOKUP(I198,Eje_Pilar!$C$2:$E$47,3,FALSE))," ",VLOOKUP(I198,Eje_Pilar!$C$2:$E$47,3,FALSE)) -> Eje Transversal 4 Gobierno Legitimo, Fortalecimiento Local y Eficiencia | L198: 3-3-1-15-07-45-1574-000 | M198: 10772968 | N198: LUIS FERNANDO DELGADO JIMENEZ | O198: 22775000 | T198: 22775000 | U198: 16094333 | V198: 2019-08-15 | W198: 2019-08-15 | X198: 2019-12-31 | Y198: 150 | AC198: X | AF198: 0.706666652 | AH198: =IF(SUMPRODUCT((A$14:A198=A198)*(B$14:B198=B198)*(C$14:C198=C198))>1,0,1) -> 1 | AI198: Contratos de prestación de servicios profesionales y de apoyo a la gestión | AJ198: Contratación directa | AK198: =IFERROR(VLOOKUP(F198,Tipo!$C$12:$C$27,1,FALSE),"NO") -> NO | AL198: Inversión | AM198: 45
